{"text_format":"1","workbook":"xlsx","n_sheets":2,"sheets":["Intro & Setup","Maths Game"],"not_rendered":{"charts":0,"images":4,"macros":1,"external_links":0,"defined_names":2,"comments":0,"pivot_tables":0},"unopened":[],"bounds":{"document_bytes":16777216,"sheet_cells":100000,"rows_first":2000,"rows_last":500,"rows_between":2000,"halvings":0,"cell_chars":16384,"cell_head_chars":4096},"cells_cut":0,"cells_raw":0,"read":"whole","date_system":"1900"}

{"sheet":"Intro & Setup","index":0,"n_rows":843,"n_cols":73,"rows_kept":843,"cut":false,"hidden":false,"merged":[[12,10,12,14],[14,10,14,14],[12,17,16,44],[34,1,34,19],[35,1,41,19],[18,17,20,44],[42,1,42,19],[42,24,42,42],[12,1,12,9],[14,1,14,9],[16,1,16,9],[31,1,31,9],[31,11,31,19],[34,24,35,42],[23,1,23,9],[23,11,23,19],[23,21,23,36],[23,38,28,44],[24,1,30,9],[24,11,30,19],[24,21,28,36],[16,10,16,14],[8,1,8,44],[9,1,9,44],[10,1,10,44],[1,1,2,44],[4,1,4,44],[6,1,6,6],[6,7,6,44],[7,1,7,6],[7,7,7,44]]}
[]
[null,"Thanks for downloading the Children's Maths Game",null,null,null,null,null,null,null,null,null,null,null,null,null,null,null,null,null,null,null,null,null,null,null,null,null,null,null,null,null,null,null,null,null,null,null,null,null,null,null,null,null,null,null,null,null,null,null,null,null,null,null,null,null,null,null,null,null,null,null,null,"Random","Valid","Rank",null,null,null,null,null,"Paste",null,"Copy"]
[null,null,null,null,null,null,null,null,null,null,null,null,null,null,null,null,null,null,null,null,null,null,null,null,null,null,null,null,null,null,null,null,null,null,null,null,null,null,null,null,null,null,null,null,null,null,null,null,null,null,null,null,null,null,1,"+",1,null,{"$f":"BC3+BE3","v":2},null,{"$f":"IF(COUNTIF($BP$5:$BP$6, $BD3)=0, \"\", IF(OR($BC3>$BP$3, $BE3>$BP$3, $BG3>$BP$3, $BG3<$BP$8), \"\", \"X\"))","v":"X"},null,{"$f":"$BS3","v":155},{"$f":"IF($BI3=\"\", \"\", $BK3)","v":155},{"$f":"IF($BL3=\"\", \"\", COUNTIF($BL$3:$BL$803, \">\"&$BL3)+1+COUNTIF($BL$3:$BL3, $BL3)-1)","v":16},null,"Limit",{"$f":"IF($K$15=\"\", 5, $K$15)","v":5},null,null,155,null,{"$f":"RANDBETWEEN(1, 1000)","v":661}]
[null,null,null,null,null,null,null,null,null,null,null,null,null,null,null,null,null,null,null,null,null,null,null,null,null,null,null,null,null,null,null,null,null,null,null,null,null,null,null,null,null,null,null,null,null,null,null,null,"Well done!",1,6,null,null,null,{"$f":"IF(BC3+1>20, 1, BC3+1)","v":2},"+",{"$f":"IF(BC4=1, BE3+1, BE3)","v":1},null,{"$f":"BC4+BE4","v":3},null,{"$f":"IF(COUNTIF($BP$5:$BP$6, $BD4)=0, \"\", IF(OR($BC4>$BP$3, $BE4>$BP$3, $BG4>$BP$3, $BG4<$BP$8), \"\", \"X\"))","v":"X"},null,{"$f":"$BS4","v":30},{"$f":"IF($BI4=\"\", \"\", $BK4)","v":30},{"$f":"IF($BL4=\"\", \"\", COUNTIF($BL$3:$BL$803, \">\"&$BL4)+1+COUNTIF($BL$3:$BL4, $BL4)-1)","v":19},null,null,null,null,null,30,null,{"$f":"RANDBETWEEN(1, 1000)","v":294}]
[null,"Please read these notes explaining how to use this spreadsheet",null,null,null,null,null,null,null,null,null,null,null,null,null,null,null,null,null,null,null,null,null,null,null,null,null,null,null,null,null,null,null,null,null,null,null,null,null,null,null,null,null,null,null,null,null,null,"Good job!",2,7,null,null,null,{"$f":"IF(BC4+1>20, 1, BC4+1)","v":3},"+",{"$f":"IF(BC5=1, BE4+1, BE4)","v":1},null,{"$f":"BC5+BE5","v":4},null,"X",null,21,21,{"$f":"IF($BL5=\"\", \"\", COUNTIF($BL$3:$BL$803, \">\"&$BL5)+1+COUNTIF($BL$3:$BL5, $BL5)-1)","v":20},null,"Include +",{"$f":"IF(OR($BO$23=$BO$19, $BO$23=$BO$21), \"+\", \"\")","v":"+"},null,null,21,null,103]
[null,null,null,null,null,null,null,null,null,null,null,null,null,null,null,null,null,null,null,null,null,null,null,null,null,null,null,null,null,null,null,null,null,null,null,null,null,null,null,null,null,null,null,null,null,null,null,null,"Excellent!",3,8,null,null,null,4,"+",1,null,5,null,"X",null,969,969,{"$f":"IF($BL6=\"\", \"\", COUNTIF($BL$3:$BL$803, \">\"&$BL6)+1+COUNTIF($BL$3:$BL6, $BL6)-1)","v":2},null,"Include -",{"$f":"IF(OR($BO$23=$BO$20, $BO$23=$BO$21), \"-\", \"\")","v":"-"},null,null,969,null,80]
[null,"Editable Cells",null,null,null,null,null,"The blue background and white writing usually identifies cells where you can enter or edit information.",null,null,null,null,null,null,null,null,null,null,null,null,null,null,null,null,null,null,null,null,null,null,null,null,null,null,null,null,null,null,null,null,null,null,null,null,null,null,null,null,"Correct!",4,9,null,null,null,5,"+",1,null,6,null,"",null,32,"",{"$f":"IF($BL7=\"\", \"\", COUNTIF($BL$3:$BL$803, \">\"&$BL7)+1+COUNTIF($BL$3:$BL7, $BL7)-1)","v":""},null,null,null,null,null,32,null,732]
[null,"Calculated Cells",null,null,null,null,null,"The purple background and white writing usually identifies cells which are calculated, and therefore locked.",null,null,null,null,null,null,null,null,null,null,null,null,null,null,null,null,null,null,null,null,null,null,null,null,null,null,null,null,null,null,null,null,null,null,null,null,null,null,null,null,"Nice work!",5,10,null,null,null,6,"+",1,null,7,null,"",null,49,"",{"$f":"IF($BL8=\"\", \"\", COUNTIF($BL$3:$BL$803, \">\"&$BL8)+1+COUNTIF($BL$3:$BL8, $BL8)-1)","v":""},null,"Lowest",{"$f":"IF($BO$15=$BO$12, 0, 1)","v":1},null,null,49,null,10]
[null,"If you copy and paste data into this spreadsheet (from an internal or external source), ALWAYS use paste VALUES, never normal paste.",null,null,null,null,null,null,null,null,null,null,null,null,null,null,null,null,null,null,null,null,null,null,null,null,null,null,null,null,null,null,null,null,null,null,null,null,null,null,null,null,null,null,null,null,null,null,null,null,null,null,null,null,7,"+",1,null,8,null,"",null,292,"",{"$f":"IF($BL9=\"\", \"\", COUNTIF($BL$3:$BL$803, \">\"&$BL9)+1+COUNTIF($BL$3:$BL9, $BL9)-1)","v":""},null,null,null,null,null,292,null,330]
[null,"Using the drag function is the same as copy and paste, so do not use it.",null,null,null,null,null,null,null,null,null,null,null,null,null,null,null,null,null,null,null,null,null,null,null,null,null,null,null,null,null,null,null,null,null,null,null,null,null,null,null,null,null,null,null,null,null,null,null,null,null,null,null,null,8,"+",1,null,9,null,"",null,603,"",{"$f":"IF($BL10=\"\", \"\", COUNTIF($BL$3:$BL$803, \">\"&$BL10)+1+COUNTIF($BL$3:$BL10, $BL10)-1)","v":""},null,null,null,null,null,603,null,283]
[null,"DO not delete or move data or cells. You can use clear contents, or you can use the sort function where there are filters.",null,null,null,null,null,null,null,null,null,null,null,null,null,null,null,null,null,null,null,null,null,null,null,null,null,null,null,null,null,null,null,null,null,null,null,null,null,null,null,null,null,null,null,null,null,null,null,null,null,null,null,null,9,"+",1,null,10,null,"",null,186,"",{"$f":"IF($BL11=\"\", \"\", COUNTIF($BL$3:$BL$803, \">\"&$BL11)+1+COUNTIF($BL$3:$BL11, $BL11)-1)","v":""},null,null,null,null,null,186,null,404]
[null,null,null,null,null,null,null,null,null,null,null,null,null,null,null,null,null,null,null,null,null,null,null,null,null,null,null,null,null,null,null,null,null,null,null,null,null,null,null,null,null,null,null,null,null,null,null,null,"Try Again!",null,null,null,null,null,10,"+",1,null,11,null,"",null,311,"",{"$f":"IF($BL12=\"\", \"\", COUNTIF($BL$3:$BL$803, \">\"&$BL12)+1+COUNTIF($BL$3:$BL12, $BL12)-1)","v":""},null,"Yes",null,null,null,311,null,950]
[null,"Include Zero Answers",null,null,null,null,null,null,null,null,"No",null,null,null,null,null,null,"You can select whether or not to include zero answers. Selecting 'Yes' will have formulas like 2 - 2 which result in a 0 answer. Selecting 'No' will exclude such formulas.\nYou can state the maximum value to use, this includes values anywhere in the formulas and answers, thenumber selected will be the highest number shown anywhere.\nYou can select to include only addition, only subtraction, or both.\nAll of these selctions have defaults if left blank.",null,null,null,null,null,null,null,null,null,null,null,null,null,null,null,null,null,null,null,null,null,null,null,null,null,null,null,null,null,null,null,null,null,null,null,null,11,"+",1,null,12,null,"",null,438,"",{"$f":"IF($BL13=\"\", \"\", COUNTIF($BL$3:$BL$803, \">\"&$BL13)+1+COUNTIF($BL$3:$BL13, $BL13)-1)","v":""},null,"No",null,null,null,438,null,548]
[null,null,null,null,null,null,null,null,null,null,null,null,null,null,null,null,null,null,null,null,null,null,null,null,null,null,null,null,null,null,null,null,null,null,null,null,null,null,null,null,null,null,null,null,null,null,null,null,{"$f":"$AW4","v":"Well done!"},{"$f":"COUNTIF($BA$14:$BA$23, \">\"&$BA14)+1+COUNTIF($BA$14:$BA14, $BA14)-1","v":6},null,null,{"$f":"$BS804","v":528},null,12,"+",1,null,13,null,"",null,451,"",{"$f":"IF($BL14=\"\", \"\", COUNTIF($BL$3:$BL$803, \">\"&$BL14)+1+COUNTIF($BL$3:$BL14, $BL14)-1)","v":""},null,null,null,null,null,451,null,465]
[null,"Maximum Value Limit",null,null,null,null,null,null,null,null,5,null,null,null,null,null,null,null,null,null,null,null,null,null,null,null,null,null,null,null,null,null,null,null,null,null,null,null,null,null,null,null,null,null,null,null,null,null,{"$f":"$AW5","v":"Good job!"},{"$f":"COUNTIF($BA$14:$BA$23, \">\"&$BA15)+1+COUNTIF($BA$14:$BA15, $BA15)-1","v":3},null,null,{"$f":"$BS805","v":848},null,13,"+",1,null,14,null,"",null,198,"",{"$f":"IF($BL15=\"\", \"\", COUNTIF($BL$3:$BL$803, \">\"&$BL15)+1+COUNTIF($BL$3:$BL15, $BL15)-1)","v":""},null,{"$f":"IF($K$13=$BO$12, $BO$12, $BO$13)","v":"No"},null,null,null,198,null,299]
[null,null,null,null,null,null,null,null,null,null,null,null,null,null,null,null,null,null,null,null,null,null,null,null,null,null,null,null,null,null,null,null,null,null,null,null,null,null,null,null,null,null,null,null,null,null,null,null,"Excellent!",{"$f":"COUNTIF($BA$14:$BA$23, \">\"&$BA16)+1+COUNTIF($BA$14:$BA16, $BA16)-1","v":4},null,null,722,null,14,"+",1,null,15,null,"",null,442,"",{"$f":"IF($BL16=\"\", \"\", COUNTIF($BL$3:$BL$803, \">\"&$BL16)+1+COUNTIF($BL$3:$BL16, $BL16)-1)","v":""},null,null,null,null,null,442,null,461]
[null,"Formulas to Include",null,null,null,null,null,null,null,null,"Both + & -",null,null,null,null,null,null,null,null,null,null,null,null,null,null,null,null,null,null,null,null,null,null,null,null,null,null,null,null,null,null,null,null,null,null,null,null,null,"Correct!",{"$f":"COUNTIF($BA$14:$BA$23, \">\"&$BA17)+1+COUNTIF($BA$14:$BA17, $BA17)-1","v":5},null,null,610,null,15,"+",1,null,16,null,"",null,664,"",{"$f":"IF($BL17=\"\", \"\", COUNTIF($BL$3:$BL$803, \">\"&$BL17)+1+COUNTIF($BL$3:$BL17, $BL17)-1)","v":""},null,null,null,null,null,664,null,804]
[null,null,null,null,null,null,null,null,null,null,null,null,null,null,null,null,null,null,null,null,null,null,null,null,null,null,null,null,null,null,null,null,null,null,null,null,null,null,null,null,null,null,null,null,null,null,null,null,"Nice work!",{"$f":"COUNTIF($BA$14:$BA$23, \">\"&$BA18)+1+COUNTIF($BA$14:$BA18, $BA18)-1","v":9},null,null,260,null,16,"+",1,null,17,null,"",null,745,"",{"$f":"IF($BL18=\"\", \"\", COUNTIF($BL$3:$BL$803, \">\"&$BL18)+1+COUNTIF($BL$3:$BL18, $BL18)-1)","v":""},null,null,null,null,null,745,null,977]
[null,null,null,null,null,null,null,null,null,null,null,null,null,null,null,null,null,"Once set up, simply get the child to type the answer next to each question. If they get it right, it tells them. If they get it wrong, it encourages them to try again. When complete, click the 'Reset Game' red block, and it will give another set of questions and clear the answers.",null,null,null,null,null,null,null,null,null,null,null,null,null,null,null,null,null,null,null,null,null,null,null,null,null,null,null,null,null,null,{"$f":"$AW4","v":"Well done!"},{"$f":"COUNTIF($BA$14:$BA$23, \">\"&$BA19)+1+COUNTIF($BA$14:$BA19, $BA19)-1","v":7},null,null,388,null,17,"+",1,null,18,null,"",null,206,"",{"$f":"IF($BL19=\"\", \"\", COUNTIF($BL$3:$BL$803, \">\"&$BL19)+1+COUNTIF($BL$3:$BL19, $BL19)-1)","v":""},null,{"$f":"\"+ Only\"","v":"+ Only"},null,null,null,206,null,903]
[null,null,null,null,null,null,null,null,null,null,null,null,null,null,null,null,null,null,null,null,null,null,null,null,null,null,null,null,null,null,null,null,null,null,null,null,null,null,null,null,null,null,null,null,null,null,null,null,{"$f":"$AW5","v":"Good job!"},{"$f":"COUNTIF($BA$14:$BA$23, \">\"&$BA20)+1+COUNTIF($BA$14:$BA20, $BA20)-1","v":10},null,null,17,null,18,"+",1,null,19,null,"",null,766,"",{"$f":"IF($BL20=\"\", \"\", COUNTIF($BL$3:$BL$803, \">\"&$BL20)+1+COUNTIF($BL$3:$BL20, $BL20)-1)","v":""},null,{"$f":"\"- Only\"","v":"- Only"},null,null,null,766,null,607]
[null,null,null,null,null,null,null,null,null,null,null,null,null,null,null,null,null,null,null,null,null,null,null,null,null,null,null,null,null,null,null,null,null,null,null,null,null,null,null,null,null,null,null,null,null,null,null,null,"Excellent!",{"$f":"COUNTIF($BA$14:$BA$23, \">\"&$BA21)+1+COUNTIF($BA$14:$BA21, $BA21)-1","v":1},null,null,948,null,19,"+",1,null,20,null,"",null,576,"",{"$f":"IF($BL21=\"\", \"\", COUNTIF($BL$3:$BL$803, \">\"&$BL21)+1+COUNTIF($BL$3:$BL21, $BL21)-1)","v":""},null,"Both + & -",null,null,null,576,null,677]
[null,null,null,null,null,null,null,null,null,null,null,null,null,null,null,null,null,null,null,null,null,null,null,null,null,null,null,null,null,null,null,null,null,null,null,null,null,null,null,null,null,null,null,null,null,null,null,null,"Correct!",{"$f":"COUNTIF($BA$14:$BA$23, \">\"&$BA22)+1+COUNTIF($BA$14:$BA22, $BA22)-1","v":2},null,null,932,null,20,"+",1,null,21,null,"",null,473,"",{"$f":"IF($BL22=\"\", \"\", COUNTIF($BL$3:$BL$803, \">\"&$BL22)+1+COUNTIF($BL$3:$BL22, $BL22)-1)","v":""},null,null,null,null,null,473,null,701]
[null,null,null,null,null,null,null,null,null,null,null,null,null,null,null,null,null,null,null,null,null,null,null,null,null,null,null,null,null,null,null,null,null,null,null,null,null,null,null,null,null,null,null,null,null,null,null,null,"Nice work!",{"$f":"COUNTIF($BA$14:$BA$23, \">\"&$BA23)+1+COUNTIF($BA$14:$BA23, $BA23)-1","v":8},null,null,377,null,1,"+",2,null,3,null,"X",null,279,279,{"$f":"IF($BL23=\"\", \"\", COUNTIF($BL$3:$BL$803, \">\"&$BL23)+1+COUNTIF($BL$3:$BL23, $BL23)-1)","v":12},null,{"$f":"IF($K$17=$BO$19, $BO$19, IF($K$17=$BO$20, $BO$20, $BO$21))","v":"Both + & -"},null,null,null,279,null,968]
[null,"Buy Ready-made",null,null,null,null,null,null,null,null,null,"Buy Custom-made",null,null,null,null,null,null,null,null,null,"If you get stuck, here is a demo video",null,null,null,null,null,null,null,null,null,null,null,null,null,null,null,null,"Watch the demo on YouTube",null,null,null,null,null,null,null,null,null,null,null,null,null,null,null,2,"+",2,null,4,null,"X",null,752,752,{"$f":"IF($BL24=\"\", \"\", COUNTIF($BL$3:$BL$803, \">\"&$BL24)+1+COUNTIF($BL$3:$BL24, $BL24)-1)","v":6},null,null,null,null,null,752,null,361]
[null,"Click here for more info",null,null,null,null,null,null,null,null,null,"Click here for more info",null,null,null,null,null,null,null,null,null,null,null,null,null,null,null,null,null,null,null,null,null,null,null,null,null,null,null,null,null,null,null,null,null,null,null,null,null,null,null,null,null,null,3,"+",2,null,5,null,"X",null,181,181,{"$f":"IF($BL25=\"\", \"\", COUNTIF($BL$3:$BL$803, \">\"&$BL25)+1+COUNTIF($BL$3:$BL25, $BL25)-1)","v":14},null,null,null,null,null,181,null,216]
[null,null,null,null,null,null,null,null,null,null,null,null,null,null,null,null,null,null,null,null,null,null,null,null,null,null,null,null,null,null,null,null,null,null,null,null,null,null,null,null,null,null,null,null,null,null,null,null,"🚂",{"$f":"COUNTIF($BA$26:$BA$55, \">\"&$BA26)+1+COUNTIF($BA$26:$BA26, $BA26)-1","v":14},null,null,{"$f":"$BS814","v":572},null,4,"+",2,null,6,null,"",null,302,"",{"$f":"IF($BL26=\"\", \"\", COUNTIF($BL$3:$BL$803, \">\"&$BL26)+1+COUNTIF($BL$3:$BL26, $BL26)-1)","v":""},null,null,null,null,null,302,null,624]
[null,null,null,null,null,null,null,null,null,null,null,null,null,null,null,null,null,null,null,null,null,null,null,null,null,null,null,null,null,null,null,null,null,null,null,null,null,null,null,null,null,null,null,null,null,null,null,null,"🚓",{"$f":"COUNTIF($BA$26:$BA$55, \">\"&$BA27)+1+COUNTIF($BA$26:$BA27, $BA27)-1","v":12},null,null,{"$f":"$BS815","v":654},null,5,"+",2,null,7,null,"",null,169,"",{"$f":"IF($BL27=\"\", \"\", COUNTIF($BL$3:$BL$803, \">\"&$BL27)+1+COUNTIF($BL$3:$BL27, $BL27)-1)","v":""},null,5,null,null,null,169,null,394]
[null,null,null,null,null,null,null,null,null,null,null,null,null,null,null,null,null,null,null,null,null,null,null,null,null,null,null,null,null,null,null,null,null,null,null,null,null,null,null,null,null,null,null,null,null,null,null,null,"🍦",{"$f":"COUNTIF($BA$26:$BA$55, \">\"&$BA28)+1+COUNTIF($BA$26:$BA28, $BA28)-1","v":15},null,null,560,null,6,"+",2,null,8,null,"",null,785,"",{"$f":"IF($BL28=\"\", \"\", COUNTIF($BL$3:$BL$803, \">\"&$BL28)+1+COUNTIF($BL$3:$BL28, $BL28)-1)","v":""},null,6,null,null,null,785,null,695]
[null,null,null,null,null,null,null,null,null,null,null,null,null,null,null,null,null,null,null,null,null,null,null,null,null,null,null,null,null,null,null,null,null,null,null,null,null,null,null,null,null,null,null,null,null,null,null,null,"🧸",{"$f":"COUNTIF($BA$26:$BA$55, \">\"&$BA29)+1+COUNTIF($BA$26:$BA29, $BA29)-1","v":4},null,null,923,null,7,"+",2,null,9,null,"",null,781,"",{"$f":"IF($BL29=\"\", \"\", COUNTIF($BL$3:$BL$803, \">\"&$BL29)+1+COUNTIF($BL$3:$BL29, $BL29)-1)","v":""},null,7,null,null,null,781,null,461]
[null,null,null,null,null,null,null,null,null,null,null,null,null,null,null,null,null,null,null,null,null,null,null,null,null,null,null,null,null,null,null,null,null,null,null,null,null,null,null,null,null,null,null,null,null,null,null,null,"☺️",{"$f":"COUNTIF($BA$26:$BA$55, \">\"&$BA30)+1+COUNTIF($BA$26:$BA30, $BA30)-1","v":21},null,null,385,null,8,"+",2,null,10,null,"",null,559,"",{"$f":"IF($BL30=\"\", \"\", COUNTIF($BL$3:$BL$803, \">\"&$BL30)+1+COUNTIF($BL$3:$BL30, $BL30)-1)","v":""},null,8,null,null,null,559,null,132]
[null,null,null,null,null,null,null,null,null,null,null,null,null,null,null,null,null,null,null,null,null,null,null,null,null,null,null,null,null,null,null,null,null,null,null,null,null,null,null,null,null,null,null,null,null,null,null,null,"🚑",{"$f":"COUNTIF($BA$26:$BA$55, \">\"&$BA31)+1+COUNTIF($BA$26:$BA31, $BA31)-1","v":10},null,null,710,null,9,"+",2,null,11,null,"",null,548,"",{"$f":"IF($BL31=\"\", \"\", COUNTIF($BL$3:$BL$803, \">\"&$BL31)+1+COUNTIF($BL$3:$BL31, $BL31)-1)","v":""},null,9,null,null,null,548,null,46]
[null,"Spreadsheets",null,null,null,null,null,null,null,null,null,"Spreadsheets",null,null,null,null,null,null,null,null,null,null,null,null,null,null,null,null,null,null,null,null,null,null,null,null,null,null,null,null,null,null,null,null,null,null,null,null,"🚒",{"$f":"COUNTIF($BA$26:$BA$55, \">\"&$BA32)+1+COUNTIF($BA$26:$BA32, $BA32)-1","v":11},null,null,665,null,10,"+",2,null,12,null,"",null,147,"",{"$f":"IF($BL32=\"\", \"\", COUNTIF($BL$3:$BL$803, \">\"&$BL32)+1+COUNTIF($BL$3:$BL32, $BL32)-1)","v":""},null,10,null,null,null,147,null,382]
[null,null,null,null,null,null,null,null,null,null,null,null,null,null,null,null,null,null,null,null,null,null,null,null,null,null,null,null,null,null,null,null,null,null,null,null,null,null,null,null,null,null,null,null,null,null,null,null,"🍎",{"$f":"COUNTIF($BA$26:$BA$55, \">\"&$BA33)+1+COUNTIF($BA$26:$BA33, $BA33)-1","v":30},null,null,13,null,11,"+",2,null,13,null,"",null,937,"",{"$f":"IF($BL33=\"\", \"\", COUNTIF($BL$3:$BL$803, \">\"&$BL33)+1+COUNTIF($BL$3:$BL33, $BL33)-1)","v":""},null,11,null,null,null,937,null,418]
[null,null,null,null,null,null,null,null,null,null,null,null,null,null,null,null,null,null,null,null,null,null,null,null,null,null,null,null,null,null,null,null,null,null,null,null,null,null,null,null,null,null,null,null,null,null,null,null,"🛝",{"$f":"COUNTIF($BA$26:$BA$55, \">\"&$BA34)+1+COUNTIF($BA$26:$BA34, $BA34)-1","v":18},null,null,468,null,12,"+",2,null,14,null,"",null,194,"",{"$f":"IF($BL34=\"\", \"\", COUNTIF($BL$3:$BL$803, \">\"&$BL34)+1+COUNTIF($BL$3:$BL34, $BL34)-1)","v":""},null,12,null,null,null,194,null,396]
[null,"This spreadsheet was created by",null,null,null,null,null,null,null,null,null,null,null,null,null,null,null,null,null,null,null,null,null,null,"We do not offer support on free spreadsheets,\nbut if you find any errors, please let us know.",null,null,null,null,null,null,null,null,null,null,null,null,null,null,null,null,null,null,null,null,null,null,null,"🦩",{"$f":"COUNTIF($BA$26:$BA$55, \">\"&$BA35)+1+COUNTIF($BA$26:$BA35, $BA35)-1","v":9},null,null,730,null,13,"+",2,null,15,null,"",null,163,"",{"$f":"IF($BL35=\"\", \"\", COUNTIF($BL$3:$BL$803, \">\"&$BL35)+1+COUNTIF($BL$3:$BL35, $BL35)-1)","v":""},null,13,null,null,null,163,null,793]
[null,null,null,null,null,null,null,null,null,null,null,null,null,null,null,null,null,null,null,null,null,null,null,null,null,null,null,null,null,null,null,null,null,null,null,null,null,null,null,null,null,null,null,null,null,null,null,null,"🐬",{"$f":"COUNTIF($BA$26:$BA$55, \">\"&$BA36)+1+COUNTIF($BA$26:$BA36, $BA36)-1","v":8},null,null,812,null,14,"+",2,null,16,null,"",null,997,"",{"$f":"IF($BL36=\"\", \"\", COUNTIF($BL$3:$BL$803, \">\"&$BL36)+1+COUNTIF($BL$3:$BL36, $BL36)-1)","v":""},null,14,null,null,null,997,null,512]
[null,null,null,null,null,null,null,null,null,null,null,null,null,null,null,null,null,null,null,null,null,null,null,null,null,null,null,null,null,null,null,null,null,null,null,null,null,null,null,null,null,null,null,null,null,null,null,null,"🔫",{"$f":"COUNTIF($BA$26:$BA$55, \">\"&$BA37)+1+COUNTIF($BA$26:$BA37, $BA37)-1","v":5},null,null,922,null,15,"+",2,null,17,null,"",null,860,"",{"$f":"IF($BL37=\"\", \"\", COUNTIF($BL$3:$BL$803, \">\"&$BL37)+1+COUNTIF($BL$3:$BL37, $BL37)-1)","v":""},null,15,null,null,null,860,null,692]
[null,null,null,null,null,null,null,null,null,null,null,null,null,null,null,null,null,null,null,null,null,null,null,null,null,null,null,null,null,null,null,null,null,null,null,null,null,null,null,null,null,null,null,null,null,null,null,null,"☃️",{"$f":"COUNTIF($BA$26:$BA$55, \">\"&$BA38)+1+COUNTIF($BA$26:$BA38, $BA38)-1","v":19},null,null,405,null,16,"+",2,null,18,null,"",null,370,"",{"$f":"IF($BL38=\"\", \"\", COUNTIF($BL$3:$BL$803, \">\"&$BL38)+1+COUNTIF($BL$3:$BL38, $BL38)-1)","v":""},null,16,null,null,null,370,null,672]
[null,null,null,null,null,null,null,null,null,null,null,null,null,null,null,null,null,null,null,null,null,null,null,null,null,null,null,null,null,null,null,null,null,null,null,null,null,null,null,null,null,null,null,null,null,null,null,null,"🤖",{"$f":"COUNTIF($BA$26:$BA$55, \">\"&$BA39)+1+COUNTIF($BA$26:$BA39, $BA39)-1","v":22},null,null,351,null,17,"+",2,null,19,null,"",null,478,"",{"$f":"IF($BL39=\"\", \"\", COUNTIF($BL$3:$BL$803, \">\"&$BL39)+1+COUNTIF($BL$3:$BL39, $BL39)-1)","v":""},null,17,null,null,null,478,null,134]
[null,null,null,null,null,null,null,null,null,null,null,null,null,null,null,null,null,null,null,null,null,null,null,null,null,null,null,null,null,null,null,null,null,null,null,null,null,null,null,null,null,null,null,null,null,null,null,null,"🦍",{"$f":"COUNTIF($BA$26:$BA$55, \">\"&$BA40)+1+COUNTIF($BA$26:$BA40, $BA40)-1","v":29},null,null,35,null,18,"+",2,null,20,null,"",null,877,"",{"$f":"IF($BL40=\"\", \"\", COUNTIF($BL$3:$BL$803, \">\"&$BL40)+1+COUNTIF($BL$3:$BL40, $BL40)-1)","v":""},null,18,null,null,null,877,null,907]
[null,null,null,null,null,null,null,null,null,null,null,null,null,null,null,null,null,null,null,null,null,null,null,null,null,null,null,null,null,null,null,null,null,null,null,null,null,null,null,null,null,null,null,null,null,null,null,null,"🦊",{"$f":"COUNTIF($BA$26:$BA$55, \">\"&$BA41)+1+COUNTIF($BA$26:$BA41, $BA41)-1","v":13},null,null,632,null,19,"+",2,null,21,null,"",null,861,"",{"$f":"IF($BL41=\"\", \"\", COUNTIF($BL$3:$BL$803, \">\"&$BL41)+1+COUNTIF($BL$3:$BL41, $BL41)-1)","v":""},null,19,null,null,null,861,null,496]
[null,null,null,null,null,null,null,null,null,null,null,null,null,null,null,null,null,null,null,null,null,null,null,null,null,null,null,null,null,null,null,null,null,null,null,null,null,null,null,null,null,null,null,null,null,null,null,null,"🐱",{"$f":"COUNTIF($BA$26:$BA$55, \">\"&$BA42)+1+COUNTIF($BA$26:$BA42, $BA42)-1","v":20},null,null,392,null,20,"+",2,null,22,null,"",null,310,"",{"$f":"IF($BL42=\"\", \"\", COUNTIF($BL$3:$BL$803, \">\"&$BL42)+1+COUNTIF($BL$3:$BL42, $BL42)-1)","v":""},null,20,null,null,null,310,null,578]
[null,"Free Download - LinkedIn Business Page Activity Report",null,null,null,null,null,null,null,null,null,null,null,null,null,null,null,null,null,null,null,null,null,null,"© Sumcor Ltd - Trading as Spreadsheet Solutions",null,null,null,null,null,null,null,null,null,null,null,null,null,null,null,null,null,null,null,null,null,null,null,"🐶",{"$f":"COUNTIF($BA$26:$BA$55, \">\"&$BA43)+1+COUNTIF($BA$26:$BA43, $BA43)-1","v":1},null,null,946,null,1,"+",3,null,4,null,"X",null,73,73,{"$f":"IF($BL43=\"\", \"\", COUNTIF($BL$3:$BL$803, \">\"&$BL43)+1+COUNTIF($BL$3:$BL43, $BL43)-1)","v":17},null,null,null,null,null,73,null,430]
[null,null,null,null,null,null,null,null,null,null,null,null,null,null,null,null,null,null,null,null,null,null,null,null,null,null,null,null,null,null,null,null,null,null,null,null,null,null,null,null,null,null,null,null,null,null,null,null,"🦄",{"$f":"COUNTIF($BA$26:$BA$55, \">\"&$BA44)+1+COUNTIF($BA$26:$BA44, $BA44)-1","v":6},null,null,900,null,2,"+",3,null,5,null,"X",null,531,531,{"$f":"IF($BL44=\"\", \"\", COUNTIF($BL$3:$BL$803, \">\"&$BL44)+1+COUNTIF($BL$3:$BL44, $BL44)-1)","v":10},null,null,null,null,null,531,null,995]
[null,null,null,null,null,null,null,null,null,null,null,null,null,null,null,null,null,null,null,null,null,null,null,null,null,null,null,null,null,null,null,null,null,null,null,null,null,null,null,null,null,null,null,null,null,null,null,null,"🐷",{"$f":"COUNTIF($BA$26:$BA$55, \">\"&$BA45)+1+COUNTIF($BA$26:$BA45, $BA45)-1","v":2},null,null,933,null,3,"+",3,null,6,null,"",null,411,"",{"$f":"IF($BL45=\"\", \"\", COUNTIF($BL$3:$BL$803, \">\"&$BL45)+1+COUNTIF($BL$3:$BL45, $BL45)-1)","v":""},null,null,null,null,null,411,null,280]
[null,null,null,null,null,null,null,null,null,null,null,null,null,null,null,null,null,null,null,null,null,null,null,null,null,null,null,null,null,null,null,null,null,null,null,null,null,null,null,null,null,null,null,null,null,null,null,null,"🏆",{"$f":"COUNTIF($BA$26:$BA$55, \">\"&$BA46)+1+COUNTIF($BA$26:$BA46, $BA46)-1","v":27},null,null,94,null,4,"+",3,null,7,null,"",null,780,"",{"$f":"IF($BL46=\"\", \"\", COUNTIF($BL$3:$BL$803, \">\"&$BL46)+1+COUNTIF($BL$3:$BL46, $BL46)-1)","v":""},null,null,null,null,null,780,null,217]
[null,null,null,null,null,null,null,null,null,null,null,null,null,null,null,null,null,null,null,null,null,null,null,null,null,null,null,null,null,null,null,null,null,null,null,null,null,null,null,null,null,null,null,null,null,null,null,null,"⚽",{"$f":"COUNTIF($BA$26:$BA$55, \">\"&$BA47)+1+COUNTIF($BA$26:$BA47, $BA47)-1","v":24},null,null,156,null,5,"+",3,null,8,null,"",null,879,"",{"$f":"IF($BL47=\"\", \"\", COUNTIF($BL$3:$BL$803, \">\"&$BL47)+1+COUNTIF($BL$3:$BL47, $BL47)-1)","v":""},null,null,null,null,null,879,null,641]
[null,null,null,null,null,null,null,null,null,null,null,null,null,null,null,null,null,null,null,null,null,null,null,null,null,null,null,null,null,null,null,null,null,null,null,null,null,null,null,null,null,null,null,null,null,null,null,null,"🏉",{"$f":"COUNTIF($BA$26:$BA$55, \">\"&$BA48)+1+COUNTIF($BA$26:$BA48, $BA48)-1","v":17},null,null,490,null,6,"+",3,null,9,null,"",null,422,"",{"$f":"IF($BL48=\"\", \"\", COUNTIF($BL$3:$BL$803, \">\"&$BL48)+1+COUNTIF($BL$3:$BL48, $BL48)-1)","v":""},null,null,null,null,null,422,null,383]
[null,null,null,null,null,null,null,null,null,null,null,null,null,null,null,null,null,null,null,null,null,null,null,null,null,null,null,null,null,null,null,null,null,null,null,null,null,null,null,null,null,null,null,null,null,null,null,null,"🎹",{"$f":"COUNTIF($BA$26:$BA$55, \">\"&$BA49)+1+COUNTIF($BA$26:$BA49, $BA49)-1","v":26},null,null,118,null,7,"+",3,null,10,null,"",null,766,"",{"$f":"IF($BL49=\"\", \"\", COUNTIF($BL$3:$BL$803, \">\"&$BL49)+1+COUNTIF($BL$3:$BL49, $BL49)-1)","v":""},null,null,null,null,null,766,null,429]
[null,null,null,null,null,null,null,null,null,null,null,null,null,null,null,null,null,null,null,null,null,null,null,null,null,null,null,null,null,null,null,null,null,null,null,null,null,null,null,null,null,null,null,null,null,null,null,null,"✈️",{"$f":"COUNTIF($BA$26:$BA$55, \">\"&$BA50)+1+COUNTIF($BA$26:$BA50, $BA50)-1","v":16},null,null,491,null,8,"+",3,null,11,null,"",null,265,"",{"$f":"IF($BL50=\"\", \"\", COUNTIF($BL$3:$BL$803, \">\"&$BL50)+1+COUNTIF($BL$3:$BL50, $BL50)-1)","v":""},null,null,null,null,null,265,null,632]
[null,null,null,null,null,null,null,null,null,null,null,null,null,null,null,null,null,null,null,null,null,null,null,null,null,null,null,null,null,null,null,null,null,null,null,null,null,null,null,null,null,null,null,null,null,null,null,null,"🚁",{"$f":"COUNTIF($BA$26:$BA$55, \">\"&$BA51)+1+COUNTIF($BA$26:$BA51, $BA51)-1","v":7},null,null,835,null,9,"+",3,null,12,null,"",null,763,"",{"$f":"IF($BL51=\"\", \"\", COUNTIF($BL$3:$BL$803, \">\"&$BL51)+1+COUNTIF($BL$3:$BL51, $BL51)-1)","v":""},null,null,null,null,null,763,null,538]
[null,null,null,null,null,null,null,null,null,null,null,null,null,null,null,null,null,null,null,null,null,null,null,null,null,null,null,null,null,null,null,null,null,null,null,null,null,null,null,null,null,null,null,null,null,null,null,null,"🐘",{"$f":"COUNTIF($BA$26:$BA$55, \">\"&$BA52)+1+COUNTIF($BA$26:$BA52, $BA52)-1","v":25},null,null,147,null,10,"+",3,null,13,null,"",null,939,"",{"$f":"IF($BL52=\"\", \"\", COUNTIF($BL$3:$BL$803, \">\"&$BL52)+1+COUNTIF($BL$3:$BL52, $BL52)-1)","v":""},null,null,null,null,null,939,null,314]
[null,null,null,null,null,null,null,null,null,null,null,null,null,null,null,null,null,null,null,null,null,null,null,null,null,null,null,null,null,null,null,null,null,null,null,null,null,null,null,null,null,null,null,null,null,null,null,null,"🔭",{"$f":"COUNTIF($BA$26:$BA$55, \">\"&$BA53)+1+COUNTIF($BA$26:$BA53, $BA53)-1","v":23},null,null,204,null,11,"+",3,null,14,null,"",null,590,"",{"$f":"IF($BL53=\"\", \"\", COUNTIF($BL$3:$BL$803, \">\"&$BL53)+1+COUNTIF($BL$3:$BL53, $BL53)-1)","v":""},null,null,null,null,null,590,null,615]
[null,null,null,null,null,null,null,null,null,null,null,null,null,null,null,null,null,null,null,null,null,null,null,null,null,null,null,null,null,null,null,null,null,null,null,null,null,null,null,null,null,null,null,null,null,null,null,null,"🎁",{"$f":"COUNTIF($BA$26:$BA$55, \">\"&$BA54)+1+COUNTIF($BA$26:$BA54, $BA54)-1","v":28},null,null,65,null,12,"+",3,null,15,null,"",null,440,"",{"$f":"IF($BL54=\"\", \"\", COUNTIF($BL$3:$BL$803, \">\"&$BL54)+1+COUNTIF($BL$3:$BL54, $BL54)-1)","v":""},null,null,null,null,null,440,null,280]
[null,null,null,null,null,null,null,null,null,null,null,null,null,null,null,null,null,null,null,null,null,null,null,null,null,null,null,null,null,null,null,null,null,null,null,null,null,null,null,null,null,null,null,null,null,null,null,null,"🎈",{"$f":"COUNTIF($BA$26:$BA$55, \">\"&$BA55)+1+COUNTIF($BA$26:$BA55, $BA55)-1","v":3},null,null,933,null,13,"+",3,null,16,null,"",null,667,"",{"$f":"IF($BL55=\"\", \"\", COUNTIF($BL$3:$BL$803, \">\"&$BL55)+1+COUNTIF($BL$3:$BL55, $BL55)-1)","v":""},null,null,null,null,null,667,null,855]
[null,null,null,null,null,null,null,null,null,null,null,null,null,null,null,null,null,null,null,null,null,null,null,null,null,null,null,null,null,null,null,null,null,null,null,null,null,null,null,null,null,null,null,null,null,null,null,null,null,null,null,null,null,null,14,"+",3,null,17,null,"",null,711,"",{"$f":"IF($BL56=\"\", \"\", COUNTIF($BL$3:$BL$803, \">\"&$BL56)+1+COUNTIF($BL$3:$BL56, $BL56)-1)","v":""},null,null,null,null,null,711,null,231]
[null,null,null,null,null,null,null,null,null,null,null,null,null,null,null,null,null,null,null,null,null,null,null,null,null,null,null,null,null,null,null,null,null,null,null,null,null,null,null,null,null,null,null,null,null,null,null,null,null,null,null,null,null,null,15,"+",3,null,18,null,"",null,782,"",{"$f":"IF($BL57=\"\", \"\", COUNTIF($BL$3:$BL$803, \">\"&$BL57)+1+COUNTIF($BL$3:$BL57, $BL57)-1)","v":""},null,null,null,null,null,782,null,881]
[null,null,null,null,null,null,null,null,null,null,null,null,null,null,null,null,null,null,null,null,null,null,null,null,null,null,null,null,null,null,null,null,null,null,null,null,null,null,null,null,null,null,null,null,null,null,null,null,null,null,null,null,null,null,16,"+",3,null,19,null,"",null,226,"",{"$f":"IF($BL58=\"\", \"\", COUNTIF($BL$3:$BL$803, \">\"&$BL58)+1+COUNTIF($BL$3:$BL58, $BL58)-1)","v":""},null,null,null,null,null,226,null,253]
[null,null,null,null,null,null,null,null,null,null,null,null,null,null,null,null,null,null,null,null,null,null,null,null,null,null,null,null,null,null,null,null,null,null,null,null,null,null,null,null,null,null,null,null,null,null,null,null,null,null,null,null,null,null,17,"+",3,null,20,null,"",null,221,"",{"$f":"IF($BL59=\"\", \"\", COUNTIF($BL$3:$BL$803, \">\"&$BL59)+1+COUNTIF($BL$3:$BL59, $BL59)-1)","v":""},null,null,null,null,null,221,null,390]
[null,null,null,null,null,null,null,null,null,null,null,null,null,null,null,null,null,null,null,null,null,null,null,null,null,null,null,null,null,null,null,null,null,null,null,null,null,null,null,null,null,null,null,null,null,null,null,null,null,null,null,null,null,null,18,"+",3,null,21,null,"",null,288,"",{"$f":"IF($BL60=\"\", \"\", COUNTIF($BL$3:$BL$803, \">\"&$BL60)+1+COUNTIF($BL$3:$BL60, $BL60)-1)","v":""},null,null,null,null,null,288,null,581]
[null,null,null,null,null,null,null,null,null,null,null,null,null,null,null,null,null,null,null,null,null,null,null,null,null,null,null,null,null,null,null,null,null,null,null,null,null,null,null,null,null,null,null,null,null,null,null,null,null,null,null,null,null,null,19,"+",3,null,22,null,"",null,258,"",{"$f":"IF($BL61=\"\", \"\", COUNTIF($BL$3:$BL$803, \">\"&$BL61)+1+COUNTIF($BL$3:$BL61, $BL61)-1)","v":""},null,null,null,null,null,258,null,448]
[null,null,null,null,null,null,null,null,null,null,null,null,null,null,null,null,null,null,null,null,null,null,null,null,null,null,null,null,null,null,null,null,null,null,null,null,null,null,null,null,null,null,null,null,null,null,null,null,null,null,null,null,null,null,20,"+",3,null,23,null,"",null,67,"",{"$f":"IF($BL62=\"\", \"\", COUNTIF($BL$3:$BL$803, \">\"&$BL62)+1+COUNTIF($BL$3:$BL62, $BL62)-1)","v":""},null,null,null,null,null,67,null,501]
[null,null,null,null,null,null,null,null,null,null,null,null,null,null,null,null,null,null,null,null,null,null,null,null,null,null,null,null,null,null,null,null,null,null,null,null,null,null,null,null,null,null,null,null,null,null,null,null,null,null,null,null,null,null,1,"+",4,null,5,null,"X",null,887,887,{"$f":"IF($BL63=\"\", \"\", COUNTIF($BL$3:$BL$803, \">\"&$BL63)+1+COUNTIF($BL$3:$BL63, $BL63)-1)","v":4},null,null,null,null,null,887,null,250]
[null,null,null,null,null,null,null,null,null,null,null,null,null,null,null,null,null,null,null,null,null,null,null,null,null,null,null,null,null,null,null,null,null,null,null,null,null,null,null,null,null,null,null,null,null,null,null,null,null,null,null,null,null,null,2,"+",4,null,6,null,"",null,690,"",{"$f":"IF($BL64=\"\", \"\", COUNTIF($BL$3:$BL$803, \">\"&$BL64)+1+COUNTIF($BL$3:$BL64, $BL64)-1)","v":""},null,null,null,null,null,690,null,824]
[null,null,null,null,null,null,null,null,null,null,null,null,null,null,null,null,null,null,null,null,null,null,null,null,null,null,null,null,null,null,null,null,null,null,null,null,null,null,null,null,null,null,null,null,null,null,null,null,null,null,null,null,null,null,3,"+",4,null,7,null,"",null,191,"",{"$f":"IF($BL65=\"\", \"\", COUNTIF($BL$3:$BL$803, \">\"&$BL65)+1+COUNTIF($BL$3:$BL65, $BL65)-1)","v":""},null,null,null,null,null,191,null,926]
[null,null,null,null,null,null,null,null,null,null,null,null,null,null,null,null,null,null,null,null,null,null,null,null,null,null,null,null,null,null,null,null,null,null,null,null,null,null,null,null,null,null,null,null,null,null,null,null,null,null,null,null,null,null,4,"+",4,null,8,null,"",null,59,"",{"$f":"IF($BL66=\"\", \"\", COUNTIF($BL$3:$BL$803, \">\"&$BL66)+1+COUNTIF($BL$3:$BL66, $BL66)-1)","v":""},null,null,null,null,null,59,null,102]
[null,null,null,null,null,null,null,null,null,null,null,null,null,null,null,null,null,null,null,null,null,null,null,null,null,null,null,null,null,null,null,null,null,null,null,null,null,null,null,null,null,null,null,null,null,null,null,null,null,null,null,null,null,null,5,"+",4,null,9,null,"",null,207,"",{"$f":"IF($BL67=\"\", \"\", COUNTIF($BL$3:$BL$803, \">\"&$BL67)+1+COUNTIF($BL$3:$BL67, $BL67)-1)","v":""},null,null,null,null,null,207,null,107]
[null,null,null,null,null,null,null,null,null,null,null,null,null,null,null,null,null,null,null,null,null,null,null,null,null,null,null,null,null,null,null,null,null,null,null,null,null,null,null,null,null,null,null,null,null,null,null,null,null,null,null,null,null,null,6,"+",4,null,10,null,{"$f":"IF(COUNTIF($BP$5:$BP$6, $BD68)=0, \"\", IF(OR($BC68>$BP$3, $BE68>$BP$3, $BG68>$BP$3, $BG68<$BP$8), \"\", \"X\"))","v":""},null,{"$f":"$BS68","v":127},{"$f":"IF($BI68=\"\", \"\", $BK68)","v":""},{"$f":"IF($BL68=\"\", \"\", COUNTIF($BL$3:$BL$803, \">\"&$BL68)+1+COUNTIF($BL$3:$BL68, $BL68)-1)","v":""},null,null,null,null,null,127,null,{"$f":"RANDBETWEEN(1, 1000)","v":883}]
[null,null,null,null,null,null,null,null,null,null,null,null,null,null,null,null,null,null,null,null,null,null,null,null,null,null,null,null,null,null,null,null,null,null,null,null,null,null,null,null,null,null,null,null,null,null,null,null,null,null,null,null,null,null,{"$f":"IF(BC68+1>20, 1, BC68+1)","v":7},"+",{"$f":"IF(BC69=1, BE68+1, BE68)","v":4},null,{"$f":"BC69+BE69","v":11},null,"",null,112,"",{"$f":"IF($BL69=\"\", \"\", COUNTIF($BL$3:$BL$803, \">\"&$BL69)+1+COUNTIF($BL$3:$BL69, $BL69)-1)","v":""},null,null,null,null,null,112,null,920]
[null,null,null,null,null,null,null,null,null,null,null,null,null,null,null,null,null,null,null,null,null,null,null,null,null,null,null,null,null,null,null,null,null,null,null,null,null,null,null,null,null,null,null,null,null,null,null,null,null,null,null,null,null,null,8,"+",4,null,12,null,"",null,533,"",{"$f":"IF($BL70=\"\", \"\", COUNTIF($BL$3:$BL$803, \">\"&$BL70)+1+COUNTIF($BL$3:$BL70, $BL70)-1)","v":""},null,null,null,null,null,533,null,906]
[null,null,null,null,null,null,null,null,null,null,null,null,null,null,null,null,null,null,null,null,null,null,null,null,null,null,null,null,null,null,null,null,null,null,null,null,null,null,null,null,null,null,null,null,null,null,null,null,null,null,null,null,null,null,9,"+",4,null,13,null,"",null,475,"",{"$f":"IF($BL71=\"\", \"\", COUNTIF($BL$3:$BL$803, \">\"&$BL71)+1+COUNTIF($BL$3:$BL71, $BL71)-1)","v":""},null,null,null,null,null,475,null,56]
[null,null,null,null,null,null,null,null,null,null,null,null,null,null,null,null,null,null,null,null,null,null,null,null,null,null,null,null,null,null,null,null,null,null,null,null,null,null,null,null,null,null,null,null,null,null,null,null,null,null,null,null,null,null,10,"+",4,null,14,null,"",null,105,"",{"$f":"IF($BL72=\"\", \"\", COUNTIF($BL$3:$BL$803, \">\"&$BL72)+1+COUNTIF($BL$3:$BL72, $BL72)-1)","v":""},null,null,null,null,null,105,null,526]
[null,null,null,null,null,null,null,null,null,null,null,null,null,null,null,null,null,null,null,null,null,null,null,null,null,null,null,null,null,null,null,null,null,null,null,null,null,null,null,null,null,null,null,null,null,null,null,null,null,null,null,null,null,null,11,"+",4,null,15,null,"",null,616,"",{"$f":"IF($BL73=\"\", \"\", COUNTIF($BL$3:$BL$803, \">\"&$BL73)+1+COUNTIF($BL$3:$BL73, $BL73)-1)","v":""},null,null,null,null,null,616,null,267]
[null,null,null,null,null,null,null,null,null,null,null,null,null,null,null,null,null,null,null,null,null,null,null,null,null,null,null,null,null,null,null,null,null,null,null,null,null,null,null,null,null,null,null,null,null,null,null,null,null,null,null,null,null,null,12,"+",4,null,16,null,"",null,228,"",{"$f":"IF($BL74=\"\", \"\", COUNTIF($BL$3:$BL$803, \">\"&$BL74)+1+COUNTIF($BL$3:$BL74, $BL74)-1)","v":""},null,null,null,null,null,228,null,854]
[null,null,null,null,null,null,null,null,null,null,null,null,null,null,null,null,null,null,null,null,null,null,null,null,null,null,null,null,null,null,null,null,null,null,null,null,null,null,null,null,null,null,null,null,null,null,null,null,null,null,null,null,null,null,13,"+",4,null,17,null,"",null,455,"",{"$f":"IF($BL75=\"\", \"\", COUNTIF($BL$3:$BL$803, \">\"&$BL75)+1+COUNTIF($BL$3:$BL75, $BL75)-1)","v":""},null,null,null,null,null,455,null,250]
[null,null,null,null,null,null,null,null,null,null,null,null,null,null,null,null,null,null,null,null,null,null,null,null,null,null,null,null,null,null,null,null,null,null,null,null,null,null,null,null,null,null,null,null,null,null,null,null,null,null,null,null,null,null,14,"+",4,null,18,null,"",null,343,"",{"$f":"IF($BL76=\"\", \"\", COUNTIF($BL$3:$BL$803, \">\"&$BL76)+1+COUNTIF($BL$3:$BL76, $BL76)-1)","v":""},null,null,null,null,null,343,null,662]
[null,null,null,null,null,null,null,null,null,null,null,null,null,null,null,null,null,null,null,null,null,null,null,null,null,null,null,null,null,null,null,null,null,null,null,null,null,null,null,null,null,null,null,null,null,null,null,null,null,null,null,null,null,null,15,"+",4,null,19,null,"",null,18,"",{"$f":"IF($BL77=\"\", \"\", COUNTIF($BL$3:$BL$803, \">\"&$BL77)+1+COUNTIF($BL$3:$BL77, $BL77)-1)","v":""},null,null,null,null,null,18,null,897]
[null,null,null,null,null,null,null,null,null,null,null,null,null,null,null,null,null,null,null,null,null,null,null,null,null,null,null,null,null,null,null,null,null,null,null,null,null,null,null,null,null,null,null,null,null,null,null,null,null,null,null,null,null,null,16,"+",4,null,20,null,"",null,896,"",{"$f":"IF($BL78=\"\", \"\", COUNTIF($BL$3:$BL$803, \">\"&$BL78)+1+COUNTIF($BL$3:$BL78, $BL78)-1)","v":""},null,null,null,null,null,896,null,182]
[null,null,null,null,null,null,null,null,null,null,null,null,null,null,null,null,null,null,null,null,null,null,null,null,null,null,null,null,null,null,null,null,null,null,null,null,null,null,null,null,null,null,null,null,null,null,null,null,null,null,null,null,null,null,17,"+",4,null,21,null,"",null,175,"",{"$f":"IF($BL79=\"\", \"\", COUNTIF($BL$3:$BL$803, \">\"&$BL79)+1+COUNTIF($BL$3:$BL79, $BL79)-1)","v":""},null,null,null,null,null,175,null,364]
[null,null,null,null,null,null,null,null,null,null,null,null,null,null,null,null,null,null,null,null,null,null,null,null,null,null,null,null,null,null,null,null,null,null,null,null,null,null,null,null,null,null,null,null,null,null,null,null,null,null,null,null,null,null,18,"+",4,null,22,null,"",null,874,"",{"$f":"IF($BL80=\"\", \"\", COUNTIF($BL$3:$BL$803, \">\"&$BL80)+1+COUNTIF($BL$3:$BL80, $BL80)-1)","v":""},null,null,null,null,null,874,null,536]
[null,null,null,null,null,null,null,null,null,null,null,null,null,null,null,null,null,null,null,null,null,null,null,null,null,null,null,null,null,null,null,null,null,null,null,null,null,null,null,null,null,null,null,null,null,null,null,null,null,null,null,null,null,null,19,"+",4,null,23,null,"",null,786,"",{"$f":"IF($BL81=\"\", \"\", COUNTIF($BL$3:$BL$803, \">\"&$BL81)+1+COUNTIF($BL$3:$BL81, $BL81)-1)","v":""},null,null,null,null,null,786,null,953]
[null,null,null,null,null,null,null,null,null,null,null,null,null,null,null,null,null,null,null,null,null,null,null,null,null,null,null,null,null,null,null,null,null,null,null,null,null,null,null,null,null,null,null,null,null,null,null,null,null,null,null,null,null,null,20,"+",4,null,24,null,"",null,254,"",{"$f":"IF($BL82=\"\", \"\", COUNTIF($BL$3:$BL$803, \">\"&$BL82)+1+COUNTIF($BL$3:$BL82, $BL82)-1)","v":""},null,null,null,null,null,254,null,389]
[null,null,null,null,null,null,null,null,null,null,null,null,null,null,null,null,null,null,null,null,null,null,null,null,null,null,null,null,null,null,null,null,null,null,null,null,null,null,null,null,null,null,null,null,null,null,null,null,null,null,null,null,null,null,1,"+",5,null,6,null,"",null,253,"",{"$f":"IF($BL83=\"\", \"\", COUNTIF($BL$3:$BL$803, \">\"&$BL83)+1+COUNTIF($BL$3:$BL83, $BL83)-1)","v":""},null,null,null,null,null,253,null,580]
[null,null,null,null,null,null,null,null,null,null,null,null,null,null,null,null,null,null,null,null,null,null,null,null,null,null,null,null,null,null,null,null,null,null,null,null,null,null,null,null,null,null,null,null,null,null,null,null,null,null,null,null,null,null,2,"+",5,null,7,null,"",null,7,"",{"$f":"IF($BL84=\"\", \"\", COUNTIF($BL$3:$BL$803, \">\"&$BL84)+1+COUNTIF($BL$3:$BL84, $BL84)-1)","v":""},null,null,null,null,null,7,null,828]
[null,null,null,null,null,null,null,null,null,null,null,null,null,null,null,null,null,null,null,null,null,null,null,null,null,null,null,null,null,null,null,null,null,null,null,null,null,null,null,null,null,null,null,null,null,null,null,null,null,null,null,null,null,null,3,"+",5,null,8,null,"",null,938,"",{"$f":"IF($BL85=\"\", \"\", COUNTIF($BL$3:$BL$803, \">\"&$BL85)+1+COUNTIF($BL$3:$BL85, $BL85)-1)","v":""},null,null,null,null,null,938,null,253]
[null,null,null,null,null,null,null,null,null,null,null,null,null,null,null,null,null,null,null,null,null,null,null,null,null,null,null,null,null,null,null,null,null,null,null,null,null,null,null,null,null,null,null,null,null,null,null,null,null,null,null,null,null,null,4,"+",5,null,9,null,"",null,755,"",{"$f":"IF($BL86=\"\", \"\", COUNTIF($BL$3:$BL$803, \">\"&$BL86)+1+COUNTIF($BL$3:$BL86, $BL86)-1)","v":""},null,null,null,null,null,755,null,178]
[null,null,null,null,null,null,null,null,null,null,null,null,null,null,null,null,null,null,null,null,null,null,null,null,null,null,null,null,null,null,null,null,null,null,null,null,null,null,null,null,null,null,null,null,null,null,null,null,null,null,null,null,null,null,5,"+",5,null,10,null,"",null,208,"",{"$f":"IF($BL87=\"\", \"\", COUNTIF($BL$3:$BL$803, \">\"&$BL87)+1+COUNTIF($BL$3:$BL87, $BL87)-1)","v":""},null,null,null,null,null,208,null,11]
[null,null,null,null,null,null,null,null,null,null,null,null,null,null,null,null,null,null,null,null,null,null,null,null,null,null,null,null,null,null,null,null,null,null,null,null,null,null,null,null,null,null,null,null,null,null,null,null,null,null,null,null,null,null,6,"+",5,null,11,null,"",null,639,"",{"$f":"IF($BL88=\"\", \"\", COUNTIF($BL$3:$BL$803, \">\"&$BL88)+1+COUNTIF($BL$3:$BL88, $BL88)-1)","v":""},null,null,null,null,null,639,null,3]
[null,null,null,null,null,null,null,null,null,null,null,null,null,null,null,null,null,null,null,null,null,null,null,null,null,null,null,null,null,null,null,null,null,null,null,null,null,null,null,null,null,null,null,null,null,null,null,null,null,null,null,null,null,null,7,"+",5,null,12,null,"",null,574,"",{"$f":"IF($BL89=\"\", \"\", COUNTIF($BL$3:$BL$803, \">\"&$BL89)+1+COUNTIF($BL$3:$BL89, $BL89)-1)","v":""},null,null,null,null,null,574,null,724]
[null,null,null,null,null,null,null,null,null,null,null,null,null,null,null,null,null,null,null,null,null,null,null,null,null,null,null,null,null,null,null,null,null,null,null,null,null,null,null,null,null,null,null,null,null,null,null,null,null,null,null,null,null,null,8,"+",5,null,13,null,"",null,187,"",{"$f":"IF($BL90=\"\", \"\", COUNTIF($BL$3:$BL$803, \">\"&$BL90)+1+COUNTIF($BL$3:$BL90, $BL90)-1)","v":""},null,null,null,null,null,187,null,108]
[null,null,null,null,null,null,null,null,null,null,null,null,null,null,null,null,null,null,null,null,null,null,null,null,null,null,null,null,null,null,null,null,null,null,null,null,null,null,null,null,null,null,null,null,null,null,null,null,null,null,null,null,null,null,9,"+",5,null,14,null,"",null,189,"",{"$f":"IF($BL91=\"\", \"\", COUNTIF($BL$3:$BL$803, \">\"&$BL91)+1+COUNTIF($BL$3:$BL91, $BL91)-1)","v":""},null,null,null,null,null,189,null,249]
[null,null,null,null,null,null,null,null,null,null,null,null,null,null,null,null,null,null,null,null,null,null,null,null,null,null,null,null,null,null,null,null,null,null,null,null,null,null,null,null,null,null,null,null,null,null,null,null,null,null,null,null,null,null,10,"+",5,null,15,null,"",null,262,"",{"$f":"IF($BL92=\"\", \"\", COUNTIF($BL$3:$BL$803, \">\"&$BL92)+1+COUNTIF($BL$3:$BL92, $BL92)-1)","v":""},null,null,null,null,null,262,null,654]
[null,null,null,null,null,null,null,null,null,null,null,null,null,null,null,null,null,null,null,null,null,null,null,null,null,null,null,null,null,null,null,null,null,null,null,null,null,null,null,null,null,null,null,null,null,null,null,null,null,null,null,null,null,null,11,"+",5,null,16,null,"",null,392,"",{"$f":"IF($BL93=\"\", \"\", COUNTIF($BL$3:$BL$803, \">\"&$BL93)+1+COUNTIF($BL$3:$BL93, $BL93)-1)","v":""},null,null,null,null,null,392,null,462]
[null,null,null,null,null,null,null,null,null,null,null,null,null,null,null,null,null,null,null,null,null,null,null,null,null,null,null,null,null,null,null,null,null,null,null,null,null,null,null,null,null,null,null,null,null,null,null,null,null,null,null,null,null,null,12,"+",5,null,17,null,"",null,69,"",{"$f":"IF($BL94=\"\", \"\", COUNTIF($BL$3:$BL$803, \">\"&$BL94)+1+COUNTIF($BL$3:$BL94, $BL94)-1)","v":""},null,null,null,null,null,69,null,789]
[null,null,null,null,null,null,null,null,null,null,null,null,null,null,null,null,null,null,null,null,null,null,null,null,null,null,null,null,null,null,null,null,null,null,null,null,null,null,null,null,null,null,null,null,null,null,null,null,null,null,null,null,null,null,13,"+",5,null,18,null,"",null,206,"",{"$f":"IF($BL95=\"\", \"\", COUNTIF($BL$3:$BL$803, \">\"&$BL95)+1+COUNTIF($BL$3:$BL95, $BL95)-1)","v":""},null,null,null,null,null,206,null,785]
[null,null,null,null,null,null,null,null,null,null,null,null,null,null,null,null,null,null,null,null,null,null,null,null,null,null,null,null,null,null,null,null,null,null,null,null,null,null,null,null,null,null,null,null,null,null,null,null,null,null,null,null,null,null,14,"+",5,null,19,null,"",null,261,"",{"$f":"IF($BL96=\"\", \"\", COUNTIF($BL$3:$BL$803, \">\"&$BL96)+1+COUNTIF($BL$3:$BL96, $BL96)-1)","v":""},null,null,null,null,null,261,null,429]
[null,null,null,null,null,null,null,null,null,null,null,null,null,null,null,null,null,null,null,null,null,null,null,null,null,null,null,null,null,null,null,null,null,null,null,null,null,null,null,null,null,null,null,null,null,null,null,null,null,null,null,null,null,null,15,"+",5,null,20,null,"",null,754,"",{"$f":"IF($BL97=\"\", \"\", COUNTIF($BL$3:$BL$803, \">\"&$BL97)+1+COUNTIF($BL$3:$BL97, $BL97)-1)","v":""},null,null,null,null,null,754,null,302]
[null,null,null,null,null,null,null,null,null,null,null,null,null,null,null,null,null,null,null,null,null,null,null,null,null,null,null,null,null,null,null,null,null,null,null,null,null,null,null,null,null,null,null,null,null,null,null,null,null,null,null,null,null,null,16,"+",5,null,21,null,"",null,28,"",{"$f":"IF($BL98=\"\", \"\", COUNTIF($BL$3:$BL$803, \">\"&$BL98)+1+COUNTIF($BL$3:$BL98, $BL98)-1)","v":""},null,null,null,null,null,28,null,409]
[null,null,null,null,null,null,null,null,null,null,null,null,null,null,null,null,null,null,null,null,null,null,null,null,null,null,null,null,null,null,null,null,null,null,null,null,null,null,null,null,null,null,null,null,null,null,null,null,null,null,null,null,null,null,17,"+",5,null,22,null,"",null,52,"",{"$f":"IF($BL99=\"\", \"\", COUNTIF($BL$3:$BL$803, \">\"&$BL99)+1+COUNTIF($BL$3:$BL99, $BL99)-1)","v":""},null,null,null,null,null,52,null,517]
[null,null,null,null,null,null,null,null,null,null,null,null,null,null,null,null,null,null,null,null,null,null,null,null,null,null,null,null,null,null,null,null,null,null,null,null,null,null,null,null,null,null,null,null,null,null,null,null,null,null,null,null,null,null,18,"+",5,null,23,null,"",null,651,"",{"$f":"IF($BL100=\"\", \"\", COUNTIF($BL$3:$BL$803, \">\"&$BL100)+1+COUNTIF($BL$3:$BL100, $BL100)-1)","v":""},null,null,null,null,null,651,null,506]
[null,null,null,null,null,null,null,null,null,null,null,null,null,null,null,null,null,null,null,null,null,null,null,null,null,null,null,null,null,null,null,null,null,null,null,null,null,null,null,null,null,null,null,null,null,null,null,null,null,null,null,null,null,null,19,"+",5,null,24,null,"",null,82,"",{"$f":"IF($BL101=\"\", \"\", COUNTIF($BL$3:$BL$803, \">\"&$BL101)+1+COUNTIF($BL$3:$BL101, $BL101)-1)","v":""},null,null,null,null,null,82,null,614]
[null,null,null,null,null,null,null,null,null,null,null,null,null,null,null,null,null,null,null,null,null,null,null,null,null,null,null,null,null,null,null,null,null,null,null,null,null,null,null,null,null,null,null,null,null,null,null,null,null,null,null,null,null,null,20,"+",5,null,25,null,"",null,366,"",{"$f":"IF($BL102=\"\", \"\", COUNTIF($BL$3:$BL$803, \">\"&$BL102)+1+COUNTIF($BL$3:$BL102, $BL102)-1)","v":""},null,null,null,null,null,366,null,356]
[null,null,null,null,null,null,null,null,null,null,null,null,null,null,null,null,null,null,null,null,null,null,null,null,null,null,null,null,null,null,null,null,null,null,null,null,null,null,null,null,null,null,null,null,null,null,null,null,null,null,null,null,null,null,1,"+",6,null,7,null,"",null,582,"",{"$f":"IF($BL103=\"\", \"\", COUNTIF($BL$3:$BL$803, \">\"&$BL103)+1+COUNTIF($BL$3:$BL103, $BL103)-1)","v":""},null,null,null,null,null,582,null,745]
[null,null,null,null,null,null,null,null,null,null,null,null,null,null,null,null,null,null,null,null,null,null,null,null,null,null,null,null,null,null,null,null,null,null,null,null,null,null,null,null,null,null,null,null,null,null,null,null,null,null,null,null,null,null,2,"+",6,null,8,null,"",null,662,"",{"$f":"IF($BL104=\"\", \"\", COUNTIF($BL$3:$BL$803, \">\"&$BL104)+1+COUNTIF($BL$3:$BL104, $BL104)-1)","v":""},null,null,null,null,null,662,null,564]
[null,null,null,null,null,null,null,null,null,null,null,null,null,null,null,null,null,null,null,null,null,null,null,null,null,null,null,null,null,null,null,null,null,null,null,null,null,null,null,null,null,null,null,null,null,null,null,null,null,null,null,null,null,null,3,"+",6,null,9,null,"",null,936,"",{"$f":"IF($BL105=\"\", \"\", COUNTIF($BL$3:$BL$803, \">\"&$BL105)+1+COUNTIF($BL$3:$BL105, $BL105)-1)","v":""},null,null,null,null,null,936,null,596]
[null,null,null,null,null,null,null,null,null,null,null,null,null,null,null,null,null,null,null,null,null,null,null,null,null,null,null,null,null,null,null,null,null,null,null,null,null,null,null,null,null,null,null,null,null,null,null,null,null,null,null,null,null,null,4,"+",6,null,10,null,"",null,371,"",{"$f":"IF($BL106=\"\", \"\", COUNTIF($BL$3:$BL$803, \">\"&$BL106)+1+COUNTIF($BL$3:$BL106, $BL106)-1)","v":""},null,null,null,null,null,371,null,687]
[null,null,null,null,null,null,null,null,null,null,null,null,null,null,null,null,null,null,null,null,null,null,null,null,null,null,null,null,null,null,null,null,null,null,null,null,null,null,null,null,null,null,null,null,null,null,null,null,null,null,null,null,null,null,5,"+",6,null,11,null,"",null,213,"",{"$f":"IF($BL107=\"\", \"\", COUNTIF($BL$3:$BL$803, \">\"&$BL107)+1+COUNTIF($BL$3:$BL107, $BL107)-1)","v":""},null,null,null,null,null,213,null,437]
[null,null,null,null,null,null,null,null,null,null,null,null,null,null,null,null,null,null,null,null,null,null,null,null,null,null,null,null,null,null,null,null,null,null,null,null,null,null,null,null,null,null,null,null,null,null,null,null,null,null,null,null,null,null,6,"+",6,null,12,null,"",null,551,"",{"$f":"IF($BL108=\"\", \"\", COUNTIF($BL$3:$BL$803, \">\"&$BL108)+1+COUNTIF($BL$3:$BL108, $BL108)-1)","v":""},null,null,null,null,null,551,null,95]
[null,null,null,null,null,null,null,null,null,null,null,null,null,null,null,null,null,null,null,null,null,null,null,null,null,null,null,null,null,null,null,null,null,null,null,null,null,null,null,null,null,null,null,null,null,null,null,null,null,null,null,null,null,null,7,"+",6,null,13,null,"",null,921,"",{"$f":"IF($BL109=\"\", \"\", COUNTIF($BL$3:$BL$803, \">\"&$BL109)+1+COUNTIF($BL$3:$BL109, $BL109)-1)","v":""},null,null,null,null,null,921,null,75]
[null,null,null,null,null,null,null,null,null,null,null,null,null,null,null,null,null,null,null,null,null,null,null,null,null,null,null,null,null,null,null,null,null,null,null,null,null,null,null,null,null,null,null,null,null,null,null,null,null,null,null,null,null,null,8,"+",6,null,14,null,"",null,529,"",{"$f":"IF($BL110=\"\", \"\", COUNTIF($BL$3:$BL$803, \">\"&$BL110)+1+COUNTIF($BL$3:$BL110, $BL110)-1)","v":""},null,null,null,null,null,529,null,188]
[null,null,null,null,null,null,null,null,null,null,null,null,null,null,null,null,null,null,null,null,null,null,null,null,null,null,null,null,null,null,null,null,null,null,null,null,null,null,null,null,null,null,null,null,null,null,null,null,null,null,null,null,null,null,9,"+",6,null,15,null,"",null,652,"",{"$f":"IF($BL111=\"\", \"\", COUNTIF($BL$3:$BL$803, \">\"&$BL111)+1+COUNTIF($BL$3:$BL111, $BL111)-1)","v":""},null,null,null,null,null,652,null,753]
[null,null,null,null,null,null,null,null,null,null,null,null,null,null,null,null,null,null,null,null,null,null,null,null,null,null,null,null,null,null,null,null,null,null,null,null,null,null,null,null,null,null,null,null,null,null,null,null,null,null,null,null,null,null,10,"+",6,null,16,null,"",null,382,"",{"$f":"IF($BL112=\"\", \"\", COUNTIF($BL$3:$BL$803, \">\"&$BL112)+1+COUNTIF($BL$3:$BL112, $BL112)-1)","v":""},null,null,null,null,null,382,null,44]
[null,null,null,null,null,null,null,null,null,null,null,null,null,null,null,null,null,null,null,null,null,null,null,null,null,null,null,null,null,null,null,null,null,null,null,null,null,null,null,null,null,null,null,null,null,null,null,null,null,null,null,null,null,null,11,"+",6,null,17,null,"",null,99,"",{"$f":"IF($BL113=\"\", \"\", COUNTIF($BL$3:$BL$803, \">\"&$BL113)+1+COUNTIF($BL$3:$BL113, $BL113)-1)","v":""},null,null,null,null,null,99,null,245]
[null,null,null,null,null,null,null,null,null,null,null,null,null,null,null,null,null,null,null,null,null,null,null,null,null,null,null,null,null,null,null,null,null,null,null,null,null,null,null,null,null,null,null,null,null,null,null,null,null,null,null,null,null,null,12,"+",6,null,18,null,"",null,635,"",{"$f":"IF($BL114=\"\", \"\", COUNTIF($BL$3:$BL$803, \">\"&$BL114)+1+COUNTIF($BL$3:$BL114, $BL114)-1)","v":""},null,null,null,null,null,635,null,282]
[null,null,null,null,null,null,null,null,null,null,null,null,null,null,null,null,null,null,null,null,null,null,null,null,null,null,null,null,null,null,null,null,null,null,null,null,null,null,null,null,null,null,null,null,null,null,null,null,null,null,null,null,null,null,13,"+",6,null,19,null,"",null,58,"",{"$f":"IF($BL115=\"\", \"\", COUNTIF($BL$3:$BL$803, \">\"&$BL115)+1+COUNTIF($BL$3:$BL115, $BL115)-1)","v":""},null,null,null,null,null,58,null,840]
[null,null,null,null,null,null,null,null,null,null,null,null,null,null,null,null,null,null,null,null,null,null,null,null,null,null,null,null,null,null,null,null,null,null,null,null,null,null,null,null,null,null,null,null,null,null,null,null,null,null,null,null,null,null,14,"+",6,null,20,null,"",null,423,"",{"$f":"IF($BL116=\"\", \"\", COUNTIF($BL$3:$BL$803, \">\"&$BL116)+1+COUNTIF($BL$3:$BL116, $BL116)-1)","v":""},null,null,null,null,null,423,null,262]
[null,null,null,null,null,null,null,null,null,null,null,null,null,null,null,null,null,null,null,null,null,null,null,null,null,null,null,null,null,null,null,null,null,null,null,null,null,null,null,null,null,null,null,null,null,null,null,null,null,null,null,null,null,null,15,"+",6,null,21,null,"",null,812,"",{"$f":"IF($BL117=\"\", \"\", COUNTIF($BL$3:$BL$803, \">\"&$BL117)+1+COUNTIF($BL$3:$BL117, $BL117)-1)","v":""},null,null,null,null,null,812,null,731]
[null,null,null,null,null,null,null,null,null,null,null,null,null,null,null,null,null,null,null,null,null,null,null,null,null,null,null,null,null,null,null,null,null,null,null,null,null,null,null,null,null,null,null,null,null,null,null,null,null,null,null,null,null,null,16,"+",6,null,22,null,"",null,845,"",{"$f":"IF($BL118=\"\", \"\", COUNTIF($BL$3:$BL$803, \">\"&$BL118)+1+COUNTIF($BL$3:$BL118, $BL118)-1)","v":""},null,null,null,null,null,845,null,469]
[null,null,null,null,null,null,null,null,null,null,null,null,null,null,null,null,null,null,null,null,null,null,null,null,null,null,null,null,null,null,null,null,null,null,null,null,null,null,null,null,null,null,null,null,null,null,null,null,null,null,null,null,null,null,17,"+",6,null,23,null,"",null,485,"",{"$f":"IF($BL119=\"\", \"\", COUNTIF($BL$3:$BL$803, \">\"&$BL119)+1+COUNTIF($BL$3:$BL119, $BL119)-1)","v":""},null,null,null,null,null,485,null,764]
[null,null,null,null,null,null,null,null,null,null,null,null,null,null,null,null,null,null,null,null,null,null,null,null,null,null,null,null,null,null,null,null,null,null,null,null,null,null,null,null,null,null,null,null,null,null,null,null,null,null,null,null,null,null,18,"+",6,null,24,null,"",null,35,"",{"$f":"IF($BL120=\"\", \"\", COUNTIF($BL$3:$BL$803, \">\"&$BL120)+1+COUNTIF($BL$3:$BL120, $BL120)-1)","v":""},null,null,null,null,null,35,null,981]
[null,null,null,null,null,null,null,null,null,null,null,null,null,null,null,null,null,null,null,null,null,null,null,null,null,null,null,null,null,null,null,null,null,null,null,null,null,null,null,null,null,null,null,null,null,null,null,null,null,null,null,null,null,null,19,"+",6,null,25,null,"",null,849,"",{"$f":"IF($BL121=\"\", \"\", COUNTIF($BL$3:$BL$803, \">\"&$BL121)+1+COUNTIF($BL$3:$BL121, $BL121)-1)","v":""},null,null,null,null,null,849,null,641]
[null,null,null,null,null,null,null,null,null,null,null,null,null,null,null,null,null,null,null,null,null,null,null,null,null,null,null,null,null,null,null,null,null,null,null,null,null,null,null,null,null,null,null,null,null,null,null,null,null,null,null,null,null,null,20,"+",6,null,26,null,"",null,277,"",{"$f":"IF($BL122=\"\", \"\", COUNTIF($BL$3:$BL$803, \">\"&$BL122)+1+COUNTIF($BL$3:$BL122, $BL122)-1)","v":""},null,null,null,null,null,277,null,607]
[null,null,null,null,null,null,null,null,null,null,null,null,null,null,null,null,null,null,null,null,null,null,null,null,null,null,null,null,null,null,null,null,null,null,null,null,null,null,null,null,null,null,null,null,null,null,null,null,null,null,null,null,null,null,1,"+",7,null,8,null,"",null,267,"",{"$f":"IF($BL123=\"\", \"\", COUNTIF($BL$3:$BL$803, \">\"&$BL123)+1+COUNTIF($BL$3:$BL123, $BL123)-1)","v":""},null,null,null,null,null,267,null,642]
[null,null,null,null,null,null,null,null,null,null,null,null,null,null,null,null,null,null,null,null,null,null,null,null,null,null,null,null,null,null,null,null,null,null,null,null,null,null,null,null,null,null,null,null,null,null,null,null,null,null,null,null,null,null,2,"+",7,null,9,null,"",null,897,"",{"$f":"IF($BL124=\"\", \"\", COUNTIF($BL$3:$BL$803, \">\"&$BL124)+1+COUNTIF($BL$3:$BL124, $BL124)-1)","v":""},null,null,null,null,null,897,null,639]
[null,null,null,null,null,null,null,null,null,null,null,null,null,null,null,null,null,null,null,null,null,null,null,null,null,null,null,null,null,null,null,null,null,null,null,null,null,null,null,null,null,null,null,null,null,null,null,null,null,null,null,null,null,null,3,"+",7,null,10,null,"",null,885,"",{"$f":"IF($BL125=\"\", \"\", COUNTIF($BL$3:$BL$803, \">\"&$BL125)+1+COUNTIF($BL$3:$BL125, $BL125)-1)","v":""},null,null,null,null,null,885,null,724]
[null,null,null,null,null,null,null,null,null,null,null,null,null,null,null,null,null,null,null,null,null,null,null,null,null,null,null,null,null,null,null,null,null,null,null,null,null,null,null,null,null,null,null,null,null,null,null,null,null,null,null,null,null,null,4,"+",7,null,11,null,"",null,681,"",{"$f":"IF($BL126=\"\", \"\", COUNTIF($BL$3:$BL$803, \">\"&$BL126)+1+COUNTIF($BL$3:$BL126, $BL126)-1)","v":""},null,null,null,null,null,681,null,399]
[null,null,null,null,null,null,null,null,null,null,null,null,null,null,null,null,null,null,null,null,null,null,null,null,null,null,null,null,null,null,null,null,null,null,null,null,null,null,null,null,null,null,null,null,null,null,null,null,null,null,null,null,null,null,5,"+",7,null,12,null,"",null,978,"",{"$f":"IF($BL127=\"\", \"\", COUNTIF($BL$3:$BL$803, \">\"&$BL127)+1+COUNTIF($BL$3:$BL127, $BL127)-1)","v":""},null,null,null,null,null,978,null,931]
[null,null,null,null,null,null,null,null,null,null,null,null,null,null,null,null,null,null,null,null,null,null,null,null,null,null,null,null,null,null,null,null,null,null,null,null,null,null,null,null,null,null,null,null,null,null,null,null,null,null,null,null,null,null,6,"+",7,null,13,null,"",null,73,"",{"$f":"IF($BL128=\"\", \"\", COUNTIF($BL$3:$BL$803, \">\"&$BL128)+1+COUNTIF($BL$3:$BL128, $BL128)-1)","v":""},null,null,null,null,null,73,null,852]
[null,null,null,null,null,null,null,null,null,null,null,null,null,null,null,null,null,null,null,null,null,null,null,null,null,null,null,null,null,null,null,null,null,null,null,null,null,null,null,null,null,null,null,null,null,null,null,null,null,null,null,null,null,null,7,"+",7,null,14,null,"",null,693,"",{"$f":"IF($BL129=\"\", \"\", COUNTIF($BL$3:$BL$803, \">\"&$BL129)+1+COUNTIF($BL$3:$BL129, $BL129)-1)","v":""},null,null,null,null,null,693,null,389]
[null,null,null,null,null,null,null,null,null,null,null,null,null,null,null,null,null,null,null,null,null,null,null,null,null,null,null,null,null,null,null,null,null,null,null,null,null,null,null,null,null,null,null,null,null,null,null,null,null,null,null,null,null,null,8,"+",7,null,15,null,"",null,501,"",{"$f":"IF($BL130=\"\", \"\", COUNTIF($BL$3:$BL$803, \">\"&$BL130)+1+COUNTIF($BL$3:$BL130, $BL130)-1)","v":""},null,null,null,null,null,501,null,401]
[null,null,null,null,null,null,null,null,null,null,null,null,null,null,null,null,null,null,null,null,null,null,null,null,null,null,null,null,null,null,null,null,null,null,null,null,null,null,null,null,null,null,null,null,null,null,null,null,null,null,null,null,null,null,9,"+",7,null,16,null,"",null,197,"",{"$f":"IF($BL131=\"\", \"\", COUNTIF($BL$3:$BL$803, \">\"&$BL131)+1+COUNTIF($BL$3:$BL131, $BL131)-1)","v":""},null,null,null,null,null,197,null,70]
[null,null,null,null,null,null,null,null,null,null,null,null,null,null,null,null,null,null,null,null,null,null,null,null,null,null,null,null,null,null,null,null,null,null,null,null,null,null,null,null,null,null,null,null,null,null,null,null,null,null,null,null,null,null,10,"+",7,null,17,null,{"$f":"IF(COUNTIF($BP$5:$BP$6, $BD132)=0, \"\", IF(OR($BC132>$BP$3, $BE132>$BP$3, $BG132>$BP$3, $BG132<$BP$8), \"\", \"X\"))","v":""},null,{"$f":"$BS132","v":145},{"$f":"IF($BI132=\"\", \"\", $BK132)","v":""},{"$f":"IF($BL132=\"\", \"\", COUNTIF($BL$3:$BL$803, \">\"&$BL132)+1+COUNTIF($BL$3:$BL132, $BL132)-1)","v":""},null,null,null,null,null,145,null,{"$f":"RANDBETWEEN(1, 1000)","v":80}]
[null,null,null,null,null,null,null,null,null,null,null,null,null,null,null,null,null,null,null,null,null,null,null,null,null,null,null,null,null,null,null,null,null,null,null,null,null,null,null,null,null,null,null,null,null,null,null,null,null,null,null,null,null,null,{"$f":"IF(BC132+1>20, 1, BC132+1)","v":11},"+",{"$f":"IF(BC133=1, BE132+1, BE132)","v":7},null,{"$f":"BC133+BE133","v":18},null,"",null,946,"",{"$f":"IF($BL133=\"\", \"\", COUNTIF($BL$3:$BL$803, \">\"&$BL133)+1+COUNTIF($BL$3:$BL133, $BL133)-1)","v":""},null,null,null,null,null,946,null,81]
[null,null,null,null,null,null,null,null,null,null,null,null,null,null,null,null,null,null,null,null,null,null,null,null,null,null,null,null,null,null,null,null,null,null,null,null,null,null,null,null,null,null,null,null,null,null,null,null,null,null,null,null,null,null,12,"+",7,null,19,null,"",null,146,"",{"$f":"IF($BL134=\"\", \"\", COUNTIF($BL$3:$BL$803, \">\"&$BL134)+1+COUNTIF($BL$3:$BL134, $BL134)-1)","v":""},null,null,null,null,null,146,null,663]
[null,null,null,null,null,null,null,null,null,null,null,null,null,null,null,null,null,null,null,null,null,null,null,null,null,null,null,null,null,null,null,null,null,null,null,null,null,null,null,null,null,null,null,null,null,null,null,null,null,null,null,null,null,null,13,"+",7,null,20,null,"",null,802,"",{"$f":"IF($BL135=\"\", \"\", COUNTIF($BL$3:$BL$803, \">\"&$BL135)+1+COUNTIF($BL$3:$BL135, $BL135)-1)","v":""},null,null,null,null,null,802,null,53]
[null,null,null,null,null,null,null,null,null,null,null,null,null,null,null,null,null,null,null,null,null,null,null,null,null,null,null,null,null,null,null,null,null,null,null,null,null,null,null,null,null,null,null,null,null,null,null,null,null,null,null,null,null,null,14,"+",7,null,21,null,"",null,563,"",{"$f":"IF($BL136=\"\", \"\", COUNTIF($BL$3:$BL$803, \">\"&$BL136)+1+COUNTIF($BL$3:$BL136, $BL136)-1)","v":""},null,null,null,null,null,563,null,890]
[null,null,null,null,null,null,null,null,null,null,null,null,null,null,null,null,null,null,null,null,null,null,null,null,null,null,null,null,null,null,null,null,null,null,null,null,null,null,null,null,null,null,null,null,null,null,null,null,null,null,null,null,null,null,15,"+",7,null,22,null,"",null,570,"",{"$f":"IF($BL137=\"\", \"\", COUNTIF($BL$3:$BL$803, \">\"&$BL137)+1+COUNTIF($BL$3:$BL137, $BL137)-1)","v":""},null,null,null,null,null,570,null,378]
[null,null,null,null,null,null,null,null,null,null,null,null,null,null,null,null,null,null,null,null,null,null,null,null,null,null,null,null,null,null,null,null,null,null,null,null,null,null,null,null,null,null,null,null,null,null,null,null,null,null,null,null,null,null,16,"+",7,null,23,null,"",null,636,"",{"$f":"IF($BL138=\"\", \"\", COUNTIF($BL$3:$BL$803, \">\"&$BL138)+1+COUNTIF($BL$3:$BL138, $BL138)-1)","v":""},null,null,null,null,null,636,null,949]
[null,null,null,null,null,null,null,null,null,null,null,null,null,null,null,null,null,null,null,null,null,null,null,null,null,null,null,null,null,null,null,null,null,null,null,null,null,null,null,null,null,null,null,null,null,null,null,null,null,null,null,null,null,null,17,"+",7,null,24,null,"",null,593,"",{"$f":"IF($BL139=\"\", \"\", COUNTIF($BL$3:$BL$803, \">\"&$BL139)+1+COUNTIF($BL$3:$BL139, $BL139)-1)","v":""},null,null,null,null,null,593,null,287]
[null,null,null,null,null,null,null,null,null,null,null,null,null,null,null,null,null,null,null,null,null,null,null,null,null,null,null,null,null,null,null,null,null,null,null,null,null,null,null,null,null,null,null,null,null,null,null,null,null,null,null,null,null,null,18,"+",7,null,25,null,"",null,889,"",{"$f":"IF($BL140=\"\", \"\", COUNTIF($BL$3:$BL$803, \">\"&$BL140)+1+COUNTIF($BL$3:$BL140, $BL140)-1)","v":""},null,null,null,null,null,889,null,344]
[null,null,null,null,null,null,null,null,null,null,null,null,null,null,null,null,null,null,null,null,null,null,null,null,null,null,null,null,null,null,null,null,null,null,null,null,null,null,null,null,null,null,null,null,null,null,null,null,null,null,null,null,null,null,19,"+",7,null,26,null,"",null,574,"",{"$f":"IF($BL141=\"\", \"\", COUNTIF($BL$3:$BL$803, \">\"&$BL141)+1+COUNTIF($BL$3:$BL141, $BL141)-1)","v":""},null,null,null,null,null,574,null,265]
[null,null,null,null,null,null,null,null,null,null,null,null,null,null,null,null,null,null,null,null,null,null,null,null,null,null,null,null,null,null,null,null,null,null,null,null,null,null,null,null,null,null,null,null,null,null,null,null,null,null,null,null,null,null,20,"+",7,null,27,null,"",null,916,"",{"$f":"IF($BL142=\"\", \"\", COUNTIF($BL$3:$BL$803, \">\"&$BL142)+1+COUNTIF($BL$3:$BL142, $BL142)-1)","v":""},null,null,null,null,null,916,null,858]
[null,null,null,null,null,null,null,null,null,null,null,null,null,null,null,null,null,null,null,null,null,null,null,null,null,null,null,null,null,null,null,null,null,null,null,null,null,null,null,null,null,null,null,null,null,null,null,null,null,null,null,null,null,null,1,"+",8,null,9,null,"",null,920,"",{"$f":"IF($BL143=\"\", \"\", COUNTIF($BL$3:$BL$803, \">\"&$BL143)+1+COUNTIF($BL$3:$BL143, $BL143)-1)","v":""},null,null,null,null,null,920,null,888]
[null,null,null,null,null,null,null,null,null,null,null,null,null,null,null,null,null,null,null,null,null,null,null,null,null,null,null,null,null,null,null,null,null,null,null,null,null,null,null,null,null,null,null,null,null,null,null,null,null,null,null,null,null,null,2,"+",8,null,10,null,"",null,741,"",{"$f":"IF($BL144=\"\", \"\", COUNTIF($BL$3:$BL$803, \">\"&$BL144)+1+COUNTIF($BL$3:$BL144, $BL144)-1)","v":""},null,null,null,null,null,741,null,906]
[null,null,null,null,null,null,null,null,null,null,null,null,null,null,null,null,null,null,null,null,null,null,null,null,null,null,null,null,null,null,null,null,null,null,null,null,null,null,null,null,null,null,null,null,null,null,null,null,null,null,null,null,null,null,3,"+",8,null,11,null,"",null,750,"",{"$f":"IF($BL145=\"\", \"\", COUNTIF($BL$3:$BL$803, \">\"&$BL145)+1+COUNTIF($BL$3:$BL145, $BL145)-1)","v":""},null,null,null,null,null,750,null,450]
[null,null,null,null,null,null,null,null,null,null,null,null,null,null,null,null,null,null,null,null,null,null,null,null,null,null,null,null,null,null,null,null,null,null,null,null,null,null,null,null,null,null,null,null,null,null,null,null,null,null,null,null,null,null,4,"+",8,null,12,null,"",null,126,"",{"$f":"IF($BL146=\"\", \"\", COUNTIF($BL$3:$BL$803, \">\"&$BL146)+1+COUNTIF($BL$3:$BL146, $BL146)-1)","v":""},null,null,null,null,null,126,null,877]
[null,null,null,null,null,null,null,null,null,null,null,null,null,null,null,null,null,null,null,null,null,null,null,null,null,null,null,null,null,null,null,null,null,null,null,null,null,null,null,null,null,null,null,null,null,null,null,null,null,null,null,null,null,null,5,"+",8,null,13,null,"",null,465,"",{"$f":"IF($BL147=\"\", \"\", COUNTIF($BL$3:$BL$803, \">\"&$BL147)+1+COUNTIF($BL$3:$BL147, $BL147)-1)","v":""},null,null,null,null,null,465,null,685]
[null,null,null,null,null,null,null,null,null,null,null,null,null,null,null,null,null,null,null,null,null,null,null,null,null,null,null,null,null,null,null,null,null,null,null,null,null,null,null,null,null,null,null,null,null,null,null,null,null,null,null,null,null,null,6,"+",8,null,14,null,"",null,261,"",{"$f":"IF($BL148=\"\", \"\", COUNTIF($BL$3:$BL$803, \">\"&$BL148)+1+COUNTIF($BL$3:$BL148, $BL148)-1)","v":""},null,null,null,null,null,261,null,164]
[null,null,null,null,null,null,null,null,null,null,null,null,null,null,null,null,null,null,null,null,null,null,null,null,null,null,null,null,null,null,null,null,null,null,null,null,null,null,null,null,null,null,null,null,null,null,null,null,null,null,null,null,null,null,7,"+",8,null,15,null,"",null,726,"",{"$f":"IF($BL149=\"\", \"\", COUNTIF($BL$3:$BL$803, \">\"&$BL149)+1+COUNTIF($BL$3:$BL149, $BL149)-1)","v":""},null,null,null,null,null,726,null,796]
[null,null,null,null,null,null,null,null,null,null,null,null,null,null,null,null,null,null,null,null,null,null,null,null,null,null,null,null,null,null,null,null,null,null,null,null,null,null,null,null,null,null,null,null,null,null,null,null,null,null,null,null,null,null,8,"+",8,null,16,null,"",null,40,"",{"$f":"IF($BL150=\"\", \"\", COUNTIF($BL$3:$BL$803, \">\"&$BL150)+1+COUNTIF($BL$3:$BL150, $BL150)-1)","v":""},null,null,null,null,null,40,null,779]
[null,null,null,null,null,null,null,null,null,null,null,null,null,null,null,null,null,null,null,null,null,null,null,null,null,null,null,null,null,null,null,null,null,null,null,null,null,null,null,null,null,null,null,null,null,null,null,null,null,null,null,null,null,null,9,"+",8,null,17,null,"",null,38,"",{"$f":"IF($BL151=\"\", \"\", COUNTIF($BL$3:$BL$803, \">\"&$BL151)+1+COUNTIF($BL$3:$BL151, $BL151)-1)","v":""},null,null,null,null,null,38,null,653]
[null,null,null,null,null,null,null,null,null,null,null,null,null,null,null,null,null,null,null,null,null,null,null,null,null,null,null,null,null,null,null,null,null,null,null,null,null,null,null,null,null,null,null,null,null,null,null,null,null,null,null,null,null,null,10,"+",8,null,18,null,"",null,537,"",{"$f":"IF($BL152=\"\", \"\", COUNTIF($BL$3:$BL$803, \">\"&$BL152)+1+COUNTIF($BL$3:$BL152, $BL152)-1)","v":""},null,null,null,null,null,537,null,14]
[null,null,null,null,null,null,null,null,null,null,null,null,null,null,null,null,null,null,null,null,null,null,null,null,null,null,null,null,null,null,null,null,null,null,null,null,null,null,null,null,null,null,null,null,null,null,null,null,null,null,null,null,null,null,11,"+",8,null,19,null,"",null,117,"",{"$f":"IF($BL153=\"\", \"\", COUNTIF($BL$3:$BL$803, \">\"&$BL153)+1+COUNTIF($BL$3:$BL153, $BL153)-1)","v":""},null,null,null,null,null,117,null,34]
[null,null,null,null,null,null,null,null,null,null,null,null,null,null,null,null,null,null,null,null,null,null,null,null,null,null,null,null,null,null,null,null,null,null,null,null,null,null,null,null,null,null,null,null,null,null,null,null,null,null,null,null,null,null,12,"+",8,null,20,null,"",null,492,"",{"$f":"IF($BL154=\"\", \"\", COUNTIF($BL$3:$BL$803, \">\"&$BL154)+1+COUNTIF($BL$3:$BL154, $BL154)-1)","v":""},null,null,null,null,null,492,null,128]
[null,null,null,null,null,null,null,null,null,null,null,null,null,null,null,null,null,null,null,null,null,null,null,null,null,null,null,null,null,null,null,null,null,null,null,null,null,null,null,null,null,null,null,null,null,null,null,null,null,null,null,null,null,null,13,"+",8,null,21,null,"",null,189,"",{"$f":"IF($BL155=\"\", \"\", COUNTIF($BL$3:$BL$803, \">\"&$BL155)+1+COUNTIF($BL$3:$BL155, $BL155)-1)","v":""},null,null,null,null,null,189,null,528]
[null,null,null,null,null,null,null,null,null,null,null,null,null,null,null,null,null,null,null,null,null,null,null,null,null,null,null,null,null,null,null,null,null,null,null,null,null,null,null,null,null,null,null,null,null,null,null,null,null,null,null,null,null,null,14,"+",8,null,22,null,"",null,525,"",{"$f":"IF($BL156=\"\", \"\", COUNTIF($BL$3:$BL$803, \">\"&$BL156)+1+COUNTIF($BL$3:$BL156, $BL156)-1)","v":""},null,null,null,null,null,525,null,518]
[null,null,null,null,null,null,null,null,null,null,null,null,null,null,null,null,null,null,null,null,null,null,null,null,null,null,null,null,null,null,null,null,null,null,null,null,null,null,null,null,null,null,null,null,null,null,null,null,null,null,null,null,null,null,15,"+",8,null,23,null,"",null,642,"",{"$f":"IF($BL157=\"\", \"\", COUNTIF($BL$3:$BL$803, \">\"&$BL157)+1+COUNTIF($BL$3:$BL157, $BL157)-1)","v":""},null,null,null,null,null,642,null,697]
[null,null,null,null,null,null,null,null,null,null,null,null,null,null,null,null,null,null,null,null,null,null,null,null,null,null,null,null,null,null,null,null,null,null,null,null,null,null,null,null,null,null,null,null,null,null,null,null,null,null,null,null,null,null,16,"+",8,null,24,null,"",null,575,"",{"$f":"IF($BL158=\"\", \"\", COUNTIF($BL$3:$BL$803, \">\"&$BL158)+1+COUNTIF($BL$3:$BL158, $BL158)-1)","v":""},null,null,null,null,null,575,null,161]
[null,null,null,null,null,null,null,null,null,null,null,null,null,null,null,null,null,null,null,null,null,null,null,null,null,null,null,null,null,null,null,null,null,null,null,null,null,null,null,null,null,null,null,null,null,null,null,null,null,null,null,null,null,null,17,"+",8,null,25,null,"",null,293,"",{"$f":"IF($BL159=\"\", \"\", COUNTIF($BL$3:$BL$803, \">\"&$BL159)+1+COUNTIF($BL$3:$BL159, $BL159)-1)","v":""},null,null,null,null,null,293,null,884]
[null,null,null,null,null,null,null,null,null,null,null,null,null,null,null,null,null,null,null,null,null,null,null,null,null,null,null,null,null,null,null,null,null,null,null,null,null,null,null,null,null,null,null,null,null,null,null,null,null,null,null,null,null,null,18,"+",8,null,26,null,"",null,420,"",{"$f":"IF($BL160=\"\", \"\", COUNTIF($BL$3:$BL$803, \">\"&$BL160)+1+COUNTIF($BL$3:$BL160, $BL160)-1)","v":""},null,null,null,null,null,420,null,296]
[null,null,null,null,null,null,null,null,null,null,null,null,null,null,null,null,null,null,null,null,null,null,null,null,null,null,null,null,null,null,null,null,null,null,null,null,null,null,null,null,null,null,null,null,null,null,null,null,null,null,null,null,null,null,19,"+",8,null,27,null,"",null,514,"",{"$f":"IF($BL161=\"\", \"\", COUNTIF($BL$3:$BL$803, \">\"&$BL161)+1+COUNTIF($BL$3:$BL161, $BL161)-1)","v":""},null,null,null,null,null,514,null,156]
[null,null,null,null,null,null,null,null,null,null,null,null,null,null,null,null,null,null,null,null,null,null,null,null,null,null,null,null,null,null,null,null,null,null,null,null,null,null,null,null,null,null,null,null,null,null,null,null,null,null,null,null,null,null,20,"+",8,null,28,null,"",null,231,"",{"$f":"IF($BL162=\"\", \"\", COUNTIF($BL$3:$BL$803, \">\"&$BL162)+1+COUNTIF($BL$3:$BL162, $BL162)-1)","v":""},null,null,null,null,null,231,null,475]
[null,null,null,null,null,null,null,null,null,null,null,null,null,null,null,null,null,null,null,null,null,null,null,null,null,null,null,null,null,null,null,null,null,null,null,null,null,null,null,null,null,null,null,null,null,null,null,null,null,null,null,null,null,null,1,"+",9,null,10,null,"",null,394,"",{"$f":"IF($BL163=\"\", \"\", COUNTIF($BL$3:$BL$803, \">\"&$BL163)+1+COUNTIF($BL$3:$BL163, $BL163)-1)","v":""},null,null,null,null,null,394,null,410]
[null,null,null,null,null,null,null,null,null,null,null,null,null,null,null,null,null,null,null,null,null,null,null,null,null,null,null,null,null,null,null,null,null,null,null,null,null,null,null,null,null,null,null,null,null,null,null,null,null,null,null,null,null,null,2,"+",9,null,11,null,"",null,650,"",{"$f":"IF($BL164=\"\", \"\", COUNTIF($BL$3:$BL$803, \">\"&$BL164)+1+COUNTIF($BL$3:$BL164, $BL164)-1)","v":""},null,null,null,null,null,650,null,104]
[null,null,null,null,null,null,null,null,null,null,null,null,null,null,null,null,null,null,null,null,null,null,null,null,null,null,null,null,null,null,null,null,null,null,null,null,null,null,null,null,null,null,null,null,null,null,null,null,null,null,null,null,null,null,3,"+",9,null,12,null,"",null,605,"",{"$f":"IF($BL165=\"\", \"\", COUNTIF($BL$3:$BL$803, \">\"&$BL165)+1+COUNTIF($BL$3:$BL165, $BL165)-1)","v":""},null,null,null,null,null,605,null,405]
[null,null,null,null,null,null,null,null,null,null,null,null,null,null,null,null,null,null,null,null,null,null,null,null,null,null,null,null,null,null,null,null,null,null,null,null,null,null,null,null,null,null,null,null,null,null,null,null,null,null,null,null,null,null,4,"+",9,null,13,null,"",null,230,"",{"$f":"IF($BL166=\"\", \"\", COUNTIF($BL$3:$BL$803, \">\"&$BL166)+1+COUNTIF($BL$3:$BL166, $BL166)-1)","v":""},null,null,null,null,null,230,null,307]
[null,null,null,null,null,null,null,null,null,null,null,null,null,null,null,null,null,null,null,null,null,null,null,null,null,null,null,null,null,null,null,null,null,null,null,null,null,null,null,null,null,null,null,null,null,null,null,null,null,null,null,null,null,null,5,"+",9,null,14,null,"",null,963,"",{"$f":"IF($BL167=\"\", \"\", COUNTIF($BL$3:$BL$803, \">\"&$BL167)+1+COUNTIF($BL$3:$BL167, $BL167)-1)","v":""},null,null,null,null,null,963,null,833]
[null,null,null,null,null,null,null,null,null,null,null,null,null,null,null,null,null,null,null,null,null,null,null,null,null,null,null,null,null,null,null,null,null,null,null,null,null,null,null,null,null,null,null,null,null,null,null,null,null,null,null,null,null,null,6,"+",9,null,15,null,"",null,568,"",{"$f":"IF($BL168=\"\", \"\", COUNTIF($BL$3:$BL$803, \">\"&$BL168)+1+COUNTIF($BL$3:$BL168, $BL168)-1)","v":""},null,null,null,null,null,568,null,45]
[null,null,null,null,null,null,null,null,null,null,null,null,null,null,null,null,null,null,null,null,null,null,null,null,null,null,null,null,null,null,null,null,null,null,null,null,null,null,null,null,null,null,null,null,null,null,null,null,null,null,null,null,null,null,7,"+",9,null,16,null,"",null,730,"",{"$f":"IF($BL169=\"\", \"\", COUNTIF($BL$3:$BL$803, \">\"&$BL169)+1+COUNTIF($BL$3:$BL169, $BL169)-1)","v":""},null,null,null,null,null,730,null,409]
[null,null,null,null,null,null,null,null,null,null,null,null,null,null,null,null,null,null,null,null,null,null,null,null,null,null,null,null,null,null,null,null,null,null,null,null,null,null,null,null,null,null,null,null,null,null,null,null,null,null,null,null,null,null,8,"+",9,null,17,null,"",null,373,"",{"$f":"IF($BL170=\"\", \"\", COUNTIF($BL$3:$BL$803, \">\"&$BL170)+1+COUNTIF($BL$3:$BL170, $BL170)-1)","v":""},null,null,null,null,null,373,null,717]
[null,null,null,null,null,null,null,null,null,null,null,null,null,null,null,null,null,null,null,null,null,null,null,null,null,null,null,null,null,null,null,null,null,null,null,null,null,null,null,null,null,null,null,null,null,null,null,null,null,null,null,null,null,null,9,"+",9,null,18,null,"",null,607,"",{"$f":"IF($BL171=\"\", \"\", COUNTIF($BL$3:$BL$803, \">\"&$BL171)+1+COUNTIF($BL$3:$BL171, $BL171)-1)","v":""},null,null,null,null,null,607,null,123]
[null,null,null,null,null,null,null,null,null,null,null,null,null,null,null,null,null,null,null,null,null,null,null,null,null,null,null,null,null,null,null,null,null,null,null,null,null,null,null,null,null,null,null,null,null,null,null,null,null,null,null,null,null,null,10,"+",9,null,19,null,"",null,708,"",{"$f":"IF($BL172=\"\", \"\", COUNTIF($BL$3:$BL$803, \">\"&$BL172)+1+COUNTIF($BL$3:$BL172, $BL172)-1)","v":""},null,null,null,null,null,708,null,94]
[null,null,null,null,null,null,null,null,null,null,null,null,null,null,null,null,null,null,null,null,null,null,null,null,null,null,null,null,null,null,null,null,null,null,null,null,null,null,null,null,null,null,null,null,null,null,null,null,null,null,null,null,null,null,11,"+",9,null,20,null,"",null,413,"",{"$f":"IF($BL173=\"\", \"\", COUNTIF($BL$3:$BL$803, \">\"&$BL173)+1+COUNTIF($BL$3:$BL173, $BL173)-1)","v":""},null,null,null,null,null,413,null,244]
[null,null,null,null,null,null,null,null,null,null,null,null,null,null,null,null,null,null,null,null,null,null,null,null,null,null,null,null,null,null,null,null,null,null,null,null,null,null,null,null,null,null,null,null,null,null,null,null,null,null,null,null,null,null,12,"+",9,null,21,null,"",null,268,"",{"$f":"IF($BL174=\"\", \"\", COUNTIF($BL$3:$BL$803, \">\"&$BL174)+1+COUNTIF($BL$3:$BL174, $BL174)-1)","v":""},null,null,null,null,null,268,null,976]
[null,null,null,null,null,null,null,null,null,null,null,null,null,null,null,null,null,null,null,null,null,null,null,null,null,null,null,null,null,null,null,null,null,null,null,null,null,null,null,null,null,null,null,null,null,null,null,null,null,null,null,null,null,null,13,"+",9,null,22,null,"",null,728,"",{"$f":"IF($BL175=\"\", \"\", COUNTIF($BL$3:$BL$803, \">\"&$BL175)+1+COUNTIF($BL$3:$BL175, $BL175)-1)","v":""},null,null,null,null,null,728,null,967]
[null,null,null,null,null,null,null,null,null,null,null,null,null,null,null,null,null,null,null,null,null,null,null,null,null,null,null,null,null,null,null,null,null,null,null,null,null,null,null,null,null,null,null,null,null,null,null,null,null,null,null,null,null,null,14,"+",9,null,23,null,"",null,900,"",{"$f":"IF($BL176=\"\", \"\", COUNTIF($BL$3:$BL$803, \">\"&$BL176)+1+COUNTIF($BL$3:$BL176, $BL176)-1)","v":""},null,null,null,null,null,900,null,908]
[null,null,null,null,null,null,null,null,null,null,null,null,null,null,null,null,null,null,null,null,null,null,null,null,null,null,null,null,null,null,null,null,null,null,null,null,null,null,null,null,null,null,null,null,null,null,null,null,null,null,null,null,null,null,15,"+",9,null,24,null,"",null,864,"",{"$f":"IF($BL177=\"\", \"\", COUNTIF($BL$3:$BL$803, \">\"&$BL177)+1+COUNTIF($BL$3:$BL177, $BL177)-1)","v":""},null,null,null,null,null,864,null,957]
[null,null,null,null,null,null,null,null,null,null,null,null,null,null,null,null,null,null,null,null,null,null,null,null,null,null,null,null,null,null,null,null,null,null,null,null,null,null,null,null,null,null,null,null,null,null,null,null,null,null,null,null,null,null,16,"+",9,null,25,null,"",null,698,"",{"$f":"IF($BL178=\"\", \"\", COUNTIF($BL$3:$BL$803, \">\"&$BL178)+1+COUNTIF($BL$3:$BL178, $BL178)-1)","v":""},null,null,null,null,null,698,null,375]
[null,null,null,null,null,null,null,null,null,null,null,null,null,null,null,null,null,null,null,null,null,null,null,null,null,null,null,null,null,null,null,null,null,null,null,null,null,null,null,null,null,null,null,null,null,null,null,null,null,null,null,null,null,null,17,"+",9,null,26,null,"",null,646,"",{"$f":"IF($BL179=\"\", \"\", COUNTIF($BL$3:$BL$803, \">\"&$BL179)+1+COUNTIF($BL$3:$BL179, $BL179)-1)","v":""},null,null,null,null,null,646,null,350]
[null,null,null,null,null,null,null,null,null,null,null,null,null,null,null,null,null,null,null,null,null,null,null,null,null,null,null,null,null,null,null,null,null,null,null,null,null,null,null,null,null,null,null,null,null,null,null,null,null,null,null,null,null,null,18,"+",9,null,27,null,"",null,252,"",{"$f":"IF($BL180=\"\", \"\", COUNTIF($BL$3:$BL$803, \">\"&$BL180)+1+COUNTIF($BL$3:$BL180, $BL180)-1)","v":""},null,null,null,null,null,252,null,31]
[null,null,null,null,null,null,null,null,null,null,null,null,null,null,null,null,null,null,null,null,null,null,null,null,null,null,null,null,null,null,null,null,null,null,null,null,null,null,null,null,null,null,null,null,null,null,null,null,null,null,null,null,null,null,19,"+",9,null,28,null,"",null,33,"",{"$f":"IF($BL181=\"\", \"\", COUNTIF($BL$3:$BL$803, \">\"&$BL181)+1+COUNTIF($BL$3:$BL181, $BL181)-1)","v":""},null,null,null,null,null,33,null,586]
[null,null,null,null,null,null,null,null,null,null,null,null,null,null,null,null,null,null,null,null,null,null,null,null,null,null,null,null,null,null,null,null,null,null,null,null,null,null,null,null,null,null,null,null,null,null,null,null,null,null,null,null,null,null,20,"+",9,null,29,null,"",null,958,"",{"$f":"IF($BL182=\"\", \"\", COUNTIF($BL$3:$BL$803, \">\"&$BL182)+1+COUNTIF($BL$3:$BL182, $BL182)-1)","v":""},null,null,null,null,null,958,null,599]
[null,null,null,null,null,null,null,null,null,null,null,null,null,null,null,null,null,null,null,null,null,null,null,null,null,null,null,null,null,null,null,null,null,null,null,null,null,null,null,null,null,null,null,null,null,null,null,null,null,null,null,null,null,null,1,"+",10,null,11,null,"",null,400,"",{"$f":"IF($BL183=\"\", \"\", COUNTIF($BL$3:$BL$803, \">\"&$BL183)+1+COUNTIF($BL$3:$BL183, $BL183)-1)","v":""},null,null,null,null,null,400,null,757]
[null,null,null,null,null,null,null,null,null,null,null,null,null,null,null,null,null,null,null,null,null,null,null,null,null,null,null,null,null,null,null,null,null,null,null,null,null,null,null,null,null,null,null,null,null,null,null,null,null,null,null,null,null,null,2,"+",10,null,12,null,"",null,125,"",{"$f":"IF($BL184=\"\", \"\", COUNTIF($BL$3:$BL$803, \">\"&$BL184)+1+COUNTIF($BL$3:$BL184, $BL184)-1)","v":""},null,null,null,null,null,125,null,521]
[null,null,null,null,null,null,null,null,null,null,null,null,null,null,null,null,null,null,null,null,null,null,null,null,null,null,null,null,null,null,null,null,null,null,null,null,null,null,null,null,null,null,null,null,null,null,null,null,null,null,null,null,null,null,3,"+",10,null,13,null,"",null,555,"",{"$f":"IF($BL185=\"\", \"\", COUNTIF($BL$3:$BL$803, \">\"&$BL185)+1+COUNTIF($BL$3:$BL185, $BL185)-1)","v":""},null,null,null,null,null,555,null,687]
[null,null,null,null,null,null,null,null,null,null,null,null,null,null,null,null,null,null,null,null,null,null,null,null,null,null,null,null,null,null,null,null,null,null,null,null,null,null,null,null,null,null,null,null,null,null,null,null,null,null,null,null,null,null,4,"+",10,null,14,null,"",null,998,"",{"$f":"IF($BL186=\"\", \"\", COUNTIF($BL$3:$BL$803, \">\"&$BL186)+1+COUNTIF($BL$3:$BL186, $BL186)-1)","v":""},null,null,null,null,null,998,null,708]
[null,null,null,null,null,null,null,null,null,null,null,null,null,null,null,null,null,null,null,null,null,null,null,null,null,null,null,null,null,null,null,null,null,null,null,null,null,null,null,null,null,null,null,null,null,null,null,null,null,null,null,null,null,null,5,"+",10,null,15,null,"",null,229,"",{"$f":"IF($BL187=\"\", \"\", COUNTIF($BL$3:$BL$803, \">\"&$BL187)+1+COUNTIF($BL$3:$BL187, $BL187)-1)","v":""},null,null,null,null,null,229,null,316]
[null,null,null,null,null,null,null,null,null,null,null,null,null,null,null,null,null,null,null,null,null,null,null,null,null,null,null,null,null,null,null,null,null,null,null,null,null,null,null,null,null,null,null,null,null,null,null,null,null,null,null,null,null,null,6,"+",10,null,16,null,"",null,317,"",{"$f":"IF($BL188=\"\", \"\", COUNTIF($BL$3:$BL$803, \">\"&$BL188)+1+COUNTIF($BL$3:$BL188, $BL188)-1)","v":""},null,null,null,null,null,317,null,527]
[null,null,null,null,null,null,null,null,null,null,null,null,null,null,null,null,null,null,null,null,null,null,null,null,null,null,null,null,null,null,null,null,null,null,null,null,null,null,null,null,null,null,null,null,null,null,null,null,null,null,null,null,null,null,7,"+",10,null,17,null,"",null,165,"",{"$f":"IF($BL189=\"\", \"\", COUNTIF($BL$3:$BL$803, \">\"&$BL189)+1+COUNTIF($BL$3:$BL189, $BL189)-1)","v":""},null,null,null,null,null,165,null,962]
[null,null,null,null,null,null,null,null,null,null,null,null,null,null,null,null,null,null,null,null,null,null,null,null,null,null,null,null,null,null,null,null,null,null,null,null,null,null,null,null,null,null,null,null,null,null,null,null,null,null,null,null,null,null,8,"+",10,null,18,null,"",null,475,"",{"$f":"IF($BL190=\"\", \"\", COUNTIF($BL$3:$BL$803, \">\"&$BL190)+1+COUNTIF($BL$3:$BL190, $BL190)-1)","v":""},null,null,null,null,null,475,null,53]
[null,null,null,null,null,null,null,null,null,null,null,null,null,null,null,null,null,null,null,null,null,null,null,null,null,null,null,null,null,null,null,null,null,null,null,null,null,null,null,null,null,null,null,null,null,null,null,null,null,null,null,null,null,null,9,"+",10,null,19,null,"",null,6,"",{"$f":"IF($BL191=\"\", \"\", COUNTIF($BL$3:$BL$803, \">\"&$BL191)+1+COUNTIF($BL$3:$BL191, $BL191)-1)","v":""},null,null,null,null,null,6,null,939]
[null,null,null,null,null,null,null,null,null,null,null,null,null,null,null,null,null,null,null,null,null,null,null,null,null,null,null,null,null,null,null,null,null,null,null,null,null,null,null,null,null,null,null,null,null,null,null,null,null,null,null,null,null,null,10,"+",10,null,20,null,"",null,40,"",{"$f":"IF($BL192=\"\", \"\", COUNTIF($BL$3:$BL$803, \">\"&$BL192)+1+COUNTIF($BL$3:$BL192, $BL192)-1)","v":""},null,null,null,null,null,40,null,935]
[null,null,null,null,null,null,null,null,null,null,null,null,null,null,null,null,null,null,null,null,null,null,null,null,null,null,null,null,null,null,null,null,null,null,null,null,null,null,null,null,null,null,null,null,null,null,null,null,null,null,null,null,null,null,11,"+",10,null,21,null,"",null,182,"",{"$f":"IF($BL193=\"\", \"\", COUNTIF($BL$3:$BL$803, \">\"&$BL193)+1+COUNTIF($BL$3:$BL193, $BL193)-1)","v":""},null,null,null,null,null,182,null,472]
[null,null,null,null,null,null,null,null,null,null,null,null,null,null,null,null,null,null,null,null,null,null,null,null,null,null,null,null,null,null,null,null,null,null,null,null,null,null,null,null,null,null,null,null,null,null,null,null,null,null,null,null,null,null,12,"+",10,null,22,null,"",null,255,"",{"$f":"IF($BL194=\"\", \"\", COUNTIF($BL$3:$BL$803, \">\"&$BL194)+1+COUNTIF($BL$3:$BL194, $BL194)-1)","v":""},null,null,null,null,null,255,null,576]
[null,null,null,null,null,null,null,null,null,null,null,null,null,null,null,null,null,null,null,null,null,null,null,null,null,null,null,null,null,null,null,null,null,null,null,null,null,null,null,null,null,null,null,null,null,null,null,null,null,null,null,null,null,null,13,"+",10,null,23,null,"",null,533,"",{"$f":"IF($BL195=\"\", \"\", COUNTIF($BL$3:$BL$803, \">\"&$BL195)+1+COUNTIF($BL$3:$BL195, $BL195)-1)","v":""},null,null,null,null,null,533,null,702]
[null,null,null,null,null,null,null,null,null,null,null,null,null,null,null,null,null,null,null,null,null,null,null,null,null,null,null,null,null,null,null,null,null,null,null,null,null,null,null,null,null,null,null,null,null,null,null,null,null,null,null,null,null,null,14,"+",10,null,24,null,{"$f":"IF(COUNTIF($BP$5:$BP$6, $BD196)=0, \"\", IF(OR($BC196>$BP$3, $BE196>$BP$3, $BG196>$BP$3, $BG196<$BP$8), \"\", \"X\"))","v":""},null,{"$f":"$BS196","v":81},{"$f":"IF($BI196=\"\", \"\", $BK196)","v":""},{"$f":"IF($BL196=\"\", \"\", COUNTIF($BL$3:$BL$803, \">\"&$BL196)+1+COUNTIF($BL$3:$BL196, $BL196)-1)","v":""},null,null,null,null,null,81,null,{"$f":"RANDBETWEEN(1, 1000)","v":648}]
[null,null,null,null,null,null,null,null,null,null,null,null,null,null,null,null,null,null,null,null,null,null,null,null,null,null,null,null,null,null,null,null,null,null,null,null,null,null,null,null,null,null,null,null,null,null,null,null,null,null,null,null,null,null,{"$f":"IF(BC196+1>20, 1, BC196+1)","v":15},"+",{"$f":"IF(BC197=1, BE196+1, BE196)","v":10},null,{"$f":"BC197+BE197","v":25},null,"",null,411,"",{"$f":"IF($BL197=\"\", \"\", COUNTIF($BL$3:$BL$803, \">\"&$BL197)+1+COUNTIF($BL$3:$BL197, $BL197)-1)","v":""},null,null,null,null,null,411,null,217]
[null,null,null,null,null,null,null,null,null,null,null,null,null,null,null,null,null,null,null,null,null,null,null,null,null,null,null,null,null,null,null,null,null,null,null,null,null,null,null,null,null,null,null,null,null,null,null,null,null,null,null,null,null,null,16,"+",10,null,26,null,"",null,446,"",{"$f":"IF($BL198=\"\", \"\", COUNTIF($BL$3:$BL$803, \">\"&$BL198)+1+COUNTIF($BL$3:$BL198, $BL198)-1)","v":""},null,null,null,null,null,446,null,711]
[null,null,null,null,null,null,null,null,null,null,null,null,null,null,null,null,null,null,null,null,null,null,null,null,null,null,null,null,null,null,null,null,null,null,null,null,null,null,null,null,null,null,null,null,null,null,null,null,null,null,null,null,null,null,17,"+",10,null,27,null,"",null,568,"",{"$f":"IF($BL199=\"\", \"\", COUNTIF($BL$3:$BL$803, \">\"&$BL199)+1+COUNTIF($BL$3:$BL199, $BL199)-1)","v":""},null,null,null,null,null,568,null,938]
[null,null,null,null,null,null,null,null,null,null,null,null,null,null,null,null,null,null,null,null,null,null,null,null,null,null,null,null,null,null,null,null,null,null,null,null,null,null,null,null,null,null,null,null,null,null,null,null,null,null,null,null,null,null,18,"+",10,null,28,null,"",null,345,"",{"$f":"IF($BL200=\"\", \"\", COUNTIF($BL$3:$BL$803, \">\"&$BL200)+1+COUNTIF($BL$3:$BL200, $BL200)-1)","v":""},null,null,null,null,null,345,null,303]
[null,null,null,null,null,null,null,null,null,null,null,null,null,null,null,null,null,null,null,null,null,null,null,null,null,null,null,null,null,null,null,null,null,null,null,null,null,null,null,null,null,null,null,null,null,null,null,null,null,null,null,null,null,null,19,"+",10,null,29,null,"",null,414,"",{"$f":"IF($BL201=\"\", \"\", COUNTIF($BL$3:$BL$803, \">\"&$BL201)+1+COUNTIF($BL$3:$BL201, $BL201)-1)","v":""},null,null,null,null,null,414,null,592]
[null,null,null,null,null,null,null,null,null,null,null,null,null,null,null,null,null,null,null,null,null,null,null,null,null,null,null,null,null,null,null,null,null,null,null,null,null,null,null,null,null,null,null,null,null,null,null,null,null,null,null,null,null,null,20,"+",10,null,30,null,"",null,948,"",{"$f":"IF($BL202=\"\", \"\", COUNTIF($BL$3:$BL$803, \">\"&$BL202)+1+COUNTIF($BL$3:$BL202, $BL202)-1)","v":""},null,null,null,null,null,948,null,88]
[null,null,null,null,null,null,null,null,null,null,null,null,null,null,null,null,null,null,null,null,null,null,null,null,null,null,null,null,null,null,null,null,null,null,null,null,null,null,null,null,null,null,null,null,null,null,null,null,null,null,null,null,null,null,1,"+",11,null,12,null,"",null,398,"",{"$f":"IF($BL203=\"\", \"\", COUNTIF($BL$3:$BL$803, \">\"&$BL203)+1+COUNTIF($BL$3:$BL203, $BL203)-1)","v":""},null,null,null,null,null,398,null,718]
[null,null,null,null,null,null,null,null,null,null,null,null,null,null,null,null,null,null,null,null,null,null,null,null,null,null,null,null,null,null,null,null,null,null,null,null,null,null,null,null,null,null,null,null,null,null,null,null,null,null,null,null,null,null,2,"+",11,null,13,null,"",null,141,"",{"$f":"IF($BL204=\"\", \"\", COUNTIF($BL$3:$BL$803, \">\"&$BL204)+1+COUNTIF($BL$3:$BL204, $BL204)-1)","v":""},null,null,null,null,null,141,null,631]
[null,null,null,null,null,null,null,null,null,null,null,null,null,null,null,null,null,null,null,null,null,null,null,null,null,null,null,null,null,null,null,null,null,null,null,null,null,null,null,null,null,null,null,null,null,null,null,null,null,null,null,null,null,null,3,"+",11,null,14,null,"",null,485,"",{"$f":"IF($BL205=\"\", \"\", COUNTIF($BL$3:$BL$803, \">\"&$BL205)+1+COUNTIF($BL$3:$BL205, $BL205)-1)","v":""},null,null,null,null,null,485,null,553]
[null,null,null,null,null,null,null,null,null,null,null,null,null,null,null,null,null,null,null,null,null,null,null,null,null,null,null,null,null,null,null,null,null,null,null,null,null,null,null,null,null,null,null,null,null,null,null,null,null,null,null,null,null,null,4,"+",11,null,15,null,"",null,40,"",{"$f":"IF($BL206=\"\", \"\", COUNTIF($BL$3:$BL$803, \">\"&$BL206)+1+COUNTIF($BL$3:$BL206, $BL206)-1)","v":""},null,null,null,null,null,40,null,887]
[null,null,null,null,null,null,null,null,null,null,null,null,null,null,null,null,null,null,null,null,null,null,null,null,null,null,null,null,null,null,null,null,null,null,null,null,null,null,null,null,null,null,null,null,null,null,null,null,null,null,null,null,null,null,5,"+",11,null,16,null,"",null,590,"",{"$f":"IF($BL207=\"\", \"\", COUNTIF($BL$3:$BL$803, \">\"&$BL207)+1+COUNTIF($BL$3:$BL207, $BL207)-1)","v":""},null,null,null,null,null,590,null,714]
[null,null,null,null,null,null,null,null,null,null,null,null,null,null,null,null,null,null,null,null,null,null,null,null,null,null,null,null,null,null,null,null,null,null,null,null,null,null,null,null,null,null,null,null,null,null,null,null,null,null,null,null,null,null,6,"+",11,null,17,null,"",null,330,"",{"$f":"IF($BL208=\"\", \"\", COUNTIF($BL$3:$BL$803, \">\"&$BL208)+1+COUNTIF($BL$3:$BL208, $BL208)-1)","v":""},null,null,null,null,null,330,null,849]
[null,null,null,null,null,null,null,null,null,null,null,null,null,null,null,null,null,null,null,null,null,null,null,null,null,null,null,null,null,null,null,null,null,null,null,null,null,null,null,null,null,null,null,null,null,null,null,null,null,null,null,null,null,null,7,"+",11,null,18,null,"",null,123,"",{"$f":"IF($BL209=\"\", \"\", COUNTIF($BL$3:$BL$803, \">\"&$BL209)+1+COUNTIF($BL$3:$BL209, $BL209)-1)","v":""},null,null,null,null,null,123,null,549]
[null,null,null,null,null,null,null,null,null,null,null,null,null,null,null,null,null,null,null,null,null,null,null,null,null,null,null,null,null,null,null,null,null,null,null,null,null,null,null,null,null,null,null,null,null,null,null,null,null,null,null,null,null,null,8,"+",11,null,19,null,"",null,52,"",{"$f":"IF($BL210=\"\", \"\", COUNTIF($BL$3:$BL$803, \">\"&$BL210)+1+COUNTIF($BL$3:$BL210, $BL210)-1)","v":""},null,null,null,null,null,52,null,252]
[null,null,null,null,null,null,null,null,null,null,null,null,null,null,null,null,null,null,null,null,null,null,null,null,null,null,null,null,null,null,null,null,null,null,null,null,null,null,null,null,null,null,null,null,null,null,null,null,null,null,null,null,null,null,9,"+",11,null,20,null,"",null,903,"",{"$f":"IF($BL211=\"\", \"\", COUNTIF($BL$3:$BL$803, \">\"&$BL211)+1+COUNTIF($BL$3:$BL211, $BL211)-1)","v":""},null,null,null,null,null,903,null,895]
[null,null,null,null,null,null,null,null,null,null,null,null,null,null,null,null,null,null,null,null,null,null,null,null,null,null,null,null,null,null,null,null,null,null,null,null,null,null,null,null,null,null,null,null,null,null,null,null,null,null,null,null,null,null,10,"+",11,null,21,null,"",null,349,"",{"$f":"IF($BL212=\"\", \"\", COUNTIF($BL$3:$BL$803, \">\"&$BL212)+1+COUNTIF($BL$3:$BL212, $BL212)-1)","v":""},null,null,null,null,null,349,null,929]
[null,null,null,null,null,null,null,null,null,null,null,null,null,null,null,null,null,null,null,null,null,null,null,null,null,null,null,null,null,null,null,null,null,null,null,null,null,null,null,null,null,null,null,null,null,null,null,null,null,null,null,null,null,null,11,"+",11,null,22,null,"",null,324,"",{"$f":"IF($BL213=\"\", \"\", COUNTIF($BL$3:$BL$803, \">\"&$BL213)+1+COUNTIF($BL$3:$BL213, $BL213)-1)","v":""},null,null,null,null,null,324,null,86]
[null,null,null,null,null,null,null,null,null,null,null,null,null,null,null,null,null,null,null,null,null,null,null,null,null,null,null,null,null,null,null,null,null,null,null,null,null,null,null,null,null,null,null,null,null,null,null,null,null,null,null,null,null,null,12,"+",11,null,23,null,"",null,631,"",{"$f":"IF($BL214=\"\", \"\", COUNTIF($BL$3:$BL$803, \">\"&$BL214)+1+COUNTIF($BL$3:$BL214, $BL214)-1)","v":""},null,null,null,null,null,631,null,256]
[null,null,null,null,null,null,null,null,null,null,null,null,null,null,null,null,null,null,null,null,null,null,null,null,null,null,null,null,null,null,null,null,null,null,null,null,null,null,null,null,null,null,null,null,null,null,null,null,null,null,null,null,null,null,13,"+",11,null,24,null,"",null,738,"",{"$f":"IF($BL215=\"\", \"\", COUNTIF($BL$3:$BL$803, \">\"&$BL215)+1+COUNTIF($BL$3:$BL215, $BL215)-1)","v":""},null,null,null,null,null,738,null,220]
[null,null,null,null,null,null,null,null,null,null,null,null,null,null,null,null,null,null,null,null,null,null,null,null,null,null,null,null,null,null,null,null,null,null,null,null,null,null,null,null,null,null,null,null,null,null,null,null,null,null,null,null,null,null,14,"+",11,null,25,null,"",null,298,"",{"$f":"IF($BL216=\"\", \"\", COUNTIF($BL$3:$BL$803, \">\"&$BL216)+1+COUNTIF($BL$3:$BL216, $BL216)-1)","v":""},null,null,null,null,null,298,null,733]
[null,null,null,null,null,null,null,null,null,null,null,null,null,null,null,null,null,null,null,null,null,null,null,null,null,null,null,null,null,null,null,null,null,null,null,null,null,null,null,null,null,null,null,null,null,null,null,null,null,null,null,null,null,null,15,"+",11,null,26,null,"",null,645,"",{"$f":"IF($BL217=\"\", \"\", COUNTIF($BL$3:$BL$803, \">\"&$BL217)+1+COUNTIF($BL$3:$BL217, $BL217)-1)","v":""},null,null,null,null,null,645,null,140]
[null,null,null,null,null,null,null,null,null,null,null,null,null,null,null,null,null,null,null,null,null,null,null,null,null,null,null,null,null,null,null,null,null,null,null,null,null,null,null,null,null,null,null,null,null,null,null,null,null,null,null,null,null,null,16,"+",11,null,27,null,"",null,794,"",{"$f":"IF($BL218=\"\", \"\", COUNTIF($BL$3:$BL$803, \">\"&$BL218)+1+COUNTIF($BL$3:$BL218, $BL218)-1)","v":""},null,null,null,null,null,794,null,895]
[null,null,null,null,null,null,null,null,null,null,null,null,null,null,null,null,null,null,null,null,null,null,null,null,null,null,null,null,null,null,null,null,null,null,null,null,null,null,null,null,null,null,null,null,null,null,null,null,null,null,null,null,null,null,17,"+",11,null,28,null,"",null,257,"",{"$f":"IF($BL219=\"\", \"\", COUNTIF($BL$3:$BL$803, \">\"&$BL219)+1+COUNTIF($BL$3:$BL219, $BL219)-1)","v":""},null,null,null,null,null,257,null,561]
[null,null,null,null,null,null,null,null,null,null,null,null,null,null,null,null,null,null,null,null,null,null,null,null,null,null,null,null,null,null,null,null,null,null,null,null,null,null,null,null,null,null,null,null,null,null,null,null,null,null,null,null,null,null,18,"+",11,null,29,null,"",null,214,"",{"$f":"IF($BL220=\"\", \"\", COUNTIF($BL$3:$BL$803, \">\"&$BL220)+1+COUNTIF($BL$3:$BL220, $BL220)-1)","v":""},null,null,null,null,null,214,null,335]
[null,null,null,null,null,null,null,null,null,null,null,null,null,null,null,null,null,null,null,null,null,null,null,null,null,null,null,null,null,null,null,null,null,null,null,null,null,null,null,null,null,null,null,null,null,null,null,null,null,null,null,null,null,null,19,"+",11,null,30,null,"",null,527,"",{"$f":"IF($BL221=\"\", \"\", COUNTIF($BL$3:$BL$803, \">\"&$BL221)+1+COUNTIF($BL$3:$BL221, $BL221)-1)","v":""},null,null,null,null,null,527,null,58]
[null,null,null,null,null,null,null,null,null,null,null,null,null,null,null,null,null,null,null,null,null,null,null,null,null,null,null,null,null,null,null,null,null,null,null,null,null,null,null,null,null,null,null,null,null,null,null,null,null,null,null,null,null,null,20,"+",11,null,31,null,"",null,728,"",{"$f":"IF($BL222=\"\", \"\", COUNTIF($BL$3:$BL$803, \">\"&$BL222)+1+COUNTIF($BL$3:$BL222, $BL222)-1)","v":""},null,null,null,null,null,728,null,777]
[null,null,null,null,null,null,null,null,null,null,null,null,null,null,null,null,null,null,null,null,null,null,null,null,null,null,null,null,null,null,null,null,null,null,null,null,null,null,null,null,null,null,null,null,null,null,null,null,null,null,null,null,null,null,1,"+",12,null,13,null,"",null,107,"",{"$f":"IF($BL223=\"\", \"\", COUNTIF($BL$3:$BL$803, \">\"&$BL223)+1+COUNTIF($BL$3:$BL223, $BL223)-1)","v":""},null,null,null,null,null,107,null,547]
[null,null,null,null,null,null,null,null,null,null,null,null,null,null,null,null,null,null,null,null,null,null,null,null,null,null,null,null,null,null,null,null,null,null,null,null,null,null,null,null,null,null,null,null,null,null,null,null,null,null,null,null,null,null,2,"+",12,null,14,null,"",null,705,"",{"$f":"IF($BL224=\"\", \"\", COUNTIF($BL$3:$BL$803, \">\"&$BL224)+1+COUNTIF($BL$3:$BL224, $BL224)-1)","v":""},null,null,null,null,null,705,null,718]
[null,null,null,null,null,null,null,null,null,null,null,null,null,null,null,null,null,null,null,null,null,null,null,null,null,null,null,null,null,null,null,null,null,null,null,null,null,null,null,null,null,null,null,null,null,null,null,null,null,null,null,null,null,null,3,"+",12,null,15,null,"",null,384,"",{"$f":"IF($BL225=\"\", \"\", COUNTIF($BL$3:$BL$803, \">\"&$BL225)+1+COUNTIF($BL$3:$BL225, $BL225)-1)","v":""},null,null,null,null,null,384,null,98]
[null,null,null,null,null,null,null,null,null,null,null,null,null,null,null,null,null,null,null,null,null,null,null,null,null,null,null,null,null,null,null,null,null,null,null,null,null,null,null,null,null,null,null,null,null,null,null,null,null,null,null,null,null,null,4,"+",12,null,16,null,"",null,165,"",{"$f":"IF($BL226=\"\", \"\", COUNTIF($BL$3:$BL$803, \">\"&$BL226)+1+COUNTIF($BL$3:$BL226, $BL226)-1)","v":""},null,null,null,null,null,165,null,761]
[null,null,null,null,null,null,null,null,null,null,null,null,null,null,null,null,null,null,null,null,null,null,null,null,null,null,null,null,null,null,null,null,null,null,null,null,null,null,null,null,null,null,null,null,null,null,null,null,null,null,null,null,null,null,5,"+",12,null,17,null,"",null,462,"",{"$f":"IF($BL227=\"\", \"\", COUNTIF($BL$3:$BL$803, \">\"&$BL227)+1+COUNTIF($BL$3:$BL227, $BL227)-1)","v":""},null,null,null,null,null,462,null,169]
[null,null,null,null,null,null,null,null,null,null,null,null,null,null,null,null,null,null,null,null,null,null,null,null,null,null,null,null,null,null,null,null,null,null,null,null,null,null,null,null,null,null,null,null,null,null,null,null,null,null,null,null,null,null,6,"+",12,null,18,null,"",null,315,"",{"$f":"IF($BL228=\"\", \"\", COUNTIF($BL$3:$BL$803, \">\"&$BL228)+1+COUNTIF($BL$3:$BL228, $BL228)-1)","v":""},null,null,null,null,null,315,null,479]
[null,null,null,null,null,null,null,null,null,null,null,null,null,null,null,null,null,null,null,null,null,null,null,null,null,null,null,null,null,null,null,null,null,null,null,null,null,null,null,null,null,null,null,null,null,null,null,null,null,null,null,null,null,null,7,"+",12,null,19,null,"",null,929,"",{"$f":"IF($BL229=\"\", \"\", COUNTIF($BL$3:$BL$803, \">\"&$BL229)+1+COUNTIF($BL$3:$BL229, $BL229)-1)","v":""},null,null,null,null,null,929,null,388]
[null,null,null,null,null,null,null,null,null,null,null,null,null,null,null,null,null,null,null,null,null,null,null,null,null,null,null,null,null,null,null,null,null,null,null,null,null,null,null,null,null,null,null,null,null,null,null,null,null,null,null,null,null,null,8,"+",12,null,20,null,"",null,170,"",{"$f":"IF($BL230=\"\", \"\", COUNTIF($BL$3:$BL$803, \">\"&$BL230)+1+COUNTIF($BL$3:$BL230, $BL230)-1)","v":""},null,null,null,null,null,170,null,553]
[null,null,null,null,null,null,null,null,null,null,null,null,null,null,null,null,null,null,null,null,null,null,null,null,null,null,null,null,null,null,null,null,null,null,null,null,null,null,null,null,null,null,null,null,null,null,null,null,null,null,null,null,null,null,9,"+",12,null,21,null,"",null,532,"",{"$f":"IF($BL231=\"\", \"\", COUNTIF($BL$3:$BL$803, \">\"&$BL231)+1+COUNTIF($BL$3:$BL231, $BL231)-1)","v":""},null,null,null,null,null,532,null,528]
[null,null,null,null,null,null,null,null,null,null,null,null,null,null,null,null,null,null,null,null,null,null,null,null,null,null,null,null,null,null,null,null,null,null,null,null,null,null,null,null,null,null,null,null,null,null,null,null,null,null,null,null,null,null,10,"+",12,null,22,null,"",null,902,"",{"$f":"IF($BL232=\"\", \"\", COUNTIF($BL$3:$BL$803, \">\"&$BL232)+1+COUNTIF($BL$3:$BL232, $BL232)-1)","v":""},null,null,null,null,null,902,null,21]
[null,null,null,null,null,null,null,null,null,null,null,null,null,null,null,null,null,null,null,null,null,null,null,null,null,null,null,null,null,null,null,null,null,null,null,null,null,null,null,null,null,null,null,null,null,null,null,null,null,null,null,null,null,null,11,"+",12,null,23,null,"",null,747,"",{"$f":"IF($BL233=\"\", \"\", COUNTIF($BL$3:$BL$803, \">\"&$BL233)+1+COUNTIF($BL$3:$BL233, $BL233)-1)","v":""},null,null,null,null,null,747,null,337]
[null,null,null,null,null,null,null,null,null,null,null,null,null,null,null,null,null,null,null,null,null,null,null,null,null,null,null,null,null,null,null,null,null,null,null,null,null,null,null,null,null,null,null,null,null,null,null,null,null,null,null,null,null,null,12,"+",12,null,24,null,"",null,735,"",{"$f":"IF($BL234=\"\", \"\", COUNTIF($BL$3:$BL$803, \">\"&$BL234)+1+COUNTIF($BL$3:$BL234, $BL234)-1)","v":""},null,null,null,null,null,735,null,497]
[null,null,null,null,null,null,null,null,null,null,null,null,null,null,null,null,null,null,null,null,null,null,null,null,null,null,null,null,null,null,null,null,null,null,null,null,null,null,null,null,null,null,null,null,null,null,null,null,null,null,null,null,null,null,13,"+",12,null,25,null,"",null,143,"",{"$f":"IF($BL235=\"\", \"\", COUNTIF($BL$3:$BL$803, \">\"&$BL235)+1+COUNTIF($BL$3:$BL235, $BL235)-1)","v":""},null,null,null,null,null,143,null,210]
[null,null,null,null,null,null,null,null,null,null,null,null,null,null,null,null,null,null,null,null,null,null,null,null,null,null,null,null,null,null,null,null,null,null,null,null,null,null,null,null,null,null,null,null,null,null,null,null,null,null,null,null,null,null,14,"+",12,null,26,null,"",null,162,"",{"$f":"IF($BL236=\"\", \"\", COUNTIF($BL$3:$BL$803, \">\"&$BL236)+1+COUNTIF($BL$3:$BL236, $BL236)-1)","v":""},null,null,null,null,null,162,null,593]
[null,null,null,null,null,null,null,null,null,null,null,null,null,null,null,null,null,null,null,null,null,null,null,null,null,null,null,null,null,null,null,null,null,null,null,null,null,null,null,null,null,null,null,null,null,null,null,null,null,null,null,null,null,null,15,"+",12,null,27,null,"",null,707,"",{"$f":"IF($BL237=\"\", \"\", COUNTIF($BL$3:$BL$803, \">\"&$BL237)+1+COUNTIF($BL$3:$BL237, $BL237)-1)","v":""},null,null,null,null,null,707,null,253]
[null,null,null,null,null,null,null,null,null,null,null,null,null,null,null,null,null,null,null,null,null,null,null,null,null,null,null,null,null,null,null,null,null,null,null,null,null,null,null,null,null,null,null,null,null,null,null,null,null,null,null,null,null,null,16,"+",12,null,28,null,"",null,471,"",{"$f":"IF($BL238=\"\", \"\", COUNTIF($BL$3:$BL$803, \">\"&$BL238)+1+COUNTIF($BL$3:$BL238, $BL238)-1)","v":""},null,null,null,null,null,471,null,251]
[null,null,null,null,null,null,null,null,null,null,null,null,null,null,null,null,null,null,null,null,null,null,null,null,null,null,null,null,null,null,null,null,null,null,null,null,null,null,null,null,null,null,null,null,null,null,null,null,null,null,null,null,null,null,17,"+",12,null,29,null,"",null,735,"",{"$f":"IF($BL239=\"\", \"\", COUNTIF($BL$3:$BL$803, \">\"&$BL239)+1+COUNTIF($BL$3:$BL239, $BL239)-1)","v":""},null,null,null,null,null,735,null,172]
[null,null,null,null,null,null,null,null,null,null,null,null,null,null,null,null,null,null,null,null,null,null,null,null,null,null,null,null,null,null,null,null,null,null,null,null,null,null,null,null,null,null,null,null,null,null,null,null,null,null,null,null,null,null,18,"+",12,null,30,null,"",null,377,"",{"$f":"IF($BL240=\"\", \"\", COUNTIF($BL$3:$BL$803, \">\"&$BL240)+1+COUNTIF($BL$3:$BL240, $BL240)-1)","v":""},null,null,null,null,null,377,null,149]
[null,null,null,null,null,null,null,null,null,null,null,null,null,null,null,null,null,null,null,null,null,null,null,null,null,null,null,null,null,null,null,null,null,null,null,null,null,null,null,null,null,null,null,null,null,null,null,null,null,null,null,null,null,null,19,"+",12,null,31,null,"",null,170,"",{"$f":"IF($BL241=\"\", \"\", COUNTIF($BL$3:$BL$803, \">\"&$BL241)+1+COUNTIF($BL$3:$BL241, $BL241)-1)","v":""},null,null,null,null,null,170,null,864]
[null,null,null,null,null,null,null,null,null,null,null,null,null,null,null,null,null,null,null,null,null,null,null,null,null,null,null,null,null,null,null,null,null,null,null,null,null,null,null,null,null,null,null,null,null,null,null,null,null,null,null,null,null,null,20,"+",12,null,32,null,"",null,379,"",{"$f":"IF($BL242=\"\", \"\", COUNTIF($BL$3:$BL$803, \">\"&$BL242)+1+COUNTIF($BL$3:$BL242, $BL242)-1)","v":""},null,null,null,null,null,379,null,52]
[null,null,null,null,null,null,null,null,null,null,null,null,null,null,null,null,null,null,null,null,null,null,null,null,null,null,null,null,null,null,null,null,null,null,null,null,null,null,null,null,null,null,null,null,null,null,null,null,null,null,null,null,null,null,1,"+",13,null,14,null,"",null,806,"",{"$f":"IF($BL243=\"\", \"\", COUNTIF($BL$3:$BL$803, \">\"&$BL243)+1+COUNTIF($BL$3:$BL243, $BL243)-1)","v":""},null,null,null,null,null,806,null,828]
[null,null,null,null,null,null,null,null,null,null,null,null,null,null,null,null,null,null,null,null,null,null,null,null,null,null,null,null,null,null,null,null,null,null,null,null,null,null,null,null,null,null,null,null,null,null,null,null,null,null,null,null,null,null,2,"+",13,null,15,null,"",null,387,"",{"$f":"IF($BL244=\"\", \"\", COUNTIF($BL$3:$BL$803, \">\"&$BL244)+1+COUNTIF($BL$3:$BL244, $BL244)-1)","v":""},null,null,null,null,null,387,null,789]
[null,null,null,null,null,null,null,null,null,null,null,null,null,null,null,null,null,null,null,null,null,null,null,null,null,null,null,null,null,null,null,null,null,null,null,null,null,null,null,null,null,null,null,null,null,null,null,null,null,null,null,null,null,null,3,"+",13,null,16,null,"",null,973,"",{"$f":"IF($BL245=\"\", \"\", COUNTIF($BL$3:$BL$803, \">\"&$BL245)+1+COUNTIF($BL$3:$BL245, $BL245)-1)","v":""},null,null,null,null,null,973,null,188]
[null,null,null,null,null,null,null,null,null,null,null,null,null,null,null,null,null,null,null,null,null,null,null,null,null,null,null,null,null,null,null,null,null,null,null,null,null,null,null,null,null,null,null,null,null,null,null,null,null,null,null,null,null,null,4,"+",13,null,17,null,"",null,89,"",{"$f":"IF($BL246=\"\", \"\", COUNTIF($BL$3:$BL$803, \">\"&$BL246)+1+COUNTIF($BL$3:$BL246, $BL246)-1)","v":""},null,null,null,null,null,89,null,688]
[null,null,null,null,null,null,null,null,null,null,null,null,null,null,null,null,null,null,null,null,null,null,null,null,null,null,null,null,null,null,null,null,null,null,null,null,null,null,null,null,null,null,null,null,null,null,null,null,null,null,null,null,null,null,5,"+",13,null,18,null,"",null,530,"",{"$f":"IF($BL247=\"\", \"\", COUNTIF($BL$3:$BL$803, \">\"&$BL247)+1+COUNTIF($BL$3:$BL247, $BL247)-1)","v":""},null,null,null,null,null,530,null,291]
[null,null,null,null,null,null,null,null,null,null,null,null,null,null,null,null,null,null,null,null,null,null,null,null,null,null,null,null,null,null,null,null,null,null,null,null,null,null,null,null,null,null,null,null,null,null,null,null,null,null,null,null,null,null,6,"+",13,null,19,null,"",null,829,"",{"$f":"IF($BL248=\"\", \"\", COUNTIF($BL$3:$BL$803, \">\"&$BL248)+1+COUNTIF($BL$3:$BL248, $BL248)-1)","v":""},null,null,null,null,null,829,null,227]
[null,null,null,null,null,null,null,null,null,null,null,null,null,null,null,null,null,null,null,null,null,null,null,null,null,null,null,null,null,null,null,null,null,null,null,null,null,null,null,null,null,null,null,null,null,null,null,null,null,null,null,null,null,null,7,"+",13,null,20,null,"",null,268,"",{"$f":"IF($BL249=\"\", \"\", COUNTIF($BL$3:$BL$803, \">\"&$BL249)+1+COUNTIF($BL$3:$BL249, $BL249)-1)","v":""},null,null,null,null,null,268,null,986]
[null,null,null,null,null,null,null,null,null,null,null,null,null,null,null,null,null,null,null,null,null,null,null,null,null,null,null,null,null,null,null,null,null,null,null,null,null,null,null,null,null,null,null,null,null,null,null,null,null,null,null,null,null,null,8,"+",13,null,21,null,"",null,449,"",{"$f":"IF($BL250=\"\", \"\", COUNTIF($BL$3:$BL$803, \">\"&$BL250)+1+COUNTIF($BL$3:$BL250, $BL250)-1)","v":""},null,null,null,null,null,449,null,640]
[null,null,null,null,null,null,null,null,null,null,null,null,null,null,null,null,null,null,null,null,null,null,null,null,null,null,null,null,null,null,null,null,null,null,null,null,null,null,null,null,null,null,null,null,null,null,null,null,null,null,null,null,null,null,9,"+",13,null,22,null,"",null,570,"",{"$f":"IF($BL251=\"\", \"\", COUNTIF($BL$3:$BL$803, \">\"&$BL251)+1+COUNTIF($BL$3:$BL251, $BL251)-1)","v":""},null,null,null,null,null,570,null,518]
[null,null,null,null,null,null,null,null,null,null,null,null,null,null,null,null,null,null,null,null,null,null,null,null,null,null,null,null,null,null,null,null,null,null,null,null,null,null,null,null,null,null,null,null,null,null,null,null,null,null,null,null,null,null,10,"+",13,null,23,null,"",null,853,"",{"$f":"IF($BL252=\"\", \"\", COUNTIF($BL$3:$BL$803, \">\"&$BL252)+1+COUNTIF($BL$3:$BL252, $BL252)-1)","v":""},null,null,null,null,null,853,null,71]
[null,null,null,null,null,null,null,null,null,null,null,null,null,null,null,null,null,null,null,null,null,null,null,null,null,null,null,null,null,null,null,null,null,null,null,null,null,null,null,null,null,null,null,null,null,null,null,null,null,null,null,null,null,null,{"$f":"IF(BC252+1>20, 1, BC252+1)","v":11},"+",{"$f":"IF(BC253=1, BE252+1, BE252)","v":13},null,{"$f":"BC253+BE253","v":24},null,"",null,126,"",{"$f":"IF($BL253=\"\", \"\", COUNTIF($BL$3:$BL$803, \">\"&$BL253)+1+COUNTIF($BL$3:$BL253, $BL253)-1)","v":""},null,null,null,null,null,126,null,567]
[null,null,null,null,null,null,null,null,null,null,null,null,null,null,null,null,null,null,null,null,null,null,null,null,null,null,null,null,null,null,null,null,null,null,null,null,null,null,null,null,null,null,null,null,null,null,null,null,null,null,null,null,null,null,{"$f":"IF(BC253+1>20, 1, BC253+1)","v":12},"+",{"$f":"IF(BC254=1, BE253+1, BE253)","v":13},null,{"$f":"BC254+BE254","v":25},null,"",null,346,"",{"$f":"IF($BL254=\"\", \"\", COUNTIF($BL$3:$BL$803, \">\"&$BL254)+1+COUNTIF($BL$3:$BL254, $BL254)-1)","v":""},null,null,null,null,null,346,null,570]
[null,null,null,null,null,null,null,null,null,null,null,null,null,null,null,null,null,null,null,null,null,null,null,null,null,null,null,null,null,null,null,null,null,null,null,null,null,null,null,null,null,null,null,null,null,null,null,null,null,null,null,null,null,null,13,"+",13,null,26,null,"",null,30,"",{"$f":"IF($BL255=\"\", \"\", COUNTIF($BL$3:$BL$803, \">\"&$BL255)+1+COUNTIF($BL$3:$BL255, $BL255)-1)","v":""},null,null,null,null,null,30,null,509]
[null,null,null,null,null,null,null,null,null,null,null,null,null,null,null,null,null,null,null,null,null,null,null,null,null,null,null,null,null,null,null,null,null,null,null,null,null,null,null,null,null,null,null,null,null,null,null,null,null,null,null,null,null,null,14,"+",13,null,27,null,"",null,407,"",{"$f":"IF($BL256=\"\", \"\", COUNTIF($BL$3:$BL$803, \">\"&$BL256)+1+COUNTIF($BL$3:$BL256, $BL256)-1)","v":""},null,null,null,null,null,407,null,397]
[null,null,null,null,null,null,null,null,null,null,null,null,null,null,null,null,null,null,null,null,null,null,null,null,null,null,null,null,null,null,null,null,null,null,null,null,null,null,null,null,null,null,null,null,null,null,null,null,null,null,null,null,null,null,15,"+",13,null,28,null,"",null,930,"",{"$f":"IF($BL257=\"\", \"\", COUNTIF($BL$3:$BL$803, \">\"&$BL257)+1+COUNTIF($BL$3:$BL257, $BL257)-1)","v":""},null,null,null,null,null,930,null,983]
[null,null,null,null,null,null,null,null,null,null,null,null,null,null,null,null,null,null,null,null,null,null,null,null,null,null,null,null,null,null,null,null,null,null,null,null,null,null,null,null,null,null,null,null,null,null,null,null,null,null,null,null,null,null,16,"+",13,null,29,null,"",null,407,"",{"$f":"IF($BL258=\"\", \"\", COUNTIF($BL$3:$BL$803, \">\"&$BL258)+1+COUNTIF($BL$3:$BL258, $BL258)-1)","v":""},null,null,null,null,null,407,null,318]
[null,null,null,null,null,null,null,null,null,null,null,null,null,null,null,null,null,null,null,null,null,null,null,null,null,null,null,null,null,null,null,null,null,null,null,null,null,null,null,null,null,null,null,null,null,null,null,null,null,null,null,null,null,null,17,"+",13,null,30,null,"",null,456,"",{"$f":"IF($BL259=\"\", \"\", COUNTIF($BL$3:$BL$803, \">\"&$BL259)+1+COUNTIF($BL$3:$BL259, $BL259)-1)","v":""},null,null,null,null,null,456,null,817]
[null,null,null,null,null,null,null,null,null,null,null,null,null,null,null,null,null,null,null,null,null,null,null,null,null,null,null,null,null,null,null,null,null,null,null,null,null,null,null,null,null,null,null,null,null,null,null,null,null,null,null,null,null,null,18,"+",13,null,31,null,{"$f":"IF(COUNTIF($BP$5:$BP$6, $BD260)=0, \"\", IF(OR($BC260>$BP$3, $BE260>$BP$3, $BG260>$BP$3, $BG260<$BP$8), \"\", \"X\"))","v":""},null,{"$f":"$BS260","v":189},{"$f":"IF($BI260=\"\", \"\", $BK260)","v":""},{"$f":"IF($BL260=\"\", \"\", COUNTIF($BL$3:$BL$803, \">\"&$BL260)+1+COUNTIF($BL$3:$BL260, $BL260)-1)","v":""},null,null,null,null,null,189,null,{"$f":"RANDBETWEEN(1, 1000)","v":145}]
[null,null,null,null,null,null,null,null,null,null,null,null,null,null,null,null,null,null,null,null,null,null,null,null,null,null,null,null,null,null,null,null,null,null,null,null,null,null,null,null,null,null,null,null,null,null,null,null,null,null,null,null,null,null,19,"+",13,null,32,null,"",null,303,"",{"$f":"IF($BL261=\"\", \"\", COUNTIF($BL$3:$BL$803, \">\"&$BL261)+1+COUNTIF($BL$3:$BL261, $BL261)-1)","v":""},null,null,null,null,null,303,null,851]
[null,null,null,null,null,null,null,null,null,null,null,null,null,null,null,null,null,null,null,null,null,null,null,null,null,null,null,null,null,null,null,null,null,null,null,null,null,null,null,null,null,null,null,null,null,null,null,null,null,null,null,null,null,null,20,"+",13,null,33,null,"",null,485,"",{"$f":"IF($BL262=\"\", \"\", COUNTIF($BL$3:$BL$803, \">\"&$BL262)+1+COUNTIF($BL$3:$BL262, $BL262)-1)","v":""},null,null,null,null,null,485,null,501]
[null,null,null,null,null,null,null,null,null,null,null,null,null,null,null,null,null,null,null,null,null,null,null,null,null,null,null,null,null,null,null,null,null,null,null,null,null,null,null,null,null,null,null,null,null,null,null,null,null,null,null,null,null,null,1,"+",14,null,15,null,"",null,256,"",{"$f":"IF($BL263=\"\", \"\", COUNTIF($BL$3:$BL$803, \">\"&$BL263)+1+COUNTIF($BL$3:$BL263, $BL263)-1)","v":""},null,null,null,null,null,256,null,853]
[null,null,null,null,null,null,null,null,null,null,null,null,null,null,null,null,null,null,null,null,null,null,null,null,null,null,null,null,null,null,null,null,null,null,null,null,null,null,null,null,null,null,null,null,null,null,null,null,null,null,null,null,null,null,2,"+",14,null,16,null,"",null,550,"",{"$f":"IF($BL264=\"\", \"\", COUNTIF($BL$3:$BL$803, \">\"&$BL264)+1+COUNTIF($BL$3:$BL264, $BL264)-1)","v":""},null,null,null,null,null,550,null,772]
[null,null,null,null,null,null,null,null,null,null,null,null,null,null,null,null,null,null,null,null,null,null,null,null,null,null,null,null,null,null,null,null,null,null,null,null,null,null,null,null,null,null,null,null,null,null,null,null,null,null,null,null,null,null,3,"+",14,null,17,null,"",null,480,"",{"$f":"IF($BL265=\"\", \"\", COUNTIF($BL$3:$BL$803, \">\"&$BL265)+1+COUNTIF($BL$3:$BL265, $BL265)-1)","v":""},null,null,null,null,null,480,null,123]
[null,null,null,null,null,null,null,null,null,null,null,null,null,null,null,null,null,null,null,null,null,null,null,null,null,null,null,null,null,null,null,null,null,null,null,null,null,null,null,null,null,null,null,null,null,null,null,null,null,null,null,null,null,null,4,"+",14,null,18,null,"",null,931,"",{"$f":"IF($BL266=\"\", \"\", COUNTIF($BL$3:$BL$803, \">\"&$BL266)+1+COUNTIF($BL$3:$BL266, $BL266)-1)","v":""},null,null,null,null,null,931,null,374]
[null,null,null,null,null,null,null,null,null,null,null,null,null,null,null,null,null,null,null,null,null,null,null,null,null,null,null,null,null,null,null,null,null,null,null,null,null,null,null,null,null,null,null,null,null,null,null,null,null,null,null,null,null,null,5,"+",14,null,19,null,"",null,215,"",{"$f":"IF($BL267=\"\", \"\", COUNTIF($BL$3:$BL$803, \">\"&$BL267)+1+COUNTIF($BL$3:$BL267, $BL267)-1)","v":""},null,null,null,null,null,215,null,119]
[null,null,null,null,null,null,null,null,null,null,null,null,null,null,null,null,null,null,null,null,null,null,null,null,null,null,null,null,null,null,null,null,null,null,null,null,null,null,null,null,null,null,null,null,null,null,null,null,null,null,null,null,null,null,6,"+",14,null,20,null,"",null,672,"",{"$f":"IF($BL268=\"\", \"\", COUNTIF($BL$3:$BL$803, \">\"&$BL268)+1+COUNTIF($BL$3:$BL268, $BL268)-1)","v":""},null,null,null,null,null,672,null,933]
[null,null,null,null,null,null,null,null,null,null,null,null,null,null,null,null,null,null,null,null,null,null,null,null,null,null,null,null,null,null,null,null,null,null,null,null,null,null,null,null,null,null,null,null,null,null,null,null,null,null,null,null,null,null,7,"+",14,null,21,null,"",null,50,"",{"$f":"IF($BL269=\"\", \"\", COUNTIF($BL$3:$BL$803, \">\"&$BL269)+1+COUNTIF($BL$3:$BL269, $BL269)-1)","v":""},null,null,null,null,null,50,null,206]
[null,null,null,null,null,null,null,null,null,null,null,null,null,null,null,null,null,null,null,null,null,null,null,null,null,null,null,null,null,null,null,null,null,null,null,null,null,null,null,null,null,null,null,null,null,null,null,null,null,null,null,null,null,null,8,"+",14,null,22,null,"",null,215,"",{"$f":"IF($BL270=\"\", \"\", COUNTIF($BL$3:$BL$803, \">\"&$BL270)+1+COUNTIF($BL$3:$BL270, $BL270)-1)","v":""},null,null,null,null,null,215,null,734]
[null,null,null,null,null,null,null,null,null,null,null,null,null,null,null,null,null,null,null,null,null,null,null,null,null,null,null,null,null,null,null,null,null,null,null,null,null,null,null,null,null,null,null,null,null,null,null,null,null,null,null,null,null,null,9,"+",14,null,23,null,"",null,887,"",{"$f":"IF($BL271=\"\", \"\", COUNTIF($BL$3:$BL$803, \">\"&$BL271)+1+COUNTIF($BL$3:$BL271, $BL271)-1)","v":""},null,null,null,null,null,887,null,140]
[null,null,null,null,null,null,null,null,null,null,null,null,null,null,null,null,null,null,null,null,null,null,null,null,null,null,null,null,null,null,null,null,null,null,null,null,null,null,null,null,null,null,null,null,null,null,null,null,null,null,null,null,null,null,10,"+",14,null,24,null,"",null,122,"",{"$f":"IF($BL272=\"\", \"\", COUNTIF($BL$3:$BL$803, \">\"&$BL272)+1+COUNTIF($BL$3:$BL272, $BL272)-1)","v":""},null,null,null,null,null,122,null,912]
[null,null,null,null,null,null,null,null,null,null,null,null,null,null,null,null,null,null,null,null,null,null,null,null,null,null,null,null,null,null,null,null,null,null,null,null,null,null,null,null,null,null,null,null,null,null,null,null,null,null,null,null,null,null,11,"+",14,null,25,null,"",null,449,"",{"$f":"IF($BL273=\"\", \"\", COUNTIF($BL$3:$BL$803, \">\"&$BL273)+1+COUNTIF($BL$3:$BL273, $BL273)-1)","v":""},null,null,null,null,null,449,null,601]
[null,null,null,null,null,null,null,null,null,null,null,null,null,null,null,null,null,null,null,null,null,null,null,null,null,null,null,null,null,null,null,null,null,null,null,null,null,null,null,null,null,null,null,null,null,null,null,null,null,null,null,null,null,null,12,"+",14,null,26,null,"",null,609,"",{"$f":"IF($BL274=\"\", \"\", COUNTIF($BL$3:$BL$803, \">\"&$BL274)+1+COUNTIF($BL$3:$BL274, $BL274)-1)","v":""},null,null,null,null,null,609,null,189]
[null,null,null,null,null,null,null,null,null,null,null,null,null,null,null,null,null,null,null,null,null,null,null,null,null,null,null,null,null,null,null,null,null,null,null,null,null,null,null,null,null,null,null,null,null,null,null,null,null,null,null,null,null,null,13,"+",14,null,27,null,"",null,383,"",{"$f":"IF($BL275=\"\", \"\", COUNTIF($BL$3:$BL$803, \">\"&$BL275)+1+COUNTIF($BL$3:$BL275, $BL275)-1)","v":""},null,null,null,null,null,383,null,580]
[null,null,null,null,null,null,null,null,null,null,null,null,null,null,null,null,null,null,null,null,null,null,null,null,null,null,null,null,null,null,null,null,null,null,null,null,null,null,null,null,null,null,null,null,null,null,null,null,null,null,null,null,null,null,14,"+",14,null,28,null,"",null,854,"",{"$f":"IF($BL276=\"\", \"\", COUNTIF($BL$3:$BL$803, \">\"&$BL276)+1+COUNTIF($BL$3:$BL276, $BL276)-1)","v":""},null,null,null,null,null,854,null,643]
[null,null,null,null,null,null,null,null,null,null,null,null,null,null,null,null,null,null,null,null,null,null,null,null,null,null,null,null,null,null,null,null,null,null,null,null,null,null,null,null,null,null,null,null,null,null,null,null,null,null,null,null,null,null,15,"+",14,null,29,null,"",null,704,"",{"$f":"IF($BL277=\"\", \"\", COUNTIF($BL$3:$BL$803, \">\"&$BL277)+1+COUNTIF($BL$3:$BL277, $BL277)-1)","v":""},null,null,null,null,null,704,null,71]
[null,null,null,null,null,null,null,null,null,null,null,null,null,null,null,null,null,null,null,null,null,null,null,null,null,null,null,null,null,null,null,null,null,null,null,null,null,null,null,null,null,null,null,null,null,null,null,null,null,null,null,null,null,null,16,"+",14,null,30,null,"",null,390,"",{"$f":"IF($BL278=\"\", \"\", COUNTIF($BL$3:$BL$803, \">\"&$BL278)+1+COUNTIF($BL$3:$BL278, $BL278)-1)","v":""},null,null,null,null,null,390,null,739]
[null,null,null,null,null,null,null,null,null,null,null,null,null,null,null,null,null,null,null,null,null,null,null,null,null,null,null,null,null,null,null,null,null,null,null,null,null,null,null,null,null,null,null,null,null,null,null,null,null,null,null,null,null,null,17,"+",14,null,31,null,"",null,57,"",{"$f":"IF($BL279=\"\", \"\", COUNTIF($BL$3:$BL$803, \">\"&$BL279)+1+COUNTIF($BL$3:$BL279, $BL279)-1)","v":""},null,null,null,null,null,57,null,740]
[null,null,null,null,null,null,null,null,null,null,null,null,null,null,null,null,null,null,null,null,null,null,null,null,null,null,null,null,null,null,null,null,null,null,null,null,null,null,null,null,null,null,null,null,null,null,null,null,null,null,null,null,null,null,18,"+",14,null,32,null,"",null,487,"",{"$f":"IF($BL280=\"\", \"\", COUNTIF($BL$3:$BL$803, \">\"&$BL280)+1+COUNTIF($BL$3:$BL280, $BL280)-1)","v":""},null,null,null,null,null,487,null,308]
[null,null,null,null,null,null,null,null,null,null,null,null,null,null,null,null,null,null,null,null,null,null,null,null,null,null,null,null,null,null,null,null,null,null,null,null,null,null,null,null,null,null,null,null,null,null,null,null,null,null,null,null,null,null,19,"+",14,null,33,null,"",null,785,"",{"$f":"IF($BL281=\"\", \"\", COUNTIF($BL$3:$BL$803, \">\"&$BL281)+1+COUNTIF($BL$3:$BL281, $BL281)-1)","v":""},null,null,null,null,null,785,null,23]
[null,null,null,null,null,null,null,null,null,null,null,null,null,null,null,null,null,null,null,null,null,null,null,null,null,null,null,null,null,null,null,null,null,null,null,null,null,null,null,null,null,null,null,null,null,null,null,null,null,null,null,null,null,null,20,"+",14,null,34,null,"",null,983,"",{"$f":"IF($BL282=\"\", \"\", COUNTIF($BL$3:$BL$803, \">\"&$BL282)+1+COUNTIF($BL$3:$BL282, $BL282)-1)","v":""},null,null,null,null,null,983,null,198]
[null,null,null,null,null,null,null,null,null,null,null,null,null,null,null,null,null,null,null,null,null,null,null,null,null,null,null,null,null,null,null,null,null,null,null,null,null,null,null,null,null,null,null,null,null,null,null,null,null,null,null,null,null,null,1,"+",15,null,16,null,"",null,937,"",{"$f":"IF($BL283=\"\", \"\", COUNTIF($BL$3:$BL$803, \">\"&$BL283)+1+COUNTIF($BL$3:$BL283, $BL283)-1)","v":""},null,null,null,null,null,937,null,795]
[null,null,null,null,null,null,null,null,null,null,null,null,null,null,null,null,null,null,null,null,null,null,null,null,null,null,null,null,null,null,null,null,null,null,null,null,null,null,null,null,null,null,null,null,null,null,null,null,null,null,null,null,null,null,2,"+",15,null,17,null,"",null,392,"",{"$f":"IF($BL284=\"\", \"\", COUNTIF($BL$3:$BL$803, \">\"&$BL284)+1+COUNTIF($BL$3:$BL284, $BL284)-1)","v":""},null,null,null,null,null,392,null,473]
[null,null,null,null,null,null,null,null,null,null,null,null,null,null,null,null,null,null,null,null,null,null,null,null,null,null,null,null,null,null,null,null,null,null,null,null,null,null,null,null,null,null,null,null,null,null,null,null,null,null,null,null,null,null,3,"+",15,null,18,null,"",null,379,"",{"$f":"IF($BL285=\"\", \"\", COUNTIF($BL$3:$BL$803, \">\"&$BL285)+1+COUNTIF($BL$3:$BL285, $BL285)-1)","v":""},null,null,null,null,null,379,null,462]
[null,null,null,null,null,null,null,null,null,null,null,null,null,null,null,null,null,null,null,null,null,null,null,null,null,null,null,null,null,null,null,null,null,null,null,null,null,null,null,null,null,null,null,null,null,null,null,null,null,null,null,null,null,null,4,"+",15,null,19,null,"",null,920,"",{"$f":"IF($BL286=\"\", \"\", COUNTIF($BL$3:$BL$803, \">\"&$BL286)+1+COUNTIF($BL$3:$BL286, $BL286)-1)","v":""},null,null,null,null,null,920,null,488]
[null,null,null,null,null,null,null,null,null,null,null,null,null,null,null,null,null,null,null,null,null,null,null,null,null,null,null,null,null,null,null,null,null,null,null,null,null,null,null,null,null,null,null,null,null,null,null,null,null,null,null,null,null,null,5,"+",15,null,20,null,"",null,511,"",{"$f":"IF($BL287=\"\", \"\", COUNTIF($BL$3:$BL$803, \">\"&$BL287)+1+COUNTIF($BL$3:$BL287, $BL287)-1)","v":""},null,null,null,null,null,511,null,592]
[null,null,null,null,null,null,null,null,null,null,null,null,null,null,null,null,null,null,null,null,null,null,null,null,null,null,null,null,null,null,null,null,null,null,null,null,null,null,null,null,null,null,null,null,null,null,null,null,null,null,null,null,null,null,6,"+",15,null,21,null,"",null,705,"",{"$f":"IF($BL288=\"\", \"\", COUNTIF($BL$3:$BL$803, \">\"&$BL288)+1+COUNTIF($BL$3:$BL288, $BL288)-1)","v":""},null,null,null,null,null,705,null,851]
[null,null,null,null,null,null,null,null,null,null,null,null,null,null,null,null,null,null,null,null,null,null,null,null,null,null,null,null,null,null,null,null,null,null,null,null,null,null,null,null,null,null,null,null,null,null,null,null,null,null,null,null,null,null,7,"+",15,null,22,null,"",null,507,"",{"$f":"IF($BL289=\"\", \"\", COUNTIF($BL$3:$BL$803, \">\"&$BL289)+1+COUNTIF($BL$3:$BL289, $BL289)-1)","v":""},null,null,null,null,null,507,null,4]
[null,null,null,null,null,null,null,null,null,null,null,null,null,null,null,null,null,null,null,null,null,null,null,null,null,null,null,null,null,null,null,null,null,null,null,null,null,null,null,null,null,null,null,null,null,null,null,null,null,null,null,null,null,null,8,"+",15,null,23,null,"",null,869,"",{"$f":"IF($BL290=\"\", \"\", COUNTIF($BL$3:$BL$803, \">\"&$BL290)+1+COUNTIF($BL$3:$BL290, $BL290)-1)","v":""},null,null,null,null,null,869,null,472]
[null,null,null,null,null,null,null,null,null,null,null,null,null,null,null,null,null,null,null,null,null,null,null,null,null,null,null,null,null,null,null,null,null,null,null,null,null,null,null,null,null,null,null,null,null,null,null,null,null,null,null,null,null,null,9,"+",15,null,24,null,"",null,833,"",{"$f":"IF($BL291=\"\", \"\", COUNTIF($BL$3:$BL$803, \">\"&$BL291)+1+COUNTIF($BL$3:$BL291, $BL291)-1)","v":""},null,null,null,null,null,833,null,276]
[null,null,null,null,null,null,null,null,null,null,null,null,null,null,null,null,null,null,null,null,null,null,null,null,null,null,null,null,null,null,null,null,null,null,null,null,null,null,null,null,null,null,null,null,null,null,null,null,null,null,null,null,null,null,10,"+",15,null,25,null,"",null,47,"",{"$f":"IF($BL292=\"\", \"\", COUNTIF($BL$3:$BL$803, \">\"&$BL292)+1+COUNTIF($BL$3:$BL292, $BL292)-1)","v":""},null,null,null,null,null,47,null,370]
[null,null,null,null,null,null,null,null,null,null,null,null,null,null,null,null,null,null,null,null,null,null,null,null,null,null,null,null,null,null,null,null,null,null,null,null,null,null,null,null,null,null,null,null,null,null,null,null,null,null,null,null,null,null,11,"+",15,null,26,null,"",null,418,"",{"$f":"IF($BL293=\"\", \"\", COUNTIF($BL$3:$BL$803, \">\"&$BL293)+1+COUNTIF($BL$3:$BL293, $BL293)-1)","v":""},null,null,null,null,null,418,null,653]
[null,null,null,null,null,null,null,null,null,null,null,null,null,null,null,null,null,null,null,null,null,null,null,null,null,null,null,null,null,null,null,null,null,null,null,null,null,null,null,null,null,null,null,null,null,null,null,null,null,null,null,null,null,null,12,"+",15,null,27,null,"",null,241,"",{"$f":"IF($BL294=\"\", \"\", COUNTIF($BL$3:$BL$803, \">\"&$BL294)+1+COUNTIF($BL$3:$BL294, $BL294)-1)","v":""},null,null,null,null,null,241,null,872]
[null,null,null,null,null,null,null,null,null,null,null,null,null,null,null,null,null,null,null,null,null,null,null,null,null,null,null,null,null,null,null,null,null,null,null,null,null,null,null,null,null,null,null,null,null,null,null,null,null,null,null,null,null,null,13,"+",15,null,28,null,"",null,673,"",{"$f":"IF($BL295=\"\", \"\", COUNTIF($BL$3:$BL$803, \">\"&$BL295)+1+COUNTIF($BL$3:$BL295, $BL295)-1)","v":""},null,null,null,null,null,673,null,416]
[null,null,null,null,null,null,null,null,null,null,null,null,null,null,null,null,null,null,null,null,null,null,null,null,null,null,null,null,null,null,null,null,null,null,null,null,null,null,null,null,null,null,null,null,null,null,null,null,null,null,null,null,null,null,14,"+",15,null,29,null,"",null,418,"",{"$f":"IF($BL296=\"\", \"\", COUNTIF($BL$3:$BL$803, \">\"&$BL296)+1+COUNTIF($BL$3:$BL296, $BL296)-1)","v":""},null,null,null,null,null,418,null,950]
[null,null,null,null,null,null,null,null,null,null,null,null,null,null,null,null,null,null,null,null,null,null,null,null,null,null,null,null,null,null,null,null,null,null,null,null,null,null,null,null,null,null,null,null,null,null,null,null,null,null,null,null,null,null,15,"+",15,null,30,null,"",null,269,"",{"$f":"IF($BL297=\"\", \"\", COUNTIF($BL$3:$BL$803, \">\"&$BL297)+1+COUNTIF($BL$3:$BL297, $BL297)-1)","v":""},null,null,null,null,null,269,null,973]
[null,null,null,null,null,null,null,null,null,null,null,null,null,null,null,null,null,null,null,null,null,null,null,null,null,null,null,null,null,null,null,null,null,null,null,null,null,null,null,null,null,null,null,null,null,null,null,null,null,null,null,null,null,null,16,"+",15,null,31,null,"",null,807,"",{"$f":"IF($BL298=\"\", \"\", COUNTIF($BL$3:$BL$803, \">\"&$BL298)+1+COUNTIF($BL$3:$BL298, $BL298)-1)","v":""},null,null,null,null,null,807,null,358]
[null,null,null,null,null,null,null,null,null,null,null,null,null,null,null,null,null,null,null,null,null,null,null,null,null,null,null,null,null,null,null,null,null,null,null,null,null,null,null,null,null,null,null,null,null,null,null,null,null,null,null,null,null,null,17,"+",15,null,32,null,"",null,302,"",{"$f":"IF($BL299=\"\", \"\", COUNTIF($BL$3:$BL$803, \">\"&$BL299)+1+COUNTIF($BL$3:$BL299, $BL299)-1)","v":""},null,null,null,null,null,302,null,124]
[null,null,null,null,null,null,null,null,null,null,null,null,null,null,null,null,null,null,null,null,null,null,null,null,null,null,null,null,null,null,null,null,null,null,null,null,null,null,null,null,null,null,null,null,null,null,null,null,null,null,null,null,null,null,18,"+",15,null,33,null,"",null,46,"",{"$f":"IF($BL300=\"\", \"\", COUNTIF($BL$3:$BL$803, \">\"&$BL300)+1+COUNTIF($BL$3:$BL300, $BL300)-1)","v":""},null,null,null,null,null,46,null,556]
[null,null,null,null,null,null,null,null,null,null,null,null,null,null,null,null,null,null,null,null,null,null,null,null,null,null,null,null,null,null,null,null,null,null,null,null,null,null,null,null,null,null,null,null,null,null,null,null,null,null,null,null,null,null,{"$f":"IF(BC300+1>20, 1, BC300+1)","v":19},"+",{"$f":"IF(BC301=1, BE300+1, BE300)","v":15},null,{"$f":"BC301+BE301","v":34},null,"",null,205,"",{"$f":"IF($BL301=\"\", \"\", COUNTIF($BL$3:$BL$803, \">\"&$BL301)+1+COUNTIF($BL$3:$BL301, $BL301)-1)","v":""},null,null,null,null,null,205,null,135]
[null,null,null,null,null,null,null,null,null,null,null,null,null,null,null,null,null,null,null,null,null,null,null,null,null,null,null,null,null,null,null,null,null,null,null,null,null,null,null,null,null,null,null,null,null,null,null,null,null,null,null,null,null,null,{"$f":"IF(BC301+1>20, 1, BC301+1)","v":20},"+",{"$f":"IF(BC302=1, BE301+1, BE301)","v":15},null,{"$f":"BC302+BE302","v":35},null,"",null,603,"",{"$f":"IF($BL302=\"\", \"\", COUNTIF($BL$3:$BL$803, \">\"&$BL302)+1+COUNTIF($BL$3:$BL302, $BL302)-1)","v":""},null,null,null,null,null,603,null,144]
[null,null,null,null,null,null,null,null,null,null,null,null,null,null,null,null,null,null,null,null,null,null,null,null,null,null,null,null,null,null,null,null,null,null,null,null,null,null,null,null,null,null,null,null,null,null,null,null,null,null,null,null,null,null,1,"+",16,null,17,null,"",null,974,"",{"$f":"IF($BL303=\"\", \"\", COUNTIF($BL$3:$BL$803, \">\"&$BL303)+1+COUNTIF($BL$3:$BL303, $BL303)-1)","v":""},null,null,null,null,null,974,null,850]
[null,null,null,null,null,null,null,null,null,null,null,null,null,null,null,null,null,null,null,null,null,null,null,null,null,null,null,null,null,null,null,null,null,null,null,null,null,null,null,null,null,null,null,null,null,null,null,null,null,null,null,null,null,null,2,"+",16,null,18,null,"",null,523,"",{"$f":"IF($BL304=\"\", \"\", COUNTIF($BL$3:$BL$803, \">\"&$BL304)+1+COUNTIF($BL$3:$BL304, $BL304)-1)","v":""},null,null,null,null,null,523,null,72]
[null,null,null,null,null,null,null,null,null,null,null,null,null,null,null,null,null,null,null,null,null,null,null,null,null,null,null,null,null,null,null,null,null,null,null,null,null,null,null,null,null,null,null,null,null,null,null,null,null,null,null,null,null,null,3,"+",16,null,19,null,"",null,584,"",{"$f":"IF($BL305=\"\", \"\", COUNTIF($BL$3:$BL$803, \">\"&$BL305)+1+COUNTIF($BL$3:$BL305, $BL305)-1)","v":""},null,null,null,null,null,584,null,233]
[null,null,null,null,null,null,null,null,null,null,null,null,null,null,null,null,null,null,null,null,null,null,null,null,null,null,null,null,null,null,null,null,null,null,null,null,null,null,null,null,null,null,null,null,null,null,null,null,null,null,null,null,null,null,4,"+",16,null,20,null,"",null,927,"",{"$f":"IF($BL306=\"\", \"\", COUNTIF($BL$3:$BL$803, \">\"&$BL306)+1+COUNTIF($BL$3:$BL306, $BL306)-1)","v":""},null,null,null,null,null,927,null,818]
[null,null,null,null,null,null,null,null,null,null,null,null,null,null,null,null,null,null,null,null,null,null,null,null,null,null,null,null,null,null,null,null,null,null,null,null,null,null,null,null,null,null,null,null,null,null,null,null,null,null,null,null,null,null,5,"+",16,null,21,null,"",null,313,"",{"$f":"IF($BL307=\"\", \"\", COUNTIF($BL$3:$BL$803, \">\"&$BL307)+1+COUNTIF($BL$3:$BL307, $BL307)-1)","v":""},null,null,null,null,null,313,null,70]
[null,null,null,null,null,null,null,null,null,null,null,null,null,null,null,null,null,null,null,null,null,null,null,null,null,null,null,null,null,null,null,null,null,null,null,null,null,null,null,null,null,null,null,null,null,null,null,null,null,null,null,null,null,null,6,"+",16,null,22,null,"",null,828,"",{"$f":"IF($BL308=\"\", \"\", COUNTIF($BL$3:$BL$803, \">\"&$BL308)+1+COUNTIF($BL$3:$BL308, $BL308)-1)","v":""},null,null,null,null,null,828,null,153]
[null,null,null,null,null,null,null,null,null,null,null,null,null,null,null,null,null,null,null,null,null,null,null,null,null,null,null,null,null,null,null,null,null,null,null,null,null,null,null,null,null,null,null,null,null,null,null,null,null,null,null,null,null,null,7,"+",16,null,23,null,"",null,980,"",{"$f":"IF($BL309=\"\", \"\", COUNTIF($BL$3:$BL$803, \">\"&$BL309)+1+COUNTIF($BL$3:$BL309, $BL309)-1)","v":""},null,null,null,null,null,980,null,753]
[null,null,null,null,null,null,null,null,null,null,null,null,null,null,null,null,null,null,null,null,null,null,null,null,null,null,null,null,null,null,null,null,null,null,null,null,null,null,null,null,null,null,null,null,null,null,null,null,null,null,null,null,null,null,8,"+",16,null,24,null,"",null,736,"",{"$f":"IF($BL310=\"\", \"\", COUNTIF($BL$3:$BL$803, \">\"&$BL310)+1+COUNTIF($BL$3:$BL310, $BL310)-1)","v":""},null,null,null,null,null,736,null,476]
[null,null,null,null,null,null,null,null,null,null,null,null,null,null,null,null,null,null,null,null,null,null,null,null,null,null,null,null,null,null,null,null,null,null,null,null,null,null,null,null,null,null,null,null,null,null,null,null,null,null,null,null,null,null,9,"+",16,null,25,null,"",null,414,"",{"$f":"IF($BL311=\"\", \"\", COUNTIF($BL$3:$BL$803, \">\"&$BL311)+1+COUNTIF($BL$3:$BL311, $BL311)-1)","v":""},null,null,null,null,null,414,null,705]
[null,null,null,null,null,null,null,null,null,null,null,null,null,null,null,null,null,null,null,null,null,null,null,null,null,null,null,null,null,null,null,null,null,null,null,null,null,null,null,null,null,null,null,null,null,null,null,null,null,null,null,null,null,null,10,"+",16,null,26,null,"",null,112,"",{"$f":"IF($BL312=\"\", \"\", COUNTIF($BL$3:$BL$803, \">\"&$BL312)+1+COUNTIF($BL$3:$BL312, $BL312)-1)","v":""},null,null,null,null,null,112,null,20]
[null,null,null,null,null,null,null,null,null,null,null,null,null,null,null,null,null,null,null,null,null,null,null,null,null,null,null,null,null,null,null,null,null,null,null,null,null,null,null,null,null,null,null,null,null,null,null,null,null,null,null,null,null,null,11,"+",16,null,27,null,"",null,993,"",{"$f":"IF($BL313=\"\", \"\", COUNTIF($BL$3:$BL$803, \">\"&$BL313)+1+COUNTIF($BL$3:$BL313, $BL313)-1)","v":""},null,null,null,null,null,993,null,389]
[null,null,null,null,null,null,null,null,null,null,null,null,null,null,null,null,null,null,null,null,null,null,null,null,null,null,null,null,null,null,null,null,null,null,null,null,null,null,null,null,null,null,null,null,null,null,null,null,null,null,null,null,null,null,12,"+",16,null,28,null,"",null,89,"",{"$f":"IF($BL314=\"\", \"\", COUNTIF($BL$3:$BL$803, \">\"&$BL314)+1+COUNTIF($BL$3:$BL314, $BL314)-1)","v":""},null,null,null,null,null,89,null,609]
[null,null,null,null,null,null,null,null,null,null,null,null,null,null,null,null,null,null,null,null,null,null,null,null,null,null,null,null,null,null,null,null,null,null,null,null,null,null,null,null,null,null,null,null,null,null,null,null,null,null,null,null,null,null,13,"+",16,null,29,null,"",null,133,"",{"$f":"IF($BL315=\"\", \"\", COUNTIF($BL$3:$BL$803, \">\"&$BL315)+1+COUNTIF($BL$3:$BL315, $BL315)-1)","v":""},null,null,null,null,null,133,null,57]
[null,null,null,null,null,null,null,null,null,null,null,null,null,null,null,null,null,null,null,null,null,null,null,null,null,null,null,null,null,null,null,null,null,null,null,null,null,null,null,null,null,null,null,null,null,null,null,null,null,null,null,null,null,null,14,"+",16,null,30,null,"",null,287,"",{"$f":"IF($BL316=\"\", \"\", COUNTIF($BL$3:$BL$803, \">\"&$BL316)+1+COUNTIF($BL$3:$BL316, $BL316)-1)","v":""},null,null,null,null,null,287,null,489]
[null,null,null,null,null,null,null,null,null,null,null,null,null,null,null,null,null,null,null,null,null,null,null,null,null,null,null,null,null,null,null,null,null,null,null,null,null,null,null,null,null,null,null,null,null,null,null,null,null,null,null,null,null,null,15,"+",16,null,31,null,"",null,878,"",{"$f":"IF($BL317=\"\", \"\", COUNTIF($BL$3:$BL$803, \">\"&$BL317)+1+COUNTIF($BL$3:$BL317, $BL317)-1)","v":""},null,null,null,null,null,878,null,767]
[null,null,null,null,null,null,null,null,null,null,null,null,null,null,null,null,null,null,null,null,null,null,null,null,null,null,null,null,null,null,null,null,null,null,null,null,null,null,null,null,null,null,null,null,null,null,null,null,null,null,null,null,null,null,16,"+",16,null,32,null,"",null,921,"",{"$f":"IF($BL318=\"\", \"\", COUNTIF($BL$3:$BL$803, \">\"&$BL318)+1+COUNTIF($BL$3:$BL318, $BL318)-1)","v":""},null,null,null,null,null,921,null,709]
[null,null,null,null,null,null,null,null,null,null,null,null,null,null,null,null,null,null,null,null,null,null,null,null,null,null,null,null,null,null,null,null,null,null,null,null,null,null,null,null,null,null,null,null,null,null,null,null,null,null,null,null,null,null,17,"+",16,null,33,null,"",null,170,"",{"$f":"IF($BL319=\"\", \"\", COUNTIF($BL$3:$BL$803, \">\"&$BL319)+1+COUNTIF($BL$3:$BL319, $BL319)-1)","v":""},null,null,null,null,null,170,null,294]
[null,null,null,null,null,null,null,null,null,null,null,null,null,null,null,null,null,null,null,null,null,null,null,null,null,null,null,null,null,null,null,null,null,null,null,null,null,null,null,null,null,null,null,null,null,null,null,null,null,null,null,null,null,null,18,"+",16,null,34,null,"",null,87,"",{"$f":"IF($BL320=\"\", \"\", COUNTIF($BL$3:$BL$803, \">\"&$BL320)+1+COUNTIF($BL$3:$BL320, $BL320)-1)","v":""},null,null,null,null,null,87,null,261]
[null,null,null,null,null,null,null,null,null,null,null,null,null,null,null,null,null,null,null,null,null,null,null,null,null,null,null,null,null,null,null,null,null,null,null,null,null,null,null,null,null,null,null,null,null,null,null,null,null,null,null,null,null,null,19,"+",16,null,35,null,"",null,517,"",{"$f":"IF($BL321=\"\", \"\", COUNTIF($BL$3:$BL$803, \">\"&$BL321)+1+COUNTIF($BL$3:$BL321, $BL321)-1)","v":""},null,null,null,null,null,517,null,663]
[null,null,null,null,null,null,null,null,null,null,null,null,null,null,null,null,null,null,null,null,null,null,null,null,null,null,null,null,null,null,null,null,null,null,null,null,null,null,null,null,null,null,null,null,null,null,null,null,null,null,null,null,null,null,20,"+",16,null,36,null,"",null,859,"",{"$f":"IF($BL322=\"\", \"\", COUNTIF($BL$3:$BL$803, \">\"&$BL322)+1+COUNTIF($BL$3:$BL322, $BL322)-1)","v":""},null,null,null,null,null,859,null,498]
[null,null,null,null,null,null,null,null,null,null,null,null,null,null,null,null,null,null,null,null,null,null,null,null,null,null,null,null,null,null,null,null,null,null,null,null,null,null,null,null,null,null,null,null,null,null,null,null,null,null,null,null,null,null,1,"+",17,null,18,null,"",null,559,"",{"$f":"IF($BL323=\"\", \"\", COUNTIF($BL$3:$BL$803, \">\"&$BL323)+1+COUNTIF($BL$3:$BL323, $BL323)-1)","v":""},null,null,null,null,null,559,null,380]
[null,null,null,null,null,null,null,null,null,null,null,null,null,null,null,null,null,null,null,null,null,null,null,null,null,null,null,null,null,null,null,null,null,null,null,null,null,null,null,null,null,null,null,null,null,null,null,null,null,null,null,null,null,null,2,"+",17,null,19,null,{"$f":"IF(COUNTIF($BP$5:$BP$6, $BD324)=0, \"\", IF(OR($BC324>$BP$3, $BE324>$BP$3, $BG324>$BP$3, $BG324<$BP$8), \"\", \"X\"))","v":""},null,{"$f":"$BS324","v":129},{"$f":"IF($BI324=\"\", \"\", $BK324)","v":""},{"$f":"IF($BL324=\"\", \"\", COUNTIF($BL$3:$BL$803, \">\"&$BL324)+1+COUNTIF($BL$3:$BL324, $BL324)-1)","v":""},null,null,null,null,null,129,null,{"$f":"RANDBETWEEN(1, 1000)","v":107}]
[null,null,null,null,null,null,null,null,null,null,null,null,null,null,null,null,null,null,null,null,null,null,null,null,null,null,null,null,null,null,null,null,null,null,null,null,null,null,null,null,null,null,null,null,null,null,null,null,null,null,null,null,null,null,3,"+",17,null,20,null,"",null,562,"",{"$f":"IF($BL325=\"\", \"\", COUNTIF($BL$3:$BL$803, \">\"&$BL325)+1+COUNTIF($BL$3:$BL325, $BL325)-1)","v":""},null,null,null,null,null,562,null,336]
[null,null,null,null,null,null,null,null,null,null,null,null,null,null,null,null,null,null,null,null,null,null,null,null,null,null,null,null,null,null,null,null,null,null,null,null,null,null,null,null,null,null,null,null,null,null,null,null,null,null,null,null,null,null,4,"+",17,null,21,null,"",null,91,"",{"$f":"IF($BL326=\"\", \"\", COUNTIF($BL$3:$BL$803, \">\"&$BL326)+1+COUNTIF($BL$3:$BL326, $BL326)-1)","v":""},null,null,null,null,null,91,null,653]
[null,null,null,null,null,null,null,null,null,null,null,null,null,null,null,null,null,null,null,null,null,null,null,null,null,null,null,null,null,null,null,null,null,null,null,null,null,null,null,null,null,null,null,null,null,null,null,null,null,null,null,null,null,null,5,"+",17,null,22,null,"",null,957,"",{"$f":"IF($BL327=\"\", \"\", COUNTIF($BL$3:$BL$803, \">\"&$BL327)+1+COUNTIF($BL$3:$BL327, $BL327)-1)","v":""},null,null,null,null,null,957,null,388]
[null,null,null,null,null,null,null,null,null,null,null,null,null,null,null,null,null,null,null,null,null,null,null,null,null,null,null,null,null,null,null,null,null,null,null,null,null,null,null,null,null,null,null,null,null,null,null,null,null,null,null,null,null,null,6,"+",17,null,23,null,"",null,466,"",{"$f":"IF($BL328=\"\", \"\", COUNTIF($BL$3:$BL$803, \">\"&$BL328)+1+COUNTIF($BL$3:$BL328, $BL328)-1)","v":""},null,null,null,null,null,466,null,319]
[null,null,null,null,null,null,null,null,null,null,null,null,null,null,null,null,null,null,null,null,null,null,null,null,null,null,null,null,null,null,null,null,null,null,null,null,null,null,null,null,null,null,null,null,null,null,null,null,null,null,null,null,null,null,7,"+",17,null,24,null,"",null,184,"",{"$f":"IF($BL329=\"\", \"\", COUNTIF($BL$3:$BL$803, \">\"&$BL329)+1+COUNTIF($BL$3:$BL329, $BL329)-1)","v":""},null,null,null,null,null,184,null,896]
[null,null,null,null,null,null,null,null,null,null,null,null,null,null,null,null,null,null,null,null,null,null,null,null,null,null,null,null,null,null,null,null,null,null,null,null,null,null,null,null,null,null,null,null,null,null,null,null,null,null,null,null,null,null,8,"+",17,null,25,null,"",null,623,"",{"$f":"IF($BL330=\"\", \"\", COUNTIF($BL$3:$BL$803, \">\"&$BL330)+1+COUNTIF($BL$3:$BL330, $BL330)-1)","v":""},null,null,null,null,null,623,null,215]
[null,null,null,null,null,null,null,null,null,null,null,null,null,null,null,null,null,null,null,null,null,null,null,null,null,null,null,null,null,null,null,null,null,null,null,null,null,null,null,null,null,null,null,null,null,null,null,null,null,null,null,null,null,null,9,"+",17,null,26,null,"",null,225,"",{"$f":"IF($BL331=\"\", \"\", COUNTIF($BL$3:$BL$803, \">\"&$BL331)+1+COUNTIF($BL$3:$BL331, $BL331)-1)","v":""},null,null,null,null,null,225,null,181]
[null,null,null,null,null,null,null,null,null,null,null,null,null,null,null,null,null,null,null,null,null,null,null,null,null,null,null,null,null,null,null,null,null,null,null,null,null,null,null,null,null,null,null,null,null,null,null,null,null,null,null,null,null,null,10,"+",17,null,27,null,"",null,390,"",{"$f":"IF($BL332=\"\", \"\", COUNTIF($BL$3:$BL$803, \">\"&$BL332)+1+COUNTIF($BL$3:$BL332, $BL332)-1)","v":""},null,null,null,null,null,390,null,58]
[null,null,null,null,null,null,null,null,null,null,null,null,null,null,null,null,null,null,null,null,null,null,null,null,null,null,null,null,null,null,null,null,null,null,null,null,null,null,null,null,null,null,null,null,null,null,null,null,null,null,null,null,null,null,11,"+",17,null,28,null,"",null,475,"",{"$f":"IF($BL333=\"\", \"\", COUNTIF($BL$3:$BL$803, \">\"&$BL333)+1+COUNTIF($BL$3:$BL333, $BL333)-1)","v":""},null,null,null,null,null,475,null,288]
[null,null,null,null,null,null,null,null,null,null,null,null,null,null,null,null,null,null,null,null,null,null,null,null,null,null,null,null,null,null,null,null,null,null,null,null,null,null,null,null,null,null,null,null,null,null,null,null,null,null,null,null,null,null,12,"+",17,null,29,null,"",null,293,"",{"$f":"IF($BL334=\"\", \"\", COUNTIF($BL$3:$BL$803, \">\"&$BL334)+1+COUNTIF($BL$3:$BL334, $BL334)-1)","v":""},null,null,null,null,null,293,null,293]
[null,null,null,null,null,null,null,null,null,null,null,null,null,null,null,null,null,null,null,null,null,null,null,null,null,null,null,null,null,null,null,null,null,null,null,null,null,null,null,null,null,null,null,null,null,null,null,null,null,null,null,null,null,null,13,"+",17,null,30,null,"",null,245,"",{"$f":"IF($BL335=\"\", \"\", COUNTIF($BL$3:$BL$803, \">\"&$BL335)+1+COUNTIF($BL$3:$BL335, $BL335)-1)","v":""},null,null,null,null,null,245,null,903]
[null,null,null,null,null,null,null,null,null,null,null,null,null,null,null,null,null,null,null,null,null,null,null,null,null,null,null,null,null,null,null,null,null,null,null,null,null,null,null,null,null,null,null,null,null,null,null,null,null,null,null,null,null,null,14,"+",17,null,31,null,"",null,348,"",{"$f":"IF($BL336=\"\", \"\", COUNTIF($BL$3:$BL$803, \">\"&$BL336)+1+COUNTIF($BL$3:$BL336, $BL336)-1)","v":""},null,null,null,null,null,348,null,424]
[null,null,null,null,null,null,null,null,null,null,null,null,null,null,null,null,null,null,null,null,null,null,null,null,null,null,null,null,null,null,null,null,null,null,null,null,null,null,null,null,null,null,null,null,null,null,null,null,null,null,null,null,null,null,15,"+",17,null,32,null,"",null,296,"",{"$f":"IF($BL337=\"\", \"\", COUNTIF($BL$3:$BL$803, \">\"&$BL337)+1+COUNTIF($BL$3:$BL337, $BL337)-1)","v":""},null,null,null,null,null,296,null,154]
[null,null,null,null,null,null,null,null,null,null,null,null,null,null,null,null,null,null,null,null,null,null,null,null,null,null,null,null,null,null,null,null,null,null,null,null,null,null,null,null,null,null,null,null,null,null,null,null,null,null,null,null,null,null,16,"+",17,null,33,null,"",null,167,"",{"$f":"IF($BL338=\"\", \"\", COUNTIF($BL$3:$BL$803, \">\"&$BL338)+1+COUNTIF($BL$3:$BL338, $BL338)-1)","v":""},null,null,null,null,null,167,null,144]
[null,null,null,null,null,null,null,null,null,null,null,null,null,null,null,null,null,null,null,null,null,null,null,null,null,null,null,null,null,null,null,null,null,null,null,null,null,null,null,null,null,null,null,null,null,null,null,null,null,null,null,null,null,null,17,"+",17,null,34,null,"",null,295,"",{"$f":"IF($BL339=\"\", \"\", COUNTIF($BL$3:$BL$803, \">\"&$BL339)+1+COUNTIF($BL$3:$BL339, $BL339)-1)","v":""},null,null,null,null,null,295,null,261]
[null,null,null,null,null,null,null,null,null,null,null,null,null,null,null,null,null,null,null,null,null,null,null,null,null,null,null,null,null,null,null,null,null,null,null,null,null,null,null,null,null,null,null,null,null,null,null,null,null,null,null,null,null,null,18,"+",17,null,35,null,"",null,447,"",{"$f":"IF($BL340=\"\", \"\", COUNTIF($BL$3:$BL$803, \">\"&$BL340)+1+COUNTIF($BL$3:$BL340, $BL340)-1)","v":""},null,null,null,null,null,447,null,632]
[null,null,null,null,null,null,null,null,null,null,null,null,null,null,null,null,null,null,null,null,null,null,null,null,null,null,null,null,null,null,null,null,null,null,null,null,null,null,null,null,null,null,null,null,null,null,null,null,null,null,null,null,null,null,19,"+",17,null,36,null,"",null,807,"",{"$f":"IF($BL341=\"\", \"\", COUNTIF($BL$3:$BL$803, \">\"&$BL341)+1+COUNTIF($BL$3:$BL341, $BL341)-1)","v":""},null,null,null,null,null,807,null,979]
[null,null,null,null,null,null,null,null,null,null,null,null,null,null,null,null,null,null,null,null,null,null,null,null,null,null,null,null,null,null,null,null,null,null,null,null,null,null,null,null,null,null,null,null,null,null,null,null,null,null,null,null,null,null,20,"+",17,null,37,null,"",null,610,"",{"$f":"IF($BL342=\"\", \"\", COUNTIF($BL$3:$BL$803, \">\"&$BL342)+1+COUNTIF($BL$3:$BL342, $BL342)-1)","v":""},null,null,null,null,null,610,null,826]
[null,null,null,null,null,null,null,null,null,null,null,null,null,null,null,null,null,null,null,null,null,null,null,null,null,null,null,null,null,null,null,null,null,null,null,null,null,null,null,null,null,null,null,null,null,null,null,null,null,null,null,null,null,null,1,"+",18,null,19,null,"",null,193,"",{"$f":"IF($BL343=\"\", \"\", COUNTIF($BL$3:$BL$803, \">\"&$BL343)+1+COUNTIF($BL$3:$BL343, $BL343)-1)","v":""},null,null,null,null,null,193,null,658]
[null,null,null,null,null,null,null,null,null,null,null,null,null,null,null,null,null,null,null,null,null,null,null,null,null,null,null,null,null,null,null,null,null,null,null,null,null,null,null,null,null,null,null,null,null,null,null,null,null,null,null,null,null,null,2,"+",18,null,20,null,"",null,759,"",{"$f":"IF($BL344=\"\", \"\", COUNTIF($BL$3:$BL$803, \">\"&$BL344)+1+COUNTIF($BL$3:$BL344, $BL344)-1)","v":""},null,null,null,null,null,759,null,951]
[null,null,null,null,null,null,null,null,null,null,null,null,null,null,null,null,null,null,null,null,null,null,null,null,null,null,null,null,null,null,null,null,null,null,null,null,null,null,null,null,null,null,null,null,null,null,null,null,null,null,null,null,null,null,3,"+",18,null,21,null,"",null,365,"",{"$f":"IF($BL345=\"\", \"\", COUNTIF($BL$3:$BL$803, \">\"&$BL345)+1+COUNTIF($BL$3:$BL345, $BL345)-1)","v":""},null,null,null,null,null,365,null,681]
[null,null,null,null,null,null,null,null,null,null,null,null,null,null,null,null,null,null,null,null,null,null,null,null,null,null,null,null,null,null,null,null,null,null,null,null,null,null,null,null,null,null,null,null,null,null,null,null,null,null,null,null,null,null,4,"+",18,null,22,null,"",null,317,"",{"$f":"IF($BL346=\"\", \"\", COUNTIF($BL$3:$BL$803, \">\"&$BL346)+1+COUNTIF($BL$3:$BL346, $BL346)-1)","v":""},null,null,null,null,null,317,null,399]
[null,null,null,null,null,null,null,null,null,null,null,null,null,null,null,null,null,null,null,null,null,null,null,null,null,null,null,null,null,null,null,null,null,null,null,null,null,null,null,null,null,null,null,null,null,null,null,null,null,null,null,null,null,null,5,"+",18,null,23,null,"",null,808,"",{"$f":"IF($BL347=\"\", \"\", COUNTIF($BL$3:$BL$803, \">\"&$BL347)+1+COUNTIF($BL$3:$BL347, $BL347)-1)","v":""},null,null,null,null,null,808,null,655]
[null,null,null,null,null,null,null,null,null,null,null,null,null,null,null,null,null,null,null,null,null,null,null,null,null,null,null,null,null,null,null,null,null,null,null,null,null,null,null,null,null,null,null,null,null,null,null,null,null,null,null,null,null,null,6,"+",18,null,24,null,"",null,916,"",{"$f":"IF($BL348=\"\", \"\", COUNTIF($BL$3:$BL$803, \">\"&$BL348)+1+COUNTIF($BL$3:$BL348, $BL348)-1)","v":""},null,null,null,null,null,916,null,623]
[null,null,null,null,null,null,null,null,null,null,null,null,null,null,null,null,null,null,null,null,null,null,null,null,null,null,null,null,null,null,null,null,null,null,null,null,null,null,null,null,null,null,null,null,null,null,null,null,null,null,null,null,null,null,7,"+",18,null,25,null,"",null,686,"",{"$f":"IF($BL349=\"\", \"\", COUNTIF($BL$3:$BL$803, \">\"&$BL349)+1+COUNTIF($BL$3:$BL349, $BL349)-1)","v":""},null,null,null,null,null,686,null,397]
[null,null,null,null,null,null,null,null,null,null,null,null,null,null,null,null,null,null,null,null,null,null,null,null,null,null,null,null,null,null,null,null,null,null,null,null,null,null,null,null,null,null,null,null,null,null,null,null,null,null,null,null,null,null,8,"+",18,null,26,null,"",null,496,"",{"$f":"IF($BL350=\"\", \"\", COUNTIF($BL$3:$BL$803, \">\"&$BL350)+1+COUNTIF($BL$3:$BL350, $BL350)-1)","v":""},null,null,null,null,null,496,null,682]
[null,null,null,null,null,null,null,null,null,null,null,null,null,null,null,null,null,null,null,null,null,null,null,null,null,null,null,null,null,null,null,null,null,null,null,null,null,null,null,null,null,null,null,null,null,null,null,null,null,null,null,null,null,null,9,"+",18,null,27,null,"",null,674,"",{"$f":"IF($BL351=\"\", \"\", COUNTIF($BL$3:$BL$803, \">\"&$BL351)+1+COUNTIF($BL$3:$BL351, $BL351)-1)","v":""},null,null,null,null,null,674,null,108]
[null,null,null,null,null,null,null,null,null,null,null,null,null,null,null,null,null,null,null,null,null,null,null,null,null,null,null,null,null,null,null,null,null,null,null,null,null,null,null,null,null,null,null,null,null,null,null,null,null,null,null,null,null,null,10,"+",18,null,28,null,"",null,820,"",{"$f":"IF($BL352=\"\", \"\", COUNTIF($BL$3:$BL$803, \">\"&$BL352)+1+COUNTIF($BL$3:$BL352, $BL352)-1)","v":""},null,null,null,null,null,820,null,189]
[null,null,null,null,null,null,null,null,null,null,null,null,null,null,null,null,null,null,null,null,null,null,null,null,null,null,null,null,null,null,null,null,null,null,null,null,null,null,null,null,null,null,null,null,null,null,null,null,null,null,null,null,null,null,11,"+",18,null,29,null,"",null,640,"",{"$f":"IF($BL353=\"\", \"\", COUNTIF($BL$3:$BL$803, \">\"&$BL353)+1+COUNTIF($BL$3:$BL353, $BL353)-1)","v":""},null,null,null,null,null,640,null,161]
[null,null,null,null,null,null,null,null,null,null,null,null,null,null,null,null,null,null,null,null,null,null,null,null,null,null,null,null,null,null,null,null,null,null,null,null,null,null,null,null,null,null,null,null,null,null,null,null,null,null,null,null,null,null,12,"+",18,null,30,null,"",null,284,"",{"$f":"IF($BL354=\"\", \"\", COUNTIF($BL$3:$BL$803, \">\"&$BL354)+1+COUNTIF($BL$3:$BL354, $BL354)-1)","v":""},null,null,null,null,null,284,null,19]
[null,null,null,null,null,null,null,null,null,null,null,null,null,null,null,null,null,null,null,null,null,null,null,null,null,null,null,null,null,null,null,null,null,null,null,null,null,null,null,null,null,null,null,null,null,null,null,null,null,null,null,null,null,null,13,"+",18,null,31,null,"",null,879,"",{"$f":"IF($BL355=\"\", \"\", COUNTIF($BL$3:$BL$803, \">\"&$BL355)+1+COUNTIF($BL$3:$BL355, $BL355)-1)","v":""},null,null,null,null,null,879,null,543]
[null,null,null,null,null,null,null,null,null,null,null,null,null,null,null,null,null,null,null,null,null,null,null,null,null,null,null,null,null,null,null,null,null,null,null,null,null,null,null,null,null,null,null,null,null,null,null,null,null,null,null,null,null,null,14,"+",18,null,32,null,"",null,276,"",{"$f":"IF($BL356=\"\", \"\", COUNTIF($BL$3:$BL$803, \">\"&$BL356)+1+COUNTIF($BL$3:$BL356, $BL356)-1)","v":""},null,null,null,null,null,276,null,459]
[null,null,null,null,null,null,null,null,null,null,null,null,null,null,null,null,null,null,null,null,null,null,null,null,null,null,null,null,null,null,null,null,null,null,null,null,null,null,null,null,null,null,null,null,null,null,null,null,null,null,null,null,null,null,15,"+",18,null,33,null,"",null,295,"",{"$f":"IF($BL357=\"\", \"\", COUNTIF($BL$3:$BL$803, \">\"&$BL357)+1+COUNTIF($BL$3:$BL357, $BL357)-1)","v":""},null,null,null,null,null,295,null,607]
[null,null,null,null,null,null,null,null,null,null,null,null,null,null,null,null,null,null,null,null,null,null,null,null,null,null,null,null,null,null,null,null,null,null,null,null,null,null,null,null,null,null,null,null,null,null,null,null,null,null,null,null,null,null,16,"+",18,null,34,null,"",null,679,"",{"$f":"IF($BL358=\"\", \"\", COUNTIF($BL$3:$BL$803, \">\"&$BL358)+1+COUNTIF($BL$3:$BL358, $BL358)-1)","v":""},null,null,null,null,null,679,null,720]
[null,null,null,null,null,null,null,null,null,null,null,null,null,null,null,null,null,null,null,null,null,null,null,null,null,null,null,null,null,null,null,null,null,null,null,null,null,null,null,null,null,null,null,null,null,null,null,null,null,null,null,null,null,null,17,"+",18,null,35,null,"",null,470,"",{"$f":"IF($BL359=\"\", \"\", COUNTIF($BL$3:$BL$803, \">\"&$BL359)+1+COUNTIF($BL$3:$BL359, $BL359)-1)","v":""},null,null,null,null,null,470,null,575]
[null,null,null,null,null,null,null,null,null,null,null,null,null,null,null,null,null,null,null,null,null,null,null,null,null,null,null,null,null,null,null,null,null,null,null,null,null,null,null,null,null,null,null,null,null,null,null,null,null,null,null,null,null,null,18,"+",18,null,36,null,"",null,971,"",{"$f":"IF($BL360=\"\", \"\", COUNTIF($BL$3:$BL$803, \">\"&$BL360)+1+COUNTIF($BL$3:$BL360, $BL360)-1)","v":""},null,null,null,null,null,971,null,331]
[null,null,null,null,null,null,null,null,null,null,null,null,null,null,null,null,null,null,null,null,null,null,null,null,null,null,null,null,null,null,null,null,null,null,null,null,null,null,null,null,null,null,null,null,null,null,null,null,null,null,null,null,null,null,19,"+",18,null,37,null,"",null,140,"",{"$f":"IF($BL361=\"\", \"\", COUNTIF($BL$3:$BL$803, \">\"&$BL361)+1+COUNTIF($BL$3:$BL361, $BL361)-1)","v":""},null,null,null,null,null,140,null,484]
[null,null,null,null,null,null,null,null,null,null,null,null,null,null,null,null,null,null,null,null,null,null,null,null,null,null,null,null,null,null,null,null,null,null,null,null,null,null,null,null,null,null,null,null,null,null,null,null,null,null,null,null,null,null,20,"+",18,null,38,null,"",null,717,"",{"$f":"IF($BL362=\"\", \"\", COUNTIF($BL$3:$BL$803, \">\"&$BL362)+1+COUNTIF($BL$3:$BL362, $BL362)-1)","v":""},null,null,null,null,null,717,null,893]
[null,null,null,null,null,null,null,null,null,null,null,null,null,null,null,null,null,null,null,null,null,null,null,null,null,null,null,null,null,null,null,null,null,null,null,null,null,null,null,null,null,null,null,null,null,null,null,null,null,null,null,null,null,null,1,"+",19,null,20,null,"",null,146,"",{"$f":"IF($BL363=\"\", \"\", COUNTIF($BL$3:$BL$803, \">\"&$BL363)+1+COUNTIF($BL$3:$BL363, $BL363)-1)","v":""},null,null,null,null,null,146,null,604]
[null,null,null,null,null,null,null,null,null,null,null,null,null,null,null,null,null,null,null,null,null,null,null,null,null,null,null,null,null,null,null,null,null,null,null,null,null,null,null,null,null,null,null,null,null,null,null,null,null,null,null,null,null,null,2,"+",19,null,21,null,"",null,135,"",{"$f":"IF($BL364=\"\", \"\", COUNTIF($BL$3:$BL$803, \">\"&$BL364)+1+COUNTIF($BL$3:$BL364, $BL364)-1)","v":""},null,null,null,null,null,135,null,253]
[null,null,null,null,null,null,null,null,null,null,null,null,null,null,null,null,null,null,null,null,null,null,null,null,null,null,null,null,null,null,null,null,null,null,null,null,null,null,null,null,null,null,null,null,null,null,null,null,null,null,null,null,null,null,3,"+",19,null,22,null,"",null,839,"",{"$f":"IF($BL365=\"\", \"\", COUNTIF($BL$3:$BL$803, \">\"&$BL365)+1+COUNTIF($BL$3:$BL365, $BL365)-1)","v":""},null,null,null,null,null,839,null,211]
[null,null,null,null,null,null,null,null,null,null,null,null,null,null,null,null,null,null,null,null,null,null,null,null,null,null,null,null,null,null,null,null,null,null,null,null,null,null,null,null,null,null,null,null,null,null,null,null,null,null,null,null,null,null,{"$f":"IF(BC365+1>20, 1, BC365+1)","v":4},"+",{"$f":"IF(BC366=1, BE365+1, BE365)","v":19},null,{"$f":"BC366+BE366","v":23},null,"",null,693,"",{"$f":"IF($BL366=\"\", \"\", COUNTIF($BL$3:$BL$803, \">\"&$BL366)+1+COUNTIF($BL$3:$BL366, $BL366)-1)","v":""},null,null,null,null,null,693,null,74]
[null,null,null,null,null,null,null,null,null,null,null,null,null,null,null,null,null,null,null,null,null,null,null,null,null,null,null,null,null,null,null,null,null,null,null,null,null,null,null,null,null,null,null,null,null,null,null,null,null,null,null,null,null,null,5,"+",19,null,24,null,"",null,202,"",{"$f":"IF($BL367=\"\", \"\", COUNTIF($BL$3:$BL$803, \">\"&$BL367)+1+COUNTIF($BL$3:$BL367, $BL367)-1)","v":""},null,null,null,null,null,202,null,754]
[null,null,null,null,null,null,null,null,null,null,null,null,null,null,null,null,null,null,null,null,null,null,null,null,null,null,null,null,null,null,null,null,null,null,null,null,null,null,null,null,null,null,null,null,null,null,null,null,null,null,null,null,null,null,6,"+",19,null,25,null,"",null,280,"",{"$f":"IF($BL368=\"\", \"\", COUNTIF($BL$3:$BL$803, \">\"&$BL368)+1+COUNTIF($BL$3:$BL368, $BL368)-1)","v":""},null,null,null,null,null,280,null,899]
[null,null,null,null,null,null,null,null,null,null,null,null,null,null,null,null,null,null,null,null,null,null,null,null,null,null,null,null,null,null,null,null,null,null,null,null,null,null,null,null,null,null,null,null,null,null,null,null,null,null,null,null,null,null,7,"+",19,null,26,null,"",null,10,"",{"$f":"IF($BL369=\"\", \"\", COUNTIF($BL$3:$BL$803, \">\"&$BL369)+1+COUNTIF($BL$3:$BL369, $BL369)-1)","v":""},null,null,null,null,null,10,null,274]
[null,null,null,null,null,null,null,null,null,null,null,null,null,null,null,null,null,null,null,null,null,null,null,null,null,null,null,null,null,null,null,null,null,null,null,null,null,null,null,null,null,null,null,null,null,null,null,null,null,null,null,null,null,null,8,"+",19,null,27,null,"",null,590,"",{"$f":"IF($BL370=\"\", \"\", COUNTIF($BL$3:$BL$803, \">\"&$BL370)+1+COUNTIF($BL$3:$BL370, $BL370)-1)","v":""},null,null,null,null,null,590,null,354]
[null,null,null,null,null,null,null,null,null,null,null,null,null,null,null,null,null,null,null,null,null,null,null,null,null,null,null,null,null,null,null,null,null,null,null,null,null,null,null,null,null,null,null,null,null,null,null,null,null,null,null,null,null,null,9,"+",19,null,28,null,"",null,366,"",{"$f":"IF($BL371=\"\", \"\", COUNTIF($BL$3:$BL$803, \">\"&$BL371)+1+COUNTIF($BL$3:$BL371, $BL371)-1)","v":""},null,null,null,null,null,366,null,766]
[null,null,null,null,null,null,null,null,null,null,null,null,null,null,null,null,null,null,null,null,null,null,null,null,null,null,null,null,null,null,null,null,null,null,null,null,null,null,null,null,null,null,null,null,null,null,null,null,null,null,null,null,null,null,10,"+",19,null,29,null,"",null,789,"",{"$f":"IF($BL372=\"\", \"\", COUNTIF($BL$3:$BL$803, \">\"&$BL372)+1+COUNTIF($BL$3:$BL372, $BL372)-1)","v":""},null,null,null,null,null,789,null,706]
[null,null,null,null,null,null,null,null,null,null,null,null,null,null,null,null,null,null,null,null,null,null,null,null,null,null,null,null,null,null,null,null,null,null,null,null,null,null,null,null,null,null,null,null,null,null,null,null,null,null,null,null,null,null,11,"+",19,null,30,null,"",null,140,"",{"$f":"IF($BL373=\"\", \"\", COUNTIF($BL$3:$BL$803, \">\"&$BL373)+1+COUNTIF($BL$3:$BL373, $BL373)-1)","v":""},null,null,null,null,null,140,null,460]
[null,null,null,null,null,null,null,null,null,null,null,null,null,null,null,null,null,null,null,null,null,null,null,null,null,null,null,null,null,null,null,null,null,null,null,null,null,null,null,null,null,null,null,null,null,null,null,null,null,null,null,null,null,null,12,"+",19,null,31,null,"",null,595,"",{"$f":"IF($BL374=\"\", \"\", COUNTIF($BL$3:$BL$803, \">\"&$BL374)+1+COUNTIF($BL$3:$BL374, $BL374)-1)","v":""},null,null,null,null,null,595,null,546]
[null,null,null,null,null,null,null,null,null,null,null,null,null,null,null,null,null,null,null,null,null,null,null,null,null,null,null,null,null,null,null,null,null,null,null,null,null,null,null,null,null,null,null,null,null,null,null,null,null,null,null,null,null,null,13,"+",19,null,32,null,"",null,709,"",{"$f":"IF($BL375=\"\", \"\", COUNTIF($BL$3:$BL$803, \">\"&$BL375)+1+COUNTIF($BL$3:$BL375, $BL375)-1)","v":""},null,null,null,null,null,709,null,730]
[null,null,null,null,null,null,null,null,null,null,null,null,null,null,null,null,null,null,null,null,null,null,null,null,null,null,null,null,null,null,null,null,null,null,null,null,null,null,null,null,null,null,null,null,null,null,null,null,null,null,null,null,null,null,14,"+",19,null,33,null,"",null,84,"",{"$f":"IF($BL376=\"\", \"\", COUNTIF($BL$3:$BL$803, \">\"&$BL376)+1+COUNTIF($BL$3:$BL376, $BL376)-1)","v":""},null,null,null,null,null,84,null,671]
[null,null,null,null,null,null,null,null,null,null,null,null,null,null,null,null,null,null,null,null,null,null,null,null,null,null,null,null,null,null,null,null,null,null,null,null,null,null,null,null,null,null,null,null,null,null,null,null,null,null,null,null,null,null,15,"+",19,null,34,null,"",null,3,"",{"$f":"IF($BL377=\"\", \"\", COUNTIF($BL$3:$BL$803, \">\"&$BL377)+1+COUNTIF($BL$3:$BL377, $BL377)-1)","v":""},null,null,null,null,null,3,null,547]
[null,null,null,null,null,null,null,null,null,null,null,null,null,null,null,null,null,null,null,null,null,null,null,null,null,null,null,null,null,null,null,null,null,null,null,null,null,null,null,null,null,null,null,null,null,null,null,null,null,null,null,null,null,null,16,"+",19,null,35,null,"",null,876,"",{"$f":"IF($BL378=\"\", \"\", COUNTIF($BL$3:$BL$803, \">\"&$BL378)+1+COUNTIF($BL$3:$BL378, $BL378)-1)","v":""},null,null,null,null,null,876,null,988]
[null,null,null,null,null,null,null,null,null,null,null,null,null,null,null,null,null,null,null,null,null,null,null,null,null,null,null,null,null,null,null,null,null,null,null,null,null,null,null,null,null,null,null,null,null,null,null,null,null,null,null,null,null,null,17,"+",19,null,36,null,"",null,217,"",{"$f":"IF($BL379=\"\", \"\", COUNTIF($BL$3:$BL$803, \">\"&$BL379)+1+COUNTIF($BL$3:$BL379, $BL379)-1)","v":""},null,null,null,null,null,217,null,154]
[null,null,null,null,null,null,null,null,null,null,null,null,null,null,null,null,null,null,null,null,null,null,null,null,null,null,null,null,null,null,null,null,null,null,null,null,null,null,null,null,null,null,null,null,null,null,null,null,null,null,null,null,null,null,18,"+",19,null,37,null,"",null,512,"",{"$f":"IF($BL380=\"\", \"\", COUNTIF($BL$3:$BL$803, \">\"&$BL380)+1+COUNTIF($BL$3:$BL380, $BL380)-1)","v":""},null,null,null,null,null,512,null,340]
[null,null,null,null,null,null,null,null,null,null,null,null,null,null,null,null,null,null,null,null,null,null,null,null,null,null,null,null,null,null,null,null,null,null,null,null,null,null,null,null,null,null,null,null,null,null,null,null,null,null,null,null,null,null,19,"+",19,null,38,null,"",null,131,"",{"$f":"IF($BL381=\"\", \"\", COUNTIF($BL$3:$BL$803, \">\"&$BL381)+1+COUNTIF($BL$3:$BL381, $BL381)-1)","v":""},null,null,null,null,null,131,null,961]
[null,null,null,null,null,null,null,null,null,null,null,null,null,null,null,null,null,null,null,null,null,null,null,null,null,null,null,null,null,null,null,null,null,null,null,null,null,null,null,null,null,null,null,null,null,null,null,null,null,null,null,null,null,null,20,"+",19,null,39,null,"",null,261,"",{"$f":"IF($BL382=\"\", \"\", COUNTIF($BL$3:$BL$803, \">\"&$BL382)+1+COUNTIF($BL$3:$BL382, $BL382)-1)","v":""},null,null,null,null,null,261,null,153]
[null,null,null,null,null,null,null,null,null,null,null,null,null,null,null,null,null,null,null,null,null,null,null,null,null,null,null,null,null,null,null,null,null,null,null,null,null,null,null,null,null,null,null,null,null,null,null,null,null,null,null,null,null,null,1,"+",20,null,21,null,"",null,572,"",{"$f":"IF($BL383=\"\", \"\", COUNTIF($BL$3:$BL$803, \">\"&$BL383)+1+COUNTIF($BL$3:$BL383, $BL383)-1)","v":""},null,null,null,null,null,572,null,118]
[null,null,null,null,null,null,null,null,null,null,null,null,null,null,null,null,null,null,null,null,null,null,null,null,null,null,null,null,null,null,null,null,null,null,null,null,null,null,null,null,null,null,null,null,null,null,null,null,null,null,null,null,null,null,2,"+",20,null,22,null,"",null,420,"",{"$f":"IF($BL384=\"\", \"\", COUNTIF($BL$3:$BL$803, \">\"&$BL384)+1+COUNTIF($BL$3:$BL384, $BL384)-1)","v":""},null,null,null,null,null,420,null,416]
[null,null,null,null,null,null,null,null,null,null,null,null,null,null,null,null,null,null,null,null,null,null,null,null,null,null,null,null,null,null,null,null,null,null,null,null,null,null,null,null,null,null,null,null,null,null,null,null,null,null,null,null,null,null,3,"+",20,null,23,null,"",null,627,"",{"$f":"IF($BL385=\"\", \"\", COUNTIF($BL$3:$BL$803, \">\"&$BL385)+1+COUNTIF($BL$3:$BL385, $BL385)-1)","v":""},null,null,null,null,null,627,null,452]
[null,null,null,null,null,null,null,null,null,null,null,null,null,null,null,null,null,null,null,null,null,null,null,null,null,null,null,null,null,null,null,null,null,null,null,null,null,null,null,null,null,null,null,null,null,null,null,null,null,null,null,null,null,null,4,"+",20,null,24,null,"",null,951,"",{"$f":"IF($BL386=\"\", \"\", COUNTIF($BL$3:$BL$803, \">\"&$BL386)+1+COUNTIF($BL$3:$BL386, $BL386)-1)","v":""},null,null,null,null,null,951,null,264]
[null,null,null,null,null,null,null,null,null,null,null,null,null,null,null,null,null,null,null,null,null,null,null,null,null,null,null,null,null,null,null,null,null,null,null,null,null,null,null,null,null,null,null,null,null,null,null,null,null,null,null,null,null,null,5,"+",20,null,25,null,"",null,875,"",{"$f":"IF($BL387=\"\", \"\", COUNTIF($BL$3:$BL$803, \">\"&$BL387)+1+COUNTIF($BL$3:$BL387, $BL387)-1)","v":""},null,null,null,null,null,875,null,368]
[null,null,null,null,null,null,null,null,null,null,null,null,null,null,null,null,null,null,null,null,null,null,null,null,null,null,null,null,null,null,null,null,null,null,null,null,null,null,null,null,null,null,null,null,null,null,null,null,null,null,null,null,null,null,6,"+",20,null,26,null,{"$f":"IF(COUNTIF($BP$5:$BP$6, $BD388)=0, \"\", IF(OR($BC388>$BP$3, $BE388>$BP$3, $BG388>$BP$3, $BG388<$BP$8), \"\", \"X\"))","v":""},null,{"$f":"$BS388","v":488},{"$f":"IF($BI388=\"\", \"\", $BK388)","v":""},{"$f":"IF($BL388=\"\", \"\", COUNTIF($BL$3:$BL$803, \">\"&$BL388)+1+COUNTIF($BL$3:$BL388, $BL388)-1)","v":""},null,null,null,null,null,488,null,{"$f":"RANDBETWEEN(1, 1000)","v":296}]
[null,null,null,null,null,null,null,null,null,null,null,null,null,null,null,null,null,null,null,null,null,null,null,null,null,null,null,null,null,null,null,null,null,null,null,null,null,null,null,null,null,null,null,null,null,null,null,null,null,null,null,null,null,null,7,"+",20,null,27,null,"",null,372,"",{"$f":"IF($BL389=\"\", \"\", COUNTIF($BL$3:$BL$803, \">\"&$BL389)+1+COUNTIF($BL$3:$BL389, $BL389)-1)","v":""},null,null,null,null,null,372,null,271]
[null,null,null,null,null,null,null,null,null,null,null,null,null,null,null,null,null,null,null,null,null,null,null,null,null,null,null,null,null,null,null,null,null,null,null,null,null,null,null,null,null,null,null,null,null,null,null,null,null,null,null,null,null,null,8,"+",20,null,28,null,"",null,355,"",{"$f":"IF($BL390=\"\", \"\", COUNTIF($BL$3:$BL$803, \">\"&$BL390)+1+COUNTIF($BL$3:$BL390, $BL390)-1)","v":""},null,null,null,null,null,355,null,125]
[null,null,null,null,null,null,null,null,null,null,null,null,null,null,null,null,null,null,null,null,null,null,null,null,null,null,null,null,null,null,null,null,null,null,null,null,null,null,null,null,null,null,null,null,null,null,null,null,null,null,null,null,null,null,9,"+",20,null,29,null,"",null,677,"",{"$f":"IF($BL391=\"\", \"\", COUNTIF($BL$3:$BL$803, \">\"&$BL391)+1+COUNTIF($BL$3:$BL391, $BL391)-1)","v":""},null,null,null,null,null,677,null,735]
[null,null,null,null,null,null,null,null,null,null,null,null,null,null,null,null,null,null,null,null,null,null,null,null,null,null,null,null,null,null,null,null,null,null,null,null,null,null,null,null,null,null,null,null,null,null,null,null,null,null,null,null,null,null,10,"+",20,null,30,null,"",null,743,"",{"$f":"IF($BL392=\"\", \"\", COUNTIF($BL$3:$BL$803, \">\"&$BL392)+1+COUNTIF($BL$3:$BL392, $BL392)-1)","v":""},null,null,null,null,null,743,null,808]
[null,null,null,null,null,null,null,null,null,null,null,null,null,null,null,null,null,null,null,null,null,null,null,null,null,null,null,null,null,null,null,null,null,null,null,null,null,null,null,null,null,null,null,null,null,null,null,null,null,null,null,null,null,null,11,"+",20,null,31,null,"",null,426,"",{"$f":"IF($BL393=\"\", \"\", COUNTIF($BL$3:$BL$803, \">\"&$BL393)+1+COUNTIF($BL$3:$BL393, $BL393)-1)","v":""},null,null,null,null,null,426,null,413]
[null,null,null,null,null,null,null,null,null,null,null,null,null,null,null,null,null,null,null,null,null,null,null,null,null,null,null,null,null,null,null,null,null,null,null,null,null,null,null,null,null,null,null,null,null,null,null,null,null,null,null,null,null,null,12,"+",20,null,32,null,"",null,217,"",{"$f":"IF($BL394=\"\", \"\", COUNTIF($BL$3:$BL$803, \">\"&$BL394)+1+COUNTIF($BL$3:$BL394, $BL394)-1)","v":""},null,null,null,null,null,217,null,509]
[null,null,null,null,null,null,null,null,null,null,null,null,null,null,null,null,null,null,null,null,null,null,null,null,null,null,null,null,null,null,null,null,null,null,null,null,null,null,null,null,null,null,null,null,null,null,null,null,null,null,null,null,null,null,13,"+",20,null,33,null,"",null,868,"",{"$f":"IF($BL395=\"\", \"\", COUNTIF($BL$3:$BL$803, \">\"&$BL395)+1+COUNTIF($BL$3:$BL395, $BL395)-1)","v":""},null,null,null,null,null,868,null,28]
[null,null,null,null,null,null,null,null,null,null,null,null,null,null,null,null,null,null,null,null,null,null,null,null,null,null,null,null,null,null,null,null,null,null,null,null,null,null,null,null,null,null,null,null,null,null,null,null,null,null,null,null,null,null,14,"+",20,null,34,null,"",null,518,"",{"$f":"IF($BL396=\"\", \"\", COUNTIF($BL$3:$BL$803, \">\"&$BL396)+1+COUNTIF($BL$3:$BL396, $BL396)-1)","v":""},null,null,null,null,null,518,null,38]
[null,null,null,null,null,null,null,null,null,null,null,null,null,null,null,null,null,null,null,null,null,null,null,null,null,null,null,null,null,null,null,null,null,null,null,null,null,null,null,null,null,null,null,null,null,null,null,null,null,null,null,null,null,null,15,"+",20,null,35,null,"",null,901,"",{"$f":"IF($BL397=\"\", \"\", COUNTIF($BL$3:$BL$803, \">\"&$BL397)+1+COUNTIF($BL$3:$BL397, $BL397)-1)","v":""},null,null,null,null,null,901,null,872]
[null,null,null,null,null,null,null,null,null,null,null,null,null,null,null,null,null,null,null,null,null,null,null,null,null,null,null,null,null,null,null,null,null,null,null,null,null,null,null,null,null,null,null,null,null,null,null,null,null,null,null,null,null,null,16,"+",20,null,36,null,"",null,686,"",{"$f":"IF($BL398=\"\", \"\", COUNTIF($BL$3:$BL$803, \">\"&$BL398)+1+COUNTIF($BL$3:$BL398, $BL398)-1)","v":""},null,null,null,null,null,686,null,687]
[null,null,null,null,null,null,null,null,null,null,null,null,null,null,null,null,null,null,null,null,null,null,null,null,null,null,null,null,null,null,null,null,null,null,null,null,null,null,null,null,null,null,null,null,null,null,null,null,null,null,null,null,null,null,17,"+",20,null,37,null,"",null,524,"",{"$f":"IF($BL399=\"\", \"\", COUNTIF($BL$3:$BL$803, \">\"&$BL399)+1+COUNTIF($BL$3:$BL399, $BL399)-1)","v":""},null,null,null,null,null,524,null,256]
[null,null,null,null,null,null,null,null,null,null,null,null,null,null,null,null,null,null,null,null,null,null,null,null,null,null,null,null,null,null,null,null,null,null,null,null,null,null,null,null,null,null,null,null,null,null,null,null,null,null,null,null,null,null,18,"+",20,null,38,null,"",null,205,"",{"$f":"IF($BL400=\"\", \"\", COUNTIF($BL$3:$BL$803, \">\"&$BL400)+1+COUNTIF($BL$3:$BL400, $BL400)-1)","v":""},null,null,null,null,null,205,null,178]
[null,null,null,null,null,null,null,null,null,null,null,null,null,null,null,null,null,null,null,null,null,null,null,null,null,null,null,null,null,null,null,null,null,null,null,null,null,null,null,null,null,null,null,null,null,null,null,null,null,null,null,null,null,null,19,"+",20,null,39,null,"",null,91,"",{"$f":"IF($BL401=\"\", \"\", COUNTIF($BL$3:$BL$803, \">\"&$BL401)+1+COUNTIF($BL$3:$BL401, $BL401)-1)","v":""},null,null,null,null,null,91,null,514]
[null,null,null,null,null,null,null,null,null,null,null,null,null,null,null,null,null,null,null,null,null,null,null,null,null,null,null,null,null,null,null,null,null,null,null,null,null,null,null,null,null,null,null,null,null,null,null,null,null,null,null,null,null,null,20,"+",20,null,40,null,"",null,141,"",{"$f":"IF($BL402=\"\", \"\", COUNTIF($BL$3:$BL$803, \">\"&$BL402)+1+COUNTIF($BL$3:$BL402, $BL402)-1)","v":""},null,null,null,null,null,141,null,992]
[null,null,null,null,null,null,null,null,null,null,null,null,null,null,null,null,null,null,null,null,null,null,null,null,null,null,null,null,null,null,null,null,null,null,null,null,null,null,null,null,null,null,null,null,null,null,null,null,null,null,null,null,null,null,null,null,null,null,null,null,"",null,449,"",{"$f":"IF($BL403=\"\", \"\", COUNTIF($BL$3:$BL$803, \">\"&$BL403)+1+COUNTIF($BL$3:$BL403, $BL403)-1)","v":""},null,null,null,null,null,449,null,916]
[null,null,null,null,null,null,null,null,null,null,null,null,null,null,null,null,null,null,null,null,null,null,null,null,null,null,null,null,null,null,null,null,null,null,null,null,null,null,null,null,null,null,null,null,null,null,null,null,null,null,null,null,null,null,1,"-",1,null,{"$f":"BC404-BE404","v":0},null,"",null,908,"",{"$f":"IF($BL404=\"\", \"\", COUNTIF($BL$3:$BL$803, \">\"&$BL404)+1+COUNTIF($BL$3:$BL404, $BL404)-1)","v":""},null,null,null,null,null,908,null,877]
[null,null,null,null,null,null,null,null,null,null,null,null,null,null,null,null,null,null,null,null,null,null,null,null,null,null,null,null,null,null,null,null,null,null,null,null,null,null,null,null,null,null,null,null,null,null,null,null,null,null,null,null,null,null,{"$f":"IF(BC404+1>20, 1, BC404+1)","v":2},"-",{"$f":"IF(BC405=1, BE404+1, BE404)","v":1},null,{"$f":"BC405-BE405","v":1},null,"X",null,212,212,{"$f":"IF($BL405=\"\", \"\", COUNTIF($BL$3:$BL$803, \">\"&$BL405)+1+COUNTIF($BL$3:$BL405, $BL405)-1)","v":13},null,null,null,null,null,212,null,748]
[null,null,null,null,null,null,null,null,null,null,null,null,null,null,null,null,null,null,null,null,null,null,null,null,null,null,null,null,null,null,null,null,null,null,null,null,null,null,null,null,null,null,null,null,null,null,null,null,null,null,null,null,null,null,{"$f":"IF(BC405+1>20, 1, BC405+1)","v":3},"-",{"$f":"IF(BC406=1, BE405+1, BE405)","v":1},null,2,null,"X",null,974,974,{"$f":"IF($BL406=\"\", \"\", COUNTIF($BL$3:$BL$803, \">\"&$BL406)+1+COUNTIF($BL$3:$BL406, $BL406)-1)","v":1},null,null,null,null,null,974,null,1]
[null,null,null,null,null,null,null,null,null,null,null,null,null,null,null,null,null,null,null,null,null,null,null,null,null,null,null,null,null,null,null,null,null,null,null,null,null,null,null,null,null,null,null,null,null,null,null,null,null,null,null,null,null,null,4,"-",1,null,3,null,"X",null,735,735,{"$f":"IF($BL407=\"\", \"\", COUNTIF($BL$3:$BL$803, \">\"&$BL407)+1+COUNTIF($BL$3:$BL407, $BL407)-1)","v":7},null,null,null,null,null,735,null,82]
[null,null,null,null,null,null,null,null,null,null,null,null,null,null,null,null,null,null,null,null,null,null,null,null,null,null,null,null,null,null,null,null,null,null,null,null,null,null,null,null,null,null,null,null,null,null,null,null,null,null,null,null,null,null,5,"-",1,null,4,null,"X",null,894,894,{"$f":"IF($BL408=\"\", \"\", COUNTIF($BL$3:$BL$803, \">\"&$BL408)+1+COUNTIF($BL$3:$BL408, $BL408)-1)","v":3},null,null,null,null,null,894,null,950]
[null,null,null,null,null,null,null,null,null,null,null,null,null,null,null,null,null,null,null,null,null,null,null,null,null,null,null,null,null,null,null,null,null,null,null,null,null,null,null,null,null,null,null,null,null,null,null,null,null,null,null,null,null,null,6,"-",1,null,5,null,"",null,171,"",{"$f":"IF($BL409=\"\", \"\", COUNTIF($BL$3:$BL$803, \">\"&$BL409)+1+COUNTIF($BL$3:$BL409, $BL409)-1)","v":""},null,null,null,null,null,171,null,336]
[null,null,null,null,null,null,null,null,null,null,null,null,null,null,null,null,null,null,null,null,null,null,null,null,null,null,null,null,null,null,null,null,null,null,null,null,null,null,null,null,null,null,null,null,null,null,null,null,null,null,null,null,null,null,7,"-",1,null,6,null,"",null,124,"",{"$f":"IF($BL410=\"\", \"\", COUNTIF($BL$3:$BL$803, \">\"&$BL410)+1+COUNTIF($BL$3:$BL410, $BL410)-1)","v":""},null,null,null,null,null,124,null,12]
[null,null,null,null,null,null,null,null,null,null,null,null,null,null,null,null,null,null,null,null,null,null,null,null,null,null,null,null,null,null,null,null,null,null,null,null,null,null,null,null,null,null,null,null,null,null,null,null,null,null,null,null,null,null,8,"-",1,null,7,null,"",null,495,"",{"$f":"IF($BL411=\"\", \"\", COUNTIF($BL$3:$BL$803, \">\"&$BL411)+1+COUNTIF($BL$3:$BL411, $BL411)-1)","v":""},null,null,null,null,null,495,null,914]
[null,null,null,null,null,null,null,null,null,null,null,null,null,null,null,null,null,null,null,null,null,null,null,null,null,null,null,null,null,null,null,null,null,null,null,null,null,null,null,null,null,null,null,null,null,null,null,null,null,null,null,null,null,null,9,"-",1,null,8,null,"",null,567,"",{"$f":"IF($BL412=\"\", \"\", COUNTIF($BL$3:$BL$803, \">\"&$BL412)+1+COUNTIF($BL$3:$BL412, $BL412)-1)","v":""},null,null,null,null,null,567,null,485]
[null,null,null,null,null,null,null,null,null,null,null,null,null,null,null,null,null,null,null,null,null,null,null,null,null,null,null,null,null,null,null,null,null,null,null,null,null,null,null,null,null,null,null,null,null,null,null,null,null,null,null,null,null,null,10,"-",1,null,9,null,"",null,469,"",{"$f":"IF($BL413=\"\", \"\", COUNTIF($BL$3:$BL$803, \">\"&$BL413)+1+COUNTIF($BL$3:$BL413, $BL413)-1)","v":""},null,null,null,null,null,469,null,433]
[null,null,null,null,null,null,null,null,null,null,null,null,null,null,null,null,null,null,null,null,null,null,null,null,null,null,null,null,null,null,null,null,null,null,null,null,null,null,null,null,null,null,null,null,null,null,null,null,null,null,null,null,null,null,11,"-",1,null,10,null,"",null,461,"",{"$f":"IF($BL414=\"\", \"\", COUNTIF($BL$3:$BL$803, \">\"&$BL414)+1+COUNTIF($BL$3:$BL414, $BL414)-1)","v":""},null,null,null,null,null,461,null,425]
[null,null,null,null,null,null,null,null,null,null,null,null,null,null,null,null,null,null,null,null,null,null,null,null,null,null,null,null,null,null,null,null,null,null,null,null,null,null,null,null,null,null,null,null,null,null,null,null,null,null,null,null,null,null,12,"-",1,null,11,null,"",null,653,"",{"$f":"IF($BL415=\"\", \"\", COUNTIF($BL$3:$BL$803, \">\"&$BL415)+1+COUNTIF($BL$3:$BL415, $BL415)-1)","v":""},null,null,null,null,null,653,null,1]
[null,null,null,null,null,null,null,null,null,null,null,null,null,null,null,null,null,null,null,null,null,null,null,null,null,null,null,null,null,null,null,null,null,null,null,null,null,null,null,null,null,null,null,null,null,null,null,null,null,null,null,null,null,null,13,"-",1,null,12,null,"",null,422,"",{"$f":"IF($BL416=\"\", \"\", COUNTIF($BL$3:$BL$803, \">\"&$BL416)+1+COUNTIF($BL$3:$BL416, $BL416)-1)","v":""},null,null,null,null,null,422,null,206]
[null,null,null,null,null,null,null,null,null,null,null,null,null,null,null,null,null,null,null,null,null,null,null,null,null,null,null,null,null,null,null,null,null,null,null,null,null,null,null,null,null,null,null,null,null,null,null,null,null,null,null,null,null,null,14,"-",1,null,13,null,"",null,408,"",{"$f":"IF($BL417=\"\", \"\", COUNTIF($BL$3:$BL$803, \">\"&$BL417)+1+COUNTIF($BL$3:$BL417, $BL417)-1)","v":""},null,null,null,null,null,408,null,917]
[null,null,null,null,null,null,null,null,null,null,null,null,null,null,null,null,null,null,null,null,null,null,null,null,null,null,null,null,null,null,null,null,null,null,null,null,null,null,null,null,null,null,null,null,null,null,null,null,null,null,null,null,null,null,15,"-",1,null,14,null,"",null,296,"",{"$f":"IF($BL418=\"\", \"\", COUNTIF($BL$3:$BL$803, \">\"&$BL418)+1+COUNTIF($BL$3:$BL418, $BL418)-1)","v":""},null,null,null,null,null,296,null,534]
[null,null,null,null,null,null,null,null,null,null,null,null,null,null,null,null,null,null,null,null,null,null,null,null,null,null,null,null,null,null,null,null,null,null,null,null,null,null,null,null,null,null,null,null,null,null,null,null,null,null,null,null,null,null,16,"-",1,null,15,null,"",null,497,"",{"$f":"IF($BL419=\"\", \"\", COUNTIF($BL$3:$BL$803, \">\"&$BL419)+1+COUNTIF($BL$3:$BL419, $BL419)-1)","v":""},null,null,null,null,null,497,null,58]
[null,null,null,null,null,null,null,null,null,null,null,null,null,null,null,null,null,null,null,null,null,null,null,null,null,null,null,null,null,null,null,null,null,null,null,null,null,null,null,null,null,null,null,null,null,null,null,null,null,null,null,null,null,null,17,"-",1,null,16,null,"",null,203,"",{"$f":"IF($BL420=\"\", \"\", COUNTIF($BL$3:$BL$803, \">\"&$BL420)+1+COUNTIF($BL$3:$BL420, $BL420)-1)","v":""},null,null,null,null,null,203,null,951]
[null,null,null,null,null,null,null,null,null,null,null,null,null,null,null,null,null,null,null,null,null,null,null,null,null,null,null,null,null,null,null,null,null,null,null,null,null,null,null,null,null,null,null,null,null,null,null,null,null,null,null,null,null,null,18,"-",1,null,17,null,"",null,404,"",{"$f":"IF($BL421=\"\", \"\", COUNTIF($BL$3:$BL$803, \">\"&$BL421)+1+COUNTIF($BL$3:$BL421, $BL421)-1)","v":""},null,null,null,null,null,404,null,64]
[null,null,null,null,null,null,null,null,null,null,null,null,null,null,null,null,null,null,null,null,null,null,null,null,null,null,null,null,null,null,null,null,null,null,null,null,null,null,null,null,null,null,null,null,null,null,null,null,null,null,null,null,null,null,19,"-",1,null,18,null,"",null,87,"",{"$f":"IF($BL422=\"\", \"\", COUNTIF($BL$3:$BL$803, \">\"&$BL422)+1+COUNTIF($BL$3:$BL422, $BL422)-1)","v":""},null,null,null,null,null,87,null,158]
[null,null,null,null,null,null,null,null,null,null,null,null,null,null,null,null,null,null,null,null,null,null,null,null,null,null,null,null,null,null,null,null,null,null,null,null,null,null,null,null,null,null,null,null,null,null,null,null,null,null,null,null,null,null,20,"-",1,null,19,null,"",null,193,"",{"$f":"IF($BL423=\"\", \"\", COUNTIF($BL$3:$BL$803, \">\"&$BL423)+1+COUNTIF($BL$3:$BL423, $BL423)-1)","v":""},null,null,null,null,null,193,null,24]
[null,null,null,null,null,null,null,null,null,null,null,null,null,null,null,null,null,null,null,null,null,null,null,null,null,null,null,null,null,null,null,null,null,null,null,null,null,null,null,null,null,null,null,null,null,null,null,null,null,null,null,null,null,null,1,"-",2,null,-1,null,"",null,782,"",{"$f":"IF($BL424=\"\", \"\", COUNTIF($BL$3:$BL$803, \">\"&$BL424)+1+COUNTIF($BL$3:$BL424, $BL424)-1)","v":""},null,null,null,null,null,782,null,466]
[null,null,null,null,null,null,null,null,null,null,null,null,null,null,null,null,null,null,null,null,null,null,null,null,null,null,null,null,null,null,null,null,null,null,null,null,null,null,null,null,null,null,null,null,null,null,null,null,null,null,null,null,null,null,2,"-",2,null,0,null,"",null,797,"",{"$f":"IF($BL425=\"\", \"\", COUNTIF($BL$3:$BL$803, \">\"&$BL425)+1+COUNTIF($BL$3:$BL425, $BL425)-1)","v":""},null,null,null,null,null,797,null,131]
[null,null,null,null,null,null,null,null,null,null,null,null,null,null,null,null,null,null,null,null,null,null,null,null,null,null,null,null,null,null,null,null,null,null,null,null,null,null,null,null,null,null,null,null,null,null,null,null,null,null,null,null,null,null,3,"-",2,null,1,null,"X",null,459,459,{"$f":"IF($BL426=\"\", \"\", COUNTIF($BL$3:$BL$803, \">\"&$BL426)+1+COUNTIF($BL$3:$BL426, $BL426)-1)","v":11},null,null,null,null,null,459,null,501]
[null,null,null,null,null,null,null,null,null,null,null,null,null,null,null,null,null,null,null,null,null,null,null,null,null,null,null,null,null,null,null,null,null,null,null,null,null,null,null,null,null,null,null,null,null,null,null,null,null,null,null,null,null,null,4,"-",2,null,2,null,"X",null,835,835,{"$f":"IF($BL427=\"\", \"\", COUNTIF($BL$3:$BL$803, \">\"&$BL427)+1+COUNTIF($BL$3:$BL427, $BL427)-1)","v":5},null,null,null,null,null,835,null,187]
[null,null,null,null,null,null,null,null,null,null,null,null,null,null,null,null,null,null,null,null,null,null,null,null,null,null,null,null,null,null,null,null,null,null,null,null,null,null,null,null,null,null,null,null,null,null,null,null,null,null,null,null,null,null,5,"-",2,null,3,null,"X",null,548,548,{"$f":"IF($BL428=\"\", \"\", COUNTIF($BL$3:$BL$803, \">\"&$BL428)+1+COUNTIF($BL$3:$BL428, $BL428)-1)","v":9},null,null,null,null,null,548,null,766]
[null,null,null,null,null,null,null,null,null,null,null,null,null,null,null,null,null,null,null,null,null,null,null,null,null,null,null,null,null,null,null,null,null,null,null,null,null,null,null,null,null,null,null,null,null,null,null,null,null,null,null,null,null,null,6,"-",2,null,4,null,"",null,143,"",{"$f":"IF($BL429=\"\", \"\", COUNTIF($BL$3:$BL$803, \">\"&$BL429)+1+COUNTIF($BL$3:$BL429, $BL429)-1)","v":""},null,null,null,null,null,143,null,815]
[null,null,null,null,null,null,null,null,null,null,null,null,null,null,null,null,null,null,null,null,null,null,null,null,null,null,null,null,null,null,null,null,null,null,null,null,null,null,null,null,null,null,null,null,null,null,null,null,null,null,null,null,null,null,7,"-",2,null,5,null,"",null,116,"",{"$f":"IF($BL430=\"\", \"\", COUNTIF($BL$3:$BL$803, \">\"&$BL430)+1+COUNTIF($BL$3:$BL430, $BL430)-1)","v":""},null,null,null,null,null,116,null,206]
[null,null,null,null,null,null,null,null,null,null,null,null,null,null,null,null,null,null,null,null,null,null,null,null,null,null,null,null,null,null,null,null,null,null,null,null,null,null,null,null,null,null,null,null,null,null,null,null,null,null,null,null,null,null,8,"-",2,null,6,null,"",null,418,"",{"$f":"IF($BL431=\"\", \"\", COUNTIF($BL$3:$BL$803, \">\"&$BL431)+1+COUNTIF($BL$3:$BL431, $BL431)-1)","v":""},null,null,null,null,null,418,null,142]
[null,null,null,null,null,null,null,null,null,null,null,null,null,null,null,null,null,null,null,null,null,null,null,null,null,null,null,null,null,null,null,null,null,null,null,null,null,null,null,null,null,null,null,null,null,null,null,null,null,null,null,null,null,null,9,"-",2,null,7,null,"",null,94,"",{"$f":"IF($BL432=\"\", \"\", COUNTIF($BL$3:$BL$803, \">\"&$BL432)+1+COUNTIF($BL$3:$BL432, $BL432)-1)","v":""},null,null,null,null,null,94,null,986]
[null,null,null,null,null,null,null,null,null,null,null,null,null,null,null,null,null,null,null,null,null,null,null,null,null,null,null,null,null,null,null,null,null,null,null,null,null,null,null,null,null,null,null,null,null,null,null,null,null,null,null,null,null,null,10,"-",2,null,8,null,"",null,554,"",{"$f":"IF($BL433=\"\", \"\", COUNTIF($BL$3:$BL$803, \">\"&$BL433)+1+COUNTIF($BL$3:$BL433, $BL433)-1)","v":""},null,null,null,null,null,554,null,41]
[null,null,null,null,null,null,null,null,null,null,null,null,null,null,null,null,null,null,null,null,null,null,null,null,null,null,null,null,null,null,null,null,null,null,null,null,null,null,null,null,null,null,null,null,null,null,null,null,null,null,null,null,null,null,11,"-",2,null,9,null,"",null,769,"",{"$f":"IF($BL434=\"\", \"\", COUNTIF($BL$3:$BL$803, \">\"&$BL434)+1+COUNTIF($BL$3:$BL434, $BL434)-1)","v":""},null,null,null,null,null,769,null,965]
[null,null,null,null,null,null,null,null,null,null,null,null,null,null,null,null,null,null,null,null,null,null,null,null,null,null,null,null,null,null,null,null,null,null,null,null,null,null,null,null,null,null,null,null,null,null,null,null,null,null,null,null,null,null,12,"-",2,null,10,null,"",null,594,"",{"$f":"IF($BL435=\"\", \"\", COUNTIF($BL$3:$BL$803, \">\"&$BL435)+1+COUNTIF($BL$3:$BL435, $BL435)-1)","v":""},null,null,null,null,null,594,null,711]
[null,null,null,null,null,null,null,null,null,null,null,null,null,null,null,null,null,null,null,null,null,null,null,null,null,null,null,null,null,null,null,null,null,null,null,null,null,null,null,null,null,null,null,null,null,null,null,null,null,null,null,null,null,null,13,"-",2,null,11,null,"",null,71,"",{"$f":"IF($BL436=\"\", \"\", COUNTIF($BL$3:$BL$803, \">\"&$BL436)+1+COUNTIF($BL$3:$BL436, $BL436)-1)","v":""},null,null,null,null,null,71,null,3]
[null,null,null,null,null,null,null,null,null,null,null,null,null,null,null,null,null,null,null,null,null,null,null,null,null,null,null,null,null,null,null,null,null,null,null,null,null,null,null,null,null,null,null,null,null,null,null,null,null,null,null,null,null,null,14,"-",2,null,12,null,"",null,655,"",{"$f":"IF($BL437=\"\", \"\", COUNTIF($BL$3:$BL$803, \">\"&$BL437)+1+COUNTIF($BL$3:$BL437, $BL437)-1)","v":""},null,null,null,null,null,655,null,177]
[null,null,null,null,null,null,null,null,null,null,null,null,null,null,null,null,null,null,null,null,null,null,null,null,null,null,null,null,null,null,null,null,null,null,null,null,null,null,null,null,null,null,null,null,null,null,null,null,null,null,null,null,null,null,15,"-",2,null,13,null,"",null,977,"",{"$f":"IF($BL438=\"\", \"\", COUNTIF($BL$3:$BL$803, \">\"&$BL438)+1+COUNTIF($BL$3:$BL438, $BL438)-1)","v":""},null,null,null,null,null,977,null,284]
[null,null,null,null,null,null,null,null,null,null,null,null,null,null,null,null,null,null,null,null,null,null,null,null,null,null,null,null,null,null,null,null,null,null,null,null,null,null,null,null,null,null,null,null,null,null,null,null,null,null,null,null,null,null,16,"-",2,null,14,null,"",null,255,"",{"$f":"IF($BL439=\"\", \"\", COUNTIF($BL$3:$BL$803, \">\"&$BL439)+1+COUNTIF($BL$3:$BL439, $BL439)-1)","v":""},null,null,null,null,null,255,null,716]
[null,null,null,null,null,null,null,null,null,null,null,null,null,null,null,null,null,null,null,null,null,null,null,null,null,null,null,null,null,null,null,null,null,null,null,null,null,null,null,null,null,null,null,null,null,null,null,null,null,null,null,null,null,null,17,"-",2,null,15,null,"",null,527,"",{"$f":"IF($BL440=\"\", \"\", COUNTIF($BL$3:$BL$803, \">\"&$BL440)+1+COUNTIF($BL$3:$BL440, $BL440)-1)","v":""},null,null,null,null,null,527,null,379]
[null,null,null,null,null,null,null,null,null,null,null,null,null,null,null,null,null,null,null,null,null,null,null,null,null,null,null,null,null,null,null,null,null,null,null,null,null,null,null,null,null,null,null,null,null,null,null,null,null,null,null,null,null,null,18,"-",2,null,16,null,"",null,923,"",{"$f":"IF($BL441=\"\", \"\", COUNTIF($BL$3:$BL$803, \">\"&$BL441)+1+COUNTIF($BL$3:$BL441, $BL441)-1)","v":""},null,null,null,null,null,923,null,20]
[null,null,null,null,null,null,null,null,null,null,null,null,null,null,null,null,null,null,null,null,null,null,null,null,null,null,null,null,null,null,null,null,null,null,null,null,null,null,null,null,null,null,null,null,null,null,null,null,null,null,null,null,null,null,19,"-",2,null,17,null,"",null,658,"",{"$f":"IF($BL442=\"\", \"\", COUNTIF($BL$3:$BL$803, \">\"&$BL442)+1+COUNTIF($BL$3:$BL442, $BL442)-1)","v":""},null,null,null,null,null,658,null,517]
[null,null,null,null,null,null,null,null,null,null,null,null,null,null,null,null,null,null,null,null,null,null,null,null,null,null,null,null,null,null,null,null,null,null,null,null,null,null,null,null,null,null,null,null,null,null,null,null,null,null,null,null,null,null,20,"-",2,null,18,null,"",null,468,"",{"$f":"IF($BL443=\"\", \"\", COUNTIF($BL$3:$BL$803, \">\"&$BL443)+1+COUNTIF($BL$3:$BL443, $BL443)-1)","v":""},null,null,null,null,null,468,null,486]
[null,null,null,null,null,null,null,null,null,null,null,null,null,null,null,null,null,null,null,null,null,null,null,null,null,null,null,null,null,null,null,null,null,null,null,null,null,null,null,null,null,null,null,null,null,null,null,null,null,null,null,null,null,null,1,"-",3,null,-2,null,"",null,787,"",{"$f":"IF($BL444=\"\", \"\", COUNTIF($BL$3:$BL$803, \">\"&$BL444)+1+COUNTIF($BL$3:$BL444, $BL444)-1)","v":""},null,null,null,null,null,787,null,65]
[null,null,null,null,null,null,null,null,null,null,null,null,null,null,null,null,null,null,null,null,null,null,null,null,null,null,null,null,null,null,null,null,null,null,null,null,null,null,null,null,null,null,null,null,null,null,null,null,null,null,null,null,null,null,2,"-",3,null,-1,null,"",null,610,"",{"$f":"IF($BL445=\"\", \"\", COUNTIF($BL$3:$BL$803, \">\"&$BL445)+1+COUNTIF($BL$3:$BL445, $BL445)-1)","v":""},null,null,null,null,null,610,null,691]
[null,null,null,null,null,null,null,null,null,null,null,null,null,null,null,null,null,null,null,null,null,null,null,null,null,null,null,null,null,null,null,null,null,null,null,null,null,null,null,null,null,null,null,null,null,null,null,null,null,null,null,null,null,null,3,"-",3,null,0,null,"",null,636,"",{"$f":"IF($BL446=\"\", \"\", COUNTIF($BL$3:$BL$803, \">\"&$BL446)+1+COUNTIF($BL$3:$BL446, $BL446)-1)","v":""},null,null,null,null,null,636,null,477]
[null,null,null,null,null,null,null,null,null,null,null,null,null,null,null,null,null,null,null,null,null,null,null,null,null,null,null,null,null,null,null,null,null,null,null,null,null,null,null,null,null,null,null,null,null,null,null,null,null,null,null,null,null,null,4,"-",3,null,1,null,"X",null,59,59,{"$f":"IF($BL447=\"\", \"\", COUNTIF($BL$3:$BL$803, \">\"&$BL447)+1+COUNTIF($BL$3:$BL447, $BL447)-1)","v":18},null,null,null,null,null,59,null,219]
[null,null,null,null,null,null,null,null,null,null,null,null,null,null,null,null,null,null,null,null,null,null,null,null,null,null,null,null,null,null,null,null,null,null,null,null,null,null,null,null,null,null,null,null,null,null,null,null,null,null,null,null,null,null,5,"-",3,null,2,null,"X",null,157,157,{"$f":"IF($BL448=\"\", \"\", COUNTIF($BL$3:$BL$803, \">\"&$BL448)+1+COUNTIF($BL$3:$BL448, $BL448)-1)","v":15},null,null,null,null,null,157,null,346]
[null,null,null,null,null,null,null,null,null,null,null,null,null,null,null,null,null,null,null,null,null,null,null,null,null,null,null,null,null,null,null,null,null,null,null,null,null,null,null,null,null,null,null,null,null,null,null,null,null,null,null,null,null,null,6,"-",3,null,3,null,"",null,441,"",{"$f":"IF($BL449=\"\", \"\", COUNTIF($BL$3:$BL$803, \">\"&$BL449)+1+COUNTIF($BL$3:$BL449, $BL449)-1)","v":""},null,null,null,null,null,441,null,280]
[null,null,null,null,null,null,null,null,null,null,null,null,null,null,null,null,null,null,null,null,null,null,null,null,null,null,null,null,null,null,null,null,null,null,null,null,null,null,null,null,null,null,null,null,null,null,null,null,null,null,null,null,null,null,7,"-",3,null,4,null,"",null,672,"",{"$f":"IF($BL450=\"\", \"\", COUNTIF($BL$3:$BL$803, \">\"&$BL450)+1+COUNTIF($BL$3:$BL450, $BL450)-1)","v":""},null,null,null,null,null,672,null,198]
[null,null,null,null,null,null,null,null,null,null,null,null,null,null,null,null,null,null,null,null,null,null,null,null,null,null,null,null,null,null,null,null,null,null,null,null,null,null,null,null,null,null,null,null,null,null,null,null,null,null,null,null,null,null,8,"-",3,null,5,null,"",null,603,"",{"$f":"IF($BL451=\"\", \"\", COUNTIF($BL$3:$BL$803, \">\"&$BL451)+1+COUNTIF($BL$3:$BL451, $BL451)-1)","v":""},null,null,null,null,null,603,null,16]
[null,null,null,null,null,null,null,null,null,null,null,null,null,null,null,null,null,null,null,null,null,null,null,null,null,null,null,null,null,null,null,null,null,null,null,null,null,null,null,null,null,null,null,null,null,null,null,null,null,null,null,null,null,null,9,"-",3,null,6,null,{"$f":"IF(COUNTIF($BP$5:$BP$6, $BD452)=0, \"\", IF(OR($BC452>$BP$3, $BE452>$BP$3, $BG452>$BP$3, $BG452<$BP$8), \"\", \"X\"))","v":""},null,{"$f":"$BS452","v":456},{"$f":"IF($BI452=\"\", \"\", $BK452)","v":""},{"$f":"IF($BL452=\"\", \"\", COUNTIF($BL$3:$BL$803, \">\"&$BL452)+1+COUNTIF($BL$3:$BL452, $BL452)-1)","v":""},null,null,null,null,null,456,null,{"$f":"RANDBETWEEN(1, 1000)","v":628}]
[null,null,null,null,null,null,null,null,null,null,null,null,null,null,null,null,null,null,null,null,null,null,null,null,null,null,null,null,null,null,null,null,null,null,null,null,null,null,null,null,null,null,null,null,null,null,null,null,null,null,null,null,null,null,10,"-",3,null,7,null,"",null,467,"",{"$f":"IF($BL453=\"\", \"\", COUNTIF($BL$3:$BL$803, \">\"&$BL453)+1+COUNTIF($BL$3:$BL453, $BL453)-1)","v":""},null,null,null,null,null,467,null,263]
[null,null,null,null,null,null,null,null,null,null,null,null,null,null,null,null,null,null,null,null,null,null,null,null,null,null,null,null,null,null,null,null,null,null,null,null,null,null,null,null,null,null,null,null,null,null,null,null,null,null,null,null,null,null,11,"-",3,null,8,null,"",null,197,"",{"$f":"IF($BL454=\"\", \"\", COUNTIF($BL$3:$BL$803, \">\"&$BL454)+1+COUNTIF($BL$3:$BL454, $BL454)-1)","v":""},null,null,null,null,null,197,null,200]
[null,null,null,null,null,null,null,null,null,null,null,null,null,null,null,null,null,null,null,null,null,null,null,null,null,null,null,null,null,null,null,null,null,null,null,null,null,null,null,null,null,null,null,null,null,null,null,null,null,null,null,null,null,null,12,"-",3,null,9,null,"",null,934,"",{"$f":"IF($BL455=\"\", \"\", COUNTIF($BL$3:$BL$803, \">\"&$BL455)+1+COUNTIF($BL$3:$BL455, $BL455)-1)","v":""},null,null,null,null,null,934,null,9]
[null,null,null,null,null,null,null,null,null,null,null,null,null,null,null,null,null,null,null,null,null,null,null,null,null,null,null,null,null,null,null,null,null,null,null,null,null,null,null,null,null,null,null,null,null,null,null,null,null,null,null,null,null,null,13,"-",3,null,10,null,"",null,112,"",{"$f":"IF($BL456=\"\", \"\", COUNTIF($BL$3:$BL$803, \">\"&$BL456)+1+COUNTIF($BL$3:$BL456, $BL456)-1)","v":""},null,null,null,null,null,112,null,424]
[null,null,null,null,null,null,null,null,null,null,null,null,null,null,null,null,null,null,null,null,null,null,null,null,null,null,null,null,null,null,null,null,null,null,null,null,null,null,null,null,null,null,null,null,null,null,null,null,null,null,null,null,null,null,14,"-",3,null,11,null,"",null,999,"",{"$f":"IF($BL457=\"\", \"\", COUNTIF($BL$3:$BL$803, \">\"&$BL457)+1+COUNTIF($BL$3:$BL457, $BL457)-1)","v":""},null,null,null,null,null,999,null,345]
[null,null,null,null,null,null,null,null,null,null,null,null,null,null,null,null,null,null,null,null,null,null,null,null,null,null,null,null,null,null,null,null,null,null,null,null,null,null,null,null,null,null,null,null,null,null,null,null,null,null,null,null,null,null,15,"-",3,null,12,null,"",null,184,"",{"$f":"IF($BL458=\"\", \"\", COUNTIF($BL$3:$BL$803, \">\"&$BL458)+1+COUNTIF($BL$3:$BL458, $BL458)-1)","v":""},null,null,null,null,null,184,null,328]
[null,null,null,null,null,null,null,null,null,null,null,null,null,null,null,null,null,null,null,null,null,null,null,null,null,null,null,null,null,null,null,null,null,null,null,null,null,null,null,null,null,null,null,null,null,null,null,null,null,null,null,null,null,null,16,"-",3,null,13,null,"",null,1,"",{"$f":"IF($BL459=\"\", \"\", COUNTIF($BL$3:$BL$803, \">\"&$BL459)+1+COUNTIF($BL$3:$BL459, $BL459)-1)","v":""},null,null,null,null,null,1,null,703]
[null,null,null,null,null,null,null,null,null,null,null,null,null,null,null,null,null,null,null,null,null,null,null,null,null,null,null,null,null,null,null,null,null,null,null,null,null,null,null,null,null,null,null,null,null,null,null,null,null,null,null,null,null,null,17,"-",3,null,14,null,"",null,41,"",{"$f":"IF($BL460=\"\", \"\", COUNTIF($BL$3:$BL$803, \">\"&$BL460)+1+COUNTIF($BL$3:$BL460, $BL460)-1)","v":""},null,null,null,null,null,41,null,668]
[null,null,null,null,null,null,null,null,null,null,null,null,null,null,null,null,null,null,null,null,null,null,null,null,null,null,null,null,null,null,null,null,null,null,null,null,null,null,null,null,null,null,null,null,null,null,null,null,null,null,null,null,null,null,18,"-",3,null,15,null,"",null,521,"",{"$f":"IF($BL461=\"\", \"\", COUNTIF($BL$3:$BL$803, \">\"&$BL461)+1+COUNTIF($BL$3:$BL461, $BL461)-1)","v":""},null,null,null,null,null,521,null,754]
[null,null,null,null,null,null,null,null,null,null,null,null,null,null,null,null,null,null,null,null,null,null,null,null,null,null,null,null,null,null,null,null,null,null,null,null,null,null,null,null,null,null,null,null,null,null,null,null,null,null,null,null,null,null,19,"-",3,null,16,null,"",null,691,"",{"$f":"IF($BL462=\"\", \"\", COUNTIF($BL$3:$BL$803, \">\"&$BL462)+1+COUNTIF($BL$3:$BL462, $BL462)-1)","v":""},null,null,null,null,null,691,null,944]
[null,null,null,null,null,null,null,null,null,null,null,null,null,null,null,null,null,null,null,null,null,null,null,null,null,null,null,null,null,null,null,null,null,null,null,null,null,null,null,null,null,null,null,null,null,null,null,null,null,null,null,null,null,null,20,"-",3,null,17,null,"",null,926,"",{"$f":"IF($BL463=\"\", \"\", COUNTIF($BL$3:$BL$803, \">\"&$BL463)+1+COUNTIF($BL$3:$BL463, $BL463)-1)","v":""},null,null,null,null,null,926,null,952]
[null,null,null,null,null,null,null,null,null,null,null,null,null,null,null,null,null,null,null,null,null,null,null,null,null,null,null,null,null,null,null,null,null,null,null,null,null,null,null,null,null,null,null,null,null,null,null,null,null,null,null,null,null,null,1,"-",4,null,-3,null,"",null,709,"",{"$f":"IF($BL464=\"\", \"\", COUNTIF($BL$3:$BL$803, \">\"&$BL464)+1+COUNTIF($BL$3:$BL464, $BL464)-1)","v":""},null,null,null,null,null,709,null,557]
[null,null,null,null,null,null,null,null,null,null,null,null,null,null,null,null,null,null,null,null,null,null,null,null,null,null,null,null,null,null,null,null,null,null,null,null,null,null,null,null,null,null,null,null,null,null,null,null,null,null,null,null,null,null,2,"-",4,null,-2,null,"",null,1000,"",{"$f":"IF($BL465=\"\", \"\", COUNTIF($BL$3:$BL$803, \">\"&$BL465)+1+COUNTIF($BL$3:$BL465, $BL465)-1)","v":""},null,null,null,null,null,1000,null,934]
[null,null,null,null,null,null,null,null,null,null,null,null,null,null,null,null,null,null,null,null,null,null,null,null,null,null,null,null,null,null,null,null,null,null,null,null,null,null,null,null,null,null,null,null,null,null,null,null,null,null,null,null,null,null,3,"-",4,null,-1,null,"",null,502,"",{"$f":"IF($BL466=\"\", \"\", COUNTIF($BL$3:$BL$803, \">\"&$BL466)+1+COUNTIF($BL$3:$BL466, $BL466)-1)","v":""},null,null,null,null,null,502,null,664]
[null,null,null,null,null,null,null,null,null,null,null,null,null,null,null,null,null,null,null,null,null,null,null,null,null,null,null,null,null,null,null,null,null,null,null,null,null,null,null,null,null,null,null,null,null,null,null,null,null,null,null,null,null,null,4,"-",4,null,0,null,"",null,31,"",{"$f":"IF($BL467=\"\", \"\", COUNTIF($BL$3:$BL$803, \">\"&$BL467)+1+COUNTIF($BL$3:$BL467, $BL467)-1)","v":""},null,null,null,null,null,31,null,467]
[null,null,null,null,null,null,null,null,null,null,null,null,null,null,null,null,null,null,null,null,null,null,null,null,null,null,null,null,null,null,null,null,null,null,null,null,null,null,null,null,null,null,null,null,null,null,null,null,null,null,null,null,null,null,5,"-",4,null,1,null,"X",null,634,634,{"$f":"IF($BL468=\"\", \"\", COUNTIF($BL$3:$BL$803, \">\"&$BL468)+1+COUNTIF($BL$3:$BL468, $BL468)-1)","v":8},null,null,null,null,null,634,null,621]
[null,null,null,null,null,null,null,null,null,null,null,null,null,null,null,null,null,null,null,null,null,null,null,null,null,null,null,null,null,null,null,null,null,null,null,null,null,null,null,null,null,null,null,null,null,null,null,null,null,null,null,null,null,null,6,"-",4,null,{"$f":"BC469-BE469","v":2},null,"",null,426,"",{"$f":"IF($BL469=\"\", \"\", COUNTIF($BL$3:$BL$803, \">\"&$BL469)+1+COUNTIF($BL$3:$BL469, $BL469)-1)","v":""},null,null,null,null,null,426,null,215]
[null,null,null,null,null,null,null,null,null,null,null,null,null,null,null,null,null,null,null,null,null,null,null,null,null,null,null,null,null,null,null,null,null,null,null,null,null,null,null,null,null,null,null,null,null,null,null,null,null,null,null,null,null,null,{"$f":"IF(BC469+1>20, 1, BC469+1)","v":7},"-",{"$f":"IF(BC470=1, BE469+1, BE469)","v":4},null,3,null,"",null,800,"",{"$f":"IF($BL470=\"\", \"\", COUNTIF($BL$3:$BL$803, \">\"&$BL470)+1+COUNTIF($BL$3:$BL470, $BL470)-1)","v":""},null,null,null,null,null,800,null,282]
[null,null,null,null,null,null,null,null,null,null,null,null,null,null,null,null,null,null,null,null,null,null,null,null,null,null,null,null,null,null,null,null,null,null,null,null,null,null,null,null,null,null,null,null,null,null,null,null,null,null,null,null,null,null,8,"-",4,null,4,null,"",null,418,"",{"$f":"IF($BL471=\"\", \"\", COUNTIF($BL$3:$BL$803, \">\"&$BL471)+1+COUNTIF($BL$3:$BL471, $BL471)-1)","v":""},null,null,null,null,null,418,null,279]
[null,null,null,null,null,null,null,null,null,null,null,null,null,null,null,null,null,null,null,null,null,null,null,null,null,null,null,null,null,null,null,null,null,null,null,null,null,null,null,null,null,null,null,null,null,null,null,null,null,null,null,null,null,null,9,"-",4,null,5,null,"",null,184,"",{"$f":"IF($BL472=\"\", \"\", COUNTIF($BL$3:$BL$803, \">\"&$BL472)+1+COUNTIF($BL$3:$BL472, $BL472)-1)","v":""},null,null,null,null,null,184,null,59]
[null,null,null,null,null,null,null,null,null,null,null,null,null,null,null,null,null,null,null,null,null,null,null,null,null,null,null,null,null,null,null,null,null,null,null,null,null,null,null,null,null,null,null,null,null,null,null,null,null,null,null,null,null,null,10,"-",4,null,6,null,"",null,939,"",{"$f":"IF($BL473=\"\", \"\", COUNTIF($BL$3:$BL$803, \">\"&$BL473)+1+COUNTIF($BL$3:$BL473, $BL473)-1)","v":""},null,null,null,null,null,939,null,401]
[null,null,null,null,null,null,null,null,null,null,null,null,null,null,null,null,null,null,null,null,null,null,null,null,null,null,null,null,null,null,null,null,null,null,null,null,null,null,null,null,null,null,null,null,null,null,null,null,null,null,null,null,null,null,11,"-",4,null,7,null,"",null,863,"",{"$f":"IF($BL474=\"\", \"\", COUNTIF($BL$3:$BL$803, \">\"&$BL474)+1+COUNTIF($BL$3:$BL474, $BL474)-1)","v":""},null,null,null,null,null,863,null,702]
[null,null,null,null,null,null,null,null,null,null,null,null,null,null,null,null,null,null,null,null,null,null,null,null,null,null,null,null,null,null,null,null,null,null,null,null,null,null,null,null,null,null,null,null,null,null,null,null,null,null,null,null,null,null,12,"-",4,null,8,null,"",null,313,"",{"$f":"IF($BL475=\"\", \"\", COUNTIF($BL$3:$BL$803, \">\"&$BL475)+1+COUNTIF($BL$3:$BL475, $BL475)-1)","v":""},null,null,null,null,null,313,null,942]
[null,null,null,null,null,null,null,null,null,null,null,null,null,null,null,null,null,null,null,null,null,null,null,null,null,null,null,null,null,null,null,null,null,null,null,null,null,null,null,null,null,null,null,null,null,null,null,null,null,null,null,null,null,null,13,"-",4,null,9,null,"",null,313,"",{"$f":"IF($BL476=\"\", \"\", COUNTIF($BL$3:$BL$803, \">\"&$BL476)+1+COUNTIF($BL$3:$BL476, $BL476)-1)","v":""},null,null,null,null,null,313,null,370]
[null,null,null,null,null,null,null,null,null,null,null,null,null,null,null,null,null,null,null,null,null,null,null,null,null,null,null,null,null,null,null,null,null,null,null,null,null,null,null,null,null,null,null,null,null,null,null,null,null,null,null,null,null,null,14,"-",4,null,10,null,"",null,314,"",{"$f":"IF($BL477=\"\", \"\", COUNTIF($BL$3:$BL$803, \">\"&$BL477)+1+COUNTIF($BL$3:$BL477, $BL477)-1)","v":""},null,null,null,null,null,314,null,410]
[null,null,null,null,null,null,null,null,null,null,null,null,null,null,null,null,null,null,null,null,null,null,null,null,null,null,null,null,null,null,null,null,null,null,null,null,null,null,null,null,null,null,null,null,null,null,null,null,null,null,null,null,null,null,15,"-",4,null,11,null,"",null,576,"",{"$f":"IF($BL478=\"\", \"\", COUNTIF($BL$3:$BL$803, \">\"&$BL478)+1+COUNTIF($BL$3:$BL478, $BL478)-1)","v":""},null,null,null,null,null,576,null,793]
[null,null,null,null,null,null,null,null,null,null,null,null,null,null,null,null,null,null,null,null,null,null,null,null,null,null,null,null,null,null,null,null,null,null,null,null,null,null,null,null,null,null,null,null,null,null,null,null,null,null,null,null,null,null,16,"-",4,null,12,null,"",null,731,"",{"$f":"IF($BL479=\"\", \"\", COUNTIF($BL$3:$BL$803, \">\"&$BL479)+1+COUNTIF($BL$3:$BL479, $BL479)-1)","v":""},null,null,null,null,null,731,null,140]
[null,null,null,null,null,null,null,null,null,null,null,null,null,null,null,null,null,null,null,null,null,null,null,null,null,null,null,null,null,null,null,null,null,null,null,null,null,null,null,null,null,null,null,null,null,null,null,null,null,null,null,null,null,null,17,"-",4,null,13,null,"",null,311,"",{"$f":"IF($BL480=\"\", \"\", COUNTIF($BL$3:$BL$803, \">\"&$BL480)+1+COUNTIF($BL$3:$BL480, $BL480)-1)","v":""},null,null,null,null,null,311,null,941]
[null,null,null,null,null,null,null,null,null,null,null,null,null,null,null,null,null,null,null,null,null,null,null,null,null,null,null,null,null,null,null,null,null,null,null,null,null,null,null,null,null,null,null,null,null,null,null,null,null,null,null,null,null,null,18,"-",4,null,14,null,"",null,147,"",{"$f":"IF($BL481=\"\", \"\", COUNTIF($BL$3:$BL$803, \">\"&$BL481)+1+COUNTIF($BL$3:$BL481, $BL481)-1)","v":""},null,null,null,null,null,147,null,97]
[null,null,null,null,null,null,null,null,null,null,null,null,null,null,null,null,null,null,null,null,null,null,null,null,null,null,null,null,null,null,null,null,null,null,null,null,null,null,null,null,null,null,null,null,null,null,null,null,null,null,null,null,null,null,19,"-",4,null,15,null,"",null,992,"",{"$f":"IF($BL482=\"\", \"\", COUNTIF($BL$3:$BL$803, \">\"&$BL482)+1+COUNTIF($BL$3:$BL482, $BL482)-1)","v":""},null,null,null,null,null,992,null,533]
[null,null,null,null,null,null,null,null,null,null,null,null,null,null,null,null,null,null,null,null,null,null,null,null,null,null,null,null,null,null,null,null,null,null,null,null,null,null,null,null,null,null,null,null,null,null,null,null,null,null,null,null,null,null,20,"-",4,null,16,null,"",null,522,"",{"$f":"IF($BL483=\"\", \"\", COUNTIF($BL$3:$BL$803, \">\"&$BL483)+1+COUNTIF($BL$3:$BL483, $BL483)-1)","v":""},null,null,null,null,null,522,null,485]
[null,null,null,null,null,null,null,null,null,null,null,null,null,null,null,null,null,null,null,null,null,null,null,null,null,null,null,null,null,null,null,null,null,null,null,null,null,null,null,null,null,null,null,null,null,null,null,null,null,null,null,null,null,null,1,"-",5,null,-4,null,"",null,652,"",{"$f":"IF($BL484=\"\", \"\", COUNTIF($BL$3:$BL$803, \">\"&$BL484)+1+COUNTIF($BL$3:$BL484, $BL484)-1)","v":""},null,null,null,null,null,652,null,947]
[null,null,null,null,null,null,null,null,null,null,null,null,null,null,null,null,null,null,null,null,null,null,null,null,null,null,null,null,null,null,null,null,null,null,null,null,null,null,null,null,null,null,null,null,null,null,null,null,null,null,null,null,null,null,2,"-",5,null,-3,null,"",null,677,"",{"$f":"IF($BL485=\"\", \"\", COUNTIF($BL$3:$BL$803, \">\"&$BL485)+1+COUNTIF($BL$3:$BL485, $BL485)-1)","v":""},null,null,null,null,null,677,null,657]
[null,null,null,null,null,null,null,null,null,null,null,null,null,null,null,null,null,null,null,null,null,null,null,null,null,null,null,null,null,null,null,null,null,null,null,null,null,null,null,null,null,null,null,null,null,null,null,null,null,null,null,null,null,null,3,"-",5,null,-2,null,"",null,555,"",{"$f":"IF($BL486=\"\", \"\", COUNTIF($BL$3:$BL$803, \">\"&$BL486)+1+COUNTIF($BL$3:$BL486, $BL486)-1)","v":""},null,null,null,null,null,555,null,127]
[null,null,null,null,null,null,null,null,null,null,null,null,null,null,null,null,null,null,null,null,null,null,null,null,null,null,null,null,null,null,null,null,null,null,null,null,null,null,null,null,null,null,null,null,null,null,null,null,null,null,null,null,null,null,4,"-",5,null,-1,null,"",null,993,"",{"$f":"IF($BL487=\"\", \"\", COUNTIF($BL$3:$BL$803, \">\"&$BL487)+1+COUNTIF($BL$3:$BL487, $BL487)-1)","v":""},null,null,null,null,null,993,null,479]
[null,null,null,null,null,null,null,null,null,null,null,null,null,null,null,null,null,null,null,null,null,null,null,null,null,null,null,null,null,null,null,null,null,null,null,null,null,null,null,null,null,null,null,null,null,null,null,null,null,null,null,null,null,null,5,"-",5,null,0,null,"",null,779,"",{"$f":"IF($BL488=\"\", \"\", COUNTIF($BL$3:$BL$803, \">\"&$BL488)+1+COUNTIF($BL$3:$BL488, $BL488)-1)","v":""},null,null,null,null,null,779,null,357]
[null,null,null,null,null,null,null,null,null,null,null,null,null,null,null,null,null,null,null,null,null,null,null,null,null,null,null,null,null,null,null,null,null,null,null,null,null,null,null,null,null,null,null,null,null,null,null,null,null,null,null,null,null,null,6,"-",5,null,1,null,"",null,962,"",{"$f":"IF($BL489=\"\", \"\", COUNTIF($BL$3:$BL$803, \">\"&$BL489)+1+COUNTIF($BL$3:$BL489, $BL489)-1)","v":""},null,null,null,null,null,962,null,279]
[null,null,null,null,null,null,null,null,null,null,null,null,null,null,null,null,null,null,null,null,null,null,null,null,null,null,null,null,null,null,null,null,null,null,null,null,null,null,null,null,null,null,null,null,null,null,null,null,null,null,null,null,null,null,7,"-",5,null,2,null,"",null,45,"",{"$f":"IF($BL490=\"\", \"\", COUNTIF($BL$3:$BL$803, \">\"&$BL490)+1+COUNTIF($BL$3:$BL490, $BL490)-1)","v":""},null,null,null,null,null,45,null,972]
[null,null,null,null,null,null,null,null,null,null,null,null,null,null,null,null,null,null,null,null,null,null,null,null,null,null,null,null,null,null,null,null,null,null,null,null,null,null,null,null,null,null,null,null,null,null,null,null,null,null,null,null,null,null,8,"-",5,null,3,null,"",null,180,"",{"$f":"IF($BL491=\"\", \"\", COUNTIF($BL$3:$BL$803, \">\"&$BL491)+1+COUNTIF($BL$3:$BL491, $BL491)-1)","v":""},null,null,null,null,null,180,null,608]
[null,null,null,null,null,null,null,null,null,null,null,null,null,null,null,null,null,null,null,null,null,null,null,null,null,null,null,null,null,null,null,null,null,null,null,null,null,null,null,null,null,null,null,null,null,null,null,null,null,null,null,null,null,null,9,"-",5,null,4,null,"",null,811,"",{"$f":"IF($BL492=\"\", \"\", COUNTIF($BL$3:$BL$803, \">\"&$BL492)+1+COUNTIF($BL$3:$BL492, $BL492)-1)","v":""},null,null,null,null,null,811,null,609]
[null,null,null,null,null,null,null,null,null,null,null,null,null,null,null,null,null,null,null,null,null,null,null,null,null,null,null,null,null,null,null,null,null,null,null,null,null,null,null,null,null,null,null,null,null,null,null,null,null,null,null,null,null,null,10,"-",5,null,5,null,"",null,894,"",{"$f":"IF($BL493=\"\", \"\", COUNTIF($BL$3:$BL$803, \">\"&$BL493)+1+COUNTIF($BL$3:$BL493, $BL493)-1)","v":""},null,null,null,null,null,894,null,469]
[null,null,null,null,null,null,null,null,null,null,null,null,null,null,null,null,null,null,null,null,null,null,null,null,null,null,null,null,null,null,null,null,null,null,null,null,null,null,null,null,null,null,null,null,null,null,null,null,null,null,null,null,null,null,11,"-",5,null,6,null,"",null,939,"",{"$f":"IF($BL494=\"\", \"\", COUNTIF($BL$3:$BL$803, \">\"&$BL494)+1+COUNTIF($BL$3:$BL494, $BL494)-1)","v":""},null,null,null,null,null,939,null,26]
[null,null,null,null,null,null,null,null,null,null,null,null,null,null,null,null,null,null,null,null,null,null,null,null,null,null,null,null,null,null,null,null,null,null,null,null,null,null,null,null,null,null,null,null,null,null,null,null,null,null,null,null,null,null,12,"-",5,null,7,null,"",null,841,"",{"$f":"IF($BL495=\"\", \"\", COUNTIF($BL$3:$BL$803, \">\"&$BL495)+1+COUNTIF($BL$3:$BL495, $BL495)-1)","v":""},null,null,null,null,null,841,null,19]
[null,null,null,null,null,null,null,null,null,null,null,null,null,null,null,null,null,null,null,null,null,null,null,null,null,null,null,null,null,null,null,null,null,null,null,null,null,null,null,null,null,null,null,null,null,null,null,null,null,null,null,null,null,null,13,"-",5,null,8,null,"",null,518,"",{"$f":"IF($BL496=\"\", \"\", COUNTIF($BL$3:$BL$803, \">\"&$BL496)+1+COUNTIF($BL$3:$BL496, $BL496)-1)","v":""},null,null,null,null,null,518,null,656]
[null,null,null,null,null,null,null,null,null,null,null,null,null,null,null,null,null,null,null,null,null,null,null,null,null,null,null,null,null,null,null,null,null,null,null,null,null,null,null,null,null,null,null,null,null,null,null,null,null,null,null,null,null,null,14,"-",5,null,9,null,"",null,365,"",{"$f":"IF($BL497=\"\", \"\", COUNTIF($BL$3:$BL$803, \">\"&$BL497)+1+COUNTIF($BL$3:$BL497, $BL497)-1)","v":""},null,null,null,null,null,365,null,233]
[null,null,null,null,null,null,null,null,null,null,null,null,null,null,null,null,null,null,null,null,null,null,null,null,null,null,null,null,null,null,null,null,null,null,null,null,null,null,null,null,null,null,null,null,null,null,null,null,null,null,null,null,null,null,15,"-",5,null,10,null,"",null,680,"",{"$f":"IF($BL498=\"\", \"\", COUNTIF($BL$3:$BL$803, \">\"&$BL498)+1+COUNTIF($BL$3:$BL498, $BL498)-1)","v":""},null,null,null,null,null,680,null,180]
[null,null,null,null,null,null,null,null,null,null,null,null,null,null,null,null,null,null,null,null,null,null,null,null,null,null,null,null,null,null,null,null,null,null,null,null,null,null,null,null,null,null,null,null,null,null,null,null,null,null,null,null,null,null,16,"-",5,null,11,null,"",null,701,"",{"$f":"IF($BL499=\"\", \"\", COUNTIF($BL$3:$BL$803, \">\"&$BL499)+1+COUNTIF($BL$3:$BL499, $BL499)-1)","v":""},null,null,null,null,null,701,null,127]
[null,null,null,null,null,null,null,null,null,null,null,null,null,null,null,null,null,null,null,null,null,null,null,null,null,null,null,null,null,null,null,null,null,null,null,null,null,null,null,null,null,null,null,null,null,null,null,null,null,null,null,null,null,null,17,"-",5,null,12,null,"",null,72,"",{"$f":"IF($BL500=\"\", \"\", COUNTIF($BL$3:$BL$803, \">\"&$BL500)+1+COUNTIF($BL$3:$BL500, $BL500)-1)","v":""},null,null,null,null,null,72,null,897]
[null,null,null,null,null,null,null,null,null,null,null,null,null,null,null,null,null,null,null,null,null,null,null,null,null,null,null,null,null,null,null,null,null,null,null,null,null,null,null,null,null,null,null,null,null,null,null,null,null,null,null,null,null,null,18,"-",5,null,13,null,"",null,471,"",{"$f":"IF($BL501=\"\", \"\", COUNTIF($BL$3:$BL$803, \">\"&$BL501)+1+COUNTIF($BL$3:$BL501, $BL501)-1)","v":""},null,null,null,null,null,471,null,124]
[null,null,null,null,null,null,null,null,null,null,null,null,null,null,null,null,null,null,null,null,null,null,null,null,null,null,null,null,null,null,null,null,null,null,null,null,null,null,null,null,null,null,null,null,null,null,null,null,null,null,null,null,null,null,19,"-",5,null,14,null,"",null,589,"",{"$f":"IF($BL502=\"\", \"\", COUNTIF($BL$3:$BL$803, \">\"&$BL502)+1+COUNTIF($BL$3:$BL502, $BL502)-1)","v":""},null,null,null,null,null,589,null,280]
[null,null,null,null,null,null,null,null,null,null,null,null,null,null,null,null,null,null,null,null,null,null,null,null,null,null,null,null,null,null,null,null,null,null,null,null,null,null,null,null,null,null,null,null,null,null,null,null,null,null,null,null,null,null,20,"-",5,null,15,null,"",null,272,"",{"$f":"IF($BL503=\"\", \"\", COUNTIF($BL$3:$BL$803, \">\"&$BL503)+1+COUNTIF($BL$3:$BL503, $BL503)-1)","v":""},null,null,null,null,null,272,null,465]
[null,null,null,null,null,null,null,null,null,null,null,null,null,null,null,null,null,null,null,null,null,null,null,null,null,null,null,null,null,null,null,null,null,null,null,null,null,null,null,null,null,null,null,null,null,null,null,null,null,null,null,null,null,null,1,"-",6,null,-5,null,"",null,221,"",{"$f":"IF($BL504=\"\", \"\", COUNTIF($BL$3:$BL$803, \">\"&$BL504)+1+COUNTIF($BL$3:$BL504, $BL504)-1)","v":""},null,null,null,null,null,221,null,406]
[null,null,null,null,null,null,null,null,null,null,null,null,null,null,null,null,null,null,null,null,null,null,null,null,null,null,null,null,null,null,null,null,null,null,null,null,null,null,null,null,null,null,null,null,null,null,null,null,null,null,null,null,null,null,2,"-",6,null,-4,null,"",null,588,"",{"$f":"IF($BL505=\"\", \"\", COUNTIF($BL$3:$BL$803, \">\"&$BL505)+1+COUNTIF($BL$3:$BL505, $BL505)-1)","v":""},null,null,null,null,null,588,null,845]
[null,null,null,null,null,null,null,null,null,null,null,null,null,null,null,null,null,null,null,null,null,null,null,null,null,null,null,null,null,null,null,null,null,null,null,null,null,null,null,null,null,null,null,null,null,null,null,null,null,null,null,null,null,null,3,"-",6,null,-3,null,"",null,737,"",{"$f":"IF($BL506=\"\", \"\", COUNTIF($BL$3:$BL$803, \">\"&$BL506)+1+COUNTIF($BL$3:$BL506, $BL506)-1)","v":""},null,null,null,null,null,737,null,673]
[null,null,null,null,null,null,null,null,null,null,null,null,null,null,null,null,null,null,null,null,null,null,null,null,null,null,null,null,null,null,null,null,null,null,null,null,null,null,null,null,null,null,null,null,null,null,null,null,null,null,null,null,null,null,4,"-",6,null,-2,null,"",null,808,"",{"$f":"IF($BL507=\"\", \"\", COUNTIF($BL$3:$BL$803, \">\"&$BL507)+1+COUNTIF($BL$3:$BL507, $BL507)-1)","v":""},null,null,null,null,null,808,null,885]
[null,null,null,null,null,null,null,null,null,null,null,null,null,null,null,null,null,null,null,null,null,null,null,null,null,null,null,null,null,null,null,null,null,null,null,null,null,null,null,null,null,null,null,null,null,null,null,null,null,null,null,null,null,null,5,"-",6,null,-1,null,"",null,819,"",{"$f":"IF($BL508=\"\", \"\", COUNTIF($BL$3:$BL$803, \">\"&$BL508)+1+COUNTIF($BL$3:$BL508, $BL508)-1)","v":""},null,null,null,null,null,819,null,723]
[null,null,null,null,null,null,null,null,null,null,null,null,null,null,null,null,null,null,null,null,null,null,null,null,null,null,null,null,null,null,null,null,null,null,null,null,null,null,null,null,null,null,null,null,null,null,null,null,null,null,null,null,null,null,6,"-",6,null,0,null,"",null,757,"",{"$f":"IF($BL509=\"\", \"\", COUNTIF($BL$3:$BL$803, \">\"&$BL509)+1+COUNTIF($BL$3:$BL509, $BL509)-1)","v":""},null,null,null,null,null,757,null,306]
[null,null,null,null,null,null,null,null,null,null,null,null,null,null,null,null,null,null,null,null,null,null,null,null,null,null,null,null,null,null,null,null,null,null,null,null,null,null,null,null,null,null,null,null,null,null,null,null,null,null,null,null,null,null,7,"-",6,null,1,null,"",null,233,"",{"$f":"IF($BL510=\"\", \"\", COUNTIF($BL$3:$BL$803, \">\"&$BL510)+1+COUNTIF($BL$3:$BL510, $BL510)-1)","v":""},null,null,null,null,null,233,null,91]
[null,null,null,null,null,null,null,null,null,null,null,null,null,null,null,null,null,null,null,null,null,null,null,null,null,null,null,null,null,null,null,null,null,null,null,null,null,null,null,null,null,null,null,null,null,null,null,null,null,null,null,null,null,null,8,"-",6,null,2,null,"",null,287,"",{"$f":"IF($BL511=\"\", \"\", COUNTIF($BL$3:$BL$803, \">\"&$BL511)+1+COUNTIF($BL$3:$BL511, $BL511)-1)","v":""},null,null,null,null,null,287,null,191]
[null,null,null,null,null,null,null,null,null,null,null,null,null,null,null,null,null,null,null,null,null,null,null,null,null,null,null,null,null,null,null,null,null,null,null,null,null,null,null,null,null,null,null,null,null,null,null,null,null,null,null,null,null,null,9,"-",6,null,3,null,"",null,290,"",{"$f":"IF($BL512=\"\", \"\", COUNTIF($BL$3:$BL$803, \">\"&$BL512)+1+COUNTIF($BL$3:$BL512, $BL512)-1)","v":""},null,null,null,null,null,290,null,150]
[null,null,null,null,null,null,null,null,null,null,null,null,null,null,null,null,null,null,null,null,null,null,null,null,null,null,null,null,null,null,null,null,null,null,null,null,null,null,null,null,null,null,null,null,null,null,null,null,null,null,null,null,null,null,10,"-",6,null,4,null,"",null,82,"",{"$f":"IF($BL513=\"\", \"\", COUNTIF($BL$3:$BL$803, \">\"&$BL513)+1+COUNTIF($BL$3:$BL513, $BL513)-1)","v":""},null,null,null,null,null,82,null,963]
[null,null,null,null,null,null,null,null,null,null,null,null,null,null,null,null,null,null,null,null,null,null,null,null,null,null,null,null,null,null,null,null,null,null,null,null,null,null,null,null,null,null,null,null,null,null,null,null,null,null,null,null,null,null,11,"-",6,null,5,null,"",null,536,"",{"$f":"IF($BL514=\"\", \"\", COUNTIF($BL$3:$BL$803, \">\"&$BL514)+1+COUNTIF($BL$3:$BL514, $BL514)-1)","v":""},null,null,null,null,null,536,null,500]
[null,null,null,null,null,null,null,null,null,null,null,null,null,null,null,null,null,null,null,null,null,null,null,null,null,null,null,null,null,null,null,null,null,null,null,null,null,null,null,null,null,null,null,null,null,null,null,null,null,null,null,null,null,null,12,"-",6,null,6,null,"",null,352,"",{"$f":"IF($BL515=\"\", \"\", COUNTIF($BL$3:$BL$803, \">\"&$BL515)+1+COUNTIF($BL$3:$BL515, $BL515)-1)","v":""},null,null,null,null,null,352,null,110]
[null,null,null,null,null,null,null,null,null,null,null,null,null,null,null,null,null,null,null,null,null,null,null,null,null,null,null,null,null,null,null,null,null,null,null,null,null,null,null,null,null,null,null,null,null,null,null,null,null,null,null,null,null,null,13,"-",6,null,7,null,{"$f":"IF(COUNTIF($BP$5:$BP$6, $BD516)=0, \"\", IF(OR($BC516>$BP$3, $BE516>$BP$3, $BG516>$BP$3, $BG516<$BP$8), \"\", \"X\"))","v":""},null,{"$f":"$BS516","v":266},{"$f":"IF($BI516=\"\", \"\", $BK516)","v":""},{"$f":"IF($BL516=\"\", \"\", COUNTIF($BL$3:$BL$803, \">\"&$BL516)+1+COUNTIF($BL$3:$BL516, $BL516)-1)","v":""},null,null,null,null,null,266,null,{"$f":"RANDBETWEEN(1, 1000)","v":721}]
[null,null,null,null,null,null,null,null,null,null,null,null,null,null,null,null,null,null,null,null,null,null,null,null,null,null,null,null,null,null,null,null,null,null,null,null,null,null,null,null,null,null,null,null,null,null,null,null,null,null,null,null,null,null,14,"-",6,null,8,null,"",null,654,"",{"$f":"IF($BL517=\"\", \"\", COUNTIF($BL$3:$BL$803, \">\"&$BL517)+1+COUNTIF($BL$3:$BL517, $BL517)-1)","v":""},null,null,null,null,null,654,null,579]
[null,null,null,null,null,null,null,null,null,null,null,null,null,null,null,null,null,null,null,null,null,null,null,null,null,null,null,null,null,null,null,null,null,null,null,null,null,null,null,null,null,null,null,null,null,null,null,null,null,null,null,null,null,null,15,"-",6,null,9,null,"",null,255,"",{"$f":"IF($BL518=\"\", \"\", COUNTIF($BL$3:$BL$803, \">\"&$BL518)+1+COUNTIF($BL$3:$BL518, $BL518)-1)","v":""},null,null,null,null,null,255,null,195]
[null,null,null,null,null,null,null,null,null,null,null,null,null,null,null,null,null,null,null,null,null,null,null,null,null,null,null,null,null,null,null,null,null,null,null,null,null,null,null,null,null,null,null,null,null,null,null,null,null,null,null,null,null,null,16,"-",6,null,10,null,"",null,106,"",{"$f":"IF($BL519=\"\", \"\", COUNTIF($BL$3:$BL$803, \">\"&$BL519)+1+COUNTIF($BL$3:$BL519, $BL519)-1)","v":""},null,null,null,null,null,106,null,274]
[null,null,null,null,null,null,null,null,null,null,null,null,null,null,null,null,null,null,null,null,null,null,null,null,null,null,null,null,null,null,null,null,null,null,null,null,null,null,null,null,null,null,null,null,null,null,null,null,null,null,null,null,null,null,17,"-",6,null,11,null,"",null,814,"",{"$f":"IF($BL520=\"\", \"\", COUNTIF($BL$3:$BL$803, \">\"&$BL520)+1+COUNTIF($BL$3:$BL520, $BL520)-1)","v":""},null,null,null,null,null,814,null,726]
[null,null,null,null,null,null,null,null,null,null,null,null,null,null,null,null,null,null,null,null,null,null,null,null,null,null,null,null,null,null,null,null,null,null,null,null,null,null,null,null,null,null,null,null,null,null,null,null,null,null,null,null,null,null,18,"-",6,null,12,null,"",null,210,"",{"$f":"IF($BL521=\"\", \"\", COUNTIF($BL$3:$BL$803, \">\"&$BL521)+1+COUNTIF($BL$3:$BL521, $BL521)-1)","v":""},null,null,null,null,null,210,null,280]
[null,null,null,null,null,null,null,null,null,null,null,null,null,null,null,null,null,null,null,null,null,null,null,null,null,null,null,null,null,null,null,null,null,null,null,null,null,null,null,null,null,null,null,null,null,null,null,null,null,null,null,null,null,null,19,"-",6,null,13,null,"",null,412,"",{"$f":"IF($BL522=\"\", \"\", COUNTIF($BL$3:$BL$803, \">\"&$BL522)+1+COUNTIF($BL$3:$BL522, $BL522)-1)","v":""},null,null,null,null,null,412,null,875]
[null,null,null,null,null,null,null,null,null,null,null,null,null,null,null,null,null,null,null,null,null,null,null,null,null,null,null,null,null,null,null,null,null,null,null,null,null,null,null,null,null,null,null,null,null,null,null,null,null,null,null,null,null,null,20,"-",6,null,14,null,"",null,792,"",{"$f":"IF($BL523=\"\", \"\", COUNTIF($BL$3:$BL$803, \">\"&$BL523)+1+COUNTIF($BL$3:$BL523, $BL523)-1)","v":""},null,null,null,null,null,792,null,791]
[null,null,null,null,null,null,null,null,null,null,null,null,null,null,null,null,null,null,null,null,null,null,null,null,null,null,null,null,null,null,null,null,null,null,null,null,null,null,null,null,null,null,null,null,null,null,null,null,null,null,null,null,null,null,1,"-",7,null,-6,null,"",null,84,"",{"$f":"IF($BL524=\"\", \"\", COUNTIF($BL$3:$BL$803, \">\"&$BL524)+1+COUNTIF($BL$3:$BL524, $BL524)-1)","v":""},null,null,null,null,null,84,null,605]
[null,null,null,null,null,null,null,null,null,null,null,null,null,null,null,null,null,null,null,null,null,null,null,null,null,null,null,null,null,null,null,null,null,null,null,null,null,null,null,null,null,null,null,null,null,null,null,null,null,null,null,null,null,null,2,"-",7,null,-5,null,"",null,979,"",{"$f":"IF($BL525=\"\", \"\", COUNTIF($BL$3:$BL$803, \">\"&$BL525)+1+COUNTIF($BL$3:$BL525, $BL525)-1)","v":""},null,null,null,null,null,979,null,166]
[null,null,null,null,null,null,null,null,null,null,null,null,null,null,null,null,null,null,null,null,null,null,null,null,null,null,null,null,null,null,null,null,null,null,null,null,null,null,null,null,null,null,null,null,null,null,null,null,null,null,null,null,null,null,3,"-",7,null,-4,null,"",null,219,"",{"$f":"IF($BL526=\"\", \"\", COUNTIF($BL$3:$BL$803, \">\"&$BL526)+1+COUNTIF($BL$3:$BL526, $BL526)-1)","v":""},null,null,null,null,null,219,null,285]
[null,null,null,null,null,null,null,null,null,null,null,null,null,null,null,null,null,null,null,null,null,null,null,null,null,null,null,null,null,null,null,null,null,null,null,null,null,null,null,null,null,null,null,null,null,null,null,null,null,null,null,null,null,null,4,"-",7,null,-3,null,"",null,204,"",{"$f":"IF($BL527=\"\", \"\", COUNTIF($BL$3:$BL$803, \">\"&$BL527)+1+COUNTIF($BL$3:$BL527, $BL527)-1)","v":""},null,null,null,null,null,204,null,517]
[null,null,null,null,null,null,null,null,null,null,null,null,null,null,null,null,null,null,null,null,null,null,null,null,null,null,null,null,null,null,null,null,null,null,null,null,null,null,null,null,null,null,null,null,null,null,null,null,null,null,null,null,null,null,5,"-",7,null,-2,null,"",null,349,"",{"$f":"IF($BL528=\"\", \"\", COUNTIF($BL$3:$BL$803, \">\"&$BL528)+1+COUNTIF($BL$3:$BL528, $BL528)-1)","v":""},null,null,null,null,null,349,null,174]
[null,null,null,null,null,null,null,null,null,null,null,null,null,null,null,null,null,null,null,null,null,null,null,null,null,null,null,null,null,null,null,null,null,null,null,null,null,null,null,null,null,null,null,null,null,null,null,null,null,null,null,null,null,null,6,"-",7,null,-1,null,"",null,720,"",{"$f":"IF($BL529=\"\", \"\", COUNTIF($BL$3:$BL$803, \">\"&$BL529)+1+COUNTIF($BL$3:$BL529, $BL529)-1)","v":""},null,null,null,null,null,720,null,199]
[null,null,null,null,null,null,null,null,null,null,null,null,null,null,null,null,null,null,null,null,null,null,null,null,null,null,null,null,null,null,null,null,null,null,null,null,null,null,null,null,null,null,null,null,null,null,null,null,null,null,null,null,null,null,7,"-",7,null,0,null,"",null,582,"",{"$f":"IF($BL530=\"\", \"\", COUNTIF($BL$3:$BL$803, \">\"&$BL530)+1+COUNTIF($BL$3:$BL530, $BL530)-1)","v":""},null,null,null,null,null,582,null,663]
[null,null,null,null,null,null,null,null,null,null,null,null,null,null,null,null,null,null,null,null,null,null,null,null,null,null,null,null,null,null,null,null,null,null,null,null,null,null,null,null,null,null,null,null,null,null,null,null,null,null,null,null,null,null,8,"-",7,null,1,null,"",null,484,"",{"$f":"IF($BL531=\"\", \"\", COUNTIF($BL$3:$BL$803, \">\"&$BL531)+1+COUNTIF($BL$3:$BL531, $BL531)-1)","v":""},null,null,null,null,null,484,null,419]
[null,null,null,null,null,null,null,null,null,null,null,null,null,null,null,null,null,null,null,null,null,null,null,null,null,null,null,null,null,null,null,null,null,null,null,null,null,null,null,null,null,null,null,null,null,null,null,null,null,null,null,null,null,null,9,"-",7,null,2,null,"",null,911,"",{"$f":"IF($BL532=\"\", \"\", COUNTIF($BL$3:$BL$803, \">\"&$BL532)+1+COUNTIF($BL$3:$BL532, $BL532)-1)","v":""},null,null,null,null,null,911,null,221]
[null,null,null,null,null,null,null,null,null,null,null,null,null,null,null,null,null,null,null,null,null,null,null,null,null,null,null,null,null,null,null,null,null,null,null,null,null,null,null,null,null,null,null,null,null,null,null,null,null,null,null,null,null,null,10,"-",7,null,{"$f":"BC533-BE533","v":3},null,"",null,309,"",{"$f":"IF($BL533=\"\", \"\", COUNTIF($BL$3:$BL$803, \">\"&$BL533)+1+COUNTIF($BL$3:$BL533, $BL533)-1)","v":""},null,null,null,null,null,309,null,730]
[null,null,null,null,null,null,null,null,null,null,null,null,null,null,null,null,null,null,null,null,null,null,null,null,null,null,null,null,null,null,null,null,null,null,null,null,null,null,null,null,null,null,null,null,null,null,null,null,null,null,null,null,null,null,{"$f":"IF(BC533+1>20, 1, BC533+1)","v":11},"-",{"$f":"IF(BC534=1, BE533+1, BE533)","v":7},null,4,null,"",null,819,"",{"$f":"IF($BL534=\"\", \"\", COUNTIF($BL$3:$BL$803, \">\"&$BL534)+1+COUNTIF($BL$3:$BL534, $BL534)-1)","v":""},null,null,null,null,null,819,null,166]
[null,null,null,null,null,null,null,null,null,null,null,null,null,null,null,null,null,null,null,null,null,null,null,null,null,null,null,null,null,null,null,null,null,null,null,null,null,null,null,null,null,null,null,null,null,null,null,null,null,null,null,null,null,null,12,"-",7,null,5,null,"",null,440,"",{"$f":"IF($BL535=\"\", \"\", COUNTIF($BL$3:$BL$803, \">\"&$BL535)+1+COUNTIF($BL$3:$BL535, $BL535)-1)","v":""},null,null,null,null,null,440,null,803]
[null,null,null,null,null,null,null,null,null,null,null,null,null,null,null,null,null,null,null,null,null,null,null,null,null,null,null,null,null,null,null,null,null,null,null,null,null,null,null,null,null,null,null,null,null,null,null,null,null,null,null,null,null,null,13,"-",7,null,6,null,"",null,718,"",{"$f":"IF($BL536=\"\", \"\", COUNTIF($BL$3:$BL$803, \">\"&$BL536)+1+COUNTIF($BL$3:$BL536, $BL536)-1)","v":""},null,null,null,null,null,718,null,991]
[null,null,null,null,null,null,null,null,null,null,null,null,null,null,null,null,null,null,null,null,null,null,null,null,null,null,null,null,null,null,null,null,null,null,null,null,null,null,null,null,null,null,null,null,null,null,null,null,null,null,null,null,null,null,14,"-",7,null,7,null,"",null,516,"",{"$f":"IF($BL537=\"\", \"\", COUNTIF($BL$3:$BL$803, \">\"&$BL537)+1+COUNTIF($BL$3:$BL537, $BL537)-1)","v":""},null,null,null,null,null,516,null,846]
[null,null,null,null,null,null,null,null,null,null,null,null,null,null,null,null,null,null,null,null,null,null,null,null,null,null,null,null,null,null,null,null,null,null,null,null,null,null,null,null,null,null,null,null,null,null,null,null,null,null,null,null,null,null,15,"-",7,null,8,null,"",null,890,"",{"$f":"IF($BL538=\"\", \"\", COUNTIF($BL$3:$BL$803, \">\"&$BL538)+1+COUNTIF($BL$3:$BL538, $BL538)-1)","v":""},null,null,null,null,null,890,null,201]
[null,null,null,null,null,null,null,null,null,null,null,null,null,null,null,null,null,null,null,null,null,null,null,null,null,null,null,null,null,null,null,null,null,null,null,null,null,null,null,null,null,null,null,null,null,null,null,null,null,null,null,null,null,null,16,"-",7,null,9,null,"",null,585,"",{"$f":"IF($BL539=\"\", \"\", COUNTIF($BL$3:$BL$803, \">\"&$BL539)+1+COUNTIF($BL$3:$BL539, $BL539)-1)","v":""},null,null,null,null,null,585,null,134]
[null,null,null,null,null,null,null,null,null,null,null,null,null,null,null,null,null,null,null,null,null,null,null,null,null,null,null,null,null,null,null,null,null,null,null,null,null,null,null,null,null,null,null,null,null,null,null,null,null,null,null,null,null,null,17,"-",7,null,10,null,"",null,11,"",{"$f":"IF($BL540=\"\", \"\", COUNTIF($BL$3:$BL$803, \">\"&$BL540)+1+COUNTIF($BL$3:$BL540, $BL540)-1)","v":""},null,null,null,null,null,11,null,515]
[null,null,null,null,null,null,null,null,null,null,null,null,null,null,null,null,null,null,null,null,null,null,null,null,null,null,null,null,null,null,null,null,null,null,null,null,null,null,null,null,null,null,null,null,null,null,null,null,null,null,null,null,null,null,18,"-",7,null,11,null,"",null,248,"",{"$f":"IF($BL541=\"\", \"\", COUNTIF($BL$3:$BL$803, \">\"&$BL541)+1+COUNTIF($BL$3:$BL541, $BL541)-1)","v":""},null,null,null,null,null,248,null,526]
[null,null,null,null,null,null,null,null,null,null,null,null,null,null,null,null,null,null,null,null,null,null,null,null,null,null,null,null,null,null,null,null,null,null,null,null,null,null,null,null,null,null,null,null,null,null,null,null,null,null,null,null,null,null,19,"-",7,null,12,null,"",null,600,"",{"$f":"IF($BL542=\"\", \"\", COUNTIF($BL$3:$BL$803, \">\"&$BL542)+1+COUNTIF($BL$3:$BL542, $BL542)-1)","v":""},null,null,null,null,null,600,null,765]
[null,null,null,null,null,null,null,null,null,null,null,null,null,null,null,null,null,null,null,null,null,null,null,null,null,null,null,null,null,null,null,null,null,null,null,null,null,null,null,null,null,null,null,null,null,null,null,null,null,null,null,null,null,null,20,"-",7,null,13,null,"",null,264,"",{"$f":"IF($BL543=\"\", \"\", COUNTIF($BL$3:$BL$803, \">\"&$BL543)+1+COUNTIF($BL$3:$BL543, $BL543)-1)","v":""},null,null,null,null,null,264,null,284]
[null,null,null,null,null,null,null,null,null,null,null,null,null,null,null,null,null,null,null,null,null,null,null,null,null,null,null,null,null,null,null,null,null,null,null,null,null,null,null,null,null,null,null,null,null,null,null,null,null,null,null,null,null,null,1,"-",8,null,-7,null,"",null,27,"",{"$f":"IF($BL544=\"\", \"\", COUNTIF($BL$3:$BL$803, \">\"&$BL544)+1+COUNTIF($BL$3:$BL544, $BL544)-1)","v":""},null,null,null,null,null,27,null,42]
[null,null,null,null,null,null,null,null,null,null,null,null,null,null,null,null,null,null,null,null,null,null,null,null,null,null,null,null,null,null,null,null,null,null,null,null,null,null,null,null,null,null,null,null,null,null,null,null,null,null,null,null,null,null,2,"-",8,null,-6,null,"",null,262,"",{"$f":"IF($BL545=\"\", \"\", COUNTIF($BL$3:$BL$803, \">\"&$BL545)+1+COUNTIF($BL$3:$BL545, $BL545)-1)","v":""},null,null,null,null,null,262,null,425]
[null,null,null,null,null,null,null,null,null,null,null,null,null,null,null,null,null,null,null,null,null,null,null,null,null,null,null,null,null,null,null,null,null,null,null,null,null,null,null,null,null,null,null,null,null,null,null,null,null,null,null,null,null,null,3,"-",8,null,-5,null,"",null,99,"",{"$f":"IF($BL546=\"\", \"\", COUNTIF($BL$3:$BL$803, \">\"&$BL546)+1+COUNTIF($BL$3:$BL546, $BL546)-1)","v":""},null,null,null,null,null,99,null,638]
[null,null,null,null,null,null,null,null,null,null,null,null,null,null,null,null,null,null,null,null,null,null,null,null,null,null,null,null,null,null,null,null,null,null,null,null,null,null,null,null,null,null,null,null,null,null,null,null,null,null,null,null,null,null,4,"-",8,null,-4,null,"",null,518,"",{"$f":"IF($BL547=\"\", \"\", COUNTIF($BL$3:$BL$803, \">\"&$BL547)+1+COUNTIF($BL$3:$BL547, $BL547)-1)","v":""},null,null,null,null,null,518,null,128]
[null,null,null,null,null,null,null,null,null,null,null,null,null,null,null,null,null,null,null,null,null,null,null,null,null,null,null,null,null,null,null,null,null,null,null,null,null,null,null,null,null,null,null,null,null,null,null,null,null,null,null,null,null,null,5,"-",8,null,-3,null,"",null,892,"",{"$f":"IF($BL548=\"\", \"\", COUNTIF($BL$3:$BL$803, \">\"&$BL548)+1+COUNTIF($BL$3:$BL548, $BL548)-1)","v":""},null,null,null,null,null,892,null,406]
[null,null,null,null,null,null,null,null,null,null,null,null,null,null,null,null,null,null,null,null,null,null,null,null,null,null,null,null,null,null,null,null,null,null,null,null,null,null,null,null,null,null,null,null,null,null,null,null,null,null,null,null,null,null,6,"-",8,null,-2,null,"",null,975,"",{"$f":"IF($BL549=\"\", \"\", COUNTIF($BL$3:$BL$803, \">\"&$BL549)+1+COUNTIF($BL$3:$BL549, $BL549)-1)","v":""},null,null,null,null,null,975,null,984]
[null,null,null,null,null,null,null,null,null,null,null,null,null,null,null,null,null,null,null,null,null,null,null,null,null,null,null,null,null,null,null,null,null,null,null,null,null,null,null,null,null,null,null,null,null,null,null,null,null,null,null,null,null,null,7,"-",8,null,-1,null,"",null,510,"",{"$f":"IF($BL550=\"\", \"\", COUNTIF($BL$3:$BL$803, \">\"&$BL550)+1+COUNTIF($BL$3:$BL550, $BL550)-1)","v":""},null,null,null,null,null,510,null,343]
[null,null,null,null,null,null,null,null,null,null,null,null,null,null,null,null,null,null,null,null,null,null,null,null,null,null,null,null,null,null,null,null,null,null,null,null,null,null,null,null,null,null,null,null,null,null,null,null,null,null,null,null,null,null,8,"-",8,null,0,null,"",null,221,"",{"$f":"IF($BL551=\"\", \"\", COUNTIF($BL$3:$BL$803, \">\"&$BL551)+1+COUNTIF($BL$3:$BL551, $BL551)-1)","v":""},null,null,null,null,null,221,null,659]
[null,null,null,null,null,null,null,null,null,null,null,null,null,null,null,null,null,null,null,null,null,null,null,null,null,null,null,null,null,null,null,null,null,null,null,null,null,null,null,null,null,null,null,null,null,null,null,null,null,null,null,null,null,null,9,"-",8,null,1,null,"",null,836,"",{"$f":"IF($BL552=\"\", \"\", COUNTIF($BL$3:$BL$803, \">\"&$BL552)+1+COUNTIF($BL$3:$BL552, $BL552)-1)","v":""},null,null,null,null,null,836,null,637]
[null,null,null,null,null,null,null,null,null,null,null,null,null,null,null,null,null,null,null,null,null,null,null,null,null,null,null,null,null,null,null,null,null,null,null,null,null,null,null,null,null,null,null,null,null,null,null,null,null,null,null,null,null,null,10,"-",8,null,2,null,"",null,498,"",{"$f":"IF($BL553=\"\", \"\", COUNTIF($BL$3:$BL$803, \">\"&$BL553)+1+COUNTIF($BL$3:$BL553, $BL553)-1)","v":""},null,null,null,null,null,498,null,576]
[null,null,null,null,null,null,null,null,null,null,null,null,null,null,null,null,null,null,null,null,null,null,null,null,null,null,null,null,null,null,null,null,null,null,null,null,null,null,null,null,null,null,null,null,null,null,null,null,null,null,null,null,null,null,11,"-",8,null,3,null,"",null,343,"",{"$f":"IF($BL554=\"\", \"\", COUNTIF($BL$3:$BL$803, \">\"&$BL554)+1+COUNTIF($BL$3:$BL554, $BL554)-1)","v":""},null,null,null,null,null,343,null,183]
[null,null,null,null,null,null,null,null,null,null,null,null,null,null,null,null,null,null,null,null,null,null,null,null,null,null,null,null,null,null,null,null,null,null,null,null,null,null,null,null,null,null,null,null,null,null,null,null,null,null,null,null,null,null,12,"-",8,null,4,null,"",null,281,"",{"$f":"IF($BL555=\"\", \"\", COUNTIF($BL$3:$BL$803, \">\"&$BL555)+1+COUNTIF($BL$3:$BL555, $BL555)-1)","v":""},null,null,null,null,null,281,null,354]
[null,null,null,null,null,null,null,null,null,null,null,null,null,null,null,null,null,null,null,null,null,null,null,null,null,null,null,null,null,null,null,null,null,null,null,null,null,null,null,null,null,null,null,null,null,null,null,null,null,null,null,null,null,null,13,"-",8,null,5,null,"",null,397,"",{"$f":"IF($BL556=\"\", \"\", COUNTIF($BL$3:$BL$803, \">\"&$BL556)+1+COUNTIF($BL$3:$BL556, $BL556)-1)","v":""},null,null,null,null,null,397,null,906]
[null,null,null,null,null,null,null,null,null,null,null,null,null,null,null,null,null,null,null,null,null,null,null,null,null,null,null,null,null,null,null,null,null,null,null,null,null,null,null,null,null,null,null,null,null,null,null,null,null,null,null,null,null,null,14,"-",8,null,6,null,"",null,445,"",{"$f":"IF($BL557=\"\", \"\", COUNTIF($BL$3:$BL$803, \">\"&$BL557)+1+COUNTIF($BL$3:$BL557, $BL557)-1)","v":""},null,null,null,null,null,445,null,236]
[null,null,null,null,null,null,null,null,null,null,null,null,null,null,null,null,null,null,null,null,null,null,null,null,null,null,null,null,null,null,null,null,null,null,null,null,null,null,null,null,null,null,null,null,null,null,null,null,null,null,null,null,null,null,15,"-",8,null,7,null,"",null,478,"",{"$f":"IF($BL558=\"\", \"\", COUNTIF($BL$3:$BL$803, \">\"&$BL558)+1+COUNTIF($BL$3:$BL558, $BL558)-1)","v":""},null,null,null,null,null,478,null,40]
[null,null,null,null,null,null,null,null,null,null,null,null,null,null,null,null,null,null,null,null,null,null,null,null,null,null,null,null,null,null,null,null,null,null,null,null,null,null,null,null,null,null,null,null,null,null,null,null,null,null,null,null,null,null,16,"-",8,null,8,null,"",null,829,"",{"$f":"IF($BL559=\"\", \"\", COUNTIF($BL$3:$BL$803, \">\"&$BL559)+1+COUNTIF($BL$3:$BL559, $BL559)-1)","v":""},null,null,null,null,null,829,null,62]
[null,null,null,null,null,null,null,null,null,null,null,null,null,null,null,null,null,null,null,null,null,null,null,null,null,null,null,null,null,null,null,null,null,null,null,null,null,null,null,null,null,null,null,null,null,null,null,null,null,null,null,null,null,null,17,"-",8,null,9,null,"",null,935,"",{"$f":"IF($BL560=\"\", \"\", COUNTIF($BL$3:$BL$803, \">\"&$BL560)+1+COUNTIF($BL$3:$BL560, $BL560)-1)","v":""},null,null,null,null,null,935,null,24]
[null,null,null,null,null,null,null,null,null,null,null,null,null,null,null,null,null,null,null,null,null,null,null,null,null,null,null,null,null,null,null,null,null,null,null,null,null,null,null,null,null,null,null,null,null,null,null,null,null,null,null,null,null,null,18,"-",8,null,10,null,"",null,410,"",{"$f":"IF($BL561=\"\", \"\", COUNTIF($BL$3:$BL$803, \">\"&$BL561)+1+COUNTIF($BL$3:$BL561, $BL561)-1)","v":""},null,null,null,null,null,410,null,884]
[null,null,null,null,null,null,null,null,null,null,null,null,null,null,null,null,null,null,null,null,null,null,null,null,null,null,null,null,null,null,null,null,null,null,null,null,null,null,null,null,null,null,null,null,null,null,null,null,null,null,null,null,null,null,19,"-",8,null,11,null,"",null,209,"",{"$f":"IF($BL562=\"\", \"\", COUNTIF($BL$3:$BL$803, \">\"&$BL562)+1+COUNTIF($BL$3:$BL562, $BL562)-1)","v":""},null,null,null,null,null,209,null,711]
[null,null,null,null,null,null,null,null,null,null,null,null,null,null,null,null,null,null,null,null,null,null,null,null,null,null,null,null,null,null,null,null,null,null,null,null,null,null,null,null,null,null,null,null,null,null,null,null,null,null,null,null,null,null,20,"-",8,null,12,null,"",null,594,"",{"$f":"IF($BL563=\"\", \"\", COUNTIF($BL$3:$BL$803, \">\"&$BL563)+1+COUNTIF($BL$3:$BL563, $BL563)-1)","v":""},null,null,null,null,null,594,null,615]
[null,null,null,null,null,null,null,null,null,null,null,null,null,null,null,null,null,null,null,null,null,null,null,null,null,null,null,null,null,null,null,null,null,null,null,null,null,null,null,null,null,null,null,null,null,null,null,null,null,null,null,null,null,null,1,"-",9,null,-8,null,"",null,561,"",{"$f":"IF($BL564=\"\", \"\", COUNTIF($BL$3:$BL$803, \">\"&$BL564)+1+COUNTIF($BL$3:$BL564, $BL564)-1)","v":""},null,null,null,null,null,561,null,633]
[null,null,null,null,null,null,null,null,null,null,null,null,null,null,null,null,null,null,null,null,null,null,null,null,null,null,null,null,null,null,null,null,null,null,null,null,null,null,null,null,null,null,null,null,null,null,null,null,null,null,null,null,null,null,2,"-",9,null,-7,null,"",null,116,"",{"$f":"IF($BL565=\"\", \"\", COUNTIF($BL$3:$BL$803, \">\"&$BL565)+1+COUNTIF($BL$3:$BL565, $BL565)-1)","v":""},null,null,null,null,null,116,null,371]
[null,null,null,null,null,null,null,null,null,null,null,null,null,null,null,null,null,null,null,null,null,null,null,null,null,null,null,null,null,null,null,null,null,null,null,null,null,null,null,null,null,null,null,null,null,null,null,null,null,null,null,null,null,null,3,"-",9,null,-6,null,"",null,622,"",{"$f":"IF($BL566=\"\", \"\", COUNTIF($BL$3:$BL$803, \">\"&$BL566)+1+COUNTIF($BL$3:$BL566, $BL566)-1)","v":""},null,null,null,null,null,622,null,411]
[null,null,null,null,null,null,null,null,null,null,null,null,null,null,null,null,null,null,null,null,null,null,null,null,null,null,null,null,null,null,null,null,null,null,null,null,null,null,null,null,null,null,null,null,null,null,null,null,null,null,null,null,null,null,4,"-",9,null,-5,null,"",null,918,"",{"$f":"IF($BL567=\"\", \"\", COUNTIF($BL$3:$BL$803, \">\"&$BL567)+1+COUNTIF($BL$3:$BL567, $BL567)-1)","v":""},null,null,null,null,null,918,null,131]
[null,null,null,null,null,null,null,null,null,null,null,null,null,null,null,null,null,null,null,null,null,null,null,null,null,null,null,null,null,null,null,null,null,null,null,null,null,null,null,null,null,null,null,null,null,null,null,null,null,null,null,null,null,null,5,"-",9,null,-4,null,"",null,436,"",{"$f":"IF($BL568=\"\", \"\", COUNTIF($BL$3:$BL$803, \">\"&$BL568)+1+COUNTIF($BL$3:$BL568, $BL568)-1)","v":""},null,null,null,null,null,436,null,267]
[null,null,null,null,null,null,null,null,null,null,null,null,null,null,null,null,null,null,null,null,null,null,null,null,null,null,null,null,null,null,null,null,null,null,null,null,null,null,null,null,null,null,null,null,null,null,null,null,null,null,null,null,null,null,6,"-",9,null,-3,null,"",null,860,"",{"$f":"IF($BL569=\"\", \"\", COUNTIF($BL$3:$BL$803, \">\"&$BL569)+1+COUNTIF($BL$3:$BL569, $BL569)-1)","v":""},null,null,null,null,null,860,null,815]
[null,null,null,null,null,null,null,null,null,null,null,null,null,null,null,null,null,null,null,null,null,null,null,null,null,null,null,null,null,null,null,null,null,null,null,null,null,null,null,null,null,null,null,null,null,null,null,null,null,null,null,null,null,null,7,"-",9,null,-2,null,"",null,426,"",{"$f":"IF($BL570=\"\", \"\", COUNTIF($BL$3:$BL$803, \">\"&$BL570)+1+COUNTIF($BL$3:$BL570, $BL570)-1)","v":""},null,null,null,null,null,426,null,28]
[null,null,null,null,null,null,null,null,null,null,null,null,null,null,null,null,null,null,null,null,null,null,null,null,null,null,null,null,null,null,null,null,null,null,null,null,null,null,null,null,null,null,null,null,null,null,null,null,null,null,null,null,null,null,8,"-",9,null,-1,null,"",null,981,"",{"$f":"IF($BL571=\"\", \"\", COUNTIF($BL$3:$BL$803, \">\"&$BL571)+1+COUNTIF($BL$3:$BL571, $BL571)-1)","v":""},null,null,null,null,null,981,null,477]
[null,null,null,null,null,null,null,null,null,null,null,null,null,null,null,null,null,null,null,null,null,null,null,null,null,null,null,null,null,null,null,null,null,null,null,null,null,null,null,null,null,null,null,null,null,null,null,null,null,null,null,null,null,null,9,"-",9,null,0,null,"",null,727,"",{"$f":"IF($BL572=\"\", \"\", COUNTIF($BL$3:$BL$803, \">\"&$BL572)+1+COUNTIF($BL$3:$BL572, $BL572)-1)","v":""},null,null,null,null,null,727,null,773]
[null,null,null,null,null,null,null,null,null,null,null,null,null,null,null,null,null,null,null,null,null,null,null,null,null,null,null,null,null,null,null,null,null,null,null,null,null,null,null,null,null,null,null,null,null,null,null,null,null,null,null,null,null,null,10,"-",9,null,1,null,"",null,732,"",{"$f":"IF($BL573=\"\", \"\", COUNTIF($BL$3:$BL$803, \">\"&$BL573)+1+COUNTIF($BL$3:$BL573, $BL573)-1)","v":""},null,null,null,null,null,732,null,496]
[null,null,null,null,null,null,null,null,null,null,null,null,null,null,null,null,null,null,null,null,null,null,null,null,null,null,null,null,null,null,null,null,null,null,null,null,null,null,null,null,null,null,null,null,null,null,null,null,null,null,null,null,null,null,11,"-",9,null,2,null,"",null,254,"",{"$f":"IF($BL574=\"\", \"\", COUNTIF($BL$3:$BL$803, \">\"&$BL574)+1+COUNTIF($BL$3:$BL574, $BL574)-1)","v":""},null,null,null,null,null,254,null,221]
[null,null,null,null,null,null,null,null,null,null,null,null,null,null,null,null,null,null,null,null,null,null,null,null,null,null,null,null,null,null,null,null,null,null,null,null,null,null,null,null,null,null,null,null,null,null,null,null,null,null,null,null,null,null,12,"-",9,null,3,null,"",null,898,"",{"$f":"IF($BL575=\"\", \"\", COUNTIF($BL$3:$BL$803, \">\"&$BL575)+1+COUNTIF($BL$3:$BL575, $BL575)-1)","v":""},null,null,null,null,null,898,null,759]
[null,null,null,null,null,null,null,null,null,null,null,null,null,null,null,null,null,null,null,null,null,null,null,null,null,null,null,null,null,null,null,null,null,null,null,null,null,null,null,null,null,null,null,null,null,null,null,null,null,null,null,null,null,null,13,"-",9,null,4,null,"",null,570,"",{"$f":"IF($BL576=\"\", \"\", COUNTIF($BL$3:$BL$803, \">\"&$BL576)+1+COUNTIF($BL$3:$BL576, $BL576)-1)","v":""},null,null,null,null,null,570,null,650]
[null,null,null,null,null,null,null,null,null,null,null,null,null,null,null,null,null,null,null,null,null,null,null,null,null,null,null,null,null,null,null,null,null,null,null,null,null,null,null,null,null,null,null,null,null,null,null,null,null,null,null,null,null,null,14,"-",9,null,5,null,"",null,687,"",{"$f":"IF($BL577=\"\", \"\", COUNTIF($BL$3:$BL$803, \">\"&$BL577)+1+COUNTIF($BL$3:$BL577, $BL577)-1)","v":""},null,null,null,null,null,687,null,763]
[null,null,null,null,null,null,null,null,null,null,null,null,null,null,null,null,null,null,null,null,null,null,null,null,null,null,null,null,null,null,null,null,null,null,null,null,null,null,null,null,null,null,null,null,null,null,null,null,null,null,null,null,null,null,15,"-",9,null,6,null,"",null,952,"",{"$f":"IF($BL578=\"\", \"\", COUNTIF($BL$3:$BL$803, \">\"&$BL578)+1+COUNTIF($BL$3:$BL578, $BL578)-1)","v":""},null,null,null,null,null,952,null,763]
[null,null,null,null,null,null,null,null,null,null,null,null,null,null,null,null,null,null,null,null,null,null,null,null,null,null,null,null,null,null,null,null,null,null,null,null,null,null,null,null,null,null,null,null,null,null,null,null,null,null,null,null,null,null,16,"-",9,null,7,null,"",null,837,"",{"$f":"IF($BL579=\"\", \"\", COUNTIF($BL$3:$BL$803, \">\"&$BL579)+1+COUNTIF($BL$3:$BL579, $BL579)-1)","v":""},null,null,null,null,null,837,null,716]
[null,null,null,null,null,null,null,null,null,null,null,null,null,null,null,null,null,null,null,null,null,null,null,null,null,null,null,null,null,null,null,null,null,null,null,null,null,null,null,null,null,null,null,null,null,null,null,null,null,null,null,null,null,null,17,"-",9,null,8,null,{"$f":"IF(COUNTIF($BP$5:$BP$6, $BD580)=0, \"\", IF(OR($BC580>$BP$3, $BE580>$BP$3, $BG580>$BP$3, $BG580<$BP$8), \"\", \"X\"))","v":""},null,{"$f":"$BS580","v":487},{"$f":"IF($BI580=\"\", \"\", $BK580)","v":""},{"$f":"IF($BL580=\"\", \"\", COUNTIF($BL$3:$BL$803, \">\"&$BL580)+1+COUNTIF($BL$3:$BL580, $BL580)-1)","v":""},null,null,null,null,null,487,null,{"$f":"RANDBETWEEN(1, 1000)","v":1000}]
[null,null,null,null,null,null,null,null,null,null,null,null,null,null,null,null,null,null,null,null,null,null,null,null,null,null,null,null,null,null,null,null,null,null,null,null,null,null,null,null,null,null,null,null,null,null,null,null,null,null,null,null,null,null,18,"-",9,null,9,null,"",null,395,"",{"$f":"IF($BL581=\"\", \"\", COUNTIF($BL$3:$BL$803, \">\"&$BL581)+1+COUNTIF($BL$3:$BL581, $BL581)-1)","v":""},null,null,null,null,null,395,null,745]
[null,null,null,null,null,null,null,null,null,null,null,null,null,null,null,null,null,null,null,null,null,null,null,null,null,null,null,null,null,null,null,null,null,null,null,null,null,null,null,null,null,null,null,null,null,null,null,null,null,null,null,null,null,null,19,"-",9,null,10,null,"",null,624,"",{"$f":"IF($BL582=\"\", \"\", COUNTIF($BL$3:$BL$803, \">\"&$BL582)+1+COUNTIF($BL$3:$BL582, $BL582)-1)","v":""},null,null,null,null,null,624,null,586]
[null,null,null,null,null,null,null,null,null,null,null,null,null,null,null,null,null,null,null,null,null,null,null,null,null,null,null,null,null,null,null,null,null,null,null,null,null,null,null,null,null,null,null,null,null,null,null,null,null,null,null,null,null,null,20,"-",9,null,11,null,"",null,218,"",{"$f":"IF($BL583=\"\", \"\", COUNTIF($BL$3:$BL$803, \">\"&$BL583)+1+COUNTIF($BL$3:$BL583, $BL583)-1)","v":""},null,null,null,null,null,218,null,36]
[null,null,null,null,null,null,null,null,null,null,null,null,null,null,null,null,null,null,null,null,null,null,null,null,null,null,null,null,null,null,null,null,null,null,null,null,null,null,null,null,null,null,null,null,null,null,null,null,null,null,null,null,null,null,1,"-",10,null,-9,null,"",null,968,"",{"$f":"IF($BL584=\"\", \"\", COUNTIF($BL$3:$BL$803, \">\"&$BL584)+1+COUNTIF($BL$3:$BL584, $BL584)-1)","v":""},null,null,null,null,null,968,null,586]
[null,null,null,null,null,null,null,null,null,null,null,null,null,null,null,null,null,null,null,null,null,null,null,null,null,null,null,null,null,null,null,null,null,null,null,null,null,null,null,null,null,null,null,null,null,null,null,null,null,null,null,null,null,null,2,"-",10,null,-8,null,"",null,778,"",{"$f":"IF($BL585=\"\", \"\", COUNTIF($BL$3:$BL$803, \">\"&$BL585)+1+COUNTIF($BL$3:$BL585, $BL585)-1)","v":""},null,null,null,null,null,778,null,316]
[null,null,null,null,null,null,null,null,null,null,null,null,null,null,null,null,null,null,null,null,null,null,null,null,null,null,null,null,null,null,null,null,null,null,null,null,null,null,null,null,null,null,null,null,null,null,null,null,null,null,null,null,null,null,3,"-",10,null,-7,null,"",null,336,"",{"$f":"IF($BL586=\"\", \"\", COUNTIF($BL$3:$BL$803, \">\"&$BL586)+1+COUNTIF($BL$3:$BL586, $BL586)-1)","v":""},null,null,null,null,null,336,null,310]
[null,null,null,null,null,null,null,null,null,null,null,null,null,null,null,null,null,null,null,null,null,null,null,null,null,null,null,null,null,null,null,null,null,null,null,null,null,null,null,null,null,null,null,null,null,null,null,null,null,null,null,null,null,null,4,"-",10,null,-6,null,"",null,424,"",{"$f":"IF($BL587=\"\", \"\", COUNTIF($BL$3:$BL$803, \">\"&$BL587)+1+COUNTIF($BL$3:$BL587, $BL587)-1)","v":""},null,null,null,null,null,424,null,65]
[null,null,null,null,null,null,null,null,null,null,null,null,null,null,null,null,null,null,null,null,null,null,null,null,null,null,null,null,null,null,null,null,null,null,null,null,null,null,null,null,null,null,null,null,null,null,null,null,null,null,null,null,null,null,5,"-",10,null,-5,null,"",null,738,"",{"$f":"IF($BL588=\"\", \"\", COUNTIF($BL$3:$BL$803, \">\"&$BL588)+1+COUNTIF($BL$3:$BL588, $BL588)-1)","v":""},null,null,null,null,null,738,null,185]
[null,null,null,null,null,null,null,null,null,null,null,null,null,null,null,null,null,null,null,null,null,null,null,null,null,null,null,null,null,null,null,null,null,null,null,null,null,null,null,null,null,null,null,null,null,null,null,null,null,null,null,null,null,null,6,"-",10,null,-4,null,"",null,697,"",{"$f":"IF($BL589=\"\", \"\", COUNTIF($BL$3:$BL$803, \">\"&$BL589)+1+COUNTIF($BL$3:$BL589, $BL589)-1)","v":""},null,null,null,null,null,697,null,95]
[null,null,null,null,null,null,null,null,null,null,null,null,null,null,null,null,null,null,null,null,null,null,null,null,null,null,null,null,null,null,null,null,null,null,null,null,null,null,null,null,null,null,null,null,null,null,null,null,null,null,null,null,null,null,7,"-",10,null,-3,null,"",null,554,"",{"$f":"IF($BL590=\"\", \"\", COUNTIF($BL$3:$BL$803, \">\"&$BL590)+1+COUNTIF($BL$3:$BL590, $BL590)-1)","v":""},null,null,null,null,null,554,null,293]
[null,null,null,null,null,null,null,null,null,null,null,null,null,null,null,null,null,null,null,null,null,null,null,null,null,null,null,null,null,null,null,null,null,null,null,null,null,null,null,null,null,null,null,null,null,null,null,null,null,null,null,null,null,null,8,"-",10,null,-2,null,"",null,214,"",{"$f":"IF($BL591=\"\", \"\", COUNTIF($BL$3:$BL$803, \">\"&$BL591)+1+COUNTIF($BL$3:$BL591, $BL591)-1)","v":""},null,null,null,null,null,214,null,770]
[null,null,null,null,null,null,null,null,null,null,null,null,null,null,null,null,null,null,null,null,null,null,null,null,null,null,null,null,null,null,null,null,null,null,null,null,null,null,null,null,null,null,null,null,null,null,null,null,null,null,null,null,null,null,9,"-",10,null,-1,null,"",null,20,"",{"$f":"IF($BL592=\"\", \"\", COUNTIF($BL$3:$BL$803, \">\"&$BL592)+1+COUNTIF($BL$3:$BL592, $BL592)-1)","v":""},null,null,null,null,null,20,null,145]
[null,null,null,null,null,null,null,null,null,null,null,null,null,null,null,null,null,null,null,null,null,null,null,null,null,null,null,null,null,null,null,null,null,null,null,null,null,null,null,null,null,null,null,null,null,null,null,null,null,null,null,null,null,null,10,"-",10,null,0,null,"",null,855,"",{"$f":"IF($BL593=\"\", \"\", COUNTIF($BL$3:$BL$803, \">\"&$BL593)+1+COUNTIF($BL$3:$BL593, $BL593)-1)","v":""},null,null,null,null,null,855,null,530]
[null,null,null,null,null,null,null,null,null,null,null,null,null,null,null,null,null,null,null,null,null,null,null,null,null,null,null,null,null,null,null,null,null,null,null,null,null,null,null,null,null,null,null,null,null,null,null,null,null,null,null,null,null,null,11,"-",10,null,1,null,"",null,981,"",{"$f":"IF($BL594=\"\", \"\", COUNTIF($BL$3:$BL$803, \">\"&$BL594)+1+COUNTIF($BL$3:$BL594, $BL594)-1)","v":""},null,null,null,null,null,981,null,862]
[null,null,null,null,null,null,null,null,null,null,null,null,null,null,null,null,null,null,null,null,null,null,null,null,null,null,null,null,null,null,null,null,null,null,null,null,null,null,null,null,null,null,null,null,null,null,null,null,null,null,null,null,null,null,12,"-",10,null,2,null,"",null,472,"",{"$f":"IF($BL595=\"\", \"\", COUNTIF($BL$3:$BL$803, \">\"&$BL595)+1+COUNTIF($BL$3:$BL595, $BL595)-1)","v":""},null,null,null,null,null,472,null,323]
[null,null,null,null,null,null,null,null,null,null,null,null,null,null,null,null,null,null,null,null,null,null,null,null,null,null,null,null,null,null,null,null,null,null,null,null,null,null,null,null,null,null,null,null,null,null,null,null,null,null,null,null,null,null,13,"-",10,null,3,null,"",null,799,"",{"$f":"IF($BL596=\"\", \"\", COUNTIF($BL$3:$BL$803, \">\"&$BL596)+1+COUNTIF($BL$3:$BL596, $BL596)-1)","v":""},null,null,null,null,null,799,null,259]
[null,null,null,null,null,null,null,null,null,null,null,null,null,null,null,null,null,null,null,null,null,null,null,null,null,null,null,null,null,null,null,null,null,null,null,null,null,null,null,null,null,null,null,null,null,null,null,null,null,null,null,null,null,null,14,"-",10,null,{"$f":"BC597-BE597","v":4},null,"",null,925,"",{"$f":"IF($BL597=\"\", \"\", COUNTIF($BL$3:$BL$803, \">\"&$BL597)+1+COUNTIF($BL$3:$BL597, $BL597)-1)","v":""},null,null,null,null,null,925,null,596]
[null,null,null,null,null,null,null,null,null,null,null,null,null,null,null,null,null,null,null,null,null,null,null,null,null,null,null,null,null,null,null,null,null,null,null,null,null,null,null,null,null,null,null,null,null,null,null,null,null,null,null,null,null,null,{"$f":"IF(BC597+1>20, 1, BC597+1)","v":15},"-",{"$f":"IF(BC598=1, BE597+1, BE597)","v":10},null,5,null,"",null,606,"",{"$f":"IF($BL598=\"\", \"\", COUNTIF($BL$3:$BL$803, \">\"&$BL598)+1+COUNTIF($BL$3:$BL598, $BL598)-1)","v":""},null,null,null,null,null,606,null,558]
[null,null,null,null,null,null,null,null,null,null,null,null,null,null,null,null,null,null,null,null,null,null,null,null,null,null,null,null,null,null,null,null,null,null,null,null,null,null,null,null,null,null,null,null,null,null,null,null,null,null,null,null,null,null,16,"-",10,null,6,null,"",null,371,"",{"$f":"IF($BL599=\"\", \"\", COUNTIF($BL$3:$BL$803, \">\"&$BL599)+1+COUNTIF($BL$3:$BL599, $BL599)-1)","v":""},null,null,null,null,null,371,null,875]
[null,null,null,null,null,null,null,null,null,null,null,null,null,null,null,null,null,null,null,null,null,null,null,null,null,null,null,null,null,null,null,null,null,null,null,null,null,null,null,null,null,null,null,null,null,null,null,null,null,null,null,null,null,null,17,"-",10,null,7,null,"",null,855,"",{"$f":"IF($BL600=\"\", \"\", COUNTIF($BL$3:$BL$803, \">\"&$BL600)+1+COUNTIF($BL$3:$BL600, $BL600)-1)","v":""},null,null,null,null,null,855,null,16]
[null,null,null,null,null,null,null,null,null,null,null,null,null,null,null,null,null,null,null,null,null,null,null,null,null,null,null,null,null,null,null,null,null,null,null,null,null,null,null,null,null,null,null,null,null,null,null,null,null,null,null,null,null,null,18,"-",10,null,8,null,"",null,846,"",{"$f":"IF($BL601=\"\", \"\", COUNTIF($BL$3:$BL$803, \">\"&$BL601)+1+COUNTIF($BL$3:$BL601, $BL601)-1)","v":""},null,null,null,null,null,846,null,669]
[null,null,null,null,null,null,null,null,null,null,null,null,null,null,null,null,null,null,null,null,null,null,null,null,null,null,null,null,null,null,null,null,null,null,null,null,null,null,null,null,null,null,null,null,null,null,null,null,null,null,null,null,null,null,19,"-",10,null,9,null,"",null,850,"",{"$f":"IF($BL602=\"\", \"\", COUNTIF($BL$3:$BL$803, \">\"&$BL602)+1+COUNTIF($BL$3:$BL602, $BL602)-1)","v":""},null,null,null,null,null,850,null,60]
[null,null,null,null,null,null,null,null,null,null,null,null,null,null,null,null,null,null,null,null,null,null,null,null,null,null,null,null,null,null,null,null,null,null,null,null,null,null,null,null,null,null,null,null,null,null,null,null,null,null,null,null,null,null,20,"-",10,null,10,null,"",null,740,"",{"$f":"IF($BL603=\"\", \"\", COUNTIF($BL$3:$BL$803, \">\"&$BL603)+1+COUNTIF($BL$3:$BL603, $BL603)-1)","v":""},null,null,null,null,null,740,null,145]
[null,null,null,null,null,null,null,null,null,null,null,null,null,null,null,null,null,null,null,null,null,null,null,null,null,null,null,null,null,null,null,null,null,null,null,null,null,null,null,null,null,null,null,null,null,null,null,null,null,null,null,null,null,null,1,"-",11,null,-10,null,"",null,692,"",{"$f":"IF($BL604=\"\", \"\", COUNTIF($BL$3:$BL$803, \">\"&$BL604)+1+COUNTIF($BL$3:$BL604, $BL604)-1)","v":""},null,null,null,null,null,692,null,95]
[null,null,null,null,null,null,null,null,null,null,null,null,null,null,null,null,null,null,null,null,null,null,null,null,null,null,null,null,null,null,null,null,null,null,null,null,null,null,null,null,null,null,null,null,null,null,null,null,null,null,null,null,null,null,2,"-",11,null,-9,null,"",null,894,"",{"$f":"IF($BL605=\"\", \"\", COUNTIF($BL$3:$BL$803, \">\"&$BL605)+1+COUNTIF($BL$3:$BL605, $BL605)-1)","v":""},null,null,null,null,null,894,null,236]
[null,null,null,null,null,null,null,null,null,null,null,null,null,null,null,null,null,null,null,null,null,null,null,null,null,null,null,null,null,null,null,null,null,null,null,null,null,null,null,null,null,null,null,null,null,null,null,null,null,null,null,null,null,null,3,"-",11,null,-8,null,"",null,281,"",{"$f":"IF($BL606=\"\", \"\", COUNTIF($BL$3:$BL$803, \">\"&$BL606)+1+COUNTIF($BL$3:$BL606, $BL606)-1)","v":""},null,null,null,null,null,281,null,163]
[null,null,null,null,null,null,null,null,null,null,null,null,null,null,null,null,null,null,null,null,null,null,null,null,null,null,null,null,null,null,null,null,null,null,null,null,null,null,null,null,null,null,null,null,null,null,null,null,null,null,null,null,null,null,4,"-",11,null,-7,null,"",null,743,"",{"$f":"IF($BL607=\"\", \"\", COUNTIF($BL$3:$BL$803, \">\"&$BL607)+1+COUNTIF($BL$3:$BL607, $BL607)-1)","v":""},null,null,null,null,null,743,null,843]
[null,null,null,null,null,null,null,null,null,null,null,null,null,null,null,null,null,null,null,null,null,null,null,null,null,null,null,null,null,null,null,null,null,null,null,null,null,null,null,null,null,null,null,null,null,null,null,null,null,null,null,null,null,null,5,"-",11,null,-6,null,"",null,44,"",{"$f":"IF($BL608=\"\", \"\", COUNTIF($BL$3:$BL$803, \">\"&$BL608)+1+COUNTIF($BL$3:$BL608, $BL608)-1)","v":""},null,null,null,null,null,44,null,390]
[null,null,null,null,null,null,null,null,null,null,null,null,null,null,null,null,null,null,null,null,null,null,null,null,null,null,null,null,null,null,null,null,null,null,null,null,null,null,null,null,null,null,null,null,null,null,null,null,null,null,null,null,null,null,6,"-",11,null,-5,null,"",null,605,"",{"$f":"IF($BL609=\"\", \"\", COUNTIF($BL$3:$BL$803, \">\"&$BL609)+1+COUNTIF($BL$3:$BL609, $BL609)-1)","v":""},null,null,null,null,null,605,null,933]
[null,null,null,null,null,null,null,null,null,null,null,null,null,null,null,null,null,null,null,null,null,null,null,null,null,null,null,null,null,null,null,null,null,null,null,null,null,null,null,null,null,null,null,null,null,null,null,null,null,null,null,null,null,null,7,"-",11,null,-4,null,"",null,395,"",{"$f":"IF($BL610=\"\", \"\", COUNTIF($BL$3:$BL$803, \">\"&$BL610)+1+COUNTIF($BL$3:$BL610, $BL610)-1)","v":""},null,null,null,null,null,395,null,790]
[null,null,null,null,null,null,null,null,null,null,null,null,null,null,null,null,null,null,null,null,null,null,null,null,null,null,null,null,null,null,null,null,null,null,null,null,null,null,null,null,null,null,null,null,null,null,null,null,null,null,null,null,null,null,8,"-",11,null,-3,null,"",null,195,"",{"$f":"IF($BL611=\"\", \"\", COUNTIF($BL$3:$BL$803, \">\"&$BL611)+1+COUNTIF($BL$3:$BL611, $BL611)-1)","v":""},null,null,null,null,null,195,null,654]
[null,null,null,null,null,null,null,null,null,null,null,null,null,null,null,null,null,null,null,null,null,null,null,null,null,null,null,null,null,null,null,null,null,null,null,null,null,null,null,null,null,null,null,null,null,null,null,null,null,null,null,null,null,null,9,"-",11,null,-2,null,"",null,602,"",{"$f":"IF($BL612=\"\", \"\", COUNTIF($BL$3:$BL$803, \">\"&$BL612)+1+COUNTIF($BL$3:$BL612, $BL612)-1)","v":""},null,null,null,null,null,602,null,45]
[null,null,null,null,null,null,null,null,null,null,null,null,null,null,null,null,null,null,null,null,null,null,null,null,null,null,null,null,null,null,null,null,null,null,null,null,null,null,null,null,null,null,null,null,null,null,null,null,null,null,null,null,null,null,10,"-",11,null,-1,null,"",null,586,"",{"$f":"IF($BL613=\"\", \"\", COUNTIF($BL$3:$BL$803, \">\"&$BL613)+1+COUNTIF($BL$3:$BL613, $BL613)-1)","v":""},null,null,null,null,null,586,null,963]
[null,null,null,null,null,null,null,null,null,null,null,null,null,null,null,null,null,null,null,null,null,null,null,null,null,null,null,null,null,null,null,null,null,null,null,null,null,null,null,null,null,null,null,null,null,null,null,null,null,null,null,null,null,null,11,"-",11,null,0,null,"",null,208,"",{"$f":"IF($BL614=\"\", \"\", COUNTIF($BL$3:$BL$803, \">\"&$BL614)+1+COUNTIF($BL$3:$BL614, $BL614)-1)","v":""},null,null,null,null,null,208,null,407]
[null,null,null,null,null,null,null,null,null,null,null,null,null,null,null,null,null,null,null,null,null,null,null,null,null,null,null,null,null,null,null,null,null,null,null,null,null,null,null,null,null,null,null,null,null,null,null,null,null,null,null,null,null,null,12,"-",11,null,1,null,"",null,560,"",{"$f":"IF($BL615=\"\", \"\", COUNTIF($BL$3:$BL$803, \">\"&$BL615)+1+COUNTIF($BL$3:$BL615, $BL615)-1)","v":""},null,null,null,null,null,560,null,980]
[null,null,null,null,null,null,null,null,null,null,null,null,null,null,null,null,null,null,null,null,null,null,null,null,null,null,null,null,null,null,null,null,null,null,null,null,null,null,null,null,null,null,null,null,null,null,null,null,null,null,null,null,null,null,13,"-",11,null,2,null,"",null,770,"",{"$f":"IF($BL616=\"\", \"\", COUNTIF($BL$3:$BL$803, \">\"&$BL616)+1+COUNTIF($BL$3:$BL616, $BL616)-1)","v":""},null,null,null,null,null,770,null,662]
[null,null,null,null,null,null,null,null,null,null,null,null,null,null,null,null,null,null,null,null,null,null,null,null,null,null,null,null,null,null,null,null,null,null,null,null,null,null,null,null,null,null,null,null,null,null,null,null,null,null,null,null,null,null,14,"-",11,null,3,null,"",null,60,"",{"$f":"IF($BL617=\"\", \"\", COUNTIF($BL$3:$BL$803, \">\"&$BL617)+1+COUNTIF($BL$3:$BL617, $BL617)-1)","v":""},null,null,null,null,null,60,null,303]
[null,null,null,null,null,null,null,null,null,null,null,null,null,null,null,null,null,null,null,null,null,null,null,null,null,null,null,null,null,null,null,null,null,null,null,null,null,null,null,null,null,null,null,null,null,null,null,null,null,null,null,null,null,null,15,"-",11,null,4,null,"",null,243,"",{"$f":"IF($BL618=\"\", \"\", COUNTIF($BL$3:$BL$803, \">\"&$BL618)+1+COUNTIF($BL$3:$BL618, $BL618)-1)","v":""},null,null,null,null,null,243,null,244]
[null,null,null,null,null,null,null,null,null,null,null,null,null,null,null,null,null,null,null,null,null,null,null,null,null,null,null,null,null,null,null,null,null,null,null,null,null,null,null,null,null,null,null,null,null,null,null,null,null,null,null,null,null,null,16,"-",11,null,5,null,"",null,565,"",{"$f":"IF($BL619=\"\", \"\", COUNTIF($BL$3:$BL$803, \">\"&$BL619)+1+COUNTIF($BL$3:$BL619, $BL619)-1)","v":""},null,null,null,null,null,565,null,397]
[null,null,null,null,null,null,null,null,null,null,null,null,null,null,null,null,null,null,null,null,null,null,null,null,null,null,null,null,null,null,null,null,null,null,null,null,null,null,null,null,null,null,null,null,null,null,null,null,null,null,null,null,null,null,17,"-",11,null,6,null,"",null,892,"",{"$f":"IF($BL620=\"\", \"\", COUNTIF($BL$3:$BL$803, \">\"&$BL620)+1+COUNTIF($BL$3:$BL620, $BL620)-1)","v":""},null,null,null,null,null,892,null,223]
[null,null,null,null,null,null,null,null,null,null,null,null,null,null,null,null,null,null,null,null,null,null,null,null,null,null,null,null,null,null,null,null,null,null,null,null,null,null,null,null,null,null,null,null,null,null,null,null,null,null,null,null,null,null,18,"-",11,null,7,null,"",null,100,"",{"$f":"IF($BL621=\"\", \"\", COUNTIF($BL$3:$BL$803, \">\"&$BL621)+1+COUNTIF($BL$3:$BL621, $BL621)-1)","v":""},null,null,null,null,null,100,null,869]
[null,null,null,null,null,null,null,null,null,null,null,null,null,null,null,null,null,null,null,null,null,null,null,null,null,null,null,null,null,null,null,null,null,null,null,null,null,null,null,null,null,null,null,null,null,null,null,null,null,null,null,null,null,null,19,"-",11,null,8,null,"",null,73,"",{"$f":"IF($BL622=\"\", \"\", COUNTIF($BL$3:$BL$803, \">\"&$BL622)+1+COUNTIF($BL$3:$BL622, $BL622)-1)","v":""},null,null,null,null,null,73,null,1]
[null,null,null,null,null,null,null,null,null,null,null,null,null,null,null,null,null,null,null,null,null,null,null,null,null,null,null,null,null,null,null,null,null,null,null,null,null,null,null,null,null,null,null,null,null,null,null,null,null,null,null,null,null,null,20,"-",11,null,9,null,"",null,164,"",{"$f":"IF($BL623=\"\", \"\", COUNTIF($BL$3:$BL$803, \">\"&$BL623)+1+COUNTIF($BL$3:$BL623, $BL623)-1)","v":""},null,null,null,null,null,164,null,506]
[null,null,null,null,null,null,null,null,null,null,null,null,null,null,null,null,null,null,null,null,null,null,null,null,null,null,null,null,null,null,null,null,null,null,null,null,null,null,null,null,null,null,null,null,null,null,null,null,null,null,null,null,null,null,1,"-",12,null,-11,null,"",null,874,"",{"$f":"IF($BL624=\"\", \"\", COUNTIF($BL$3:$BL$803, \">\"&$BL624)+1+COUNTIF($BL$3:$BL624, $BL624)-1)","v":""},null,null,null,null,null,874,null,131]
[null,null,null,null,null,null,null,null,null,null,null,null,null,null,null,null,null,null,null,null,null,null,null,null,null,null,null,null,null,null,null,null,null,null,null,null,null,null,null,null,null,null,null,null,null,null,null,null,null,null,null,null,null,null,2,"-",12,null,-10,null,"",null,500,"",{"$f":"IF($BL625=\"\", \"\", COUNTIF($BL$3:$BL$803, \">\"&$BL625)+1+COUNTIF($BL$3:$BL625, $BL625)-1)","v":""},null,null,null,null,null,500,null,929]
[null,null,null,null,null,null,null,null,null,null,null,null,null,null,null,null,null,null,null,null,null,null,null,null,null,null,null,null,null,null,null,null,null,null,null,null,null,null,null,null,null,null,null,null,null,null,null,null,null,null,null,null,null,null,3,"-",12,null,-9,null,"",null,616,"",{"$f":"IF($BL626=\"\", \"\", COUNTIF($BL$3:$BL$803, \">\"&$BL626)+1+COUNTIF($BL$3:$BL626, $BL626)-1)","v":""},null,null,null,null,null,616,null,800]
[null,null,null,null,null,null,null,null,null,null,null,null,null,null,null,null,null,null,null,null,null,null,null,null,null,null,null,null,null,null,null,null,null,null,null,null,null,null,null,null,null,null,null,null,null,null,null,null,null,null,null,null,null,null,4,"-",12,null,-8,null,"",null,382,"",{"$f":"IF($BL627=\"\", \"\", COUNTIF($BL$3:$BL$803, \">\"&$BL627)+1+COUNTIF($BL$3:$BL627, $BL627)-1)","v":""},null,null,null,null,null,382,null,639]
[null,null,null,null,null,null,null,null,null,null,null,null,null,null,null,null,null,null,null,null,null,null,null,null,null,null,null,null,null,null,null,null,null,null,null,null,null,null,null,null,null,null,null,null,null,null,null,null,null,null,null,null,null,null,5,"-",12,null,-7,null,"",null,951,"",{"$f":"IF($BL628=\"\", \"\", COUNTIF($BL$3:$BL$803, \">\"&$BL628)+1+COUNTIF($BL$3:$BL628, $BL628)-1)","v":""},null,null,null,null,null,951,null,8]
[null,null,null,null,null,null,null,null,null,null,null,null,null,null,null,null,null,null,null,null,null,null,null,null,null,null,null,null,null,null,null,null,null,null,null,null,null,null,null,null,null,null,null,null,null,null,null,null,null,null,null,null,null,null,6,"-",12,null,-6,null,"",null,344,"",{"$f":"IF($BL629=\"\", \"\", COUNTIF($BL$3:$BL$803, \">\"&$BL629)+1+COUNTIF($BL$3:$BL629, $BL629)-1)","v":""},null,null,null,null,null,344,null,83]
[null,null,null,null,null,null,null,null,null,null,null,null,null,null,null,null,null,null,null,null,null,null,null,null,null,null,null,null,null,null,null,null,null,null,null,null,null,null,null,null,null,null,null,null,null,null,null,null,null,null,null,null,null,null,7,"-",12,null,-5,null,"",null,524,"",{"$f":"IF($BL630=\"\", \"\", COUNTIF($BL$3:$BL$803, \">\"&$BL630)+1+COUNTIF($BL$3:$BL630, $BL630)-1)","v":""},null,null,null,null,null,524,null,323]
[null,null,null,null,null,null,null,null,null,null,null,null,null,null,null,null,null,null,null,null,null,null,null,null,null,null,null,null,null,null,null,null,null,null,null,null,null,null,null,null,null,null,null,null,null,null,null,null,null,null,null,null,null,null,8,"-",12,null,-4,null,"",null,745,"",{"$f":"IF($BL631=\"\", \"\", COUNTIF($BL$3:$BL$803, \">\"&$BL631)+1+COUNTIF($BL$3:$BL631, $BL631)-1)","v":""},null,null,null,null,null,745,null,441]
[null,null,null,null,null,null,null,null,null,null,null,null,null,null,null,null,null,null,null,null,null,null,null,null,null,null,null,null,null,null,null,null,null,null,null,null,null,null,null,null,null,null,null,null,null,null,null,null,null,null,null,null,null,null,9,"-",12,null,-3,null,"",null,573,"",{"$f":"IF($BL632=\"\", \"\", COUNTIF($BL$3:$BL$803, \">\"&$BL632)+1+COUNTIF($BL$3:$BL632, $BL632)-1)","v":""},null,null,null,null,null,573,null,586]
[null,null,null,null,null,null,null,null,null,null,null,null,null,null,null,null,null,null,null,null,null,null,null,null,null,null,null,null,null,null,null,null,null,null,null,null,null,null,null,null,null,null,null,null,null,null,null,null,null,null,null,null,null,null,10,"-",12,null,-2,null,"",null,956,"",{"$f":"IF($BL633=\"\", \"\", COUNTIF($BL$3:$BL$803, \">\"&$BL633)+1+COUNTIF($BL$3:$BL633, $BL633)-1)","v":""},null,null,null,null,null,956,null,463]
[null,null,null,null,null,null,null,null,null,null,null,null,null,null,null,null,null,null,null,null,null,null,null,null,null,null,null,null,null,null,null,null,null,null,null,null,null,null,null,null,null,null,null,null,null,null,null,null,null,null,null,null,null,null,11,"-",12,null,-1,null,"",null,664,"",{"$f":"IF($BL634=\"\", \"\", COUNTIF($BL$3:$BL$803, \">\"&$BL634)+1+COUNTIF($BL$3:$BL634, $BL634)-1)","v":""},null,null,null,null,null,664,null,224]
[null,null,null,null,null,null,null,null,null,null,null,null,null,null,null,null,null,null,null,null,null,null,null,null,null,null,null,null,null,null,null,null,null,null,null,null,null,null,null,null,null,null,null,null,null,null,null,null,null,null,null,null,null,null,12,"-",12,null,0,null,"",null,744,"",{"$f":"IF($BL635=\"\", \"\", COUNTIF($BL$3:$BL$803, \">\"&$BL635)+1+COUNTIF($BL$3:$BL635, $BL635)-1)","v":""},null,null,null,null,null,744,null,198]
[null,null,null,null,null,null,null,null,null,null,null,null,null,null,null,null,null,null,null,null,null,null,null,null,null,null,null,null,null,null,null,null,null,null,null,null,null,null,null,null,null,null,null,null,null,null,null,null,null,null,null,null,null,null,13,"-",12,null,1,null,"",null,378,"",{"$f":"IF($BL636=\"\", \"\", COUNTIF($BL$3:$BL$803, \">\"&$BL636)+1+COUNTIF($BL$3:$BL636, $BL636)-1)","v":""},null,null,null,null,null,378,null,40]
[null,null,null,null,null,null,null,null,null,null,null,null,null,null,null,null,null,null,null,null,null,null,null,null,null,null,null,null,null,null,null,null,null,null,null,null,null,null,null,null,null,null,null,null,null,null,null,null,null,null,null,null,null,null,14,"-",12,null,2,null,"",null,552,"",{"$f":"IF($BL637=\"\", \"\", COUNTIF($BL$3:$BL$803, \">\"&$BL637)+1+COUNTIF($BL$3:$BL637, $BL637)-1)","v":""},null,null,null,null,null,552,null,687]
[null,null,null,null,null,null,null,null,null,null,null,null,null,null,null,null,null,null,null,null,null,null,null,null,null,null,null,null,null,null,null,null,null,null,null,null,null,null,null,null,null,null,null,null,null,null,null,null,null,null,null,null,null,null,15,"-",12,null,3,null,"",null,547,"",{"$f":"IF($BL638=\"\", \"\", COUNTIF($BL$3:$BL$803, \">\"&$BL638)+1+COUNTIF($BL$3:$BL638, $BL638)-1)","v":""},null,null,null,null,null,547,null,197]
[null,null,null,null,null,null,null,null,null,null,null,null,null,null,null,null,null,null,null,null,null,null,null,null,null,null,null,null,null,null,null,null,null,null,null,null,null,null,null,null,null,null,null,null,null,null,null,null,null,null,null,null,null,null,16,"-",12,null,4,null,"",null,843,"",{"$f":"IF($BL639=\"\", \"\", COUNTIF($BL$3:$BL$803, \">\"&$BL639)+1+COUNTIF($BL$3:$BL639, $BL639)-1)","v":""},null,null,null,null,null,843,null,139]
[null,null,null,null,null,null,null,null,null,null,null,null,null,null,null,null,null,null,null,null,null,null,null,null,null,null,null,null,null,null,null,null,null,null,null,null,null,null,null,null,null,null,null,null,null,null,null,null,null,null,null,null,null,null,17,"-",12,null,5,null,"",null,25,"",{"$f":"IF($BL640=\"\", \"\", COUNTIF($BL$3:$BL$803, \">\"&$BL640)+1+COUNTIF($BL$3:$BL640, $BL640)-1)","v":""},null,null,null,null,null,25,null,830]
[null,null,null,null,null,null,null,null,null,null,null,null,null,null,null,null,null,null,null,null,null,null,null,null,null,null,null,null,null,null,null,null,null,null,null,null,null,null,null,null,null,null,null,null,null,null,null,null,null,null,null,null,null,null,18,"-",12,null,6,null,"",null,177,"",{"$f":"IF($BL641=\"\", \"\", COUNTIF($BL$3:$BL$803, \">\"&$BL641)+1+COUNTIF($BL$3:$BL641, $BL641)-1)","v":""},null,null,null,null,null,177,null,608]
[null,null,null,null,null,null,null,null,null,null,null,null,null,null,null,null,null,null,null,null,null,null,null,null,null,null,null,null,null,null,null,null,null,null,null,null,null,null,null,null,null,null,null,null,null,null,null,null,null,null,null,null,null,null,19,"-",12,null,7,null,"",null,232,"",{"$f":"IF($BL642=\"\", \"\", COUNTIF($BL$3:$BL$803, \">\"&$BL642)+1+COUNTIF($BL$3:$BL642, $BL642)-1)","v":""},null,null,null,null,null,232,null,759]
[null,null,null,null,null,null,null,null,null,null,null,null,null,null,null,null,null,null,null,null,null,null,null,null,null,null,null,null,null,null,null,null,null,null,null,null,null,null,null,null,null,null,null,null,null,null,null,null,null,null,null,null,null,null,20,"-",12,null,8,null,"",null,93,"",{"$f":"IF($BL643=\"\", \"\", COUNTIF($BL$3:$BL$803, \">\"&$BL643)+1+COUNTIF($BL$3:$BL643, $BL643)-1)","v":""},null,null,null,null,null,93,null,743]
[null,null,null,null,null,null,null,null,null,null,null,null,null,null,null,null,null,null,null,null,null,null,null,null,null,null,null,null,null,null,null,null,null,null,null,null,null,null,null,null,null,null,null,null,null,null,null,null,null,null,null,null,null,null,1,"-",13,null,-12,null,{"$f":"IF(COUNTIF($BP$5:$BP$6, $BD644)=0, \"\", IF(OR($BC644>$BP$3, $BE644>$BP$3, $BG644>$BP$3, $BG644<$BP$8), \"\", \"X\"))","v":""},null,{"$f":"$BS644","v":601},{"$f":"IF($BI644=\"\", \"\", $BK644)","v":""},{"$f":"IF($BL644=\"\", \"\", COUNTIF($BL$3:$BL$803, \">\"&$BL644)+1+COUNTIF($BL$3:$BL644, $BL644)-1)","v":""},null,null,null,null,null,601,null,{"$f":"RANDBETWEEN(1, 1000)","v":92}]
[null,null,null,null,null,null,null,null,null,null,null,null,null,null,null,null,null,null,null,null,null,null,null,null,null,null,null,null,null,null,null,null,null,null,null,null,null,null,null,null,null,null,null,null,null,null,null,null,null,null,null,null,null,null,2,"-",13,null,-11,null,"",null,894,"",{"$f":"IF($BL645=\"\", \"\", COUNTIF($BL$3:$BL$803, \">\"&$BL645)+1+COUNTIF($BL$3:$BL645, $BL645)-1)","v":""},null,null,null,null,null,894,null,701]
[null,null,null,null,null,null,null,null,null,null,null,null,null,null,null,null,null,null,null,null,null,null,null,null,null,null,null,null,null,null,null,null,null,null,null,null,null,null,null,null,null,null,null,null,null,null,null,null,null,null,null,null,null,null,3,"-",13,null,-10,null,"",null,617,"",{"$f":"IF($BL646=\"\", \"\", COUNTIF($BL$3:$BL$803, \">\"&$BL646)+1+COUNTIF($BL$3:$BL646, $BL646)-1)","v":""},null,null,null,null,null,617,null,188]
[null,null,null,null,null,null,null,null,null,null,null,null,null,null,null,null,null,null,null,null,null,null,null,null,null,null,null,null,null,null,null,null,null,null,null,null,null,null,null,null,null,null,null,null,null,null,null,null,null,null,null,null,null,null,4,"-",13,null,-9,null,"",null,223,"",{"$f":"IF($BL647=\"\", \"\", COUNTIF($BL$3:$BL$803, \">\"&$BL647)+1+COUNTIF($BL$3:$BL647, $BL647)-1)","v":""},null,null,null,null,null,223,null,646]
[null,null,null,null,null,null,null,null,null,null,null,null,null,null,null,null,null,null,null,null,null,null,null,null,null,null,null,null,null,null,null,null,null,null,null,null,null,null,null,null,null,null,null,null,null,null,null,null,null,null,null,null,null,null,5,"-",13,null,-8,null,"",null,795,"",{"$f":"IF($BL648=\"\", \"\", COUNTIF($BL$3:$BL$803, \">\"&$BL648)+1+COUNTIF($BL$3:$BL648, $BL648)-1)","v":""},null,null,null,null,null,795,null,887]
[null,null,null,null,null,null,null,null,null,null,null,null,null,null,null,null,null,null,null,null,null,null,null,null,null,null,null,null,null,null,null,null,null,null,null,null,null,null,null,null,null,null,null,null,null,null,null,null,null,null,null,null,null,null,6,"-",13,null,-7,null,"",null,816,"",{"$f":"IF($BL649=\"\", \"\", COUNTIF($BL$3:$BL$803, \">\"&$BL649)+1+COUNTIF($BL$3:$BL649, $BL649)-1)","v":""},null,null,null,null,null,816,null,910]
[null,null,null,null,null,null,null,null,null,null,null,null,null,null,null,null,null,null,null,null,null,null,null,null,null,null,null,null,null,null,null,null,null,null,null,null,null,null,null,null,null,null,null,null,null,null,null,null,null,null,null,null,null,null,7,"-",13,null,-6,null,"",null,123,"",{"$f":"IF($BL650=\"\", \"\", COUNTIF($BL$3:$BL$803, \">\"&$BL650)+1+COUNTIF($BL$3:$BL650, $BL650)-1)","v":""},null,null,null,null,null,123,null,616]
[null,null,null,null,null,null,null,null,null,null,null,null,null,null,null,null,null,null,null,null,null,null,null,null,null,null,null,null,null,null,null,null,null,null,null,null,null,null,null,null,null,null,null,null,null,null,null,null,null,null,null,null,null,null,8,"-",13,null,-5,null,"",null,259,"",{"$f":"IF($BL651=\"\", \"\", COUNTIF($BL$3:$BL$803, \">\"&$BL651)+1+COUNTIF($BL$3:$BL651, $BL651)-1)","v":""},null,null,null,null,null,259,null,135]
[null,null,null,null,null,null,null,null,null,null,null,null,null,null,null,null,null,null,null,null,null,null,null,null,null,null,null,null,null,null,null,null,null,null,null,null,null,null,null,null,null,null,null,null,null,null,null,null,null,null,null,null,null,null,9,"-",13,null,-4,null,"",null,24,"",{"$f":"IF($BL652=\"\", \"\", COUNTIF($BL$3:$BL$803, \">\"&$BL652)+1+COUNTIF($BL$3:$BL652, $BL652)-1)","v":""},null,null,null,null,null,24,null,224]
[null,null,null,null,null,null,null,null,null,null,null,null,null,null,null,null,null,null,null,null,null,null,null,null,null,null,null,null,null,null,null,null,null,null,null,null,null,null,null,null,null,null,null,null,null,null,null,null,null,null,null,null,null,null,10,"-",13,null,-3,null,"",null,790,"",{"$f":"IF($BL653=\"\", \"\", COUNTIF($BL$3:$BL$803, \">\"&$BL653)+1+COUNTIF($BL$3:$BL653, $BL653)-1)","v":""},null,null,null,null,null,790,null,47]
[null,null,null,null,null,null,null,null,null,null,null,null,null,null,null,null,null,null,null,null,null,null,null,null,null,null,null,null,null,null,null,null,null,null,null,null,null,null,null,null,null,null,null,null,null,null,null,null,null,null,null,null,null,null,{"$f":"IF(BC653+1>20, 1, BC653+1)","v":11},"-",{"$f":"IF(BC654=1, BE653+1, BE653)","v":13},null,-2,null,"",null,681,"",{"$f":"IF($BL654=\"\", \"\", COUNTIF($BL$3:$BL$803, \">\"&$BL654)+1+COUNTIF($BL$3:$BL654, $BL654)-1)","v":""},null,null,null,null,null,681,null,753]
[null,null,null,null,null,null,null,null,null,null,null,null,null,null,null,null,null,null,null,null,null,null,null,null,null,null,null,null,null,null,null,null,null,null,null,null,null,null,null,null,null,null,null,null,null,null,null,null,null,null,null,null,null,null,{"$f":"IF(BC654+1>20, 1, BC654+1)","v":12},"-",{"$f":"IF(BC655=1, BE654+1, BE654)","v":13},null,-1,null,"",null,507,"",{"$f":"IF($BL655=\"\", \"\", COUNTIF($BL$3:$BL$803, \">\"&$BL655)+1+COUNTIF($BL$3:$BL655, $BL655)-1)","v":""},null,null,null,null,null,507,null,42]
[null,null,null,null,null,null,null,null,null,null,null,null,null,null,null,null,null,null,null,null,null,null,null,null,null,null,null,null,null,null,null,null,null,null,null,null,null,null,null,null,null,null,null,null,null,null,null,null,null,null,null,null,null,null,13,"-",13,null,0,null,"",null,358,"",{"$f":"IF($BL656=\"\", \"\", COUNTIF($BL$3:$BL$803, \">\"&$BL656)+1+COUNTIF($BL$3:$BL656, $BL656)-1)","v":""},null,null,null,null,null,358,null,63]
[null,null,null,null,null,null,null,null,null,null,null,null,null,null,null,null,null,null,null,null,null,null,null,null,null,null,null,null,null,null,null,null,null,null,null,null,null,null,null,null,null,null,null,null,null,null,null,null,null,null,null,null,null,null,14,"-",13,null,1,null,"",null,36,"",{"$f":"IF($BL657=\"\", \"\", COUNTIF($BL$3:$BL$803, \">\"&$BL657)+1+COUNTIF($BL$3:$BL657, $BL657)-1)","v":""},null,null,null,null,null,36,null,925]
[null,null,null,null,null,null,null,null,null,null,null,null,null,null,null,null,null,null,null,null,null,null,null,null,null,null,null,null,null,null,null,null,null,null,null,null,null,null,null,null,null,null,null,null,null,null,null,null,null,null,null,null,null,null,15,"-",13,null,2,null,"",null,492,"",{"$f":"IF($BL658=\"\", \"\", COUNTIF($BL$3:$BL$803, \">\"&$BL658)+1+COUNTIF($BL$3:$BL658, $BL658)-1)","v":""},null,null,null,null,null,492,null,226]
[null,null,null,null,null,null,null,null,null,null,null,null,null,null,null,null,null,null,null,null,null,null,null,null,null,null,null,null,null,null,null,null,null,null,null,null,null,null,null,null,null,null,null,null,null,null,null,null,null,null,null,null,null,null,16,"-",13,null,3,null,"",null,240,"",{"$f":"IF($BL659=\"\", \"\", COUNTIF($BL$3:$BL$803, \">\"&$BL659)+1+COUNTIF($BL$3:$BL659, $BL659)-1)","v":""},null,null,null,null,null,240,null,702]
[null,null,null,null,null,null,null,null,null,null,null,null,null,null,null,null,null,null,null,null,null,null,null,null,null,null,null,null,null,null,null,null,null,null,null,null,null,null,null,null,null,null,null,null,null,null,null,null,null,null,null,null,null,null,17,"-",13,null,4,null,"",null,910,"",{"$f":"IF($BL660=\"\", \"\", COUNTIF($BL$3:$BL$803, \">\"&$BL660)+1+COUNTIF($BL$3:$BL660, $BL660)-1)","v":""},null,null,null,null,null,910,null,431]
[null,null,null,null,null,null,null,null,null,null,null,null,null,null,null,null,null,null,null,null,null,null,null,null,null,null,null,null,null,null,null,null,null,null,null,null,null,null,null,null,null,null,null,null,null,null,null,null,null,null,null,null,null,null,18,"-",13,null,{"$f":"BC661-BE661","v":5},null,"",null,911,"",{"$f":"IF($BL661=\"\", \"\", COUNTIF($BL$3:$BL$803, \">\"&$BL661)+1+COUNTIF($BL$3:$BL661, $BL661)-1)","v":""},null,null,null,null,null,911,null,792]
[null,null,null,null,null,null,null,null,null,null,null,null,null,null,null,null,null,null,null,null,null,null,null,null,null,null,null,null,null,null,null,null,null,null,null,null,null,null,null,null,null,null,null,null,null,null,null,null,null,null,null,null,null,null,19,"-",13,null,6,null,"",null,281,"",{"$f":"IF($BL662=\"\", \"\", COUNTIF($BL$3:$BL$803, \">\"&$BL662)+1+COUNTIF($BL$3:$BL662, $BL662)-1)","v":""},null,null,null,null,null,281,null,892]
[null,null,null,null,null,null,null,null,null,null,null,null,null,null,null,null,null,null,null,null,null,null,null,null,null,null,null,null,null,null,null,null,null,null,null,null,null,null,null,null,null,null,null,null,null,null,null,null,null,null,null,null,null,null,20,"-",13,null,7,null,"",null,781,"",{"$f":"IF($BL663=\"\", \"\", COUNTIF($BL$3:$BL$803, \">\"&$BL663)+1+COUNTIF($BL$3:$BL663, $BL663)-1)","v":""},null,null,null,null,null,781,null,725]
[null,null,null,null,null,null,null,null,null,null,null,null,null,null,null,null,null,null,null,null,null,null,null,null,null,null,null,null,null,null,null,null,null,null,null,null,null,null,null,null,null,null,null,null,null,null,null,null,null,null,null,null,null,null,1,"-",14,null,-13,null,"",null,376,"",{"$f":"IF($BL664=\"\", \"\", COUNTIF($BL$3:$BL$803, \">\"&$BL664)+1+COUNTIF($BL$3:$BL664, $BL664)-1)","v":""},null,null,null,null,null,376,null,442]
[null,null,null,null,null,null,null,null,null,null,null,null,null,null,null,null,null,null,null,null,null,null,null,null,null,null,null,null,null,null,null,null,null,null,null,null,null,null,null,null,null,null,null,null,null,null,null,null,null,null,null,null,null,null,2,"-",14,null,-12,null,"",null,75,"",{"$f":"IF($BL665=\"\", \"\", COUNTIF($BL$3:$BL$803, \">\"&$BL665)+1+COUNTIF($BL$3:$BL665, $BL665)-1)","v":""},null,null,null,null,null,75,null,877]
[null,null,null,null,null,null,null,null,null,null,null,null,null,null,null,null,null,null,null,null,null,null,null,null,null,null,null,null,null,null,null,null,null,null,null,null,null,null,null,null,null,null,null,null,null,null,null,null,null,null,null,null,null,null,3,"-",14,null,-11,null,"",null,979,"",{"$f":"IF($BL666=\"\", \"\", COUNTIF($BL$3:$BL$803, \">\"&$BL666)+1+COUNTIF($BL$3:$BL666, $BL666)-1)","v":""},null,null,null,null,null,979,null,491]
[null,null,null,null,null,null,null,null,null,null,null,null,null,null,null,null,null,null,null,null,null,null,null,null,null,null,null,null,null,null,null,null,null,null,null,null,null,null,null,null,null,null,null,null,null,null,null,null,null,null,null,null,null,null,4,"-",14,null,-10,null,"",null,199,"",{"$f":"IF($BL667=\"\", \"\", COUNTIF($BL$3:$BL$803, \">\"&$BL667)+1+COUNTIF($BL$3:$BL667, $BL667)-1)","v":""},null,null,null,null,null,199,null,191]
[null,null,null,null,null,null,null,null,null,null,null,null,null,null,null,null,null,null,null,null,null,null,null,null,null,null,null,null,null,null,null,null,null,null,null,null,null,null,null,null,null,null,null,null,null,null,null,null,null,null,null,null,null,null,5,"-",14,null,-9,null,"",null,232,"",{"$f":"IF($BL668=\"\", \"\", COUNTIF($BL$3:$BL$803, \">\"&$BL668)+1+COUNTIF($BL$3:$BL668, $BL668)-1)","v":""},null,null,null,null,null,232,null,998]
[null,null,null,null,null,null,null,null,null,null,null,null,null,null,null,null,null,null,null,null,null,null,null,null,null,null,null,null,null,null,null,null,null,null,null,null,null,null,null,null,null,null,null,null,null,null,null,null,null,null,null,null,null,null,6,"-",14,null,-8,null,"",null,751,"",{"$f":"IF($BL669=\"\", \"\", COUNTIF($BL$3:$BL$803, \">\"&$BL669)+1+COUNTIF($BL$3:$BL669, $BL669)-1)","v":""},null,null,null,null,null,751,null,370]
[null,null,null,null,null,null,null,null,null,null,null,null,null,null,null,null,null,null,null,null,null,null,null,null,null,null,null,null,null,null,null,null,null,null,null,null,null,null,null,null,null,null,null,null,null,null,null,null,null,null,null,null,null,null,7,"-",14,null,-7,null,"",null,543,"",{"$f":"IF($BL670=\"\", \"\", COUNTIF($BL$3:$BL$803, \">\"&$BL670)+1+COUNTIF($BL$3:$BL670, $BL670)-1)","v":""},null,null,null,null,null,543,null,451]
[null,null,null,null,null,null,null,null,null,null,null,null,null,null,null,null,null,null,null,null,null,null,null,null,null,null,null,null,null,null,null,null,null,null,null,null,null,null,null,null,null,null,null,null,null,null,null,null,null,null,null,null,null,null,8,"-",14,null,-6,null,"",null,266,"",{"$f":"IF($BL671=\"\", \"\", COUNTIF($BL$3:$BL$803, \">\"&$BL671)+1+COUNTIF($BL$3:$BL671, $BL671)-1)","v":""},null,null,null,null,null,266,null,560]
[null,null,null,null,null,null,null,null,null,null,null,null,null,null,null,null,null,null,null,null,null,null,null,null,null,null,null,null,null,null,null,null,null,null,null,null,null,null,null,null,null,null,null,null,null,null,null,null,null,null,null,null,null,null,9,"-",14,null,-5,null,"",null,833,"",{"$f":"IF($BL672=\"\", \"\", COUNTIF($BL$3:$BL$803, \">\"&$BL672)+1+COUNTIF($BL$3:$BL672, $BL672)-1)","v":""},null,null,null,null,null,833,null,919]
[null,null,null,null,null,null,null,null,null,null,null,null,null,null,null,null,null,null,null,null,null,null,null,null,null,null,null,null,null,null,null,null,null,null,null,null,null,null,null,null,null,null,null,null,null,null,null,null,null,null,null,null,null,null,10,"-",14,null,-4,null,"",null,274,"",{"$f":"IF($BL673=\"\", \"\", COUNTIF($BL$3:$BL$803, \">\"&$BL673)+1+COUNTIF($BL$3:$BL673, $BL673)-1)","v":""},null,null,null,null,null,274,null,196]
[null,null,null,null,null,null,null,null,null,null,null,null,null,null,null,null,null,null,null,null,null,null,null,null,null,null,null,null,null,null,null,null,null,null,null,null,null,null,null,null,null,null,null,null,null,null,null,null,null,null,null,null,null,null,11,"-",14,null,-3,null,"",null,201,"",{"$f":"IF($BL674=\"\", \"\", COUNTIF($BL$3:$BL$803, \">\"&$BL674)+1+COUNTIF($BL$3:$BL674, $BL674)-1)","v":""},null,null,null,null,null,201,null,142]
[null,null,null,null,null,null,null,null,null,null,null,null,null,null,null,null,null,null,null,null,null,null,null,null,null,null,null,null,null,null,null,null,null,null,null,null,null,null,null,null,null,null,null,null,null,null,null,null,null,null,null,null,null,null,12,"-",14,null,-2,null,"",null,218,"",{"$f":"IF($BL675=\"\", \"\", COUNTIF($BL$3:$BL$803, \">\"&$BL675)+1+COUNTIF($BL$3:$BL675, $BL675)-1)","v":""},null,null,null,null,null,218,null,158]
[null,null,null,null,null,null,null,null,null,null,null,null,null,null,null,null,null,null,null,null,null,null,null,null,null,null,null,null,null,null,null,null,null,null,null,null,null,null,null,null,null,null,null,null,null,null,null,null,null,null,null,null,null,null,13,"-",14,null,-1,null,"",null,436,"",{"$f":"IF($BL676=\"\", \"\", COUNTIF($BL$3:$BL$803, \">\"&$BL676)+1+COUNTIF($BL$3:$BL676, $BL676)-1)","v":""},null,null,null,null,null,436,null,970]
[null,null,null,null,null,null,null,null,null,null,null,null,null,null,null,null,null,null,null,null,null,null,null,null,null,null,null,null,null,null,null,null,null,null,null,null,null,null,null,null,null,null,null,null,null,null,null,null,null,null,null,null,null,null,14,"-",14,null,0,null,"",null,58,"",{"$f":"IF($BL677=\"\", \"\", COUNTIF($BL$3:$BL$803, \">\"&$BL677)+1+COUNTIF($BL$3:$BL677, $BL677)-1)","v":""},null,null,null,null,null,58,null,715]
[null,null,null,null,null,null,null,null,null,null,null,null,null,null,null,null,null,null,null,null,null,null,null,null,null,null,null,null,null,null,null,null,null,null,null,null,null,null,null,null,null,null,null,null,null,null,null,null,null,null,null,null,null,null,15,"-",14,null,1,null,"",null,492,"",{"$f":"IF($BL678=\"\", \"\", COUNTIF($BL$3:$BL$803, \">\"&$BL678)+1+COUNTIF($BL$3:$BL678, $BL678)-1)","v":""},null,null,null,null,null,492,null,646]
[null,null,null,null,null,null,null,null,null,null,null,null,null,null,null,null,null,null,null,null,null,null,null,null,null,null,null,null,null,null,null,null,null,null,null,null,null,null,null,null,null,null,null,null,null,null,null,null,null,null,null,null,null,null,16,"-",14,null,2,null,"",null,4,"",{"$f":"IF($BL679=\"\", \"\", COUNTIF($BL$3:$BL$803, \">\"&$BL679)+1+COUNTIF($BL$3:$BL679, $BL679)-1)","v":""},null,null,null,null,null,4,null,807]
[null,null,null,null,null,null,null,null,null,null,null,null,null,null,null,null,null,null,null,null,null,null,null,null,null,null,null,null,null,null,null,null,null,null,null,null,null,null,null,null,null,null,null,null,null,null,null,null,null,null,null,null,null,null,17,"-",14,null,3,null,"",null,262,"",{"$f":"IF($BL680=\"\", \"\", COUNTIF($BL$3:$BL$803, \">\"&$BL680)+1+COUNTIF($BL$3:$BL680, $BL680)-1)","v":""},null,null,null,null,null,262,null,658]
[null,null,null,null,null,null,null,null,null,null,null,null,null,null,null,null,null,null,null,null,null,null,null,null,null,null,null,null,null,null,null,null,null,null,null,null,null,null,null,null,null,null,null,null,null,null,null,null,null,null,null,null,null,null,18,"-",14,null,4,null,"",null,705,"",{"$f":"IF($BL681=\"\", \"\", COUNTIF($BL$3:$BL$803, \">\"&$BL681)+1+COUNTIF($BL$3:$BL681, $BL681)-1)","v":""},null,null,null,null,null,705,null,391]
[null,null,null,null,null,null,null,null,null,null,null,null,null,null,null,null,null,null,null,null,null,null,null,null,null,null,null,null,null,null,null,null,null,null,null,null,null,null,null,null,null,null,null,null,null,null,null,null,null,null,null,null,null,null,19,"-",14,null,5,null,"",null,875,"",{"$f":"IF($BL682=\"\", \"\", COUNTIF($BL$3:$BL$803, \">\"&$BL682)+1+COUNTIF($BL$3:$BL682, $BL682)-1)","v":""},null,null,null,null,null,875,null,687]
[null,null,null,null,null,null,null,null,null,null,null,null,null,null,null,null,null,null,null,null,null,null,null,null,null,null,null,null,null,null,null,null,null,null,null,null,null,null,null,null,null,null,null,null,null,null,null,null,null,null,null,null,null,null,20,"-",14,null,6,null,"",null,858,"",{"$f":"IF($BL683=\"\", \"\", COUNTIF($BL$3:$BL$803, \">\"&$BL683)+1+COUNTIF($BL$3:$BL683, $BL683)-1)","v":""},null,null,null,null,null,858,null,367]
[null,null,null,null,null,null,null,null,null,null,null,null,null,null,null,null,null,null,null,null,null,null,null,null,null,null,null,null,null,null,null,null,null,null,null,null,null,null,null,null,null,null,null,null,null,null,null,null,null,null,null,null,null,null,1,"-",15,null,-14,null,"",null,837,"",{"$f":"IF($BL684=\"\", \"\", COUNTIF($BL$3:$BL$803, \">\"&$BL684)+1+COUNTIF($BL$3:$BL684, $BL684)-1)","v":""},null,null,null,null,null,837,null,233]
[null,null,null,null,null,null,null,null,null,null,null,null,null,null,null,null,null,null,null,null,null,null,null,null,null,null,null,null,null,null,null,null,null,null,null,null,null,null,null,null,null,null,null,null,null,null,null,null,null,null,null,null,null,null,2,"-",15,null,-13,null,"",null,201,"",{"$f":"IF($BL685=\"\", \"\", COUNTIF($BL$3:$BL$803, \">\"&$BL685)+1+COUNTIF($BL$3:$BL685, $BL685)-1)","v":""},null,null,null,null,null,201,null,849]
[null,null,null,null,null,null,null,null,null,null,null,null,null,null,null,null,null,null,null,null,null,null,null,null,null,null,null,null,null,null,null,null,null,null,null,null,null,null,null,null,null,null,null,null,null,null,null,null,null,null,null,null,null,null,3,"-",15,null,-12,null,"",null,572,"",{"$f":"IF($BL686=\"\", \"\", COUNTIF($BL$3:$BL$803, \">\"&$BL686)+1+COUNTIF($BL$3:$BL686, $BL686)-1)","v":""},null,null,null,null,null,572,null,898]
[null,null,null,null,null,null,null,null,null,null,null,null,null,null,null,null,null,null,null,null,null,null,null,null,null,null,null,null,null,null,null,null,null,null,null,null,null,null,null,null,null,null,null,null,null,null,null,null,null,null,null,null,null,null,4,"-",15,null,-11,null,"",null,475,"",{"$f":"IF($BL687=\"\", \"\", COUNTIF($BL$3:$BL$803, \">\"&$BL687)+1+COUNTIF($BL$3:$BL687, $BL687)-1)","v":""},null,null,null,null,null,475,null,963]
[null,null,null,null,null,null,null,null,null,null,null,null,null,null,null,null,null,null,null,null,null,null,null,null,null,null,null,null,null,null,null,null,null,null,null,null,null,null,null,null,null,null,null,null,null,null,null,null,null,null,null,null,null,null,5,"-",15,null,-10,null,"",null,950,"",{"$f":"IF($BL688=\"\", \"\", COUNTIF($BL$3:$BL$803, \">\"&$BL688)+1+COUNTIF($BL$3:$BL688, $BL688)-1)","v":""},null,null,null,null,null,950,null,159]
[null,null,null,null,null,null,null,null,null,null,null,null,null,null,null,null,null,null,null,null,null,null,null,null,null,null,null,null,null,null,null,null,null,null,null,null,null,null,null,null,null,null,null,null,null,null,null,null,null,null,null,null,null,null,6,"-",15,null,-9,null,"",null,789,"",{"$f":"IF($BL689=\"\", \"\", COUNTIF($BL$3:$BL$803, \">\"&$BL689)+1+COUNTIF($BL$3:$BL689, $BL689)-1)","v":""},null,null,null,null,null,789,null,411]
[null,null,null,null,null,null,null,null,null,null,null,null,null,null,null,null,null,null,null,null,null,null,null,null,null,null,null,null,null,null,null,null,null,null,null,null,null,null,null,null,null,null,null,null,null,null,null,null,null,null,null,null,null,null,7,"-",15,null,-8,null,"",null,565,"",{"$f":"IF($BL690=\"\", \"\", COUNTIF($BL$3:$BL$803, \">\"&$BL690)+1+COUNTIF($BL$3:$BL690, $BL690)-1)","v":""},null,null,null,null,null,565,null,410]
[null,null,null,null,null,null,null,null,null,null,null,null,null,null,null,null,null,null,null,null,null,null,null,null,null,null,null,null,null,null,null,null,null,null,null,null,null,null,null,null,null,null,null,null,null,null,null,null,null,null,null,null,null,null,8,"-",15,null,-7,null,"",null,945,"",{"$f":"IF($BL691=\"\", \"\", COUNTIF($BL$3:$BL$803, \">\"&$BL691)+1+COUNTIF($BL$3:$BL691, $BL691)-1)","v":""},null,null,null,null,null,945,null,602]
[null,null,null,null,null,null,null,null,null,null,null,null,null,null,null,null,null,null,null,null,null,null,null,null,null,null,null,null,null,null,null,null,null,null,null,null,null,null,null,null,null,null,null,null,null,null,null,null,null,null,null,null,null,null,9,"-",15,null,-6,null,"",null,481,"",{"$f":"IF($BL692=\"\", \"\", COUNTIF($BL$3:$BL$803, \">\"&$BL692)+1+COUNTIF($BL$3:$BL692, $BL692)-1)","v":""},null,null,null,null,null,481,null,795]
[null,null,null,null,null,null,null,null,null,null,null,null,null,null,null,null,null,null,null,null,null,null,null,null,null,null,null,null,null,null,null,null,null,null,null,null,null,null,null,null,null,null,null,null,null,null,null,null,null,null,null,null,null,null,10,"-",15,null,-5,null,"",null,763,"",{"$f":"IF($BL693=\"\", \"\", COUNTIF($BL$3:$BL$803, \">\"&$BL693)+1+COUNTIF($BL$3:$BL693, $BL693)-1)","v":""},null,null,null,null,null,763,null,293]
[null,null,null,null,null,null,null,null,null,null,null,null,null,null,null,null,null,null,null,null,null,null,null,null,null,null,null,null,null,null,null,null,null,null,null,null,null,null,null,null,null,null,null,null,null,null,null,null,null,null,null,null,null,null,11,"-",15,null,-4,null,"",null,221,"",{"$f":"IF($BL694=\"\", \"\", COUNTIF($BL$3:$BL$803, \">\"&$BL694)+1+COUNTIF($BL$3:$BL694, $BL694)-1)","v":""},null,null,null,null,null,221,null,893]
[null,null,null,null,null,null,null,null,null,null,null,null,null,null,null,null,null,null,null,null,null,null,null,null,null,null,null,null,null,null,null,null,null,null,null,null,null,null,null,null,null,null,null,null,null,null,null,null,null,null,null,null,null,null,12,"-",15,null,-3,null,"",null,705,"",{"$f":"IF($BL695=\"\", \"\", COUNTIF($BL$3:$BL$803, \">\"&$BL695)+1+COUNTIF($BL$3:$BL695, $BL695)-1)","v":""},null,null,null,null,null,705,null,547]
[null,null,null,null,null,null,null,null,null,null,null,null,null,null,null,null,null,null,null,null,null,null,null,null,null,null,null,null,null,null,null,null,null,null,null,null,null,null,null,null,null,null,null,null,null,null,null,null,null,null,null,null,null,null,13,"-",15,null,-2,null,"",null,280,"",{"$f":"IF($BL696=\"\", \"\", COUNTIF($BL$3:$BL$803, \">\"&$BL696)+1+COUNTIF($BL$3:$BL696, $BL696)-1)","v":""},null,null,null,null,null,280,null,959]
[null,null,null,null,null,null,null,null,null,null,null,null,null,null,null,null,null,null,null,null,null,null,null,null,null,null,null,null,null,null,null,null,null,null,null,null,null,null,null,null,null,null,null,null,null,null,null,null,null,null,null,null,null,null,14,"-",15,null,-1,null,"",null,924,"",{"$f":"IF($BL697=\"\", \"\", COUNTIF($BL$3:$BL$803, \">\"&$BL697)+1+COUNTIF($BL$3:$BL697, $BL697)-1)","v":""},null,null,null,null,null,924,null,328]
[null,null,null,null,null,null,null,null,null,null,null,null,null,null,null,null,null,null,null,null,null,null,null,null,null,null,null,null,null,null,null,null,null,null,null,null,null,null,null,null,null,null,null,null,null,null,null,null,null,null,null,null,null,null,15,"-",15,null,0,null,"",null,12,"",{"$f":"IF($BL698=\"\", \"\", COUNTIF($BL$3:$BL$803, \">\"&$BL698)+1+COUNTIF($BL$3:$BL698, $BL698)-1)","v":""},null,null,null,null,null,12,null,373]
[null,null,null,null,null,null,null,null,null,null,null,null,null,null,null,null,null,null,null,null,null,null,null,null,null,null,null,null,null,null,null,null,null,null,null,null,null,null,null,null,null,null,null,null,null,null,null,null,null,null,null,null,null,null,16,"-",15,null,1,null,"",null,58,"",{"$f":"IF($BL699=\"\", \"\", COUNTIF($BL$3:$BL$803, \">\"&$BL699)+1+COUNTIF($BL$3:$BL699, $BL699)-1)","v":""},null,null,null,null,null,58,null,160]
[null,null,null,null,null,null,null,null,null,null,null,null,null,null,null,null,null,null,null,null,null,null,null,null,null,null,null,null,null,null,null,null,null,null,null,null,null,null,null,null,null,null,null,null,null,null,null,null,null,null,null,null,null,null,17,"-",15,null,2,null,"",null,944,"",{"$f":"IF($BL700=\"\", \"\", COUNTIF($BL$3:$BL$803, \">\"&$BL700)+1+COUNTIF($BL$3:$BL700, $BL700)-1)","v":""},null,null,null,null,null,944,null,268]
[null,null,null,null,null,null,null,null,null,null,null,null,null,null,null,null,null,null,null,null,null,null,null,null,null,null,null,null,null,null,null,null,null,null,null,null,null,null,null,null,null,null,null,null,null,null,null,null,null,null,null,null,null,null,18,"-",15,null,3,null,"",null,79,"",{"$f":"IF($BL701=\"\", \"\", COUNTIF($BL$3:$BL$803, \">\"&$BL701)+1+COUNTIF($BL$3:$BL701, $BL701)-1)","v":""},null,null,null,null,null,79,null,47]
[null,null,null,null,null,null,null,null,null,null,null,null,null,null,null,null,null,null,null,null,null,null,null,null,null,null,null,null,null,null,null,null,null,null,null,null,null,null,null,null,null,null,null,null,null,null,null,null,null,null,null,null,null,null,{"$f":"IF(BC701+1>20, 1, BC701+1)","v":19},"-",{"$f":"IF(BC702=1, BE701+1, BE701)","v":15},null,4,null,"",null,618,"",{"$f":"IF($BL702=\"\", \"\", COUNTIF($BL$3:$BL$803, \">\"&$BL702)+1+COUNTIF($BL$3:$BL702, $BL702)-1)","v":""},null,null,null,null,null,618,null,336]
[null,null,null,null,null,null,null,null,null,null,null,null,null,null,null,null,null,null,null,null,null,null,null,null,null,null,null,null,null,null,null,null,null,null,null,null,null,null,null,null,null,null,null,null,null,null,null,null,null,null,null,null,null,null,{"$f":"IF(BC702+1>20, 1, BC702+1)","v":20},"-",{"$f":"IF(BC703=1, BE702+1, BE702)","v":15},null,5,null,"",null,481,"",{"$f":"IF($BL703=\"\", \"\", COUNTIF($BL$3:$BL$803, \">\"&$BL703)+1+COUNTIF($BL$3:$BL703, $BL703)-1)","v":""},null,null,null,null,null,481,null,40]
[null,null,null,null,null,null,null,null,null,null,null,null,null,null,null,null,null,null,null,null,null,null,null,null,null,null,null,null,null,null,null,null,null,null,null,null,null,null,null,null,null,null,null,null,null,null,null,null,null,null,null,null,null,null,1,"-",16,null,-15,null,"",null,594,"",{"$f":"IF($BL704=\"\", \"\", COUNTIF($BL$3:$BL$803, \">\"&$BL704)+1+COUNTIF($BL$3:$BL704, $BL704)-1)","v":""},null,null,null,null,null,594,null,496]
[null,null,null,null,null,null,null,null,null,null,null,null,null,null,null,null,null,null,null,null,null,null,null,null,null,null,null,null,null,null,null,null,null,null,null,null,null,null,null,null,null,null,null,null,null,null,null,null,null,null,null,null,null,null,2,"-",16,null,-14,null,"",null,547,"",{"$f":"IF($BL705=\"\", \"\", COUNTIF($BL$3:$BL$803, \">\"&$BL705)+1+COUNTIF($BL$3:$BL705, $BL705)-1)","v":""},null,null,null,null,null,547,null,759]
[null,null,null,null,null,null,null,null,null,null,null,null,null,null,null,null,null,null,null,null,null,null,null,null,null,null,null,null,null,null,null,null,null,null,null,null,null,null,null,null,null,null,null,null,null,null,null,null,null,null,null,null,null,null,3,"-",16,null,-13,null,"",null,119,"",{"$f":"IF($BL706=\"\", \"\", COUNTIF($BL$3:$BL$803, \">\"&$BL706)+1+COUNTIF($BL$3:$BL706, $BL706)-1)","v":""},null,null,null,null,null,119,null,733]
[null,null,null,null,null,null,null,null,null,null,null,null,null,null,null,null,null,null,null,null,null,null,null,null,null,null,null,null,null,null,null,null,null,null,null,null,null,null,null,null,null,null,null,null,null,null,null,null,null,null,null,null,null,null,4,"-",16,null,-12,null,"",null,79,"",{"$f":"IF($BL707=\"\", \"\", COUNTIF($BL$3:$BL$803, \">\"&$BL707)+1+COUNTIF($BL$3:$BL707, $BL707)-1)","v":""},null,null,null,null,null,79,null,90]
[null,null,null,null,null,null,null,null,null,null,null,null,null,null,null,null,null,null,null,null,null,null,null,null,null,null,null,null,null,null,null,null,null,null,null,null,null,null,null,null,null,null,null,null,null,null,null,null,null,null,null,null,null,null,5,"-",16,null,-11,null,{"$f":"IF(COUNTIF($BP$5:$BP$6, $BD708)=0, \"\", IF(OR($BC708>$BP$3, $BE708>$BP$3, $BG708>$BP$3, $BG708<$BP$8), \"\", \"X\"))","v":""},null,{"$f":"$BS708","v":370},{"$f":"IF($BI708=\"\", \"\", $BK708)","v":""},{"$f":"IF($BL708=\"\", \"\", COUNTIF($BL$3:$BL$803, \">\"&$BL708)+1+COUNTIF($BL$3:$BL708, $BL708)-1)","v":""},null,null,null,null,null,370,null,{"$f":"RANDBETWEEN(1, 1000)","v":750}]
[null,null,null,null,null,null,null,null,null,null,null,null,null,null,null,null,null,null,null,null,null,null,null,null,null,null,null,null,null,null,null,null,null,null,null,null,null,null,null,null,null,null,null,null,null,null,null,null,null,null,null,null,null,null,6,"-",16,null,-10,null,"",null,50,"",{"$f":"IF($BL709=\"\", \"\", COUNTIF($BL$3:$BL$803, \">\"&$BL709)+1+COUNTIF($BL$3:$BL709, $BL709)-1)","v":""},null,null,null,null,null,50,null,727]
[null,null,null,null,null,null,null,null,null,null,null,null,null,null,null,null,null,null,null,null,null,null,null,null,null,null,null,null,null,null,null,null,null,null,null,null,null,null,null,null,null,null,null,null,null,null,null,null,null,null,null,null,null,null,7,"-",16,null,-9,null,"",null,744,"",{"$f":"IF($BL710=\"\", \"\", COUNTIF($BL$3:$BL$803, \">\"&$BL710)+1+COUNTIF($BL$3:$BL710, $BL710)-1)","v":""},null,null,null,null,null,744,null,330]
[null,null,null,null,null,null,null,null,null,null,null,null,null,null,null,null,null,null,null,null,null,null,null,null,null,null,null,null,null,null,null,null,null,null,null,null,null,null,null,null,null,null,null,null,null,null,null,null,null,null,null,null,null,null,8,"-",16,null,-8,null,"",null,433,"",{"$f":"IF($BL711=\"\", \"\", COUNTIF($BL$3:$BL$803, \">\"&$BL711)+1+COUNTIF($BL$3:$BL711, $BL711)-1)","v":""},null,null,null,null,null,433,null,14]
[null,null,null,null,null,null,null,null,null,null,null,null,null,null,null,null,null,null,null,null,null,null,null,null,null,null,null,null,null,null,null,null,null,null,null,null,null,null,null,null,null,null,null,null,null,null,null,null,null,null,null,null,null,null,9,"-",16,null,-7,null,"",null,254,"",{"$f":"IF($BL712=\"\", \"\", COUNTIF($BL$3:$BL$803, \">\"&$BL712)+1+COUNTIF($BL$3:$BL712, $BL712)-1)","v":""},null,null,null,null,null,254,null,291]
[null,null,null,null,null,null,null,null,null,null,null,null,null,null,null,null,null,null,null,null,null,null,null,null,null,null,null,null,null,null,null,null,null,null,null,null,null,null,null,null,null,null,null,null,null,null,null,null,null,null,null,null,null,null,10,"-",16,null,-6,null,"",null,908,"",{"$f":"IF($BL713=\"\", \"\", COUNTIF($BL$3:$BL$803, \">\"&$BL713)+1+COUNTIF($BL$3:$BL713, $BL713)-1)","v":""},null,null,null,null,null,908,null,758]
[null,null,null,null,null,null,null,null,null,null,null,null,null,null,null,null,null,null,null,null,null,null,null,null,null,null,null,null,null,null,null,null,null,null,null,null,null,null,null,null,null,null,null,null,null,null,null,null,null,null,null,null,null,null,11,"-",16,null,-5,null,"",null,782,"",{"$f":"IF($BL714=\"\", \"\", COUNTIF($BL$3:$BL$803, \">\"&$BL714)+1+COUNTIF($BL$3:$BL714, $BL714)-1)","v":""},null,null,null,null,null,782,null,350]
[null,null,null,null,null,null,null,null,null,null,null,null,null,null,null,null,null,null,null,null,null,null,null,null,null,null,null,null,null,null,null,null,null,null,null,null,null,null,null,null,null,null,null,null,null,null,null,null,null,null,null,null,null,null,12,"-",16,null,-4,null,"",null,592,"",{"$f":"IF($BL715=\"\", \"\", COUNTIF($BL$3:$BL$803, \">\"&$BL715)+1+COUNTIF($BL$3:$BL715, $BL715)-1)","v":""},null,null,null,null,null,592,null,972]
[null,null,null,null,null,null,null,null,null,null,null,null,null,null,null,null,null,null,null,null,null,null,null,null,null,null,null,null,null,null,null,null,null,null,null,null,null,null,null,null,null,null,null,null,null,null,null,null,null,null,null,null,null,null,13,"-",16,null,-3,null,"",null,584,"",{"$f":"IF($BL716=\"\", \"\", COUNTIF($BL$3:$BL$803, \">\"&$BL716)+1+COUNTIF($BL$3:$BL716, $BL716)-1)","v":""},null,null,null,null,null,584,null,665]
[null,null,null,null,null,null,null,null,null,null,null,null,null,null,null,null,null,null,null,null,null,null,null,null,null,null,null,null,null,null,null,null,null,null,null,null,null,null,null,null,null,null,null,null,null,null,null,null,null,null,null,null,null,null,14,"-",16,null,-2,null,"",null,546,"",{"$f":"IF($BL717=\"\", \"\", COUNTIF($BL$3:$BL$803, \">\"&$BL717)+1+COUNTIF($BL$3:$BL717, $BL717)-1)","v":""},null,null,null,null,null,546,null,212]
[null,null,null,null,null,null,null,null,null,null,null,null,null,null,null,null,null,null,null,null,null,null,null,null,null,null,null,null,null,null,null,null,null,null,null,null,null,null,null,null,null,null,null,null,null,null,null,null,null,null,null,null,null,null,15,"-",16,null,-1,null,"",null,392,"",{"$f":"IF($BL718=\"\", \"\", COUNTIF($BL$3:$BL$803, \">\"&$BL718)+1+COUNTIF($BL$3:$BL718, $BL718)-1)","v":""},null,null,null,null,null,392,null,825]
[null,null,null,null,null,null,null,null,null,null,null,null,null,null,null,null,null,null,null,null,null,null,null,null,null,null,null,null,null,null,null,null,null,null,null,null,null,null,null,null,null,null,null,null,null,null,null,null,null,null,null,null,null,null,16,"-",16,null,0,null,"",null,660,"",{"$f":"IF($BL719=\"\", \"\", COUNTIF($BL$3:$BL$803, \">\"&$BL719)+1+COUNTIF($BL$3:$BL719, $BL719)-1)","v":""},null,null,null,null,null,660,null,564]
[null,null,null,null,null,null,null,null,null,null,null,null,null,null,null,null,null,null,null,null,null,null,null,null,null,null,null,null,null,null,null,null,null,null,null,null,null,null,null,null,null,null,null,null,null,null,null,null,null,null,null,null,null,null,17,"-",16,null,1,null,"",null,24,"",{"$f":"IF($BL720=\"\", \"\", COUNTIF($BL$3:$BL$803, \">\"&$BL720)+1+COUNTIF($BL$3:$BL720, $BL720)-1)","v":""},null,null,null,null,null,24,null,980]
[null,null,null,null,null,null,null,null,null,null,null,null,null,null,null,null,null,null,null,null,null,null,null,null,null,null,null,null,null,null,null,null,null,null,null,null,null,null,null,null,null,null,null,null,null,null,null,null,null,null,null,null,null,null,18,"-",16,null,2,null,"",null,59,"",{"$f":"IF($BL721=\"\", \"\", COUNTIF($BL$3:$BL$803, \">\"&$BL721)+1+COUNTIF($BL$3:$BL721, $BL721)-1)","v":""},null,null,null,null,null,59,null,408]
[null,null,null,null,null,null,null,null,null,null,null,null,null,null,null,null,null,null,null,null,null,null,null,null,null,null,null,null,null,null,null,null,null,null,null,null,null,null,null,null,null,null,null,null,null,null,null,null,null,null,null,null,null,null,19,"-",16,null,3,null,"",null,71,"",{"$f":"IF($BL722=\"\", \"\", COUNTIF($BL$3:$BL$803, \">\"&$BL722)+1+COUNTIF($BL$3:$BL722, $BL722)-1)","v":""},null,null,null,null,null,71,null,900]
[null,null,null,null,null,null,null,null,null,null,null,null,null,null,null,null,null,null,null,null,null,null,null,null,null,null,null,null,null,null,null,null,null,null,null,null,null,null,null,null,null,null,null,null,null,null,null,null,null,null,null,null,null,null,20,"-",16,null,4,null,"",null,517,"",{"$f":"IF($BL723=\"\", \"\", COUNTIF($BL$3:$BL$803, \">\"&$BL723)+1+COUNTIF($BL$3:$BL723, $BL723)-1)","v":""},null,null,null,null,null,517,null,311]
[null,null,null,null,null,null,null,null,null,null,null,null,null,null,null,null,null,null,null,null,null,null,null,null,null,null,null,null,null,null,null,null,null,null,null,null,null,null,null,null,null,null,null,null,null,null,null,null,null,null,null,null,null,null,1,"-",17,null,-16,null,"",null,501,"",{"$f":"IF($BL724=\"\", \"\", COUNTIF($BL$3:$BL$803, \">\"&$BL724)+1+COUNTIF($BL$3:$BL724, $BL724)-1)","v":""},null,null,null,null,null,501,null,297]
[null,null,null,null,null,null,null,null,null,null,null,null,null,null,null,null,null,null,null,null,null,null,null,null,null,null,null,null,null,null,null,null,null,null,null,null,null,null,null,null,null,null,null,null,null,null,null,null,null,null,null,null,null,null,2,"-",17,null,{"$f":"BC725-BE725","v":-15},null,"",null,851,"",{"$f":"IF($BL725=\"\", \"\", COUNTIF($BL$3:$BL$803, \">\"&$BL725)+1+COUNTIF($BL$3:$BL725, $BL725)-1)","v":""},null,null,null,null,null,851,null,33]
[null,null,null,null,null,null,null,null,null,null,null,null,null,null,null,null,null,null,null,null,null,null,null,null,null,null,null,null,null,null,null,null,null,null,null,null,null,null,null,null,null,null,null,null,null,null,null,null,null,null,null,null,null,null,3,"-",17,null,-14,null,"",null,65,"",{"$f":"IF($BL726=\"\", \"\", COUNTIF($BL$3:$BL$803, \">\"&$BL726)+1+COUNTIF($BL$3:$BL726, $BL726)-1)","v":""},null,null,null,null,null,65,null,131]
[null,null,null,null,null,null,null,null,null,null,null,null,null,null,null,null,null,null,null,null,null,null,null,null,null,null,null,null,null,null,null,null,null,null,null,null,null,null,null,null,null,null,null,null,null,null,null,null,null,null,null,null,null,null,4,"-",17,null,-13,null,"",null,369,"",{"$f":"IF($BL727=\"\", \"\", COUNTIF($BL$3:$BL$803, \">\"&$BL727)+1+COUNTIF($BL$3:$BL727, $BL727)-1)","v":""},null,null,null,null,null,369,null,33]
[null,null,null,null,null,null,null,null,null,null,null,null,null,null,null,null,null,null,null,null,null,null,null,null,null,null,null,null,null,null,null,null,null,null,null,null,null,null,null,null,null,null,null,null,null,null,null,null,null,null,null,null,null,null,5,"-",17,null,-12,null,"",null,728,"",{"$f":"IF($BL728=\"\", \"\", COUNTIF($BL$3:$BL$803, \">\"&$BL728)+1+COUNTIF($BL$3:$BL728, $BL728)-1)","v":""},null,null,null,null,null,728,null,719]
[null,null,null,null,null,null,null,null,null,null,null,null,null,null,null,null,null,null,null,null,null,null,null,null,null,null,null,null,null,null,null,null,null,null,null,null,null,null,null,null,null,null,null,null,null,null,null,null,null,null,null,null,null,null,6,"-",17,null,-11,null,"",null,664,"",{"$f":"IF($BL729=\"\", \"\", COUNTIF($BL$3:$BL$803, \">\"&$BL729)+1+COUNTIF($BL$3:$BL729, $BL729)-1)","v":""},null,null,null,null,null,664,null,372]
[null,null,null,null,null,null,null,null,null,null,null,null,null,null,null,null,null,null,null,null,null,null,null,null,null,null,null,null,null,null,null,null,null,null,null,null,null,null,null,null,null,null,null,null,null,null,null,null,null,null,null,null,null,null,7,"-",17,null,-10,null,"",null,453,"",{"$f":"IF($BL730=\"\", \"\", COUNTIF($BL$3:$BL$803, \">\"&$BL730)+1+COUNTIF($BL$3:$BL730, $BL730)-1)","v":""},null,null,null,null,null,453,null,25]
[null,null,null,null,null,null,null,null,null,null,null,null,null,null,null,null,null,null,null,null,null,null,null,null,null,null,null,null,null,null,null,null,null,null,null,null,null,null,null,null,null,null,null,null,null,null,null,null,null,null,null,null,null,null,8,"-",17,null,-9,null,"",null,161,"",{"$f":"IF($BL731=\"\", \"\", COUNTIF($BL$3:$BL$803, \">\"&$BL731)+1+COUNTIF($BL$3:$BL731, $BL731)-1)","v":""},null,null,null,null,null,161,null,29]
[null,null,null,null,null,null,null,null,null,null,null,null,null,null,null,null,null,null,null,null,null,null,null,null,null,null,null,null,null,null,null,null,null,null,null,null,null,null,null,null,null,null,null,null,null,null,null,null,null,null,null,null,null,null,9,"-",17,null,-8,null,"",null,947,"",{"$f":"IF($BL732=\"\", \"\", COUNTIF($BL$3:$BL$803, \">\"&$BL732)+1+COUNTIF($BL$3:$BL732, $BL732)-1)","v":""},null,null,null,null,null,947,null,550]
[null,null,null,null,null,null,null,null,null,null,null,null,null,null,null,null,null,null,null,null,null,null,null,null,null,null,null,null,null,null,null,null,null,null,null,null,null,null,null,null,null,null,null,null,null,null,null,null,null,null,null,null,null,null,10,"-",17,null,-7,null,"",null,1,"",{"$f":"IF($BL733=\"\", \"\", COUNTIF($BL$3:$BL$803, \">\"&$BL733)+1+COUNTIF($BL$3:$BL733, $BL733)-1)","v":""},null,null,null,null,null,1,null,484]
[null,null,null,null,null,null,null,null,null,null,null,null,null,null,null,null,null,null,null,null,null,null,null,null,null,null,null,null,null,null,null,null,null,null,null,null,null,null,null,null,null,null,null,null,null,null,null,null,null,null,null,null,null,null,11,"-",17,null,-6,null,"",null,580,"",{"$f":"IF($BL734=\"\", \"\", COUNTIF($BL$3:$BL$803, \">\"&$BL734)+1+COUNTIF($BL$3:$BL734, $BL734)-1)","v":""},null,null,null,null,null,580,null,192]
[null,null,null,null,null,null,null,null,null,null,null,null,null,null,null,null,null,null,null,null,null,null,null,null,null,null,null,null,null,null,null,null,null,null,null,null,null,null,null,null,null,null,null,null,null,null,null,null,null,null,null,null,null,null,12,"-",17,null,-5,null,"",null,765,"",{"$f":"IF($BL735=\"\", \"\", COUNTIF($BL$3:$BL$803, \">\"&$BL735)+1+COUNTIF($BL$3:$BL735, $BL735)-1)","v":""},null,null,null,null,null,765,null,293]
[null,null,null,null,null,null,null,null,null,null,null,null,null,null,null,null,null,null,null,null,null,null,null,null,null,null,null,null,null,null,null,null,null,null,null,null,null,null,null,null,null,null,null,null,null,null,null,null,null,null,null,null,null,null,13,"-",17,null,-4,null,"",null,245,"",{"$f":"IF($BL736=\"\", \"\", COUNTIF($BL$3:$BL$803, \">\"&$BL736)+1+COUNTIF($BL$3:$BL736, $BL736)-1)","v":""},null,null,null,null,null,245,null,586]
[null,null,null,null,null,null,null,null,null,null,null,null,null,null,null,null,null,null,null,null,null,null,null,null,null,null,null,null,null,null,null,null,null,null,null,null,null,null,null,null,null,null,null,null,null,null,null,null,null,null,null,null,null,null,14,"-",17,null,-3,null,"",null,576,"",{"$f":"IF($BL737=\"\", \"\", COUNTIF($BL$3:$BL$803, \">\"&$BL737)+1+COUNTIF($BL$3:$BL737, $BL737)-1)","v":""},null,null,null,null,null,576,null,657]
[null,null,null,null,null,null,null,null,null,null,null,null,null,null,null,null,null,null,null,null,null,null,null,null,null,null,null,null,null,null,null,null,null,null,null,null,null,null,null,null,null,null,null,null,null,null,null,null,null,null,null,null,null,null,15,"-",17,null,-2,null,"",null,708,"",{"$f":"IF($BL738=\"\", \"\", COUNTIF($BL$3:$BL$803, \">\"&$BL738)+1+COUNTIF($BL$3:$BL738, $BL738)-1)","v":""},null,null,null,null,null,708,null,176]
[null,null,null,null,null,null,null,null,null,null,null,null,null,null,null,null,null,null,null,null,null,null,null,null,null,null,null,null,null,null,null,null,null,null,null,null,null,null,null,null,null,null,null,null,null,null,null,null,null,null,null,null,null,null,16,"-",17,null,-1,null,"",null,675,"",{"$f":"IF($BL739=\"\", \"\", COUNTIF($BL$3:$BL$803, \">\"&$BL739)+1+COUNTIF($BL$3:$BL739, $BL739)-1)","v":""},null,null,null,null,null,675,null,920]
[null,null,null,null,null,null,null,null,null,null,null,null,null,null,null,null,null,null,null,null,null,null,null,null,null,null,null,null,null,null,null,null,null,null,null,null,null,null,null,null,null,null,null,null,null,null,null,null,null,null,null,null,null,null,17,"-",17,null,0,null,"",null,265,"",{"$f":"IF($BL740=\"\", \"\", COUNTIF($BL$3:$BL$803, \">\"&$BL740)+1+COUNTIF($BL$3:$BL740, $BL740)-1)","v":""},null,null,null,null,null,265,null,405]
[null,null,null,null,null,null,null,null,null,null,null,null,null,null,null,null,null,null,null,null,null,null,null,null,null,null,null,null,null,null,null,null,null,null,null,null,null,null,null,null,null,null,null,null,null,null,null,null,null,null,null,null,null,null,18,"-",17,null,1,null,"",null,554,"",{"$f":"IF($BL741=\"\", \"\", COUNTIF($BL$3:$BL$803, \">\"&$BL741)+1+COUNTIF($BL$3:$BL741, $BL741)-1)","v":""},null,null,null,null,null,554,null,152]
[null,null,null,null,null,null,null,null,null,null,null,null,null,null,null,null,null,null,null,null,null,null,null,null,null,null,null,null,null,null,null,null,null,null,null,null,null,null,null,null,null,null,null,null,null,null,null,null,null,null,null,null,null,null,19,"-",17,null,2,null,"",null,726,"",{"$f":"IF($BL742=\"\", \"\", COUNTIF($BL$3:$BL$803, \">\"&$BL742)+1+COUNTIF($BL$3:$BL742, $BL742)-1)","v":""},null,null,null,null,null,726,null,594]
[null,null,null,null,null,null,null,null,null,null,null,null,null,null,null,null,null,null,null,null,null,null,null,null,null,null,null,null,null,null,null,null,null,null,null,null,null,null,null,null,null,null,null,null,null,null,null,null,null,null,null,null,null,null,20,"-",17,null,3,null,"",null,185,"",{"$f":"IF($BL743=\"\", \"\", COUNTIF($BL$3:$BL$803, \">\"&$BL743)+1+COUNTIF($BL$3:$BL743, $BL743)-1)","v":""},null,null,null,null,null,185,null,763]
[null,null,null,null,null,null,null,null,null,null,null,null,null,null,null,null,null,null,null,null,null,null,null,null,null,null,null,null,null,null,null,null,null,null,null,null,null,null,null,null,null,null,null,null,null,null,null,null,null,null,null,null,null,null,1,"-",18,null,-17,null,"",null,406,"",{"$f":"IF($BL744=\"\", \"\", COUNTIF($BL$3:$BL$803, \">\"&$BL744)+1+COUNTIF($BL$3:$BL744, $BL744)-1)","v":""},null,null,null,null,null,406,null,496]
[null,null,null,null,null,null,null,null,null,null,null,null,null,null,null,null,null,null,null,null,null,null,null,null,null,null,null,null,null,null,null,null,null,null,null,null,null,null,null,null,null,null,null,null,null,null,null,null,null,null,null,null,null,null,2,"-",18,null,-16,null,"",null,874,"",{"$f":"IF($BL745=\"\", \"\", COUNTIF($BL$3:$BL$803, \">\"&$BL745)+1+COUNTIF($BL$3:$BL745, $BL745)-1)","v":""},null,null,null,null,null,874,null,247]
[null,null,null,null,null,null,null,null,null,null,null,null,null,null,null,null,null,null,null,null,null,null,null,null,null,null,null,null,null,null,null,null,null,null,null,null,null,null,null,null,null,null,null,null,null,null,null,null,null,null,null,null,null,null,3,"-",18,null,-15,null,"",null,546,"",{"$f":"IF($BL746=\"\", \"\", COUNTIF($BL$3:$BL$803, \">\"&$BL746)+1+COUNTIF($BL$3:$BL746, $BL746)-1)","v":""},null,null,null,null,null,546,null,100]
[null,null,null,null,null,null,null,null,null,null,null,null,null,null,null,null,null,null,null,null,null,null,null,null,null,null,null,null,null,null,null,null,null,null,null,null,null,null,null,null,null,null,null,null,null,null,null,null,null,null,null,null,null,null,4,"-",18,null,-14,null,"",null,439,"",{"$f":"IF($BL747=\"\", \"\", COUNTIF($BL$3:$BL$803, \">\"&$BL747)+1+COUNTIF($BL$3:$BL747, $BL747)-1)","v":""},null,null,null,null,null,439,null,26]
[null,null,null,null,null,null,null,null,null,null,null,null,null,null,null,null,null,null,null,null,null,null,null,null,null,null,null,null,null,null,null,null,null,null,null,null,null,null,null,null,null,null,null,null,null,null,null,null,null,null,null,null,null,null,5,"-",18,null,-13,null,"",null,311,"",{"$f":"IF($BL748=\"\", \"\", COUNTIF($BL$3:$BL$803, \">\"&$BL748)+1+COUNTIF($BL$3:$BL748, $BL748)-1)","v":""},null,null,null,null,null,311,null,967]
[null,null,null,null,null,null,null,null,null,null,null,null,null,null,null,null,null,null,null,null,null,null,null,null,null,null,null,null,null,null,null,null,null,null,null,null,null,null,null,null,null,null,null,null,null,null,null,null,null,null,null,null,null,null,6,"-",18,null,-12,null,"",null,484,"",{"$f":"IF($BL749=\"\", \"\", COUNTIF($BL$3:$BL$803, \">\"&$BL749)+1+COUNTIF($BL$3:$BL749, $BL749)-1)","v":""},null,null,null,null,null,484,null,295]
[null,null,null,null,null,null,null,null,null,null,null,null,null,null,null,null,null,null,null,null,null,null,null,null,null,null,null,null,null,null,null,null,null,null,null,null,null,null,null,null,null,null,null,null,null,null,null,null,null,null,null,null,null,null,7,"-",18,null,-11,null,"",null,96,"",{"$f":"IF($BL750=\"\", \"\", COUNTIF($BL$3:$BL$803, \">\"&$BL750)+1+COUNTIF($BL$3:$BL750, $BL750)-1)","v":""},null,null,null,null,null,96,null,45]
[null,null,null,null,null,null,null,null,null,null,null,null,null,null,null,null,null,null,null,null,null,null,null,null,null,null,null,null,null,null,null,null,null,null,null,null,null,null,null,null,null,null,null,null,null,null,null,null,null,null,null,null,null,null,8,"-",18,null,-10,null,"",null,958,"",{"$f":"IF($BL751=\"\", \"\", COUNTIF($BL$3:$BL$803, \">\"&$BL751)+1+COUNTIF($BL$3:$BL751, $BL751)-1)","v":""},null,null,null,null,null,958,null,377]
[null,null,null,null,null,null,null,null,null,null,null,null,null,null,null,null,null,null,null,null,null,null,null,null,null,null,null,null,null,null,null,null,null,null,null,null,null,null,null,null,null,null,null,null,null,null,null,null,null,null,null,null,null,null,9,"-",18,null,-9,null,"",null,525,"",{"$f":"IF($BL752=\"\", \"\", COUNTIF($BL$3:$BL$803, \">\"&$BL752)+1+COUNTIF($BL$3:$BL752, $BL752)-1)","v":""},null,null,null,null,null,525,null,621]
[null,null,null,null,null,null,null,null,null,null,null,null,null,null,null,null,null,null,null,null,null,null,null,null,null,null,null,null,null,null,null,null,null,null,null,null,null,null,null,null,null,null,null,null,null,null,null,null,null,null,null,null,null,null,10,"-",18,null,-8,null,"",null,802,"",{"$f":"IF($BL753=\"\", \"\", COUNTIF($BL$3:$BL$803, \">\"&$BL753)+1+COUNTIF($BL$3:$BL753, $BL753)-1)","v":""},null,null,null,null,null,802,null,440]
[null,null,null,null,null,null,null,null,null,null,null,null,null,null,null,null,null,null,null,null,null,null,null,null,null,null,null,null,null,null,null,null,null,null,null,null,null,null,null,null,null,null,null,null,null,null,null,null,null,null,null,null,null,null,11,"-",18,null,-7,null,"",null,247,"",{"$f":"IF($BL754=\"\", \"\", COUNTIF($BL$3:$BL$803, \">\"&$BL754)+1+COUNTIF($BL$3:$BL754, $BL754)-1)","v":""},null,null,null,null,null,247,null,370]
[null,null,null,null,null,null,null,null,null,null,null,null,null,null,null,null,null,null,null,null,null,null,null,null,null,null,null,null,null,null,null,null,null,null,null,null,null,null,null,null,null,null,null,null,null,null,null,null,null,null,null,null,null,null,12,"-",18,null,-6,null,"",null,454,"",{"$f":"IF($BL755=\"\", \"\", COUNTIF($BL$3:$BL$803, \">\"&$BL755)+1+COUNTIF($BL$3:$BL755, $BL755)-1)","v":""},null,null,null,null,null,454,null,161]
[null,null,null,null,null,null,null,null,null,null,null,null,null,null,null,null,null,null,null,null,null,null,null,null,null,null,null,null,null,null,null,null,null,null,null,null,null,null,null,null,null,null,null,null,null,null,null,null,null,null,null,null,null,null,13,"-",18,null,-5,null,"",null,923,"",{"$f":"IF($BL756=\"\", \"\", COUNTIF($BL$3:$BL$803, \">\"&$BL756)+1+COUNTIF($BL$3:$BL756, $BL756)-1)","v":""},null,null,null,null,null,923,null,622]
[null,null,null,null,null,null,null,null,null,null,null,null,null,null,null,null,null,null,null,null,null,null,null,null,null,null,null,null,null,null,null,null,null,null,null,null,null,null,null,null,null,null,null,null,null,null,null,null,null,null,null,null,null,null,14,"-",18,null,-4,null,"",null,521,"",{"$f":"IF($BL757=\"\", \"\", COUNTIF($BL$3:$BL$803, \">\"&$BL757)+1+COUNTIF($BL$3:$BL757, $BL757)-1)","v":""},null,null,null,null,null,521,null,971]
[null,null,null,null,null,null,null,null,null,null,null,null,null,null,null,null,null,null,null,null,null,null,null,null,null,null,null,null,null,null,null,null,null,null,null,null,null,null,null,null,null,null,null,null,null,null,null,null,null,null,null,null,null,null,15,"-",18,null,-3,null,"",null,218,"",{"$f":"IF($BL758=\"\", \"\", COUNTIF($BL$3:$BL$803, \">\"&$BL758)+1+COUNTIF($BL$3:$BL758, $BL758)-1)","v":""},null,null,null,null,null,218,null,106]
[null,null,null,null,null,null,null,null,null,null,null,null,null,null,null,null,null,null,null,null,null,null,null,null,null,null,null,null,null,null,null,null,null,null,null,null,null,null,null,null,null,null,null,null,null,null,null,null,null,null,null,null,null,null,16,"-",18,null,-2,null,"",null,229,"",{"$f":"IF($BL759=\"\", \"\", COUNTIF($BL$3:$BL$803, \">\"&$BL759)+1+COUNTIF($BL$3:$BL759, $BL759)-1)","v":""},null,null,null,null,null,229,null,236]
[null,null,null,null,null,null,null,null,null,null,null,null,null,null,null,null,null,null,null,null,null,null,null,null,null,null,null,null,null,null,null,null,null,null,null,null,null,null,null,null,null,null,null,null,null,null,null,null,null,null,null,null,null,null,17,"-",18,null,-1,null,"",null,990,"",{"$f":"IF($BL760=\"\", \"\", COUNTIF($BL$3:$BL$803, \">\"&$BL760)+1+COUNTIF($BL$3:$BL760, $BL760)-1)","v":""},null,null,null,null,null,990,null,287]
[null,null,null,null,null,null,null,null,null,null,null,null,null,null,null,null,null,null,null,null,null,null,null,null,null,null,null,null,null,null,null,null,null,null,null,null,null,null,null,null,null,null,null,null,null,null,null,null,null,null,null,null,null,null,18,"-",18,null,0,null,"",null,371,"",{"$f":"IF($BL761=\"\", \"\", COUNTIF($BL$3:$BL$803, \">\"&$BL761)+1+COUNTIF($BL$3:$BL761, $BL761)-1)","v":""},null,null,null,null,null,371,null,631]
[null,null,null,null,null,null,null,null,null,null,null,null,null,null,null,null,null,null,null,null,null,null,null,null,null,null,null,null,null,null,null,null,null,null,null,null,null,null,null,null,null,null,null,null,null,null,null,null,null,null,null,null,null,null,19,"-",18,null,1,null,"",null,633,"",{"$f":"IF($BL762=\"\", \"\", COUNTIF($BL$3:$BL$803, \">\"&$BL762)+1+COUNTIF($BL$3:$BL762, $BL762)-1)","v":""},null,null,null,null,null,633,null,17]
[null,null,null,null,null,null,null,null,null,null,null,null,null,null,null,null,null,null,null,null,null,null,null,null,null,null,null,null,null,null,null,null,null,null,null,null,null,null,null,null,null,null,null,null,null,null,null,null,null,null,null,null,null,null,20,"-",18,null,2,null,"",null,483,"",{"$f":"IF($BL763=\"\", \"\", COUNTIF($BL$3:$BL$803, \">\"&$BL763)+1+COUNTIF($BL$3:$BL763, $BL763)-1)","v":""},null,null,null,null,null,483,null,210]
[null,null,null,null,null,null,null,null,null,null,null,null,null,null,null,null,null,null,null,null,null,null,null,null,null,null,null,null,null,null,null,null,null,null,null,null,null,null,null,null,null,null,null,null,null,null,null,null,null,null,null,null,null,null,1,"-",19,null,-18,null,"",null,729,"",{"$f":"IF($BL764=\"\", \"\", COUNTIF($BL$3:$BL$803, \">\"&$BL764)+1+COUNTIF($BL$3:$BL764, $BL764)-1)","v":""},null,null,null,null,null,729,null,630]
[null,null,null,null,null,null,null,null,null,null,null,null,null,null,null,null,null,null,null,null,null,null,null,null,null,null,null,null,null,null,null,null,null,null,null,null,null,null,null,null,null,null,null,null,null,null,null,null,null,null,null,null,null,null,2,"-",19,null,-17,null,"",null,471,"",{"$f":"IF($BL765=\"\", \"\", COUNTIF($BL$3:$BL$803, \">\"&$BL765)+1+COUNTIF($BL$3:$BL765, $BL765)-1)","v":""},null,null,null,null,null,471,null,62]
[null,null,null,null,null,null,null,null,null,null,null,null,null,null,null,null,null,null,null,null,null,null,null,null,null,null,null,null,null,null,null,null,null,null,null,null,null,null,null,null,null,null,null,null,null,null,null,null,null,null,null,null,null,null,3,"-",19,null,-16,null,"",null,348,"",{"$f":"IF($BL766=\"\", \"\", COUNTIF($BL$3:$BL$803, \">\"&$BL766)+1+COUNTIF($BL$3:$BL766, $BL766)-1)","v":""},null,null,null,null,null,348,null,224]
[null,null,null,null,null,null,null,null,null,null,null,null,null,null,null,null,null,null,null,null,null,null,null,null,null,null,null,null,null,null,null,null,null,null,null,null,null,null,null,null,null,null,null,null,null,null,null,null,null,null,null,null,null,null,{"$f":"IF(BC766+1>20, 1, BC766+1)","v":4},"-",{"$f":"IF(BC767=1, BE766+1, BE766)","v":19},null,-15,null,"",null,335,"",{"$f":"IF($BL767=\"\", \"\", COUNTIF($BL$3:$BL$803, \">\"&$BL767)+1+COUNTIF($BL$3:$BL767, $BL767)-1)","v":""},null,null,null,null,null,335,null,480]
[null,null,null,null,null,null,null,null,null,null,null,null,null,null,null,null,null,null,null,null,null,null,null,null,null,null,null,null,null,null,null,null,null,null,null,null,null,null,null,null,null,null,null,null,null,null,null,null,null,null,null,null,null,null,5,"-",19,null,-14,null,"",null,866,"",{"$f":"IF($BL768=\"\", \"\", COUNTIF($BL$3:$BL$803, \">\"&$BL768)+1+COUNTIF($BL$3:$BL768, $BL768)-1)","v":""},null,null,null,null,null,866,null,167]
[null,null,null,null,null,null,null,null,null,null,null,null,null,null,null,null,null,null,null,null,null,null,null,null,null,null,null,null,null,null,null,null,null,null,null,null,null,null,null,null,null,null,null,null,null,null,null,null,null,null,null,null,null,null,6,"-",19,null,-13,null,"",null,954,"",{"$f":"IF($BL769=\"\", \"\", COUNTIF($BL$3:$BL$803, \">\"&$BL769)+1+COUNTIF($BL$3:$BL769, $BL769)-1)","v":""},null,null,null,null,null,954,null,470]
[null,null,null,null,null,null,null,null,null,null,null,null,null,null,null,null,null,null,null,null,null,null,null,null,null,null,null,null,null,null,null,null,null,null,null,null,null,null,null,null,null,null,null,null,null,null,null,null,null,null,null,null,null,null,7,"-",19,null,-12,null,"",null,37,"",{"$f":"IF($BL770=\"\", \"\", COUNTIF($BL$3:$BL$803, \">\"&$BL770)+1+COUNTIF($BL$3:$BL770, $BL770)-1)","v":""},null,null,null,null,null,37,null,423]
[null,null,null,null,null,null,null,null,null,null,null,null,null,null,null,null,null,null,null,null,null,null,null,null,null,null,null,null,null,null,null,null,null,null,null,null,null,null,null,null,null,null,null,null,null,null,null,null,null,null,null,null,null,null,8,"-",19,null,-11,null,"",null,437,"",{"$f":"IF($BL771=\"\", \"\", COUNTIF($BL$3:$BL$803, \">\"&$BL771)+1+COUNTIF($BL$3:$BL771, $BL771)-1)","v":""},null,null,null,null,null,437,null,738]
[null,null,null,null,null,null,null,null,null,null,null,null,null,null,null,null,null,null,null,null,null,null,null,null,null,null,null,null,null,null,null,null,null,null,null,null,null,null,null,null,null,null,null,null,null,null,null,null,null,null,null,null,null,null,9,"-",19,null,-10,null,{"$f":"IF(COUNTIF($BP$5:$BP$6, $BD772)=0, \"\", IF(OR($BC772>$BP$3, $BE772>$BP$3, $BG772>$BP$3, $BG772<$BP$8), \"\", \"X\"))","v":""},null,{"$f":"$BS772","v":268},{"$f":"IF($BI772=\"\", \"\", $BK772)","v":""},{"$f":"IF($BL772=\"\", \"\", COUNTIF($BL$3:$BL$803, \">\"&$BL772)+1+COUNTIF($BL$3:$BL772, $BL772)-1)","v":""},null,null,null,null,null,268,null,{"$f":"RANDBETWEEN(1, 1000)","v":33}]
[null,null,null,null,null,null,null,null,null,null,null,null,null,null,null,null,null,null,null,null,null,null,null,null,null,null,null,null,null,null,null,null,null,null,null,null,null,null,null,null,null,null,null,null,null,null,null,null,null,null,null,null,null,null,10,"-",19,null,-9,null,"",null,141,"",{"$f":"IF($BL773=\"\", \"\", COUNTIF($BL$3:$BL$803, \">\"&$BL773)+1+COUNTIF($BL$3:$BL773, $BL773)-1)","v":""},null,null,null,null,null,141,null,888]
[null,null,null,null,null,null,null,null,null,null,null,null,null,null,null,null,null,null,null,null,null,null,null,null,null,null,null,null,null,null,null,null,null,null,null,null,null,null,null,null,null,null,null,null,null,null,null,null,null,null,null,null,null,null,11,"-",19,null,-8,null,"",null,483,"",{"$f":"IF($BL774=\"\", \"\", COUNTIF($BL$3:$BL$803, \">\"&$BL774)+1+COUNTIF($BL$3:$BL774, $BL774)-1)","v":""},null,null,null,null,null,483,null,195]
[null,null,null,null,null,null,null,null,null,null,null,null,null,null,null,null,null,null,null,null,null,null,null,null,null,null,null,null,null,null,null,null,null,null,null,null,null,null,null,null,null,null,null,null,null,null,null,null,null,null,null,null,null,null,12,"-",19,null,-7,null,"",null,631,"",{"$f":"IF($BL775=\"\", \"\", COUNTIF($BL$3:$BL$803, \">\"&$BL775)+1+COUNTIF($BL$3:$BL775, $BL775)-1)","v":""},null,null,null,null,null,631,null,659]
[null,null,null,null,null,null,null,null,null,null,null,null,null,null,null,null,null,null,null,null,null,null,null,null,null,null,null,null,null,null,null,null,null,null,null,null,null,null,null,null,null,null,null,null,null,null,null,null,null,null,null,null,null,null,13,"-",19,null,-6,null,"",null,930,"",{"$f":"IF($BL776=\"\", \"\", COUNTIF($BL$3:$BL$803, \">\"&$BL776)+1+COUNTIF($BL$3:$BL776, $BL776)-1)","v":""},null,null,null,null,null,930,null,457]
[null,null,null,null,null,null,null,null,null,null,null,null,null,null,null,null,null,null,null,null,null,null,null,null,null,null,null,null,null,null,null,null,null,null,null,null,null,null,null,null,null,null,null,null,null,null,null,null,null,null,null,null,null,null,14,"-",19,null,-5,null,"",null,479,"",{"$f":"IF($BL777=\"\", \"\", COUNTIF($BL$3:$BL$803, \">\"&$BL777)+1+COUNTIF($BL$3:$BL777, $BL777)-1)","v":""},null,null,null,null,null,479,null,419]
[null,null,null,null,null,null,null,null,null,null,null,null,null,null,null,null,null,null,null,null,null,null,null,null,null,null,null,null,null,null,null,null,null,null,null,null,null,null,null,null,null,null,null,null,null,null,null,null,null,null,null,null,null,null,15,"-",19,null,-4,null,"",null,816,"",{"$f":"IF($BL778=\"\", \"\", COUNTIF($BL$3:$BL$803, \">\"&$BL778)+1+COUNTIF($BL$3:$BL778, $BL778)-1)","v":""},null,null,null,null,null,816,null,802]
[null,null,null,null,null,null,null,null,null,null,null,null,null,null,null,null,null,null,null,null,null,null,null,null,null,null,null,null,null,null,null,null,null,null,null,null,null,null,null,null,null,null,null,null,null,null,null,null,null,null,null,null,null,null,16,"-",19,null,-3,null,"",null,873,"",{"$f":"IF($BL779=\"\", \"\", COUNTIF($BL$3:$BL$803, \">\"&$BL779)+1+COUNTIF($BL$3:$BL779, $BL779)-1)","v":""},null,null,null,null,null,873,null,86]
[null,null,null,null,null,null,null,null,null,null,null,null,null,null,null,null,null,null,null,null,null,null,null,null,null,null,null,null,null,null,null,null,null,null,null,null,null,null,null,null,null,null,null,null,null,null,null,null,null,null,null,null,null,null,17,"-",19,null,-2,null,"",null,174,"",{"$f":"IF($BL780=\"\", \"\", COUNTIF($BL$3:$BL$803, \">\"&$BL780)+1+COUNTIF($BL$3:$BL780, $BL780)-1)","v":""},null,null,null,null,null,174,null,595]
[null,null,null,null,null,null,null,null,null,null,null,null,null,null,null,null,null,null,null,null,null,null,null,null,null,null,null,null,null,null,null,null,null,null,null,null,null,null,null,null,null,null,null,null,null,null,null,null,null,null,null,null,null,null,18,"-",19,null,-1,null,"",null,776,"",{"$f":"IF($BL781=\"\", \"\", COUNTIF($BL$3:$BL$803, \">\"&$BL781)+1+COUNTIF($BL$3:$BL781, $BL781)-1)","v":""},null,null,null,null,null,776,null,402]
[null,null,null,null,null,null,null,null,null,null,null,null,null,null,null,null,null,null,null,null,null,null,null,null,null,null,null,null,null,null,null,null,null,null,null,null,null,null,null,null,null,null,null,null,null,null,null,null,null,null,null,null,null,null,19,"-",19,null,0,null,"",null,818,"",{"$f":"IF($BL782=\"\", \"\", COUNTIF($BL$3:$BL$803, \">\"&$BL782)+1+COUNTIF($BL$3:$BL782, $BL782)-1)","v":""},null,null,null,null,null,818,null,385]
[null,null,null,null,null,null,null,null,null,null,null,null,null,null,null,null,null,null,null,null,null,null,null,null,null,null,null,null,null,null,null,null,null,null,null,null,null,null,null,null,null,null,null,null,null,null,null,null,null,null,null,null,null,null,20,"-",19,null,1,null,"",null,792,"",{"$f":"IF($BL783=\"\", \"\", COUNTIF($BL$3:$BL$803, \">\"&$BL783)+1+COUNTIF($BL$3:$BL783, $BL783)-1)","v":""},null,null,null,null,null,792,null,334]
[null,null,null,null,null,null,null,null,null,null,null,null,null,null,null,null,null,null,null,null,null,null,null,null,null,null,null,null,null,null,null,null,null,null,null,null,null,null,null,null,null,null,null,null,null,null,null,null,null,null,null,null,null,null,1,"-",20,null,-19,null,"",null,401,"",{"$f":"IF($BL784=\"\", \"\", COUNTIF($BL$3:$BL$803, \">\"&$BL784)+1+COUNTIF($BL$3:$BL784, $BL784)-1)","v":""},null,null,null,null,null,401,null,672]
[null,null,null,null,null,null,null,null,null,null,null,null,null,null,null,null,null,null,null,null,null,null,null,null,null,null,null,null,null,null,null,null,null,null,null,null,null,null,null,null,null,null,null,null,null,null,null,null,null,null,null,null,null,null,2,"-",20,null,-18,null,"",null,607,"",{"$f":"IF($BL785=\"\", \"\", COUNTIF($BL$3:$BL$803, \">\"&$BL785)+1+COUNTIF($BL$3:$BL785, $BL785)-1)","v":""},null,null,null,null,null,607,null,531]
[null,null,null,null,null,null,null,null,null,null,null,null,null,null,null,null,null,null,null,null,null,null,null,null,null,null,null,null,null,null,null,null,null,null,null,null,null,null,null,null,null,null,null,null,null,null,null,null,null,null,null,null,null,null,3,"-",20,null,-17,null,"",null,122,"",{"$f":"IF($BL786=\"\", \"\", COUNTIF($BL$3:$BL$803, \">\"&$BL786)+1+COUNTIF($BL$3:$BL786, $BL786)-1)","v":""},null,null,null,null,null,122,null,277]
[null,null,null,null,null,null,null,null,null,null,null,null,null,null,null,null,null,null,null,null,null,null,null,null,null,null,null,null,null,null,null,null,null,null,null,null,null,null,null,null,null,null,null,null,null,null,null,null,null,null,null,null,null,null,4,"-",20,null,-16,null,"",null,966,"",{"$f":"IF($BL787=\"\", \"\", COUNTIF($BL$3:$BL$803, \">\"&$BL787)+1+COUNTIF($BL$3:$BL787, $BL787)-1)","v":""},null,null,null,null,null,966,null,960]
[null,null,null,null,null,null,null,null,null,null,null,null,null,null,null,null,null,null,null,null,null,null,null,null,null,null,null,null,null,null,null,null,null,null,null,null,null,null,null,null,null,null,null,null,null,null,null,null,null,null,null,null,null,null,5,"-",20,null,-15,null,"",null,703,"",{"$f":"IF($BL788=\"\", \"\", COUNTIF($BL$3:$BL$803, \">\"&$BL788)+1+COUNTIF($BL$3:$BL788, $BL788)-1)","v":""},null,null,null,null,null,703,null,367]
[null,null,null,null,null,null,null,null,null,null,null,null,null,null,null,null,null,null,null,null,null,null,null,null,null,null,null,null,null,null,null,null,null,null,null,null,null,null,null,null,null,null,null,null,null,null,null,null,null,null,null,null,null,null,6,"-",20,null,{"$f":"BC789-BE789","v":-14},null,"",null,666,"",{"$f":"IF($BL789=\"\", \"\", COUNTIF($BL$3:$BL$803, \">\"&$BL789)+1+COUNTIF($BL$3:$BL789, $BL789)-1)","v":""},null,null,null,null,null,666,null,829]
[null,null,null,null,null,null,null,null,null,null,null,null,null,null,null,null,null,null,null,null,null,null,null,null,null,null,null,null,null,null,null,null,null,null,null,null,null,null,null,null,null,null,null,null,null,null,null,null,null,null,null,null,null,null,7,"-",20,null,-13,null,"",null,720,"",{"$f":"IF($BL790=\"\", \"\", COUNTIF($BL$3:$BL$803, \">\"&$BL790)+1+COUNTIF($BL$3:$BL790, $BL790)-1)","v":""},null,null,null,null,null,720,null,437]
[null,null,null,null,null,null,null,null,null,null,null,null,null,null,null,null,null,null,null,null,null,null,null,null,null,null,null,null,null,null,null,null,null,null,null,null,null,null,null,null,null,null,null,null,null,null,null,null,null,null,null,null,null,null,8,"-",20,null,-12,null,"",null,38,"",{"$f":"IF($BL791=\"\", \"\", COUNTIF($BL$3:$BL$803, \">\"&$BL791)+1+COUNTIF($BL$3:$BL791, $BL791)-1)","v":""},null,null,null,null,null,38,null,399]
[null,null,null,null,null,null,null,null,null,null,null,null,null,null,null,null,null,null,null,null,null,null,null,null,null,null,null,null,null,null,null,null,null,null,null,null,null,null,null,null,null,null,null,null,null,null,null,null,null,null,null,null,null,null,9,"-",20,null,-11,null,"",null,784,"",{"$f":"IF($BL792=\"\", \"\", COUNTIF($BL$3:$BL$803, \">\"&$BL792)+1+COUNTIF($BL$3:$BL792, $BL792)-1)","v":""},null,null,null,null,null,784,null,973]
[null,null,null,null,null,null,null,null,null,null,null,null,null,null,null,null,null,null,null,null,null,null,null,null,null,null,null,null,null,null,null,null,null,null,null,null,null,null,null,null,null,null,null,null,null,null,null,null,null,null,null,null,null,null,10,"-",20,null,-10,null,"",null,267,"",{"$f":"IF($BL793=\"\", \"\", COUNTIF($BL$3:$BL$803, \">\"&$BL793)+1+COUNTIF($BL$3:$BL793, $BL793)-1)","v":""},null,null,null,null,null,267,null,566]
[null,null,null,null,null,null,null,null,null,null,null,null,null,null,null,null,null,null,null,null,null,null,null,null,null,null,null,null,null,null,null,null,null,null,null,null,null,null,null,null,null,null,null,null,null,null,null,null,null,null,null,null,null,null,11,"-",20,null,-9,null,"",null,622,"",{"$f":"IF($BL794=\"\", \"\", COUNTIF($BL$3:$BL$803, \">\"&$BL794)+1+COUNTIF($BL$3:$BL794, $BL794)-1)","v":""},null,null,null,null,null,622,null,606]
[null,null,null,null,null,null,null,null,null,null,null,null,null,null,null,null,null,null,null,null,null,null,null,null,null,null,null,null,null,null,null,null,null,null,null,null,null,null,null,null,null,null,null,null,null,null,null,null,null,null,null,null,null,null,12,"-",20,null,-8,null,"",null,829,"",{"$f":"IF($BL795=\"\", \"\", COUNTIF($BL$3:$BL$803, \">\"&$BL795)+1+COUNTIF($BL$3:$BL795, $BL795)-1)","v":""},null,null,null,null,null,829,null,777]
[null,null,null,null,null,null,null,null,null,null,null,null,null,null,null,null,null,null,null,null,null,null,null,null,null,null,null,null,null,null,null,null,null,null,null,null,null,null,null,null,null,null,null,null,null,null,null,null,null,null,null,null,null,null,13,"-",20,null,-7,null,"",null,432,"",{"$f":"IF($BL796=\"\", \"\", COUNTIF($BL$3:$BL$803, \">\"&$BL796)+1+COUNTIF($BL$3:$BL796, $BL796)-1)","v":""},null,null,null,null,null,432,null,959]
[null,null,null,null,null,null,null,null,null,null,null,null,null,null,null,null,null,null,null,null,null,null,null,null,null,null,null,null,null,null,null,null,null,null,null,null,null,null,null,null,null,null,null,null,null,null,null,null,null,null,null,null,null,null,14,"-",20,null,-6,null,"",null,76,"",{"$f":"IF($BL797=\"\", \"\", COUNTIF($BL$3:$BL$803, \">\"&$BL797)+1+COUNTIF($BL$3:$BL797, $BL797)-1)","v":""},null,null,null,null,null,76,null,775]
[null,null,null,null,null,null,null,null,null,null,null,null,null,null,null,null,null,null,null,null,null,null,null,null,null,null,null,null,null,null,null,null,null,null,null,null,null,null,null,null,null,null,null,null,null,null,null,null,null,null,null,null,null,null,15,"-",20,null,-5,null,"",null,39,"",{"$f":"IF($BL798=\"\", \"\", COUNTIF($BL$3:$BL$803, \">\"&$BL798)+1+COUNTIF($BL$3:$BL798, $BL798)-1)","v":""},null,null,null,null,null,39,null,553]
[null,null,null,null,null,null,null,null,null,null,null,null,null,null,null,null,null,null,null,null,null,null,null,null,null,null,null,null,null,null,null,null,null,null,null,null,null,null,null,null,null,null,null,null,null,null,null,null,null,null,null,null,null,null,16,"-",20,null,-4,null,"",null,599,"",{"$f":"IF($BL799=\"\", \"\", COUNTIF($BL$3:$BL$803, \">\"&$BL799)+1+COUNTIF($BL$3:$BL799, $BL799)-1)","v":""},null,null,null,null,null,599,null,64]
[null,null,null,null,null,null,null,null,null,null,null,null,null,null,null,null,null,null,null,null,null,null,null,null,null,null,null,null,null,null,null,null,null,null,null,null,null,null,null,null,null,null,null,null,null,null,null,null,null,null,null,null,null,null,17,"-",20,null,-3,null,"",null,559,"",{"$f":"IF($BL800=\"\", \"\", COUNTIF($BL$3:$BL$803, \">\"&$BL800)+1+COUNTIF($BL$3:$BL800, $BL800)-1)","v":""},null,null,null,null,null,559,null,80]
[null,null,null,null,null,null,null,null,null,null,null,null,null,null,null,null,null,null,null,null,null,null,null,null,null,null,null,null,null,null,null,null,null,null,null,null,null,null,null,null,null,null,null,null,null,null,null,null,null,null,null,null,null,null,18,"-",20,null,-2,null,"",null,786,"",{"$f":"IF($BL801=\"\", \"\", COUNTIF($BL$3:$BL$803, \">\"&$BL801)+1+COUNTIF($BL$3:$BL801, $BL801)-1)","v":""},null,null,null,null,null,786,null,941]
[null,null,null,null,null,null,null,null,null,null,null,null,null,null,null,null,null,null,null,null,null,null,null,null,null,null,null,null,null,null,null,null,null,null,null,null,null,null,null,null,null,null,null,null,null,null,null,null,null,null,null,null,null,null,19,"-",20,null,-1,null,"",null,693,"",{"$f":"IF($BL802=\"\", \"\", COUNTIF($BL$3:$BL$803, \">\"&$BL802)+1+COUNTIF($BL$3:$BL802, $BL802)-1)","v":""},null,null,null,null,null,693,null,893]
[null,null,null,null,null,null,null,null,null,null,null,null,null,null,null,null,null,null,null,null,null,null,null,null,null,null,null,null,null,null,null,null,null,null,null,null,null,null,null,null,null,null,null,null,null,null,null,null,null,null,null,null,null,null,20,"-",20,null,0,null,"",null,47,"",{"$f":"IF($BL803=\"\", \"\", COUNTIF($BL$3:$BL$803, \">\"&$BL803)+1+COUNTIF($BL$3:$BL803, $BL803)-1)","v":""},null,null,null,null,null,47,null,976]
[null,null,null,null,null,null,null,null,null,null,null,null,null,null,null,null,null,null,null,null,null,null,null,null,null,null,null,null,null,null,null,null,null,null,null,null,null,null,null,null,null,null,null,null,null,null,null,null,null,null,null,null,null,null,null,null,null,null,null,null,null,null,null,null,null,null,null,null,null,null,528,null,647]
[null,null,null,null,null,null,null,null,null,null,null,null,null,null,null,null,null,null,null,null,null,null,null,null,null,null,null,null,null,null,null,null,null,null,null,null,null,null,null,null,null,null,null,null,null,null,null,null,null,null,null,null,null,null,null,null,null,null,null,null,null,null,null,null,null,null,null,null,null,null,848,null,17]
[null,null,null,null,null,null,null,null,null,null,null,null,null,null,null,null,null,null,null,null,null,null,null,null,null,null,null,null,null,null,null,null,null,null,null,null,null,null,null,null,null,null,null,null,null,null,null,null,null,null,null,null,null,null,null,null,null,null,null,null,null,null,null,null,null,null,null,null,null,null,722,null,458]
[null,null,null,null,null,null,null,null,null,null,null,null,null,null,null,null,null,null,null,null,null,null,null,null,null,null,null,null,null,null,null,null,null,null,null,null,null,null,null,null,null,null,null,null,null,null,null,null,null,null,null,null,null,null,null,null,null,null,null,null,null,null,null,null,null,null,null,null,null,null,610,null,727]
[null,null,null,null,null,null,null,null,null,null,null,null,null,null,null,null,null,null,null,null,null,null,null,null,null,null,null,null,null,null,null,null,null,null,null,null,null,null,null,null,null,null,null,null,null,null,null,null,null,null,null,null,null,null,null,null,null,null,null,null,null,null,null,null,null,null,null,null,null,null,260,null,447]
[null,null,null,null,null,null,null,null,null,null,null,null,null,null,null,null,null,null,null,null,null,null,null,null,null,null,null,null,null,null,null,null,null,null,null,null,null,null,null,null,null,null,null,null,null,null,null,null,null,null,null,null,null,null,null,null,null,null,null,null,null,null,null,null,null,null,null,null,null,null,388,null,715]
[null,null,null,null,null,null,null,null,null,null,null,null,null,null,null,null,null,null,null,null,null,null,null,null,null,null,null,null,null,null,null,null,null,null,null,null,null,null,null,null,null,null,null,null,null,null,null,null,null,null,null,null,null,null,null,null,null,null,null,null,null,null,null,null,null,null,null,null,null,null,17,null,589]
[null,null,null,null,null,null,null,null,null,null,null,null,null,null,null,null,null,null,null,null,null,null,null,null,null,null,null,null,null,null,null,null,null,null,null,null,null,null,null,null,null,null,null,null,null,null,null,null,null,null,null,null,null,null,null,null,null,null,null,null,null,null,null,null,null,null,null,null,null,null,948,null,63]
[null,null,null,null,null,null,null,null,null,null,null,null,null,null,null,null,null,null,null,null,null,null,null,null,null,null,null,null,null,null,null,null,null,null,null,null,null,null,null,null,null,null,null,null,null,null,null,null,null,null,null,null,null,null,null,null,null,null,null,null,null,null,null,null,null,null,null,null,null,null,932,null,388]
[null,null,null,null,null,null,null,null,null,null,null,null,null,null,null,null,null,null,null,null,null,null,null,null,null,null,null,null,null,null,null,null,null,null,null,null,null,null,null,null,null,null,null,null,null,null,null,null,null,null,null,null,null,null,null,null,null,null,null,null,null,null,null,null,null,null,null,null,null,null,377,null,336]
[null,null,null,null,null,null,null,null,null,null,null,null,null,null,null,null,null,null,null,null,null,null,null,null,null,null,null,null,null,null,null,null,null,null,null,null,null,null,null,null,null,null,null,null,null,null,null,null,null,null,null,null,null,null,null,null,null,null,null,null,null,null,null,null,null,null,null,null,null,null,572,null,908]
[null,null,null,null,null,null,null,null,null,null,null,null,null,null,null,null,null,null,null,null,null,null,null,null,null,null,null,null,null,null,null,null,null,null,null,null,null,null,null,null,null,null,null,null,null,null,null,null,null,null,null,null,null,null,null,null,null,null,null,null,null,null,null,null,null,null,null,null,null,null,654,null,782]
[null,null,null,null,null,null,null,null,null,null,null,null,null,null,null,null,null,null,null,null,null,null,null,null,null,null,null,null,null,null,null,null,null,null,null,null,null,null,null,null,null,null,null,null,null,null,null,null,null,null,null,null,null,null,null,null,null,null,null,null,null,null,null,null,null,null,null,null,null,null,560,null,23]
[null,null,null,null,null,null,null,null,null,null,null,null,null,null,null,null,null,null,null,null,null,null,null,null,null,null,null,null,null,null,null,null,null,null,null,null,null,null,null,null,null,null,null,null,null,null,null,null,null,null,null,null,null,null,null,null,null,null,null,null,null,null,null,null,null,null,null,null,null,null,923,null,102]
[null,null,null,null,null,null,null,null,null,null,null,null,null,null,null,null,null,null,null,null,null,null,null,null,null,null,null,null,null,null,null,null,null,null,null,null,null,null,null,null,null,null,null,null,null,null,null,null,null,null,null,null,null,null,null,null,null,null,null,null,null,null,null,null,null,null,null,null,null,null,385,null,918]
[null,null,null,null,null,null,null,null,null,null,null,null,null,null,null,null,null,null,null,null,null,null,null,null,null,null,null,null,null,null,null,null,null,null,null,null,null,null,null,null,null,null,null,null,null,null,null,null,null,null,null,null,null,null,null,null,null,null,null,null,null,null,null,null,null,null,null,null,null,null,710,null,835]
[null,null,null,null,null,null,null,null,null,null,null,null,null,null,null,null,null,null,null,null,null,null,null,null,null,null,null,null,null,null,null,null,null,null,null,null,null,null,null,null,null,null,null,null,null,null,null,null,null,null,null,null,null,null,null,null,null,null,null,null,null,null,null,null,null,null,null,null,null,null,665,null,511]
[null,null,null,null,null,null,null,null,null,null,null,null,null,null,null,null,null,null,null,null,null,null,null,null,null,null,null,null,null,null,null,null,null,null,null,null,null,null,null,null,null,null,null,null,null,null,null,null,null,null,null,null,null,null,null,null,null,null,null,null,null,null,null,null,null,null,null,null,null,null,13,null,782]
[null,null,null,null,null,null,null,null,null,null,null,null,null,null,null,null,null,null,null,null,null,null,null,null,null,null,null,null,null,null,null,null,null,null,null,null,null,null,null,null,null,null,null,null,null,null,null,null,null,null,null,null,null,null,null,null,null,null,null,null,null,null,null,null,null,null,null,null,null,null,468,null,442]
[null,null,null,null,null,null,null,null,null,null,null,null,null,null,null,null,null,null,null,null,null,null,null,null,null,null,null,null,null,null,null,null,null,null,null,null,null,null,null,null,null,null,null,null,null,null,null,null,null,null,null,null,null,null,null,null,null,null,null,null,null,null,null,null,null,null,null,null,null,null,730,null,271]
[null,null,null,null,null,null,null,null,null,null,null,null,null,null,null,null,null,null,null,null,null,null,null,null,null,null,null,null,null,null,null,null,null,null,null,null,null,null,null,null,null,null,null,null,null,null,null,null,null,null,null,null,null,null,null,null,null,null,null,null,null,null,null,null,null,null,null,null,null,null,812,null,280]
[null,null,null,null,null,null,null,null,null,null,null,null,null,null,null,null,null,null,null,null,null,null,null,null,null,null,null,null,null,null,null,null,null,null,null,null,null,null,null,null,null,null,null,null,null,null,null,null,null,null,null,null,null,null,null,null,null,null,null,null,null,null,null,null,null,null,null,null,null,null,922,null,499]
[null,null,null,null,null,null,null,null,null,null,null,null,null,null,null,null,null,null,null,null,null,null,null,null,null,null,null,null,null,null,null,null,null,null,null,null,null,null,null,null,null,null,null,null,null,null,null,null,null,null,null,null,null,null,null,null,null,null,null,null,null,null,null,null,null,null,null,null,null,null,405,null,263]
[null,null,null,null,null,null,null,null,null,null,null,null,null,null,null,null,null,null,null,null,null,null,null,null,null,null,null,null,null,null,null,null,null,null,null,null,null,null,null,null,null,null,null,null,null,null,null,null,null,null,null,null,null,null,null,null,null,null,null,null,null,null,null,null,null,null,null,null,null,null,351,null,361]
[null,null,null,null,null,null,null,null,null,null,null,null,null,null,null,null,null,null,null,null,null,null,null,null,null,null,null,null,null,null,null,null,null,null,null,null,null,null,null,null,null,null,null,null,null,null,null,null,null,null,null,null,null,null,null,null,null,null,null,null,null,null,null,null,null,null,null,null,null,null,35,null,771]
[null,null,null,null,null,null,null,null,null,null,null,null,null,null,null,null,null,null,null,null,null,null,null,null,null,null,null,null,null,null,null,null,null,null,null,null,null,null,null,null,null,null,null,null,null,null,null,null,null,null,null,null,null,null,null,null,null,null,null,null,null,null,null,null,null,null,null,null,null,null,632,null,319]
[null,null,null,null,null,null,null,null,null,null,null,null,null,null,null,null,null,null,null,null,null,null,null,null,null,null,null,null,null,null,null,null,null,null,null,null,null,null,null,null,null,null,null,null,null,null,null,null,null,null,null,null,null,null,null,null,null,null,null,null,null,null,null,null,null,null,null,null,null,null,392,null,964]
[null,null,null,null,null,null,null,null,null,null,null,null,null,null,null,null,null,null,null,null,null,null,null,null,null,null,null,null,null,null,null,null,null,null,null,null,null,null,null,null,null,null,null,null,null,null,null,null,null,null,null,null,null,null,null,null,null,null,null,null,null,null,null,null,null,null,null,null,null,null,946,null,413]
[null,null,null,null,null,null,null,null,null,null,null,null,null,null,null,null,null,null,null,null,null,null,null,null,null,null,null,null,null,null,null,null,null,null,null,null,null,null,null,null,null,null,null,null,null,null,null,null,null,null,null,null,null,null,null,null,null,null,null,null,null,null,null,null,null,null,null,null,null,null,900,null,768]
[null,null,null,null,null,null,null,null,null,null,null,null,null,null,null,null,null,null,null,null,null,null,null,null,null,null,null,null,null,null,null,null,null,null,null,null,null,null,null,null,null,null,null,null,null,null,null,null,null,null,null,null,null,null,null,null,null,null,null,null,null,null,null,null,null,null,null,null,null,null,933,null,152]
[null,null,null,null,null,null,null,null,null,null,null,null,null,null,null,null,null,null,null,null,null,null,null,null,null,null,null,null,null,null,null,null,null,null,null,null,null,null,null,null,null,null,null,null,null,null,null,null,null,null,null,null,null,null,null,null,null,null,null,null,null,null,null,null,null,null,null,null,null,null,94,null,142]
[null,null,null,null,null,null,null,null,null,null,null,null,null,null,null,null,null,null,null,null,null,null,null,null,null,null,null,null,null,null,null,null,null,null,null,null,null,null,null,null,null,null,null,null,null,null,null,null,null,null,null,null,null,null,null,null,null,null,null,null,null,null,null,null,null,null,null,null,null,null,156,null,716]
[null,null,null,null,null,null,null,null,null,null,null,null,null,null,null,null,null,null,null,null,null,null,null,null,null,null,null,null,null,null,null,null,null,null,null,null,null,null,null,null,null,null,null,null,null,null,null,null,null,null,null,null,null,null,null,null,null,null,null,null,null,null,null,null,null,null,null,null,null,null,490,null,{"$f":"RANDBETWEEN(1, 1000)","v":666}]
[null,null,null,null,null,null,null,null,null,null,null,null,null,null,null,null,null,null,null,null,null,null,null,null,null,null,null,null,null,null,null,null,null,null,null,null,null,null,null,null,null,null,null,null,null,null,null,null,null,null,null,null,null,null,null,null,null,null,null,null,null,null,null,null,null,null,null,null,null,null,118,null,645]
[null,null,null,null,null,null,null,null,null,null,null,null,null,null,null,null,null,null,null,null,null,null,null,null,null,null,null,null,null,null,null,null,null,null,null,null,null,null,null,null,null,null,null,null,null,null,null,null,null,null,null,null,null,null,null,null,null,null,null,null,null,null,null,null,null,null,null,null,null,null,491,null,208]
[null,null,null,null,null,null,null,null,null,null,null,null,null,null,null,null,null,null,null,null,null,null,null,null,null,null,null,null,null,null,null,null,null,null,null,null,null,null,null,null,null,null,null,null,null,null,null,null,null,null,null,null,null,null,null,null,null,null,null,null,null,null,null,null,null,null,null,null,null,null,835,null,985]
[null,null,null,null,null,null,null,null,null,null,null,null,null,null,null,null,null,null,null,null,null,null,null,null,null,null,null,null,null,null,null,null,null,null,null,null,null,null,null,null,null,null,null,null,null,null,null,null,null,null,null,null,null,null,null,null,null,null,null,null,null,null,null,null,null,null,null,null,null,null,147,null,786]
[null,null,null,null,null,null,null,null,null,null,null,null,null,null,null,null,null,null,null,null,null,null,null,null,null,null,null,null,null,null,null,null,null,null,null,null,null,null,null,null,null,null,null,null,null,null,null,null,null,null,null,null,null,null,null,null,null,null,null,null,null,null,null,null,null,null,null,null,null,null,204,null,89]
[null,null,null,null,null,null,null,null,null,null,null,null,null,null,null,null,null,null,null,null,null,null,null,null,null,null,null,null,null,null,null,null,null,null,null,null,null,null,null,null,null,null,null,null,null,null,null,null,null,null,null,null,null,null,null,null,null,null,null,null,null,null,null,null,null,null,null,null,null,null,65,null,828]
[null,null,null,null,null,null,null,null,null,null,null,null,null,null,null,null,null,null,null,null,null,null,null,null,null,null,null,null,null,null,null,null,null,null,null,null,null,null,null,null,null,null,null,null,null,null,null,null,null,null,null,null,null,null,null,null,null,null,null,null,null,null,null,null,null,null,null,null,null,null,933,null,523]

{"sheet":"Maths Game","index":1,"n_rows":31,"n_cols":118,"rows_kept":31,"cut":false,"hidden":false,"merged":[[30,74,34,78],[30,41,34,45],[30,46,34,48],[30,49,34,53],[30,54,34,56],[30,57,34,61],[30,63,34,72],[16,74,20,78],[23,41,27,45],[23,46,27,48],[23,49,27,53],[23,54,27,56],[23,57,27,61],[23,63,27,72],[23,74,27,78],[16,41,20,45],[16,46,20,48],[16,49,20,53],[16,54,20,56],[16,57,20,61],[16,63,20,72],[2,74,6,78],[9,41,13,45],[9,46,13,48],[9,49,13,53],[9,54,13,56],[9,57,13,61],[9,63,13,72],[9,74,13,78],[2,41,6,45],[2,46,6,48],[2,49,6,53],[2,54,6,56],[2,57,6,61],[2,63,6,72],[23,23,27,32],[30,23,34,32],[2,34,6,38],[9,34,13,38],[16,34,20,38],[23,34,27,38],[30,34,34,38],[2,23,6,32],[9,23,13,32],[16,23,20,32],[30,1,34,5],[30,6,34,8],[30,9,34,13],[30,14,34,16],[30,17,34,21],[16,1,20,5],[16,6,20,8],[16,9,20,13],[16,14,20,16],[16,17,20,21],[23,1,27,5],[23,6,27,8],[23,9,27,13],[23,14,27,16],[23,17,27,21],[2,1,6,5],[2,6,6,8],[2,9,6,13],[2,14,6,16],[2,17,6,21],[9,1,13,5],[9,6,13,8],[9,9,13,13],[9,14,13,16],[9,17,13,21],[2,92,6,96],[9,92,13,96],[16,92,20,96],[23,92,27,96],[30,92,34,96],[2,99,6,103],[9,99,13,103],[16,99,20,103],[23,99,27,103],[30,99,34,103]]}
[]
[]
[1,{"$f":"IFERROR(INDEX('Intro & Setup'!$BC$3:$BC$803, MATCH(A3, 'Intro & Setup'!$BM$3:$BM$803, 0)), \"\")","v":3},null,null,null,null,{"$f":"IFERROR(INDEX('Intro & Setup'!$BD$3:$BD$803, MATCH(A3, 'Intro & Setup'!$BM$3:$BM$803, 0)), \"\")","v":"-"},null,null,{"$f":"IFERROR(INDEX('Intro & Setup'!$BE$3:$BE$803, MATCH(A3, 'Intro & Setup'!$BM$3:$BM$803, 0)), \"\")","v":1},null,null,null,null,"=",null,null,null,null,null,null,null,null,{"$f":"IF($CO3=\"\", \"\", IF($CO3=$DN$3, IFERROR(INDEX('Intro & Setup'!$AW$14:$AW$23, MATCH(A3, 'Intro & Setup'!$AX$14:$AX$23, 0)), 'Intro & Setup'!$AW$14), IF($CO3=$DN$4, 'Intro & Setup'!$AW$12, \"\")))","v":""},null,null,null,null,null,null,null,null,null,null,{"$f":"IF($CO3=$DN$3, IFERROR(INDEX('Intro & Setup'!$AW$26:$AW$55, MATCH(A3, 'Intro & Setup'!$AX$26:$AX$55, 0)), 'Intro & Setup'!$AW$26), \"\")","v":""},null,null,null,null,null,{"$f":"A31+1","v":6},{"$f":"IFERROR(INDEX('Intro & Setup'!$BC$3:$BC$803, MATCH(AO3, 'Intro & Setup'!$BM$3:$BM$803, 0)), \"\")","v":2},null,null,null,null,{"$f":"IFERROR(INDEX('Intro & Setup'!$BD$3:$BD$803, MATCH(AO3, 'Intro & Setup'!$BM$3:$BM$803, 0)), \"\")","v":"+"},null,null,{"$f":"IFERROR(INDEX('Intro & Setup'!$BE$3:$BE$803, MATCH(AO3, 'Intro & Setup'!$BM$3:$BM$803, 0)), \"\")","v":2},null,null,null,null,"=",null,null,null,null,null,null,null,null,{"$f":"IF($CV3=\"\", \"\", IF($CV3=$DN$3, IFERROR(INDEX('Intro & Setup'!$AW$14:$AW$23, MATCH(AO3, 'Intro & Setup'!$AX$14:$AX$23, 0)), 'Intro & Setup'!$AW$14), IF($CV3=$DN$4, 'Intro & Setup'!$AW$12, \"\")))","v":""},null,null,null,null,null,null,null,null,null,null,{"$f":"IF($CV3=$DN$3, IFERROR(INDEX('Intro & Setup'!$AW$26:$AW$55, MATCH(AO3, 'Intro & Setup'!$AX$26:$AX$55, 0)), 'Intro & Setup'!$AW$26), \"\")","v":""},null,null,null,null,null,null,null,null,null,null,null,null,null,null,null,null,null,{"$f":"IF($R3=\"\", \"\", IF($G3=\"+\", IF($B3+$J3=$R3, $DN$3, $DN$4), IF($G3=\"-\", IF($B3-$J3=$R3, $DN$3, $DN$4), \"\")))","v":""},null,null,null,null,null,null,{"$f":"IF($BF3=\"\", \"\", IF($AU3=\"+\", IF($AP3+$AX3=$BF3, $DN$3, $DN$4), IF($AU3=\"-\", IF($AP3-$AX3=$BF3, $DN$3, $DN$4), \"\")))","v":""},null,null,null,null,null,null,null,null,null,null,null,null,null,null,null,null,null,"Yes"]
[null,null,null,null,null,null,null,null,null,null,null,null,null,null,null,null,null,null,null,null,null,null,null,null,null,null,null,null,null,null,null,null,null,null,null,null,null,null,null,null,null,null,null,null,null,null,null,null,null,null,null,null,null,null,null,null,null,null,null,null,null,null,null,null,null,null,null,null,null,null,null,null,null,null,null,null,null,null,null,null,null,null,null,null,null,null,null,null,null,null,null,null,null,null,null,null,null,null,null,null,null,null,null,null,null,null,null,null,null,null,null,null,null,null,null,null,null,"No"]
[]
[]
[]
[]
[]
[{"$f":"A3+1","v":2},{"$f":"IFERROR(INDEX('Intro & Setup'!$BC$3:$BC$803, MATCH(A10, 'Intro & Setup'!$BM$3:$BM$803, 0)), \"\")","v":4},null,null,null,null,{"$f":"IFERROR(INDEX('Intro & Setup'!$BD$3:$BD$803, MATCH(A10, 'Intro & Setup'!$BM$3:$BM$803, 0)), \"\")","v":"+"},null,null,{"$f":"IFERROR(INDEX('Intro & Setup'!$BE$3:$BE$803, MATCH(A10, 'Intro & Setup'!$BM$3:$BM$803, 0)), \"\")","v":1},null,null,null,null,"=",null,null,null,null,null,null,null,null,{"$f":"IF($CO10=\"\", \"\", IF($CO10=$DN$3, IFERROR(INDEX('Intro & Setup'!$AW$14:$AW$23, MATCH(A10, 'Intro & Setup'!$AX$14:$AX$23, 0)), 'Intro & Setup'!$AW$14), IF($CO10=$DN$4, 'Intro & Setup'!$AW$12, \"\")))","v":""},null,null,null,null,null,null,null,null,null,null,{"$f":"IF($CO10=$DN$3, IFERROR(INDEX('Intro & Setup'!$AW$26:$AW$55, MATCH(A10, 'Intro & Setup'!$AX$26:$AX$55, 0)), 'Intro & Setup'!$AW$26), \"\")","v":""},null,null,null,null,null,{"$f":"AO3+1","v":7},{"$f":"IFERROR(INDEX('Intro & Setup'!$BC$3:$BC$803, MATCH(AO10, 'Intro & Setup'!$BM$3:$BM$803, 0)), \"\")","v":4},null,null,null,null,{"$f":"IFERROR(INDEX('Intro & Setup'!$BD$3:$BD$803, MATCH(AO10, 'Intro & Setup'!$BM$3:$BM$803, 0)), \"\")","v":"-"},null,null,{"$f":"IFERROR(INDEX('Intro & Setup'!$BE$3:$BE$803, MATCH(AO10, 'Intro & Setup'!$BM$3:$BM$803, 0)), \"\")","v":1},null,null,null,null,"=",null,null,null,null,null,null,null,null,{"$f":"IF($CV10=\"\", \"\", IF($CV10=$DN$3, IFERROR(INDEX('Intro & Setup'!$AW$14:$AW$23, MATCH(AO10, 'Intro & Setup'!$AX$14:$AX$23, 0)), 'Intro & Setup'!$AW$14), IF($CV10=$DN$4, 'Intro & Setup'!$AW$12, \"\")))","v":""},null,null,null,null,null,null,null,null,null,null,{"$f":"IF($CV10=$DN$3, IFERROR(INDEX('Intro & Setup'!$AW$26:$AW$55, MATCH(AO10, 'Intro & Setup'!$AX$26:$AX$55, 0)), 'Intro & Setup'!$AW$26), \"\")","v":""},null,null,null,null,null,null,null,null,null,null,null,null,null,null,null,null,null,{"$f":"IF($R10=\"\", \"\", IF($G10=\"+\", IF($B10+$J10=$R10, $DN$3, $DN$4), IF($G10=\"-\", IF($B10-$J10=$R10, $DN$3, $DN$4), \"\")))","v":""},null,null,null,null,null,null,{"$f":"IF($BF10=\"\", \"\", IF($AU10=\"+\", IF($AP10+$AX10=$BF10, $DN$3, $DN$4), IF($AU10=\"-\", IF($AP10-$AX10=$BF10, $DN$3, $DN$4), \"\")))","v":""}]
[]
[]
[]
[]
[]
[]
[{"$f":"A10+1","v":3},{"$f":"IFERROR(INDEX('Intro & Setup'!$BC$3:$BC$803, MATCH(A17, 'Intro & Setup'!$BM$3:$BM$803, 0)), \"\")","v":5},null,null,null,null,{"$f":"IFERROR(INDEX('Intro & Setup'!$BD$3:$BD$803, MATCH(A17, 'Intro & Setup'!$BM$3:$BM$803, 0)), \"\")","v":"-"},null,null,{"$f":"IFERROR(INDEX('Intro & Setup'!$BE$3:$BE$803, MATCH(A17, 'Intro & Setup'!$BM$3:$BM$803, 0)), \"\")","v":1},null,null,null,null,"=",null,null,null,null,null,null,null,null,{"$f":"IF($CO17=\"\", \"\", IF($CO17=$DN$3, IFERROR(INDEX('Intro & Setup'!$AW$14:$AW$23, MATCH(A17, 'Intro & Setup'!$AX$14:$AX$23, 0)), 'Intro & Setup'!$AW$14), IF($CO17=$DN$4, 'Intro & Setup'!$AW$12, \"\")))","v":""},null,null,null,null,null,null,null,null,null,null,{"$f":"IF($CO17=$DN$3, IFERROR(INDEX('Intro & Setup'!$AW$26:$AW$55, MATCH(A17, 'Intro & Setup'!$AX$26:$AX$55, 0)), 'Intro & Setup'!$AW$26), \"\")","v":""},null,null,null,null,null,{"$f":"AO10+1","v":8},{"$f":"IFERROR(INDEX('Intro & Setup'!$BC$3:$BC$803, MATCH(AO17, 'Intro & Setup'!$BM$3:$BM$803, 0)), \"\")","v":5},null,null,null,null,{"$f":"IFERROR(INDEX('Intro & Setup'!$BD$3:$BD$803, MATCH(AO17, 'Intro & Setup'!$BM$3:$BM$803, 0)), \"\")","v":"-"},null,null,{"$f":"IFERROR(INDEX('Intro & Setup'!$BE$3:$BE$803, MATCH(AO17, 'Intro & Setup'!$BM$3:$BM$803, 0)), \"\")","v":4},null,null,null,null,"=",null,null,null,null,null,null,null,null,{"$f":"IF($CV17=\"\", \"\", IF($CV17=$DN$3, IFERROR(INDEX('Intro & Setup'!$AW$14:$AW$23, MATCH(AO17, 'Intro & Setup'!$AX$14:$AX$23, 0)), 'Intro & Setup'!$AW$14), IF($CV17=$DN$4, 'Intro & Setup'!$AW$12, \"\")))","v":""},null,null,null,null,null,null,null,null,null,null,{"$f":"IF($CV17=$DN$3, IFERROR(INDEX('Intro & Setup'!$AW$26:$AW$55, MATCH(AO17, 'Intro & Setup'!$AX$26:$AX$55, 0)), 'Intro & Setup'!$AW$26), \"\")","v":""},null,null,null,null,null,null,null,null,null,null,null,null,null,null,null,null,null,{"$f":"IF($R17=\"\", \"\", IF($G17=\"+\", IF($B17+$J17=$R17, $DN$3, $DN$4), IF($G17=\"-\", IF($B17-$J17=$R17, $DN$3, $DN$4), \"\")))","v":""},null,null,null,null,null,null,{"$f":"IF($BF17=\"\", \"\", IF($AU17=\"+\", IF($AP17+$AX17=$BF17, $DN$3, $DN$4), IF($AU17=\"-\", IF($AP17-$AX17=$BF17, $DN$3, $DN$4), \"\")))","v":""}]
[]
[]
[]
[]
[]
[]
[{"$f":"A17+1","v":4},{"$f":"IFERROR(INDEX('Intro & Setup'!$BC$3:$BC$803, MATCH(A24, 'Intro & Setup'!$BM$3:$BM$803, 0)), \"\")","v":1},null,null,null,null,{"$f":"IFERROR(INDEX('Intro & Setup'!$BD$3:$BD$803, MATCH(A24, 'Intro & Setup'!$BM$3:$BM$803, 0)), \"\")","v":"+"},null,null,{"$f":"IFERROR(INDEX('Intro & Setup'!$BE$3:$BE$803, MATCH(A24, 'Intro & Setup'!$BM$3:$BM$803, 0)), \"\")","v":4},null,null,null,null,"=",null,null,null,null,null,null,null,null,{"$f":"IF($CO24=\"\", \"\", IF($CO24=$DN$3, IFERROR(INDEX('Intro & Setup'!$AW$14:$AW$23, MATCH(A24, 'Intro & Setup'!$AX$14:$AX$23, 0)), 'Intro & Setup'!$AW$14), IF($CO24=$DN$4, 'Intro & Setup'!$AW$12, \"\")))","v":""},null,null,null,null,null,null,null,null,null,null,{"$f":"IF($CO24=$DN$3, IFERROR(INDEX('Intro & Setup'!$AW$26:$AW$55, MATCH(A24, 'Intro & Setup'!$AX$26:$AX$55, 0)), 'Intro & Setup'!$AW$26), \"\")","v":""},null,null,null,null,null,{"$f":"AO17+1","v":9},{"$f":"IFERROR(INDEX('Intro & Setup'!$BC$3:$BC$803, MATCH(AO24, 'Intro & Setup'!$BM$3:$BM$803, 0)), \"\")","v":5},null,null,null,null,{"$f":"IFERROR(INDEX('Intro & Setup'!$BD$3:$BD$803, MATCH(AO24, 'Intro & Setup'!$BM$3:$BM$803, 0)), \"\")","v":"-"},null,null,{"$f":"IFERROR(INDEX('Intro & Setup'!$BE$3:$BE$803, MATCH(AO24, 'Intro & Setup'!$BM$3:$BM$803, 0)), \"\")","v":2},null,null,null,null,"=",null,null,null,null,null,null,null,null,{"$f":"IF($CV24=\"\", \"\", IF($CV24=$DN$3, IFERROR(INDEX('Intro & Setup'!$AW$14:$AW$23, MATCH(AO24, 'Intro & Setup'!$AX$14:$AX$23, 0)), 'Intro & Setup'!$AW$14), IF($CV24=$DN$4, 'Intro & Setup'!$AW$12, \"\")))","v":""},null,null,null,null,null,null,null,null,null,null,{"$f":"IF($CV24=$DN$3, IFERROR(INDEX('Intro & Setup'!$AW$26:$AW$55, MATCH(AO24, 'Intro & Setup'!$AX$26:$AX$55, 0)), 'Intro & Setup'!$AW$26), \"\")","v":""},null,null,null,null,null,null,null,null,null,null,null,null,null,null,null,null,null,{"$f":"IF($R24=\"\", \"\", IF($G24=\"+\", IF($B24+$J24=$R24, $DN$3, $DN$4), IF($G24=\"-\", IF($B24-$J24=$R24, $DN$3, $DN$4), \"\")))","v":""},null,null,null,null,null,null,{"$f":"IF($BF24=\"\", \"\", IF($AU24=\"+\", IF($AP24+$AX24=$BF24, $DN$3, $DN$4), IF($AU24=\"-\", IF($AP24-$AX24=$BF24, $DN$3, $DN$4), \"\")))","v":""}]
[]
[]
[]
[]
[]
[]
[{"$f":"A24+1","v":5},{"$f":"IFERROR(INDEX('Intro & Setup'!$BC$3:$BC$803, MATCH(A31, 'Intro & Setup'!$BM$3:$BM$803, 0)), \"\")","v":4},null,null,null,null,{"$f":"IFERROR(INDEX('Intro & Setup'!$BD$3:$BD$803, MATCH(A31, 'Intro & Setup'!$BM$3:$BM$803, 0)), \"\")","v":"-"},null,null,{"$f":"IFERROR(INDEX('Intro & Setup'!$BE$3:$BE$803, MATCH(A31, 'Intro & Setup'!$BM$3:$BM$803, 0)), \"\")","v":2},null,null,null,null,"=",null,null,null,null,null,null,null,null,{"$f":"IF($CO31=\"\", \"\", IF($CO31=$DN$3, IFERROR(INDEX('Intro & Setup'!$AW$14:$AW$23, MATCH(A31, 'Intro & Setup'!$AX$14:$AX$23, 0)), 'Intro & Setup'!$AW$14), IF($CO31=$DN$4, 'Intro & Setup'!$AW$12, \"\")))","v":""},null,null,null,null,null,null,null,null,null,null,{"$f":"IF($CO31=$DN$3, IFERROR(INDEX('Intro & Setup'!$AW$26:$AW$55, MATCH(A31, 'Intro & Setup'!$AX$26:$AX$55, 0)), 'Intro & Setup'!$AW$26), \"\")","v":""},null,null,null,null,null,{"$f":"AO24+1","v":10},{"$f":"IFERROR(INDEX('Intro & Setup'!$BC$3:$BC$803, MATCH(AO31, 'Intro & Setup'!$BM$3:$BM$803, 0)), \"\")","v":2},null,null,null,null,{"$f":"IFERROR(INDEX('Intro & Setup'!$BD$3:$BD$803, MATCH(AO31, 'Intro & Setup'!$BM$3:$BM$803, 0)), \"\")","v":"+"},null,null,{"$f":"IFERROR(INDEX('Intro & Setup'!$BE$3:$BE$803, MATCH(AO31, 'Intro & Setup'!$BM$3:$BM$803, 0)), \"\")","v":3},null,null,null,null,"=",null,null,null,null,null,null,null,null,{"$f":"IF($CV31=\"\", \"\", IF($CV31=$DN$3, IFERROR(INDEX('Intro & Setup'!$AW$14:$AW$23, MATCH(AO31, 'Intro & Setup'!$AX$14:$AX$23, 0)), 'Intro & Setup'!$AW$14), IF($CV31=$DN$4, 'Intro & Setup'!$AW$12, \"\")))","v":""},null,null,null,null,null,null,null,null,null,null,{"$f":"IF($CV31=$DN$3, IFERROR(INDEX('Intro & Setup'!$AW$26:$AW$55, MATCH(AO31, 'Intro & Setup'!$AX$26:$AX$55, 0)), 'Intro & Setup'!$AW$26), \"\")","v":""},null,null,null,null,null,null,null,null,null,null,null,null,null,null,null,null,null,{"$f":"IF($R31=\"\", \"\", IF($G31=\"+\", IF($B31+$J31=$R31, $DN$3, $DN$4), IF($G31=\"-\", IF($B31-$J31=$R31, $DN$3, $DN$4), \"\")))","v":""},null,null,null,null,null,null,{"$f":"IF($BF31=\"\", \"\", IF($AU31=\"+\", IF($AP31+$AX31=$BF31, $DN$3, $DN$4), IF($AU31=\"-\", IF($AP31-$AX31=$BF31, $DN$3, $DN$4), \"\")))","v":""}]